Workbook

Sheet Pile Estimate (hidden)
A1: This is The Property of NOR DESIGN SOLUTION
A6: এক্সেল শীট বিষয়ক কিছু জানার থাকলে বা আপডেট নিয়ে কোন পরামর্শ থাকলে আমাদের সাথে যোগাযোগ করুন অথবা ওয়েবসাইটে কমেন্ট করুন।
A7: এক্সেল শীট সম্পর্কে যাবতীয় তথ্য বিস্তারিত জানতে ভিজিট করুন আমাদের ইউটিউব চ্যানেলে
A9: Click Here To Watch The Pile Estimate video
AI10: Cement | AJ10: Sand | AK10: Stone | AL10: Rod | AM10: Casting
AI11: =R17 -> 0 Bag | AJ11: =R18 -> 0 CFT | AK11: =R19 -> 0 CFT | AL11: =R20 -> 0.000 Ton | AM11: =R21 -> 0 CFT
A13: Pile Estimated
M14: Pile Estimated And Price
AO15: sum
A16: Description | C16: Type-1 | D16: Type-2 | E16: Type-3 | F16: Type-4 | G16: Type-5 | M16: DESCRIPTION | O16: Quantity | Q16: Wastage Material | R16: Quantity (Wastage Add) | T16: Rate | V16: Amount TK | AH16: Main Dia Length | AJ16: =IF(C17>0,(C19-C21)+C31,"") ->  | AK16: =IF(D17>0,(D19-D21)+D31,"") ->  | AO16: =SUM(AJ16:AN16) -> 0
A17: Nos | M17: Cement | O17: =AO24 -> 0 Bag | Q17: 0 % ADD | R17: =O17+$Q$17*O17/100 -> 0 Bag | T17: 550.00 TK | V17: =R17*T17 -> 0 TK | AH17: Small Dia Lap Length | AJ17: =IF(C17>0,(C19-C21)+C34,"") ->  | AK17: =IF(D17>0,(D19-D21)+D34,"") ->  | AO17: =SUM(AJ17:AN17) -> 0
A18: Pile Dia (inch) | M18: Sand | O18: =AO25 -> 0 CFT | R18: =O18+$Q$17*O18/100 -> 0 CFT | T18: 45.00 TK | V18: =R18*T18 -> 0 TK | AH18: One Sprial Rod Length | AJ18: =IF(C17>0,((3.1416*(C18-C22-C22))/12),"") ->  | AK18: =IF(D17>0,((3.1416*(D18-D22-D22))/12),"") ->  | AL18: =IF(E17>0,((3.1416*(E18-E22-E22))/12),"") ->  | AM18: =IF(F17>0,((3.1416*(F18-F22-F22))/12),"") ->  | AN18: =IF(G17>0,((3.1416*(G18-G22-G22))/12),"") ->  | AO18: 0 | AT18: =C29 -> 0 MM | AU18: =D29 -> 0 MM | AV18: =E29 -> 0 MM | AW18: =F29 -> 0 MM | AX18: =G29 -> 0 MM | AZ18: =IF(C17>0,AJ20+$Q$17*AJ20/100,"") ->  | BA18: =IF(D17>0,AK20+$Q$17*AK20/100,"") -> 
A19: Total Pile Height (ft) | M19: Stone Chips | O19: =AO26 -> 0 CFT | R19: =O19+$Q$17*O19/100 -> 0 CFT | T19: 100.00 TK | V19: 0 TK | AH19: Total Sprial Rod (Length) | AJ19: =IF(C17>0,IF(C36>0,((3.1416*(C18-C22-C22))/12)*((C19-C34-C20-C21)/(C36/12)+1)+C37,""),"") ->  | AK19: =IF(D17>0,IF(D36>0,((3.1416*(D18-D22-D22))/12)*((D19-D34-D20-D21)/(D36/12)+1)+D37,""),"") ->  | AL19: =IF(E17>0,IF(E36>0,((3.1416*(E18-E22-E22))/12)*((E19-E34-E20-E21)/(E36/12)+1)+E37,""),"") ->  | AM19: =IF(F17>0,IF(F36>0,((3.1416*(F18-F22-F22))/12)*((F19-F34-F20-F21)/(F36/12)+1)+F37,""),"") ->  | AN19: =IF(G17>0,IF(G36>0,((3.1416*(G18-G22-G22))/12)*((G19-G34-G20-G21)/(G36/12)+1)+G37,""),"") ->  | AO19: 0 | AT19: =C32 -> 0 MM | AU19: =D32 -> 0 MM | AV19: =E32 -> 0 MM | AW19: =F32 -> 0 MM | AX19: =G32 -> 0 MM | AZ19: =IF(C17>0,AJ21+$Q$17*AJ21/100,"") ->  | BA19: =IF(D17>0,AK21+$Q$17*AK21/100,"") -> 
A20: Pile Cut Of Level (ft) | M20: Rebar | O20: =SUM(AO20:AO22)/1000 -> 0.000 Ton | R20: =O20+$Q$17*O20/100 -> 0.000 Ton | T20: 98000.00 TK | V20: 0 TK | AH20: Reinforcement | AI20: Main Dia Rod | AJ20: =IF(C17>0,(C29^2/532)*C30*AJ16*C17,"") ->  | AK20: =IF(D17>0,(D29^2/532)*D30*AK16*D17,"") ->  | AL20: =IF(E17>0,(E29^2/532)*E30*AL16*E17,"") ->  | AM20: =IF(F17>0,(F29^2/532)*F30*AM16*F17,"") ->  | AN20: =IF(G17>0,(G29^2/532)*G30*AN16*G17,"") ->  | AO20: 0 KG | AT20: =C35 -> 0 MM | AU20: =D35 -> 0 MM | AV20: =E35 -> 0 MM | AW20: =F35 -> 0 MM | AX20: =G35 -> 0 MM | AZ20: =IF(C17>0,AJ22+$Q$17*AJ22/100,"") ->  | BA20: =IF(D17>0,AK22+$Q$17*AK22/100,"") -> 
A21: C.C (ft) | M21: Total RCC Casting | O21: =AO23 -> 0 CFT | R21: =O21+$Q$17*O21/100 -> 0 CFT | T21: 98001.00 TK | V21: =R21*T21 -> 0 TK | AI21: Small Dia Rod | AJ21: =IF(C17>0,IF(C32>0,(C32^2/532)*C33*AJ17*C17,""),"") ->  | AK21: =IF(D17>0,IF(D32>0,(D32^2/532)*D33*AK17*D17,""),"") ->  | AL21: =IF(E17>0,IF(E32>0,(E32^2/532)*E33*AL17*E17,""),"") ->  | AM21: =IF(F17>0,IF(F32>0,(F32^2/532)*F33*AM17*F17,""),"") ->  | AN21: =IF(G17>0,IF(G32>0,(G32^2/532)*G33*AN17*G17,""),"") ->  | AO21: 0 KG
A22: Clear Cover (inh) | T22: Total Cost | V22: =SUM(V17:W21) -> 0 TK | AI22: Sprial | AJ22: =IF(C17>0,IF(C36>0,(C35^2/532)*AJ19*C17,""),"") ->  | AK22: =IF(D17>0,IF(D36>0,(D35^2/532)*AK19*D17,""),"") ->  | AL22: =IF(E17>0,IF(E36>0,(E35^2/532)*AL19*E17,""),"") ->  | AM22: =IF(F17>0,IF(F36>0,(F35^2/532)*AM19*F17,""),"") ->  | AN22: =IF(G17>0,IF(G36>0,(G35^2/532)*AN19*G17,""),"") ->  | AO22: 0 KG
AH23: Rcc Casting | AJ23: =IF(C17>0,((3.1416*(C18/12)^2/4)*C19)*C17,"") ->  | AK23: =IF(D17>0,((3.1416*(D18/12)^2/4)*D19)*D17,"") ->  | AL23: =IF(E17>0,((3.1416*(E18/12)^2/4)*E19)*E17,"") ->  | AM23: =IF(F17>0,((3.1416*(F18/12)^2/4)*F19)*F17,"") ->  | AN23: =IF(G17>0,((3.1416*(G18/12)^2/4)*G19)*G17,"") ->  | AO23: 0
C24: Rcc casting Ratio | AI24: Cement | AJ24: =IF(C17>0,(AJ23*$C$26*1.5)/($F$26*1.25),"") ->  | AK24: =IF(D17>0,(AK23*$C$26*1.5)/($F$26*1.25),"") ->  | AO24: =SUM(AJ24:AN24) -> 0
P25: Reinforcement | AI25: Sand | AJ25: =IF(C17>0,(AJ23*$D$26*1.5)/$F$26,"") ->  | AK25: =IF(D17>0,(AK23*$D$26*1.5)/$F$26,"") ->  | AO25: =SUM(AJ25:AN25) -> 0
C26: 1 | D26: 1.5 | E26: 3 | F26: =SUM(C26:E26) -> 5.5 | R26: =IF(Q26>0,SUMIF($AT$18:$AX$20,Q26,$AZ$18:$BD$20),"") ->  | AI26: Stone Chips | AJ26: =IF(C17>0,(AJ23*$E$26*1.5)/($F$26),"") ->  | AK26: =IF(D17>0,(AK23*$E$26*1.5)/($F$26),"") ->  | AO26: =SUM(AJ26:AN26) -> 0
R27: =IF(Q27>0,SUMIF($AT$18:$AX$20,Q27,$AZ$18:$BD$20),"") -> 
A28: Pile Rebar Calculation | C28: Type-1 | D28: Type-2 | E28: Type-3 | F28: Type-4 | G28: Type-5
A29: Large Dia (mm)
A30: Large Dia Nos
A31: Large Dia Lapping (ft)
A32: Small Dia (mm)
A33: Small Dia Nos
A34: Small Dia Lapping (ft)
A35: Spiral Rod Dia (mm)
A36: Specing(inh)
A37: Spiral Rod Lapping (ft)
BM115: =R26 -> 

Sheet Rectangular Pile Cap (hidden)
A1: This is The Property of NOR DESIGN SOLUTION
A6: এক্সেল শীট বিষয়ক কিছু জানার থাকলে বা আপডেট নিয়ে কোন পরামর্শ থাকলে আমাদের সাথে যোগাযোগ করুন অথবা ওয়েবসাইটে কমেন্ট করুন
A7: এক্সেল শীট সম্পর্কে যাবতীয় তথ্য বিস্তারিত জানতে ভিজিট করুন আমাদের ইউটিউব চ্যানেলে
A9: Click Here To Watch The Rectanggular Pile Cap Estimate video | AS9: Cement | AT9: Sand | AU9: Stone | AV9: Rod | AW9: Casting | AX9: Excavation | AY9: Sand Filling | AZ9: Formwork | BA9: Brick Nos | BB9: Bricl Flat Soling | BC9: C.c
AS10: =AB15 -> 0 Bag | AT10: =AB16 -> 0 CFT | AU10: =BK22+Z15*BK22/100 -> 0 Cft | AV10: =AB18 -> 0.000 Ton | AW10: =AB23 -> 0 CFT | AX10: =AB22 -> 0 CFT | AY10: =AB20 -> 0 CFT | AZ10: =AB21 -> 0 SFT | BA10: =BK23+Z15*BK23/100 -> 0 Nos | BB10: =AB19 -> 0 Nos
A11: Rectangular Pile Cap Estimated
U12: Rectangular Shap Pile Cap Estimated And Price
A14: Description | C14: Type-1 | D14: Type-2 | E14: Type-3 | F14: Type-4 | G14: Type-5 | H14: Type-6 | I14: Type-7 | J14: Type-8 | K14: Type-9 | L14: Type-10 | M14: Type-11 | N14: Type-12 | O14: Type-13 | P14: Type-14 | Q14: Type-15 | U14: DESCRIPTION | X14: Quantity | Z14: Wastage Add | AB14: Quantity (Wastage Add) | AD14: Rate | AF14: Amount TK | AS14: 1 | AT14: 2 | AU14: 3 | AV14: 4 | AW14: 5 | AX14: 6 | AY14: 7 | AZ14: 8 | BA14: 9 | BB14: 10 | BC14: 11 | BD14: 12 | BE14: 13 | BF14: 14 | BG14: 15
A15: Nos | U15: Cement | X15: =BH16+BH18 -> 0 Bag | Z15: 0.0% ADD | AB15: =X15+$Z$15*X15/100 -> 0 Bag | AD15: 550.00 TK | AF15: =AB15*AD15 -> 0 TK | BH15: Sum
A16: Pile Cap Length,L (ft) | U16: Sand | X16: =BH17+BH19 -> 0 CFT | AB16: 0 CFT | AD16: 45.00 TK | AF16: 0 TK | AQ16: cement | AS16: =IF(C15>0,((AS25*$H$26*1.5)/($K$26*1.25))+1,"0") -> 0 | AT16: =IF(D15>0,((AT25*$H$26*1.5)/($K$26*1.25))+1,"0") -> 0 | AU16: 0 | AV16: 0 | AW16: 0 | AX16: 0 | AY16: 0 | AZ16: 0 | BA16: 0 | BB16: 0 | BC16: 0 | BD16: 0 | BE16: 0 | BF16: 0 | BG16: 0 | BH16: =SUM(AS16:BG16) -> 0.00
A17: Pile Cap Breadth,B (ft) | U17: Stone/Brik Chips | X17: =VLOOKUP(U17,BJ22:BK23,2,0) -> 0 | AB17: 0 | AD17: 100.00 TK | AF17: 0 TK | AQ17: sand | AS17: =IF(C15>0,(AS25*$I$26*1.5)/$K$26,"0") -> 0 | AT17: =IF(D15>0,(AT25*$I$26*1.5)/$K$26,"0") -> 0 | AU17: 0 | AV17: 0 | AW17: 0 | AX17: 0 | AY17: 0 | AZ17: 0 | BA17: 0 | BB17: 0 | BC17: 0 | BD17: 0 | BE17: 0 | BF17: 0 | BG17: 0 | BH17: =SUM(AS17:BG17) -> 0.00
A18: Casting Thickness, T (inch) | U18: Rebar | X18: =SUM(BH28:BI31)/1000 -> 0.000 Ton | AB18: 0.000 Ton | AD18: 98000.00 TK | AF18: 0 TK | AQ18: cement | AS18: =IF(C15>0,((AS23*$D$26*1.5)/($G$26*1.25))+1,"0") -> 0 | AT18: =IF(D15>0,((AT23*$D$26*1.5)/($G$26*1.25))+1,"0") -> 0 | AU18: 0 | AV18: 0 | AW18: 0 | AX18: 0 | AY18: 0 | AZ18: 0 | BA18: 0 | BB18: 0 | BC18: 0 | BD18: 0 | BE18: 0 | BF18: 0 | BG18: 0 | BH18: =SUM(AS18:BG18) -> 0.00
A19: Excavation Depth, D (ft) | U19: Brick Flat Soling | X19: =BH26*3 -> 0 Nos | AB19: 0 Nos | AD19: 10.00 TK | AF19: 0 TK | AQ19: sand | AS19: =IF(C15>0,(AS23*$E$26*1.5)/$G$26,"0") -> 0 | AT19: =IF(D15>0,(AT23*$E$26*1.5)/$G$26,"0") -> 0 | AU19: 0 | AV19: 0 | AW19: 0 | AX19: 0 | AY19: 0 | AZ19: 0 | BA19: 0 | BB19: 0 | BC19: 0 | BD19: 0 | BE19: 0 | BF19: 0 | BG19: 0 | BH19: 0.00
A20: Cement Concrete (C.C) inch | U20: Sand Filling | X20: =BH27 -> 0 CFT | AB20: 0 CFT | AD20: 45.00 TK | AF20: 0 TK | AQ20: Stone/Brik Chips | AS20: =IF(C15>0,(AS23*$F$26*1.5)/$G$26,"0") -> 0 | AT20: =IF(D15>0,(AT23*$F$26*1.5)/$G$26,"0") -> 0 | AU20: 0 | AV20: 0 | AW20: 0 | AX20: 0 | AY20: 0 | AZ20: 0 | BA20: 0 | BB20: 0 | BC20: 0 | BD20: 0 | BE20: 0 | BF20: 0 | BG20: 0 | BH20: 0.00
A21: Brick Flat Soling (inch) | U21: Formwork | X21: =BH22 -> 0 SFT | AB21: 0 SFT | AD21: 55.00 TK | AF21: 0 TK | AQ21: Brick Nos | AS21: =IF(C15>0,AS20*9.5,"0") -> 0 | AT21: =IF(D15>0,AT20*9.5,"0") -> 0 | AU21: 0 | AV21: 0 | AW21: 0 | AX21: 0 | AY21: 0 | AZ21: 0 | BA21: 0 | BB21: 0 | BC21: 0 | BD21: 0 | BE21: 0 | BF21: 0 | BG21: 0 | BH21: 0.00
A22: Sand Filling (inch) | U22: Excavation | X22: =BH24 -> 0 CFT | AB22: 0 CFT | AD22: 15.00 TK | AF22: 0 TK | AQ22: Framwork | AS22: =IF(C15>0,((C16+C16+C17+C17)*C18/12)*C15,"0") -> 0 | AT22: =IF(D15>0,((D16+D16+D17+D17)*D18/12)*D15,"0") -> 0 | AU22: 0 | AV22: 0 | AW22: 0 | AX22: 0 | AY22: 0 | AZ22: 0 | BA22: 0 | BB22: 0 | BC22: 0 | BD22: 0 | BE22: 0 | BF22: 0 | BG22: 0 | BH22: 0.00 | BJ22: Stone/Brik Chips | BK22: =BH20 -> 0 Cft
U23: Total RCC Casting | X23: =BH23 -> 0 CFT | AB23: 0 CFT | AD23: 16.00 TK | AF23: =AB23*AD23 -> 0 TK | AQ23: Casting | AS23: =IF(C15>0,IF(C18>0,((C16*C17*(C18/12)*C15)),""),"0") -> 0 | AT23: =IF(D15>0,IF(D18>0,((D16*D17*(D18/12)*D15)),""),"0") -> 0 | AU23: 0 | AV23: 0 | AW23: 0 | AX23: 0 | AY23: 0 | AZ23: 0 | BA23: 0 | BB23: 0 | BC23: 0 | BD23: 0 | BE23: 0 | BF23: 0 | BG23: 0 | BH23: 0.00 | BJ23: Brrick Nos | BK23: =BH21 -> 0 Nos
D24: Rcc casting Ratio | H24: C.C casting Ratio | AD24: Total Cost= | AF24: =SUM(AF15:AG23) -> 0 TK | AQ24: Excavation | AS24: =IF(C15>0,IF(C19>0,((C16*C17*C19)*C15),"0"),"0") -> 0 | AT24: =IF(D15>0,IF(D19>0,((D16*D17*D19)*D15),"0"),"0") -> 0 | AU24: 0 | AV24: 0 | AW24: 0 | AX24: 0 | AY24: 0 | AZ24: 0 | BA24: 0 | BB24: 0 | BC24: 0 | BD24: 0 | BE24: 0 | BF24: 0 | BG24: 0 | BH24: 0.00
AQ25: C.C | AS25: =IF(C15>0,(IF(C20>0,((C16*C17*(C20/12))*C15),"0")),"0") -> 0 | AT25: =IF(D15>0,(IF(D20>0,((D16*D17*(D20/12))*D15),"0")),"0") -> 0 | AU25: 0 | AV25: 0 | AW25: 0 | AX25: 0 | AY25: 0 | AZ25: 0 | BA25: 0 | BB25: 0 | BC25: 0 | BD25: 0 | BE25: 0 | BF25: 0 | BG25: 0 | BH25: 0.00
D26: 1 | E26: 1.5 | F26: 3 | G26: =SUM(D26:F26) -> 5.5 | K26: =SUM(H26:J26) -> 0.0 | AQ26: Soling | AS26: =IF(C15>0,IF(C21>0,(C16*C17)*C15,"0"),"0") -> 0 | AT26: =IF(D15>0,IF(D21>0,(D16*D17)*D15,"0"),"0") -> 0 | AU26: 0 | AV26: 0 | AW26: 0 | AX26: 0 | AY26: 0 | AZ26: 0 | BA26: 0 | BB26: 0 | BC26: 0 | BD26: 0 | BE26: 0 | BF26: 0 | BG26: 0 | BH26: 0.00
Y27: Reinforcement | AQ27: Sand Filling | AS27: =IF(C15>0,(IF(C22>0,((C16*C17*(C22/12))*C15),"0")),"0") -> 0 | AT27: =IF(D15>0,(IF(D22>0,((D16*D17*(D22/12))*D15),"0")),"0") -> 0 | AU27: 0 | AV27: 0 | AW27: 0 | AX27: 0 | AY27: 0 | AZ27: 0 | BA27: 0 | BB27: 0 | BC27: 0 | BD27: 0 | BE27: 0 | BF27: 0 | BG27: 0 | BH27: 0.00
A28: Pile Cap Rebar Calculation | D28: Type-1 | E28: Type-2 | F28: Type-3 | G28: Type-4 | H28: Type-5 | I28: Type-6 | J28: Type-7 | K28: Type-8 | L28: Type-9 | M28: Type-10 | N28: Type-11 | O28: Type-12 | P28: Type-13 | Q28: Type-14 | R28: Type-15 | AA28: =IF(Z28>0,SUMIF($AS$35:$BG$38,Z28,$BI$35:$BW$38),"") ->  | AQ28: long direction | AS28: =IF(C15>0,IF(D30>0,(((C17*12-D38-D38)/D30+1))*(D29^2/532)*(C16-((D38/12+D38/12-D37/12-D37/12)))*C15,"0"),"0") -> 0 | AT28: =IF(D15>0,IF(E30>0,(((D17*12-E38-E38)/E30+1))*(E29^2/532)*(D16-((E38/12+E38/12-E37/12-E37/12)))*D15,"0"),"0") -> 0 | AU28: 0 | AV28: 0 | AW28: 0 | AX28: 0 | AY28: 0 | AZ28: 0 | BA28: 0 | BB28: 0 | BC28: 0 | BD28: 0 | BE28: 0 | BF28: 0 | BG28: 0 | BH28: 0.00
A29: Bottom layer | B29: long direction Dia (mm) | AA29: =IF(Z29>0,SUMIF($AS$35:$BG$38,Z29,$BI$35:$BW$38),"") ->  | AQ29: Short direction | AS29: =IF(C15>0,IF(D32>0,(((C16*12-D38-D38)/D32+1))*(D31^2/532)*(C17-((D38/12+D38/12-D37/12-D37/12)))*C15,"0"),"0") -> 0 | AT29: =IF(D15>0,IF(E32>0,(((D16*12-E38-E38)/E32+1))*(E31^2/532)*(D17-((E38/12+E38/12-E37/12-E37/12)))*D15,"0"),"0") -> 0 | AU29: 0 | AV29: 0 | AW29: 0 | AX29: 0 | AY29: 0 | AZ29: 0 | BA29: 0 | BB29: 0 | BC29: 0 | BD29: 0 | BE29: 0 | BF29: 0 | BG29: 0 | BH29: 0.00
B30: Specing(inh) | AQ30: long direction | AS30: =IF(C15>0,IF(D34>0,(((C17*12-D38-D38)/D34+1))*(D33^2/532)*(C16-((D38/12+D38/12-D37/12-D37/12)))*C15,"0"),"0") -> 0 | AT30: =IF(D15>0,IF(E34>0,(((D17*12-E38-E38)/E34+1))*(E33^2/532)*(D16-((E38/12+E38/12-E37/12-E37/12)))*D15,"0"),"0") -> 0 | AU30: 0 | AV30: 0 | AW30: 0 | AX30: 0 | AY30: 0 | AZ30: 0 | BA30: 0 | BB30: 0 | BC30: 0 | BD30: 0 | BE30: 0 | BF30: 0 | BG30: 0 | BH30: 0.00
B31: Short direction Dia (mm) | AQ31: Short direction | AS31: =IF(C15>0,IF(D36>0,(((C16*12-D38-D38)/D36+1))*(D35^2/532)*(C17-((D38/12+D38/12-D37/12-D37/12)))*C15,"0"),"0") -> 0 | AT31: =IF(D15>0,IF(E36>0,(((D16*12-E38-E38)/E36+1))*(E35^2/532)*(D17-((E38/12+E38/12-E37/12-E37/12)))*D15,"0"),"0") -> 0 | AU31: 0 | AV31: 0 | AW31: 0 | AX31: 0 | AY31: 0 | AZ31: 0 | BA31: 0 | BB31: 0 | BC31: 0 | BD31: 0 | BE31: 0 | BF31: 0 | BG31: 0 | BH31: 0.00
B32: Specing(inh) | BI32: 1
A33: Top layer | B33: long direction Dia (mm)
B34: Specing(inh) | AS34: 1 | AT34: 2 | AU34: 3 | AV34: 4 | AW34: 5 | AX34: 6 | AY34: 7 | AZ34: 8 | BA34: 9 | BB34: 10 | BC34: 11 | BD34: 12 | BE34: 13 | BF34: 14 | BG34: 15
B35: Short direction Dia (mm) | AS35: =D29 -> 0 MM | AT35: =E29 -> 0 MM | AU35: 0 MM | AV35: 0 MM | AW35: 0 MM | AX35: 0 MM | AY35: 0 MM | AZ35: 0 MM | BA35: 0 MM | BB35: 0 MM | BC35: 0 MM | BD35: 0 MM | BE35: 0 MM | BF35: 0 MM | BG35: 0 MM | BI35: =IF(C15>0,AS28+$Z$15*AS28/100,"") ->  | BJ35: =IF(D15>0,AT28+$Z$15*AT28/100,"") -> 
B36: Specing (inh) | AS36: =D31 -> 0 MM | AT36: =E31 -> 0 MM | AU36: 0 MM | AV36: 0 MM | AW36: 0 MM | AX36: 0 MM | AY36: 0 MM | AZ36: 0 MM | BA36: 0 MM | BB36: 0 MM | BC36: 0 MM | BD36: 0 MM | BE36: 0 MM | BF36: 0 MM | BG36: 0 MM | BI36: =IF(C15>0,AS29+$Z$15*AS29/100,"") ->  | BJ36: =IF(D15>0,AT29+$Z$15*AT29/100,"") -> 
A37: Development length (inh) | AS37: =D33 -> 0 MM | AT37: =E33 -> 0 MM | AU37: 0 MM | AV37: 0 MM | AW37: 0 MM | AX37: 0 MM | AY37: 0 MM | AZ37: 0 MM | BA37: 0 MM | BB37: 0 MM | BC37: 0 MM | BD37: 0 MM | BE37: 0 MM | BF37: 0 MM | BG37: 0 MM | BI37: =IF(C15>0,AS30+$Z$15*AS30/100,"") ->  | BJ37: =IF(D15>0,AT30+$Z$15*AT30/100,"") -> 
A38: Clear Cover (inh) | AS38: =D35 -> 0 MM | AT38: =E35 -> 0 MM | AU38: 0 MM | AV38: 0 MM | AW38: 0 MM | AX38: 0 MM | AY38: 0 MM | AZ38: 0 MM | BA38: 0 MM | BB38: 0 MM | BC38: 0 MM | BD38: 0 MM | BE38: 0 MM | BF38: 0 MM | BG38: 0 MM | BI38: =IF(C15>0,AS31+$Z$15*AS31/100,"") ->  | BJ38: =IF(D15>0,AT31+$Z$15*AT31/100,"") -> 
BI40: 1 | BJ40: 2 | BK40: 3 | BL40: 4 | BM40: 5 | BN40: 6 | BO40: 7 | BP40: 8 | BQ40: 9 | BR40: 10 | BS40: 11 | BT40: 12 | BU40: 13 | BV40: 14 | BW40: 15

Sheet Trapezoidal Pile Cap (hidden)
A2: This is The Property of NOR DESIGN SOLUTION
A6: এক্সেল শীট বিষয়ক কিছু জানার থাকলে বা আপডেট নিয়ে কোন পরামর্শ থাকলে আমাদের সাথে যোগাযোগ করুন অথবা ওয়েবসাইটে কমেন্ট করুন
A7: এক্সেল শীট সম্পর্কে যাবতীয় তথ্য বিস্তারিত জানতে ভিজিট করুন আমাদের ইউটিউব চ্যানেলে
A9: Click Here To Watch The Trapezoidal Pile Cap Estimate video
A13: Trapezoidal Pile Cap | U13: Trapezoidal Shap Pile Cap Estimated And Price | AP13: L-1 | BF13: Cement | BG13: Sand | BH13: Stone | BI13: Rod | BJ13: Casting | BK13: Excavation | BL13: Sand Filling | BM13: Formwork | BN13: Brick Nos | BO13: Bricl Flat Soling | BP13: C.c
BF14: =AB16 -> 0 Bag | BG14: =AB17 -> 0 CFT | BH14: =BZ20+AA16*BZ20/100 -> 0 | BI14: =AB19 -> 0.000 Ton | BJ14: =AB24 -> 0 CFT | BK14: =AB20 -> 0 CFT | BL14: =Y22 -> 0 CFT | BM14: =Y23 -> 0 SFT | BN14: =BZ21+AA16*BZ21/100 -> 0 | BO14: =Y21 -> 0 Nos
A15: Description | C15: Type-1 | D15: Type-2 | E15: Type-3 | F15: Type-4 | G15: Type-5 | H15: Type-6 | I15: Type-7 | J15: Type-8 | K15: Type-9 | L15: Type-10 | M15: Type-11 | N15: Type-12 | O15: Type-13 | P15: Type-14 | Q15: Type-15 | U15: DESCRIPTION | Y15: Total Quantity | AA15: Wastage Add | AB15: Quantity (Wastage Add) | AD15: Rate | AF15: Amount TK | AR15: L-4 | BU15: Sum
A16: Nos | U16: Cement | Y16: =BU16+BU18 -> 0 Bag | AA16: 0 % ADD | AB16: =Y16+$AA$16*Y16/100 -> 0 Bag | AD16: 550.00 TK | AF16: =AD16*AB16 -> 0 TK | BD16: Cement | BF16: =IF(C16>0,(BF24*$H$29*1.54)/($K$29*1.25),"") ->  | BG16: =IF(D16>0,(BG24*$H$29*1.54)/($K$29*1.25),"") ->  | BH16: =IF(E16>0,(BH24*$H$29*1.54)/($K$29*1.25),"") ->  | BI16: =IF(F16>0,(BI24*$H$29*1.54)/($K$29*1.25),"") ->  | BJ16: =IF(G16>0,(BJ24*$H$29*1.54)/($K$29*1.25),"") ->  | BK16: =IF(H16>0,(BK24*$H$29*1.54)/($K$29*1.25),"") ->  | BL16: =IF(I16>0,(BL24*$H$29*1.54)/($K$29*1.25),"") ->  | BM16: =IF(J16>0,(BM24*$H$29*1.54)/($K$29*1.25),"") ->  | BN16: =IF(K16>0,(BN24*$H$29*1.54)/($K$29*1.25),"") ->  | BO16: =IF(L16>0,(BO24*$H$29*1.54)/($K$29*1.25),"") ->  | BP16: =IF(M16>0,(BP24*$H$29*1.54)/($K$29*1.25),"") ->  | BQ16: =IF(N16>0,(BQ24*$H$29*1.54)/($K$29*1.25),"") ->  | BR16: =IF(O16>0,(BR24*$H$29*1.54)/($K$29*1.25),"") ->  | BS16: =IF(P16>0,(BS24*$H$29*1.54)/($K$29*1.25),"") ->  | BT16: =IF(Q16>0,(BT24*$H$29*1.54)/($K$29*1.25),"") ->  | BU16: =SUM(BF16:BT16) -> 0.00
A17: Length-1 (ft) | U17: Sand | Y17: =BU17+BU19 -> 0 CFT | AB17: =Y17+$AA$16*Y17/100 -> 0 CFT | AD17: 45.00 TK | AF17: 0 TK | BD17: Sand | BF17: =IF(C16>0,(BF24*1.54*$I$29)/$K$29,"") ->  | BG17: =IF(D16>0,(BG24*1.54*$I$29)/$K$29,"") ->  | BH17: =IF(E16>0,(BH24*1.54*$I$29)/$K$29,"") ->  | BI17: =IF(F16>0,(BI24*1.54*$I$29)/$K$29,"") ->  | BJ17: =IF(G16>0,(BJ24*1.54*$I$29)/$K$29,"") ->  | BK17: =IF(H16>0,(BK24*1.54*$I$29)/$K$29,"") ->  | BL17: =IF(I16>0,(BL24*1.54*$I$29)/$K$29,"") ->  | BM17: =IF(J16>0,(BM24*1.54*$I$29)/$K$29,"") ->  | BN17: =IF(K16>0,(BN24*1.54*$I$29)/$K$29,"") ->  | BO17: =IF(L16>0,(BO24*1.54*$I$29)/$K$29,"") ->  | BP17: =IF(M16>0,(BP24*1.54*$I$29)/$K$29,"") ->  | BQ17: =IF(N16>0,(BQ24*1.54*$I$29)/$K$29,"") ->  | BR17: =IF(O16>0,(BR24*1.54*$I$29)/$K$29,"") ->  | BS17: =IF(P16>0,(BS24*1.54*$I$29)/$K$29,"") ->  | BT17: =IF(Q16>0,(BT24*1.54*$I$29)/$K$29,"") ->  | BU17: =SUM(BF17:BT17) -> 0.00
A18: Length-2 (ft) | U18: Stone/Brick Chips (CFT) | Y18: =VLOOKUP(U18,BY20:BZ21,2,0) -> 0 | AB18: 0 | AD18: 1.00 TK | AF18: 0 TK | BD18: Cement | BF18: =IF(C16>0,(BF22*$D$29*1.54)/($G$29*1.25),"") ->  | BG18: =IF(D16>0,(BG22*$D$29*1.54)/($G$29*1.25),"") ->  | BH18: =IF(E16>0,(BH22*$D$29*1.54)/($G$29*1.25),"") ->  | BI18: =IF(F16>0,(BI22*$D$29*1.54)/($G$29*1.25),"") ->  | BJ18: =IF(G16>0,(BJ22*$D$29*1.54)/($G$29*1.25),"") ->  | BK18: =IF(H16>0,(BK22*$D$29*1.54)/($G$29*1.25),"") ->  | BL18: =IF(I16>0,(BL22*$D$29*1.54)/($G$29*1.25),"") ->  | BM18: =IF(J16>0,(BM22*$D$29*1.54)/($G$29*1.25),"") ->  | BN18: =IF(K16>0,(BN22*$D$29*1.54)/($G$29*1.25),"") ->  | BO18: =IF(L16>0,(BO22*$D$29*1.54)/($G$29*1.25),"") ->  | BP18: =IF(M16>0,(BP22*$D$29*1.54)/($G$29*1.25),"") ->  | BQ18: =IF(N16>0,(BQ22*$D$29*1.54)/($G$29*1.25),"") ->  | BR18: =IF(O16>0,(BR22*$D$29*1.54)/($G$29*1.25),"") ->  | BS18: =IF(P16>0,(BS22*$D$29*1.54)/($G$29*1.25),"") ->  | BT18: =IF(Q16>0,(BT22*$D$29*1.54)/($G$29*1.25),"") ->  | BU18: 0.00
A19: Length-3 (ft) | U19: Rod/Rebar | Y19: =SUM(BU28:BV31)/1000 -> 0.000 Ton | AB19: 0.000 Ton | AD19: 95000.00 TK | AF19: 0 TK | AS19: L-3 | BD19: Sand | BF19: =IF(C16>0,(BF22*1.54*$E$29)/$G$29,"") ->  | BG19: =IF(D16>0,(BG22*1.54*$E$29)/$G$29,"") ->  | BH19: =IF(E16>0,(BH22*1.54*$E$29)/$G$29,"") ->  | BI19: =IF(F16>0,(BI22*1.54*$E$29)/$G$29,"") ->  | BJ19: =IF(G16>0,(BJ22*1.54*$E$29)/$G$29,"") ->  | BK19: =IF(H16>0,(BK22*1.54*$E$29)/$G$29,"") ->  | BL19: =IF(I16>0,(BL22*1.54*$E$29)/$G$29,"") ->  | BM19: =IF(J16>0,(BM22*1.54*$E$29)/$G$29,"") ->  | BN19: =IF(K16>0,(BN22*1.54*$E$29)/$G$29,"") ->  | BO19: =IF(L16>0,(BO22*1.54*$E$29)/$G$29,"") ->  | BP19: =IF(M16>0,(BP22*1.54*$E$29)/$G$29,"") ->  | BQ19: =IF(N16>0,(BQ22*1.54*$E$29)/$G$29,"") ->  | BR19: =IF(O16>0,(BR22*1.54*$E$29)/$G$29,"") ->  | BS19: =IF(P16>0,(BS22*1.54*$E$29)/$G$29,"") ->  | BT19: =IF(Q16>0,(BT22*1.54*$E$29)/$G$29,"") ->  | BU19: 0.00
A20: Length-4 (ft) | U20: Excabation | Y20: =BU23 -> 0 CFT | AB20: 0 CFT | AD20: 40.00 TK | AF20: 0 TK | BD20: Stone/Brick Chips | BF20: =IF(C16>0,(BF22*1.54*$F$29)/$G$29,"") ->  | BG20: =IF(D16>0,(BG22*1.54*$F$29)/$G$29,"") ->  | BH20: =IF(E16>0,(BH22*1.54*$F$29)/$G$29,"") ->  | BI20: =IF(F16>0,(BI22*1.54*$F$29)/$G$29,"") ->  | BJ20: =IF(G16>0,(BJ22*1.54*$F$29)/$G$29,"") ->  | BK20: =IF(H16>0,(BK22*1.54*$F$29)/$G$29,"") ->  | BL20: =IF(I16>0,(BL22*1.54*$F$29)/$G$29,"") ->  | BM20: =IF(J16>0,(BM22*1.54*$F$29)/$G$29,"") ->  | BN20: =IF(K16>0,(BN22*1.54*$F$29)/$G$29,"") ->  | BO20: =IF(L16>0,(BO22*1.54*$F$29)/$G$29,"") ->  | BP20: =IF(M16>0,(BP22*1.54*$F$29)/$G$29,"") ->  | BQ20: =IF(N16>0,(BQ22*1.54*$F$29)/$G$29,"") ->  | BR20: =IF(O16>0,(BR22*1.54*$F$29)/$G$29,"") ->  | BS20: =IF(P16>0,(BS22*1.54*$F$29)/$G$29,"") ->  | BT20: =IF(Q16>0,(BT22*1.54*$F$29)/$G$29,"") ->  | BU20: 0.00 | BY20: Stone/Brick Chips (CFT) | BZ20: =BU20 -> 0
A21: Casting Thickness, T (inch) | U21: Brick Falt Soling | Y21: =BU25*3 -> 0 Nos | AB21: 0 Nos | AD21: 10.00 TK | AF21: 0 TK | BD21: Brick Non | BF21: =IF(C16>0,BF20*9.5,"") ->  | BG21: =IF(D16>0,BG20*9.5,"") ->  | BH21: =IF(E16>0,BH20*9.5,"") ->  | BI21: =IF(F16>0,BI20*9.5,"") ->  | BJ21: =IF(G16>0,BJ20*9.5,"") ->  | BK21: =IF(H16>0,BK20*9.5,"") ->  | BL21: =IF(I16>0,BL20*9.5,"") ->  | BM21: =IF(J16>0,BM20*9.5,"") ->  | BN21: =IF(K16>0,BN20*9.5,"") ->  | BO21: =IF(L16>0,BO20*9.5,"") ->  | BP21: =IF(M16>0,BP20*9.5,"") ->  | BQ21: =IF(N16>0,BQ20*9.5,"") ->  | BR21: =IF(O16>0,BR20*9.5,"") ->  | BS21: =IF(P16>0,BS20*9.5,"") ->  | BT21: =IF(Q16>0,BT20*9.5,"") ->  | BU21: 0.00 | BY21: Brick Non (Nos) | BZ21: =BU21 -> 0
A22: Excavation Depth, D (ft) | U22: Sand Filling | Y22: =BU26 -> 0 CFT | AB22: 0 CFT | AF22: 0 TK | AP22: L-2 | BD22: Casting | BF22: =IF(C16>0,((C18*C19)+(C18+C17)/2*C20)*(C21/12)*C16," ") ->  | BG22: =IF(D16>0,((D18*D19)+(D18+D17)/2*D20)*(D21/12)*D16," ") ->  | BH22: =IF(E16>0,((E18*E19)+(E18+E17)/2*E20)*(E21/12)*E16," ") ->  | BI22: =IF(F16>0,((F18*F19)+(F18+F17)/2*F20)*(F21/12)*F16," ") ->  | BJ22: =IF(G16>0,((G18*G19)+(G18+G17)/2*G20)*(G21/12)*G16," ") ->  | BK22: =IF(H16>0,((H18*H19)+(H18+H17)/2*H20)*(H21/12)*H16," ") ->  | BL22: =IF(I16>0,((I18*I19)+(I18+I17)/2*I20)*(I21/12)*I16," ") ->  | BM22: =IF(J16>0,((J18*J19)+(J18+J17)/2*J20)*(J21/12)*J16," ") ->  | BN22: =IF(K16>0,((K18*K19)+(K18+K17)/2*K20)*(K21/12)*K16," ") ->  | BO22: =IF(L16>0,((L18*L19)+(L18+L17)/2*L20)*(L21/12)*L16," ") ->  | BP22: =IF(M16>0,((M18*M19)+(M18+M17)/2*M20)*(M21/12)*M16," ") ->  | BQ22: =IF(N16>0,((N18*N19)+(N18+N17)/2*N20)*(N21/12)*N16," ") ->  | BR22: =IF(O16>0,((O18*O19)+(O18+O17)/2*O20)*(O21/12)*O16," ") ->  | BS22: =IF(P16>0,((P18*P19)+(P18+P17)/2*P20)*(P21/12)*P16," ") ->  | BT22: =IF(Q16>0,((Q18*Q19)+(Q18+Q17)/2*Q20)*(Q21/12)*Q16," ") ->  | BU22: 0.00
A23: Cement Concrete (C.C) inch | U23: Formwork | Y23: =BU27 -> 0 SFT | AB23: 0 SFT | AD23: 85.00 TK | AF23: 0 TK | BD23: Excavation Depth, | BF23: =IF(C16>0,(((C18*C19)+(C18+C17)/2*C20)*C22)*C16,"") ->  | BG23: =IF(D16>0,(((D18*D19)+(D18+D17)/2*D20)*D22)*D16,"") ->  | BH23: =IF(E16>0,(((E18*E19)+(E18+E17)/2*E20)*E22)*E16,"") ->  | BI23: =IF(F16>0,(((F18*F19)+(F18+F17)/2*F20)*F22)*F16,"") ->  | BJ23: =IF(G16>0,(((G18*G19)+(G18+G17)/2*G20)*G22)*G16,"") ->  | BK23: =IF(H16>0,(((H18*H19)+(H18+H17)/2*H20)*H22)*H16,"") ->  | BL23: =IF(I16>0,(((I18*I19)+(I18+I17)/2*I20)*I22)*I16,"") ->  | BM23: =IF(J16>0,(((J18*J19)+(J18+J17)/2*J20)*J22)*J16,"") ->  | BN23: =IF(K16>0,(((K18*K19)+(K18+K17)/2*K20)*K22)*K16,"") ->  | BO23: =IF(L16>0,(((L18*L19)+(L18+L17)/2*L20)*L22)*L16,"") ->  | BP23: =IF(M16>0,(((M18*M19)+(M18+M17)/2*M20)*M22)*M16,"") ->  | BQ23: =IF(N16>0,(((N18*N19)+(N18+N17)/2*N20)*N22)*N16,"") ->  | BR23: =IF(O16>0,(((O18*O19)+(O18+O17)/2*O20)*O22)*O16,"") ->  | BS23: =IF(P16>0,(((P18*P19)+(P18+P17)/2*P20)*P22)*P16,"") ->  | BT23: =IF(Q16>0,(((Q18*Q19)+(Q18+Q17)/2*Q20)*Q22)*Q16,"") ->  | BU23: 0.00
A24: Brick Flat SOLING (inch) | U24: Total Casting/RCC | Y24: =BU22 -> 0 CFT | AB24: 0 CFT | AD24: 86.00 TK | AF24: =AD24*AB24 -> 0 TK | BD24: C.C | BF24: =IF(C16>0,((C18*C19)+(C18+C17)/2*C20)*(C23/12)*C16,"") ->  | BG24: =IF(D16>0,((D18*D19)+(D18+D17)/2*D20)*(D23/12)*D16,"") ->  | BH24: =IF(E16>0,((E18*E19)+(E18+E17)/2*E20)*(E23/12)*E16,"") ->  | BI24: =IF(F16>0,((F18*F19)+(F18+F17)/2*F20)*(F23/12)*F16,"") ->  | BJ24: =IF(G16>0,((G18*G19)+(G18+G17)/2*G20)*(G23/12)*G16,"") ->  | BK24: =IF(H16>0,((H18*H19)+(H18+H17)/2*H20)*(H23/12)*H16,"") ->  | BL24: =IF(I16>0,((I18*I19)+(I18+I17)/2*I20)*(I23/12)*I16,"") ->  | BM24: =IF(J16>0,((J18*J19)+(J18+J17)/2*J20)*(J23/12)*J16,"") ->  | BN24: =IF(K16>0,((K18*K19)+(K18+K17)/2*K20)*(K23/12)*K16,"") ->  | BO24: =IF(L16>0,((L18*L19)+(L18+L17)/2*L20)*(L23/12)*L16,"") ->  | BP24: =IF(M16>0,((M18*M19)+(M18+M17)/2*M20)*(M23/12)*M16,"") ->  | BQ24: =IF(N16>0,((N18*N19)+(N18+N17)/2*N20)*(N23/12)*N16,"") ->  | BR24: =IF(O16>0,((O18*O19)+(O18+O17)/2*O20)*(O23/12)*O16,"") ->  | BS24: =IF(P16>0,((P18*P19)+(P18+P17)/2*P20)*(P23/12)*P16,"") ->  | BT24: =IF(Q16>0,((Q18*Q19)+(Q18+Q17)/2*Q20)*(Q23/12)*Q16,"") ->  | BU24: 0.00
A25: Sand Filling (inch) | AD25: Total Cost= | AF25: =SUM(AF16:AG24) -> 0 TK | BD25: Brick Falt Soling | BF25: =IF(AND(C16>0,C24>0),(C18*C19+(C18+C17)/2*C20)*C16,"") ->  | BG25: =IF(AND(D16>0,D24>0),(D18*D19+(D18+D17)/2*D20)*D16,"") ->  | BU25: 0.00
BD26: Sand Filling | BF26: =IF(AND(C16>0,C25>0),((C18*C19)+(C18+C17)/2*C20)*(C25/12)*C16,"") ->  | BG26: =IF(AND(D16>0,D25>0),((D18*D19)+(D18+D17)/2*D20)*(D25/12)*D16,"") ->  | BU26: 0.00
D27: Rcc casting Ratio | H27: C.C casting Ratio | BD27: Formwork | BF27: =IF(C16>0,((C18+C19+(IF(C16>0,SQRT((((C18-C17)/2))^2+C20^2),""))+C17+(IF(C16>0,SQRT((((C18-C17)/2))^2+C20^2),""))+C19)*C21/12)*C16,"") ->  | BG27: =IF(D16>0,((D18+D19+(IF(D16>0,SQRT((((D18-D17)/2))^2+D20^2),""))+D17+(IF(D16>0,SQRT((((D18-D17)/2))^2+D20^2),""))+D19)*D21/12)*D16,"") ->  | BH27: =IF(E16>0,((E18+E19+(IF(E16>0,SQRT((((E18-E17)/2))^2+E20^2),""))+E17+(IF(E16>0,SQRT((((E18-E17)/2))^2+E20^2),""))+E19)*E21/12)*E16,"") ->  | BI27: =IF(F16>0,((F18+F19+(IF(F16>0,SQRT((((F18-F17)/2))^2+F20^2),""))+F17+(IF(F16>0,SQRT((((F18-F17)/2))^2+F20^2),""))+F19)*F21/12)*F16,"") ->  | BJ27: =IF(G16>0,((G18+G19+(IF(G16>0,SQRT((((G18-G17)/2))^2+G20^2),""))+G17+(IF(G16>0,SQRT((((G18-G17)/2))^2+G20^2),""))+G19)*G21/12)*G16,"") ->  | BK27: =IF(H16>0,((H18+H19+(IF(H16>0,SQRT((((H18-H17)/2))^2+H20^2),""))+H17+(IF(H16>0,SQRT((((H18-H17)/2))^2+H20^2),""))+H19)*H21/12)*H16,"") ->  | BL27: =IF(I16>0,((I18+I19+(IF(I16>0,SQRT((((I18-I17)/2))^2+I20^2),""))+I17+(IF(I16>0,SQRT((((I18-I17)/2))^2+I20^2),""))+I19)*I21/12)*I16,"") ->  | BM27: =IF(J16>0,((J18+J19+(IF(J16>0,SQRT((((J18-J17)/2))^2+J20^2),""))+J17+(IF(J16>0,SQRT((((J18-J17)/2))^2+J20^2),""))+J19)*J21/12)*J16,"") ->  | BN27: =IF(K16>0,((K18+K19+(IF(K16>0,SQRT((((K18-K17)/2))^2+K20^2),""))+K17+(IF(K16>0,SQRT((((K18-K17)/2))^2+K20^2),""))+K19)*K21/12)*K16,"") ->  | BO27: =IF(L16>0,((L18+L19+(IF(L16>0,SQRT((((L18-L17)/2))^2+L20^2),""))+L17+(IF(L16>0,SQRT((((L18-L17)/2))^2+L20^2),""))+L19)*L21/12)*L16,"") ->  | BP27: =IF(M16>0,((M18+M19+(IF(M16>0,SQRT((((M18-M17)/2))^2+M20^2),""))+M17+(IF(M16>0,SQRT((((M18-M17)/2))^2+M20^2),""))+M19)*M21/12)*M16,"") ->  | BQ27: =IF(N16>0,((N18+N19+(IF(N16>0,SQRT((((N18-N17)/2))^2+N20^2),""))+N17+(IF(N16>0,SQRT((((N18-N17)/2))^2+N20^2),""))+N19)*N21/12)*N16,"") ->  | BR27: =IF(O16>0,((O18+O19+(IF(O16>0,SQRT((((O18-O17)/2))^2+O20^2),""))+O17+(IF(O16>0,SQRT((((O18-O17)/2))^2+O20^2),""))+O19)*O21/12)*O16,"") ->  | BS27: =IF(P16>0,((P18+P19+(IF(P16>0,SQRT((((P18-P17)/2))^2+P20^2),""))+P17+(IF(P16>0,SQRT((((P18-P17)/2))^2+P20^2),""))+P19)*P21/12)*P16,"") ->  | BT27: =IF(Q16>0,((Q18+Q19+(IF(Q16>0,SQRT((((Q18-Q17)/2))^2+Q20^2),""))+Q17+(IF(Q16>0,SQRT((((Q18-Q17)/2))^2+Q20^2),""))+Q19)*Q21/12)*Q16,"") ->  | BU27: 0.00
Z28: Reinforcement | BD28: Bottom long direction | BF28: =IF(AND(C16>0,D32>0),(((C19+C20)*12-D41-D41)/D33+2)*(((C18+C17)-D41/12-D41/12)/2+D40/12+D40/12)*((D32^2/532)*C16),"") ->  | BG28: =IF(AND(D16>0,E32>0),(((D19+D20)*12-E41-E41)/E33+2)*(((D18+D17)-E41/12-E41/12)/2+E40/12+E40/12)*((E32^2/532)*D16),"") ->  | BU28: 0.00
D29: 1 | E29: 1.5 | F29: 3 | G29: =SUM(D29:F29) -> 5.5 | K29: =SUM(H29:J29) -> 0.0 | AA29: 20 | AB29: =IF(AA29>0,SUMIF($BF$34:$BT$37,AA29,$BV$34:$CJ$37),"") -> 0 KG | BD29: Bottom Short direct | BF29: =IF(AND(C16>0,D34>0),((C18*12-D41-D41)/D35+1)*((((C19+C20)+C19-D41/12-D41/12)/2)+(D40/12+D40/12))*((D34^2/532)*C16),"") ->  | BG29: =IF(AND(D16>0,E34>0),((D18*12-E41-E41)/E35+1)*((((D19+D20)+D19-E41/12-E41/12)/2)+(E40/12+E40/12))*((E34^2/532)*D16),"") ->  | BU29: 0.00
AA30: 16 | AB30: =IF(AA30>0,SUMIF($BF$34:$BT$37,AA30,$BV$34:$CJ$37),"") -> 0 KG | BD30: Top long direction | BF30: =IF(C16>0,IF(D36>0,(((C19+C20)*12-D41-D41)/D37+2)*(((C18+C17)-D41/12-D41/12)/2+D40/12+D40/12)*((D36^2/532)*C16),""),"") ->  | BG30: =IF(D16>0,IF(E36>0,(((D19+D20)*12-E41-E41)/E37+2)*(((D18+D17)-E41/12-E41/12)/2+E40/12+E40/12)*((E36^2/532)*D16),""),"") ->  | BU30: 0.00
A31: Pile Cap Rebar Calculation | D31: Type-1 | E31: Type-2 | F31: Type-3 | G31: Type-4 | H31: Type-5 | I31: Type-6 | J31: Type-7 | K31: Type-8 | L31: Type-9 | M31: Type-10 | N31: Type-11 | O31: Type-12 | P31: Type-13 | Q31: Type-14 | R31: Type-15 | AA31: 10 | AB31: 0 KG | BD31: Top Short direction | BF31: =IF(C16>0,IF(D38>0,((C18*12-D41-D41)/D39+1)*((((C19+C20)+C19-D41/12-D41/12)/2)+(D40/12+D40/12))*((D38^2/532)*C16),""),"") ->  | BG31: =IF(D16>0,IF(E38>0,((D18*12-E41-E41)/E39+1)*((((D19+D20)+D19-E41/12-E41/12)/2)+(E40/12+E40/12))*((E38^2/532)*D16),""),"") ->  | BU31: 0.00
A32: Bottom layer | B32: long direction Dia (mm)
B33: Specing(inh) | BV33: 1 | BW33: 2 | BX33: 3 | BY33: 4 | BZ33: 5 | CA33: 6 | CB33: 7 | CC33: 8 | CD33: 9 | CE33: 10 | CF33: 11 | CG33: 12 | CH33: 13 | CI33: 14 | CJ33: 15
B34: Short direction Dia (mm) | BD34: Bottom long direction | BF34: =D32 -> 0 MM | BG34: =E32 -> 0 MM | BH34: =F32 -> 0 MM | BI34: =G32 -> 0 MM | BJ34: =H32 -> 0 MM | BK34: =I32 -> 0 MM | BL34: =J32 -> 0 MM | BM34: =K32 -> 0 MM | BN34: =L32 -> 0 MM | BO34: =M32 -> 0 MM | BP34: =N32 -> 0 MM | BQ34: =O32 -> 0 MM | BR34: =P32 -> 0 MM | BS34: =Q32 -> 0 MM | BT34: =R32 -> 0 MM | BV34: =IF(C16>0,BF28+$AA$16*BF28/100,"") ->  | BW34: =IF(D16>0,BG28+$AA$16*BG28/100,"") -> 
B35: Specing(inh) | BD35: Bottom Short direct | BF35: =D34 -> 0 MM | BG35: =E34 -> 0 MM | BH35: =F34 -> 0 MM | BI35: =G34 -> 0 MM | BJ35: =H34 -> 0 MM | BK35: =I34 -> 0 MM | BL35: =J34 -> 0 MM | BM35: =K34 -> 0 MM | BN35: =L34 -> 0 MM | BO35: =M34 -> 0 MM | BP35: =N34 -> 0 MM | BQ35: =O34 -> 0 MM | BR35: =P34 -> 0 MM | BS35: =Q34 -> 0 MM | BT35: =R34 -> 0 MM | BV35: =IF(C16>0,BF29+$AA$16*BF29/100,"") ->  | BW35: =IF(D16>0,BG29+$AA$16*BG29/100,"") ->  | BX35: =IF(E16>0,BH29+$AA$16*BH29/100,"") ->  | BY35: =IF(F16>0,BI29+$AA$16*BI29/100,"") ->  | BZ35: =IF(G16>0,BJ29+$AA$16*BJ29/100,"") ->  | CA35: =IF(H16>0,BK29+$AA$16*BK29/100,"") ->  | CB35: =IF(I16>0,BL29+$AA$16*BL29/100,"") ->  | CC35: =IF(J16>0,BM29+$AA$16*BM29/100,"") ->  | CD35: =IF(K16>0,BN29+$AA$16*BN29/100,"") ->  | CE35: =IF(L16>0,BO29+$AA$16*BO29/100,"") ->  | CF35: =IF(M16>0,BP29+$AA$16*BP29/100,"") ->  | CG35: =IF(N16>0,BQ29+$AA$16*BQ29/100,"") ->  | CH35: =IF(O16>0,BR29+$AA$16*BR29/100,"") ->  | CI35: =IF(P16>0,BS29+$AA$16*BS29/100,"") ->  | CJ35: =IF(Q16>0,BT29+$AA$16*BT29/100,"") -> 
A36: Top layer | B36: long direction Dia (mm) | BD36: Top long direction | BF36: =D36 -> 0 MM | BG36: =E36 -> 0 MM | BH36: =F36 -> 0 MM | BI36: =G36 -> 0 MM | BJ36: =H36 -> 0 MM | BK36: =I36 -> 0 MM | BL36: =J36 -> 0 MM | BM36: =K36 -> 0 MM | BN36: =L36 -> 0 MM | BO36: =M36 -> 0 MM | BP36: =N36 -> 0 MM | BQ36: =O36 -> 0 MM | BR36: =P36 -> 0 MM | BS36: =Q36 -> 0 MM | BT36: =R36 -> 0 MM | BV36: =IF(C16>0,BF30+$AA$16*BF30/100,"") ->  | BW36: =IF(D16>0,BG30+$AA$16*BG30/100,"") -> 
B37: Specing(inh) | BD37: Top Short direction | BF37: =D38 -> 0 MM | BG37: =E38 -> 0 MM | BH37: =F38 -> 0 MM | BI37: =G38 -> 0 MM | BJ37: =H38 -> 0 MM | BK37: =I38 -> 0 MM | BL37: =J38 -> 0 MM | BM37: =K38 -> 0 MM | BN37: =L38 -> 0 MM | BO37: =M38 -> 0 MM | BP37: =N38 -> 0 MM | BQ37: =O38 -> 0 MM | BR37: =P38 -> 0 MM | BS37: =Q38 -> 0 MM | BT37: =R38 -> 0 MM | BV37: =IF(C16>0,BF31+$AA$16*BF31/100,"") ->  | BW37: =IF(D16>0,BG31+$AA$16*BG31/100,"") -> 
B38: hort direction Dia (mm)
B39: Specing (inh)
A40: Development length (inh)
A41: Clear Cover (inh)

Sheet Mat Foundation (hidden)
A1: This is The Property of NOR DESIGN SOLUTION
A6: এক্সেল শীট বিষয়ক কিছু জানার থাকলে বা আপডেট নিয়ে কোন পরামর্শ থাকলে আমাদের সাথে যোগাযোগ করুন অথবা ওয়েবসাইটে কমেন্ট করুন
A7: এক্সেল শীট সম্পর্কে যাবতীয় তথ্য বিস্তারিত জানতে ভিজিট করুন আমাদের ইউটিউব চ্যানেলে
A9: Click Here To Watch The Mat Foundation Estimate video
A12: Mat Foundation | AK12: Cement | AL12: Sand | AM12: Stone | AN12: Rod | AO12: Casting | AP12: Excavation | AQ12: Sand Filling | AR12: Formwork | AS12: Brick Nos | AT12: Bricl Flat Soling | AU12: C.c
R13: Mat Foundation Estimated And Price | AK13: =X16 -> 0 Bag | AL13: =X17 -> 0 CFT | AM13: =AZ20+W16*AZ20/100 -> 0 | AN13: =X19 -> 0 | AO13: =X24 -> 0 CFT | AP13: =X21 -> 0 CFT | AQ13: =X23 -> 0 CFT | AR13: =X20 -> 0 SFT | AS13: =AZ21+W16*AZ21/100 -> 0 | AT13: =X22 -> 0 Nos
AV14: sum
A15: Description | C15: Type-1 | D15: Type-2 | E15: Type-3 | F15: Type-4 | G15: Type-5 | H15: Type-6 | I15: Type-7 | J15: Type-8 | K15: Type-9 | L15: Type-10 | R15: DESCRIPTION | U15: Quantity | W15: Wastage Add | X15: Quantity (Wastage Add) | Z15: Rate | AB15: Amount TK | AJ15: Cement | AL15: =IF(C16>0,(AL23*$H$27*1.54)/($K$27*1.25),"") ->  | AM15: =IF(D16>0,(AM23*$H$27*1.54)/($K$27*1.25),"") ->  | AN15: =IF(E16>0,(AN23*$H$27*1.54)/($K$27*1.25),"") ->  | AO15: =IF(F16>0,(AO23*$H$27*1.54)/($K$27*1.25),"") ->  | AP15: =IF(G16>0,(AP23*$H$27*1.54)/($K$27*1.25),"") ->  | AQ15: =IF(H16>0,(AQ23*$H$27*1.54)/($K$27*1.25),"") ->  | AR15: =IF(I16>0,(AR23*$H$27*1.54)/($K$27*1.25),"") ->  | AS15: =IF(J16>0,(AS23*$H$27*1.54)/($K$27*1.25),"") ->  | AT15: =IF(K16>0,(AT23*$H$27*1.54)/($K$27*1.25),"") ->  | AU15: =IF(L16>0,(AU23*$H$27*1.54)/($K$27*1.25),"") ->  | AV15: =SUM(AL15:AU15) -> 0 Bag
A16: Nos | R16: Cement | U16: =AV15+AV17 -> 0 Bag | W16: 0 % ADD | X16: =U16+$W$16*U16/100 -> 0 Bag | Z16: 600.00 TK | AB16: =X16*Z16 -> 0 TK | AJ16: Sand | AL16: =IF(C16>0,(AL23*1.54*$I$27)/$K$27,"") ->  | AM16: =IF(D16>0,(AM23*1.54*$I$27)/$K$27,"") ->  | AN16: =IF(E16>0,(AN23*1.54*$I$27)/$K$27,"") ->  | AO16: =IF(F16>0,(AO23*1.54*$I$27)/$K$27,"") ->  | AP16: =IF(G16>0,(AP23*1.54*$I$27)/$K$27,"") ->  | AQ16: =IF(H16>0,(AQ23*1.54*$I$27)/$K$27,"") ->  | AR16: =IF(I16>0,(AR23*1.54*$I$27)/$K$27,"") ->  | AS16: =IF(J16>0,(AS23*1.54*$I$27)/$K$27,"") ->  | AT16: =IF(K16>0,(AT23*1.54*$I$27)/$K$27,"") ->  | AU16: =IF(L16>0,(AU23*1.54*$I$27)/$K$27,"") ->  | AV16: =SUM(AL16:AU16) -> 0 | BO16: 1 | BP16: 2 | BQ16: 3 | BR16: 4 | BS16: 5 | BT16: 6 | BU16: 7 | BV16: 8 | BW16: 9 | BX16: 10
A17: Length,L (ft) | R17: Sand | U17: =AV16+AV18 -> 0 CFT | X17: 0 CFT | Z17: 45.00 TK | AB17: 0 TK | AJ17: Cement | AL17: =IF(C16>0,(AL21*$D$27*1.54)/($G$27*1.25)*C16,"") ->  | AM17: =IF(D16>0,(AM21*$D$27*1.54)/($G$27*1.25)*D16,"") ->  | AN17: =IF(E16>0,(AN21*$D$27*1.54)/($G$27*1.25)*E16,"") ->  | AO17: =IF(F16>0,(AO21*$D$27*1.54)/($G$27*1.25)*F16,"") ->  | AP17: =IF(G16>0,(AP21*$D$27*1.54)/($G$27*1.25)*G16,"") ->  | AQ17: =IF(H16>0,(AQ21*$D$27*1.54)/($G$27*1.25)*H16,"") ->  | AR17: =IF(I16>0,(AR21*$D$27*1.54)/($G$27*1.25)*I16,"") ->  | AS17: =IF(J16>0,(AS21*$D$27*1.54)/($G$27*1.25)*J16,"") ->  | AT17: =IF(K16>0,(AT21*$D$27*1.54)/($G$27*1.25)*K16,"") ->  | AU17: =IF(L16>0,(AU21*$D$27*1.54)/($G$27*1.25)*L16,"") ->  | AV17: 0 | BB17: Bottom long direction | BD17: =D30 -> 0 MM | BE17: 0 MM | BF17: 0 MM | BG17: 0 MM | BH17: 0 MM | BI17: 0 MM | BJ17: 0 MM | BK17: 0 MM | BL17: 0 MM | BM17: 0 MM | BO17: =IF(C16>0,AL27+$W$16*AL27/100,"") ->  | BP17: =IF(D16>0,AM27+$W$16*AM27/100,"") -> 
A18: Breadth,B (ft) | R18: Ston/Brick Chips (CFT) | U18: =VLOOKUP(R18,AY20:AZ21,2,0) -> 0 | X18: 0 | Z18: 120.00 TK | AB18: 0 TK | AJ18: Sand | AL18: =IF(C16>0,(AL21*1.54*$E$27)/$G$27,"") ->  | AM18: =IF(D16>0,(AM21*1.54*$E$27)/$G$27,"") ->  | AN18: =IF(E16>0,(AN21*1.54*$E$27)/$G$27,"") ->  | AO18: =IF(F16>0,(AO21*1.54*$E$27)/$G$27,"") ->  | AP18: =IF(G16>0,(AP21*1.54*$E$27)/$G$27,"") ->  | AQ18: =IF(H16>0,(AQ21*1.54*$E$27)/$G$27,"") ->  | AR18: =IF(I16>0,(AR21*1.54*$E$27)/$G$27,"") ->  | AS18: =IF(J16>0,(AS21*1.54*$E$27)/$G$27,"") ->  | AT18: =IF(K16>0,(AT21*1.54*$E$27)/$G$27,"") ->  | AU18: =IF(L16>0,(AU21*1.54*$E$27)/$G$27,"") ->  | AV18: 0 | BB18: Bottom Short direct | BD18: =D32 -> 0 MM | BE18: 0 MM | BF18: 0 MM | BG18: 0 MM | BH18: 0 MM | BI18: 0 MM | BJ18: 0 MM | BK18: 0 MM | BL18: 0 MM | BM18: 0 MM | BO18: =IF(C16>0,AL28+$W$16*AL28/100,"") ->  | BP18: =IF(D16>0,AM28+$W$16*AM28/100,"") -> 
A19: Casting Thickness, T (inch) | R19: Rebar | U19: =SUM(AV27:AW31)/1000 -> 0.000 Ton | X19: 0.000 Ton | Z19: 87000.00 TK | AB19: 0 TK | AJ19: Ston/Brick Chips (CFT) | AL19: =IF(C16>0,(AL21*1.54*$F$27)/$G$27,"") ->  | AM19: =IF(D16>0,(AM21*1.54*$F$27)/$G$27,"") ->  | AN19: =IF(E16>0,(AN21*1.54*$F$27)/$G$27,"") ->  | AO19: =IF(F16>0,(AO21*1.54*$F$27)/$G$27,"") ->  | AP19: =IF(G16>0,(AP21*1.54*$F$27)/$G$27,"") ->  | AQ19: =IF(H16>0,(AQ21*1.54*$F$27)/$G$27,"") ->  | AR19: =IF(I16>0,(AR21*1.54*$F$27)/$G$27,"") ->  | AS19: =IF(J16>0,(AS21*1.54*$F$27)/$G$27,"") ->  | AT19: =IF(K16>0,(AT21*1.54*$F$27)/$G$27,"") ->  | AU19: =IF(L16>0,(AU21*1.54*$F$27)/$G$27,"") ->  | AV19: 0 | BB19: Top long direction | BD19: =D34 -> 0 MM | BE19: 0 MM | BF19: 0 MM | BG19: 0 MM | BH19: 0 MM | BI19: 0 MM | BJ19: 0 MM | BK19: 0 MM | BL19: 0 MM | BM19: 0 MM | BO19: =IF(C16>0,AL29+$W$16*AL29/100,"") ->  | BP19: =IF(D16>0,AM29+$W$16*AM29/100,"") -> 
A20: Excavation Depth, D (ft) | R20: Formwork | U20: =AV26 -> 0 SFT | X20: 0 SFT | Z20: 45.00 TK | AB20: 0 TK | AJ20: Brick Nos | AL20: =IF(C16>0,AL19*9.5,"") ->  | AM20: =IF(D16>0,AM19*9.5,"") ->  | AN20: =IF(E16>0,AN19*9.5,"") ->  | AO20: =IF(F16>0,AO19*9.5,"") ->  | AP20: =IF(G16>0,AP19*9.5,"") ->  | AQ20: =IF(H16>0,AQ19*9.5,"") ->  | AR20: =IF(I16>0,AR19*9.5,"") ->  | AS20: =IF(J16>0,AS19*9.5,"") ->  | AT20: =IF(K16>0,AT19*9.5,"") ->  | AU20: =IF(L16>0,AU19*9.5,"") ->  | AV20: 0 | AY20: Ston/Brick Chips (CFT) | AZ20: =AV19 -> 0 | BB20: Top Short direction | BD20: =D36 -> 0 MM | BE20: 0 MM | BF20: 0 MM | BG20: 0 MM | BH20: 0 MM | BI20: 0 MM | BJ20: 0 MM | BK20: 0 MM | BL20: 0 MM | BM20: 0 MM | BO20: =IF(C16>0,AL30+$W$16*AL30/100,"") ->  | BP20: =IF(D16>0,AM30+$W$16*AM30/100,"") -> 
A21: Cement Concrete (C.C) inch | R21: Excabation | U21: =AV22 -> 0 CFT | X21: 0 CFT | Z21: 10.00 TK | AB21: 0 TK | AJ21: Casting | AL21: =IF(C16>0,(C17*C18*C19/12)*C16,"") ->  | AM21: =IF(D16>0,(D17*D18*D19/12)*D16,"") ->  | AN21: =IF(E16>0,(E17*E18*E19/12)*E16,"") ->  | AO21: =IF(F16>0,(F17*F18*F19/12)*F16,"") ->  | AP21: =IF(G16>0,(G17*G18*G19/12)*G16,"") ->  | AQ21: =IF(H16>0,(H17*H18*H19/12)*H16,"") ->  | AR21: =IF(I16>0,(I17*I18*I19/12)*I16,"") ->  | AS21: =IF(J16>0,(J17*J18*J19/12)*J16,"") ->  | AT21: =IF(K16>0,(K17*K18*K19/12)*K16,"") ->  | AU21: =IF(L16>0,(L17*L18*L19/12)*L16,"") ->  | AV21: 0 | AY21: Brick Nos | AZ21: =AV20 -> 0 | BB21: Chair | BD21: =D38 -> 0 MM | BE21: 0 MM | BF21: 0 MM | BG21: 0 MM | BH21: 0 MM | BI21: 0 MM | BJ21: 0 MM | BK21: 0 MM | BL21: 0 MM | BM21: 0 MM | BO21: =IF(C16>0,AL31+$W$16*AL31/100,"") ->  | BP21: =IF(D16>0,AM31+$W$16*AM31/100,"") -> 
A22: Brick Flat SOLING (inch) | R22: Brick Flat Soling | U22: =AV24*3 -> 0 Nos | X22: 0 Nos | Z22: 10.00 TK | AB22: 0 TK | AJ22: Excabation | AL22: =IF(C16>0,C17*C18*C20*C16,"") ->  | AM22: =IF(D16>0,D17*D18*D20*D16,"") ->  | AN22: =IF(E16>0,E17*E18*E20*E16,"") ->  | AO22: =IF(F16>0,F17*F18*F20*F16,"") ->  | AP22: =IF(G16>0,G17*G18*G20*G16,"") ->  | AQ22: =IF(H16>0,H17*H18*H20*H16,"") ->  | AR22: =IF(I16>0,I17*I18*I20*I16,"") ->  | AS22: =IF(J16>0,J17*J18*J20*J16,"") ->  | AT22: =IF(K16>0,K17*K18*K20*K16,"") ->  | AU22: =IF(L16>0,L17*L18*L20*L16,"") ->  | AV22: 0
A23: Sand Filling (inch) | R23: Sand Filling | U23: =AV25 -> 0 CFT | X23: 0 CFT | Z23: 2.00 TK | AB23: 0 TK | AJ23: C.C | AL23: =IF(C16>0,(C17*C18*C21/12)*C16,"") ->  | AM23: =IF(D16>0,(D17*D18*D21/12)*D16,"") ->  | AN23: =IF(E16>0,(E17*E18*E21/12)*E16,"") ->  | AO23: =IF(F16>0,(F17*F18*F21/12)*F16,"") ->  | AP23: =IF(G16>0,(G17*G18*G21/12)*G16,"") ->  | AQ23: =IF(H16>0,(H17*H18*H21/12)*H16,"") ->  | AR23: =IF(I16>0,(I17*I18*I21/12)*I16,"") ->  | AS23: =IF(J16>0,(J17*J18*J21/12)*J16,"") ->  | AT23: =IF(K16>0,(K17*K18*K21/12)*K16,"") ->  | AU23: =IF(L16>0,(L17*L18*L21/12)*L16,"") ->  | AV23: 0
R24: Total RCC Casting | U24: =AV21 -> 0 CFT | X24: 0 CFT | Z24: 3.00 TK | AB24: =X24*Z24 -> 0 TK | AJ24: Brick Flat | AL24: =IF(AND(C16>0,C22>0),(C17*C18)*C16,"0") -> 0 | AM24: =IF(AND(D16>0,D22>0),(D17*D18)*D16,"0") -> 0 | AN24: 0 | AO24: 0 | AP24: 0 | AQ24: 0 | AR24: 0 | AS24: 0 | AT24: 0 | AU24: 0 | AV24: 0
D25: Rcc casting Ratio | H25: C.C casting Ratio | Z25: Total Cost= | AB25: =SUM(AB16:AC24) -> 0 TK | AJ25: Sand Filling | AL25: =IF(AND(C16>0,C23>0),(C17*C18*C23/12)*C16,"") ->  | AM25: =IF(AND(D16>0,D23>0),(D17*D18*D23/12)*D16,"") ->  | AV25: 0
AJ26: Formwork | AL26: =IF(C16>0,((C17+C18+C18+C17)*C19/12)*C16,"") ->  | AM26: =IF(D16>0,((D17+D18+D18+D17)*D19/12)*D16,"") ->  | AN26: =IF(E16>0,((E17+E18+E18+E17)*E19/12)*E16,"") ->  | AO26: =IF(F16>0,((F17+F18+F18+F17)*F19/12)*F16,"") ->  | AP26: =IF(G16>0,((G17+G18+G18+G17)*G19/12)*G16,"") ->  | AQ26: =IF(H16>0,((H17+H18+H18+H17)*H19/12)*H16,"") ->  | AR26: =IF(I16>0,((I17+I18+I18+I17)*I19/12)*I16,"") ->  | AS26: =IF(J16>0,((J17+J18+J18+J17)*J19/12)*J16,"") ->  | AT26: =IF(K16>0,((K17+K18+K18+K17)*K19/12)*K16,"") ->  | AU26: =IF(L16>0,((L17+L18+L18+L17)*L19/12)*L16,"") ->  | AV26: 0
D27: 1 | E27: 1.5 | F27: 3 | G27: =SUM(D27:F27) -> 5.5 | K27: =SUM(H27:J27) -> 0 | AJ27: Bottom long | AL27: =IF(AND(C16>0,D30>0),(((C18*12-D42-D42)/D31+1)*(D30^2/532)*(C17-(D42/12+D42/12-D41/12-D41/12)))*C16,"") ->  | AM27: =IF(AND(D16>0,E30>0),(((D18*12-E42-E42)/E31+1)*(E30^2/532)*(D17-(E42/12+E42/12-E41/12-E41/12)))*D16,"") ->  | AV27: 0
U28: Reinforcement | AJ28: Bottom short | AL28: =IF(AND(C16>0,D32>0),(((C17*12-D42-D42)/D33+1)*(D32^2/532)*(C18-(D42/12+D42/12-D41/12-D41/12)))*C16,"") ->  | AM28: =IF(AND(D16>0,E32>0),(((D17*12-E42-E42)/E33+1)*(E32^2/532)*(D18-(E42/12+E42/12-E41/12-E41/12)))*D16,"") ->  | AV28: 0
A29: Rebar Calculation | D29: Type-1 | E29: Type-2 | W29: =IF(V29>0,SUMIF($BD$17:$BM$21,V29,$BO$17:$BX$21),"") ->  | AJ29: top long | AL29: =IF(AND(C16>0,D34>0),(((C18*12-D42-D42)/D35+1)*(D34^2/532)*(C17-(D42/12+D42/12-D41/12-D41/12)))*C16,"") ->  | AM29: =IF(AND(D16>0,E34>0),(((D18*12-E42-E42)/E35+1)*(E34^2/532)*(D17-(E42/12+E42/12-E41/12-E41/12)))*D16,"") ->  | AV29: 0
A30: Bottom layer | B30: long direction Dia (mm) | W30: =IF(V30>0,SUMIF($BD$17:$BM$21,V30,$BO$17:$BX$21),"") ->  | AJ30: top short | AL30: =IF(AND(C16>0,D36>0),(((C17*12-D42-D42)/D37+1)*(D36^2/532)*(C18-(D42/12+D42/12-D41/12-D41/12)))*C16,"") ->  | AM30: =IF(AND(D16>0,E36>0),(((D17*12-E42-E42)/E37+1)*(E36^2/532)*(D18-(E42/12+E42/12-E41/12-E41/12)))*D16,"") ->  | AV30: 0
B31: Specing(inh) | AJ31: Chair rebar | AL31: =IF(C16>0,(D38^2/532)*D39*D40*C16,"") ->  | AM31: =IF(D16>0,(E38^2/532)*E39*E40*D16,"") ->  | AN31: =IF(E16>0,(F38^2/532)*F39*F40*E16,"") ->  | AO31: =IF(F16>0,(G38^2/532)*G39*G40*F16,"") ->  | AP31: =IF(G16>0,(H38^2/532)*H39*H40*G16,"") ->  | AQ31: =IF(H16>0,(I38^2/532)*I39*I40*H16,"") ->  | AR31: =IF(I16>0,(J38^2/532)*J39*J40*I16,"") ->  | AS31: =IF(J16>0,(K38^2/532)*K39*K40*J16,"") ->  | AT31: =IF(K16>0,(L38^2/532)*L39*L40*K16,"") ->  | AU31: =IF(L16>0,(M38^2/532)*M39*M40*L16,"") ->  | AV31: 0
B32: Short direction Dia (mm)
B33: Specing(inh)
A34: Top layer | B34: long direction Dia (mm)
B35: Specing(inh)
B36: hort direction Dia (mm)
B37: Specing (inh)
A38: Chair | B38: Rebar Dia (mm)
B39: Rebar Length (ft)
B40: Rebar Nos
A41: Development length (inh)
A42: Clear Cover (inh)
BR116: Stone/Brick Chips (CFT) | BS116: =#REF! ->  | BU116: Stone/Brick Chips (CFT) | BV116: =IF(#REF!>0,BS116+(BS116*#REF!)/100,"") -> 
BR117: Brick Nos | BS117: =#REF! ->  | BU117: Brick Nos | BV117: =IF(#REF!>0,BS117+(BS117*#REF!)/100,"") -> 

Sheet Footing Estimate (hidden)
A1: This is The Property of NOR DESIGN SOLUTION
A5: এক্সেল শীট বিষয়ক কিছু জানার থাকলে বা আপডেট নিয়ে কোন পরামর্শ থাকলে আমাদের সাথে যোগাযোগ করুন অথবা ওয়েবসাইটে কমেন্ট করুন
A6: এক্সেল শীট সম্পর্কে যাবতীয় তথ্য বিস্তারিত জানতে ভিজিট করুন আমাদের ইউটিউব চ্যানেলে
A8: Click Here To Watch The Footing Estimate video
BH9: Cement | BI9: Sand | BJ9: Stone | BK9: Rod | BL9: Casting | BM9: Excavation | BN9: Sand Filling | BO9: Formwork | BP9: Brick Nos | BQ9: Bricl Flat Soling | BR9: C.c
BH10: =AL14 -> 0 Bag | BI10: =AL15 -> 0 CFT | BJ10: =CE18+AK14*CE18/100 -> 0 | BK10: =AL17 -> 0.000 Ton | BL10: =AL22 -> 0 CFT | BM10: =AL18 -> 0 CFT | BN10: =AL19 -> 0 CFT | BO10: =AL21 -> 0 SFT | BP10: =CE19+AK14*CE19/100 -> 0 | BQ10: =AL20 -> 0 Nos
A11: Footing Estimate | AD11: Footing Estimate And Costing
BY12: sum
A13: Description | C13: Type-1 | D13: Type-2 | E13: Type-3 | F13: Type-4 | G13: Type-5 | H13: Type-6 | I13: Type-7 | J13: Type-8 | K13: Type-9 | L13: Type-10 | M13: Type-11 | N13: Type-12 | O13: Type-13 | P13: Type-14 | Q13: Type-15 | AD13: DESCRIPTION | AI13: Quantity | AK13: Wastage Add | AL13: Quantity (Wastage Add) | AN13: Rate | AP13: Amount TK | BH13: Stone/Brick Chips | BJ13: =IF(C14>0,(BJ22*1.54*$J$28)/$K$28,"") ->  | BK13: =IF(D14>0,(BK22*1.54*$J$28)/$K$28,"") ->  | BY13: =SUM(BJ13:BX13) -> 0 CFT
A14: Nos | AD14: Cement | AI14: =BY14+BY16 -> 0 Bag | AK14: 0 % ADD | AL14: =AI14+$AK$14*AI14/100 -> 0 Bag | AN14: 550.00 TK | AP14: =AL14*AN14 -> 0 TK | BH14: Cement | BJ14: =IF(C14>0,(BJ22*$H$28*1.54)/($K$28*1.25),"") ->  | BK14: =IF(D14>0,(BK22*$H$28*1.54)/($K$28*1.25),"") ->  | BL14: =IF(E14>0,(BL22*$H$28*1.54)/($K$28*1.25),"") ->  | BM14: =IF(F14>0,(BM22*$H$28*1.54)/($K$28*1.25),"") ->  | BN14: =IF(G14>0,(BN22*$H$28*1.54)/($K$28*1.25),"") ->  | BO14: =IF(H14>0,(BO22*$H$28*1.54)/($K$28*1.25),"") ->  | BP14: =IF(I14>0,(BP22*$H$28*1.54)/($K$28*1.25),"") ->  | BQ14: =IF(J14>0,(BQ22*$H$28*1.54)/($K$28*1.25),"") ->  | BR14: =IF(K14>0,(BR22*$H$28*1.54)/($K$28*1.25),"") ->  | BS14: =IF(L14>0,(BS22*$H$28*1.54)/($K$28*1.25),"") ->  | BT14: =IF(M14>0,(BT22*$H$28*1.54)/($K$28*1.25),"") ->  | BU14: =IF(N14>0,(BU22*$H$28*1.54)/($K$28*1.25),"") ->  | BV14: =IF(O14>0,(BV22*$H$28*1.54)/($K$28*1.25),"") ->  | BW14: =IF(P14>0,(BW22*$H$28*1.54)/($K$28*1.25),"") ->  | BX14: =IF(Q14>0,(BX22*$H$28*1.54)/($K$28*1.25),"") ->  | BY14: =SUM(BJ14:BX14) -> 0 Bag
A15: Length,L (ft) | U15: E.G.L | AD15: Sand | AI15: =BY17+BY15 -> 0 CFT | AL15: 0 CFT | AN15: 45.00 TK | AP15: 0 TK | BH15: Sand | BJ15: =IF(C14>0,(BJ22*1.54*$I$28)/$K$28,"") ->  | BK15: =IF(D14>0,(BK22*1.54*$I$28)/$K$28,"") ->  | BL15: =IF(E14>0,(BL22*1.54*$I$28)/$K$28,"") ->  | BM15: =IF(F14>0,(BM22*1.54*$I$28)/$K$28,"") ->  | BN15: =IF(G14>0,(BN22*1.54*$I$28)/$K$28,"") ->  | BO15: =IF(H14>0,(BO22*1.54*$I$28)/$K$28,"") ->  | BP15: =IF(I14>0,(BP22*1.54*$I$28)/$K$28,"") ->  | BQ15: =IF(J14>0,(BQ22*1.54*$I$28)/$K$28,"") ->  | BR15: =IF(K14>0,(BR22*1.54*$I$28)/$K$28,"") ->  | BS15: =IF(L14>0,(BS22*1.54*$I$28)/$K$28,"") ->  | BT15: =IF(M14>0,(BT22*1.54*$I$28)/$K$28,"") ->  | BU15: =IF(N14>0,(BU22*1.54*$I$28)/$K$28,"") ->  | BV15: =IF(O14>0,(BV22*1.54*$I$28)/$K$28,"") ->  | BW15: =IF(P14>0,(BW22*1.54*$I$28)/$K$28,"") ->  | BX15: =IF(Q14>0,(BX22*1.54*$I$28)/$K$28,"") ->  | BY15: =SUM(BJ15:BX15) -> 0.00
A16: Breadth,B (ft) | X16: GB | AD16: Stone/Brick Chips | AI16: =VLOOKUP(AD16,CD18:CE19,2,0) -> 0 | AL16: 0 | AN16: 100.00 TK | AP16: 0 TK | BH16: Cement | BJ16: =IF(C14>0,(BJ20*$D$28*1.54)/($G$28*1.25),"") ->  | BK16: =IF(D14>0,(BK20*$D$28*1.54)/($G$28*1.25),"") ->  | BL16: =IF(E14>0,(BL20*$D$28*1.54)/($G$28*1.25),"") ->  | BM16: =IF(F14>0,(BM20*$D$28*1.54)/($G$28*1.25),"") ->  | BN16: =IF(G14>0,(BN20*$D$28*1.54)/($G$28*1.25),"") ->  | BO16: =IF(H14>0,(BO20*$D$28*1.54)/($G$28*1.25),"") ->  | BP16: =IF(I14>0,(BP20*$D$28*1.54)/($G$28*1.25),"") ->  | BQ16: =IF(J14>0,(BQ20*$D$28*1.54)/($G$28*1.25),"") ->  | BR16: =IF(K14>0,(BR20*$D$28*1.54)/($G$28*1.25),"") ->  | BS16: =IF(L14>0,(BS20*$D$28*1.54)/($G$28*1.25),"") ->  | BT16: =IF(M14>0,(BT20*$D$28*1.54)/($G$28*1.25),"") ->  | BU16: =IF(N14>0,(BU20*$D$28*1.54)/($G$28*1.25),"") ->  | BV16: =IF(O14>0,(BV20*$D$28*1.54)/($G$28*1.25),"") ->  | BW16: =IF(P14>0,(BW20*$D$28*1.54)/($G$28*1.25),"") ->  | BX16: =IF(Q14>0,(BX20*$D$28*1.54)/($G$28*1.25),"") ->  | BY16: 0.00
A17: Excavation Depth, D (ft) | AD17: Rebar | AI17: =SUM(BY26:BZ29)/1000 -> 0.000 Ton | AL17: 0.000 Ton | AN17: 98000.00 TK | AP17: 0 TK | BH17: Sand | BJ17: =IF(C14>0,(BJ20*1.54*$E$28)/$G$28,"") ->  | BK17: =IF(D14>0,(BK20*1.54*$E$28)/$G$28,"") ->  | BL17: =IF(E14>0,(BL20*1.54*$E$28)/$G$28,"") ->  | BM17: =IF(F14>0,(BM20*1.54*$E$28)/$G$28,"") ->  | BN17: =IF(G14>0,(BN20*1.54*$E$28)/$G$28,"") ->  | BO17: =IF(H14>0,(BO20*1.54*$E$28)/$G$28,"") ->  | BP17: =IF(I14>0,(BP20*1.54*$E$28)/$G$28,"") ->  | BQ17: =IF(J14>0,(BQ20*1.54*$E$28)/$G$28,"") ->  | BR17: =IF(K14>0,(BR20*1.54*$E$28)/$G$28,"") ->  | BS17: =IF(L14>0,(BS20*1.54*$E$28)/$G$28,"") ->  | BT17: =IF(M14>0,(BT20*1.54*$E$28)/$G$28,"") ->  | BU17: =IF(N14>0,(BU20*1.54*$E$28)/$G$28,"") ->  | BV17: =IF(O14>0,(BV20*1.54*$E$28)/$G$28,"") ->  | BW17: =IF(P14>0,(BW20*1.54*$E$28)/$G$28,"") ->  | BX17: =IF(Q14>0,(BX20*1.54*$E$28)/$G$28,"") ->  | BY17: 0.00
A18: Footing Thickness, T (inch) | AD18: Excabation | AI18: =BY21 -> 0 CFT | AL18: 0 CFT | AN18: 15.00 TK | AP18: 0 TK | BH18: Stone/Brick Chips | BJ18: =IF(C14>0,(BJ20*1.54*$F$28)/$G$28,"") ->  | BK18: =IF(D14>0,(BK20*1.54*$F$28)/$G$28,"") ->  | BL18: =IF(E14>0,(BL20*1.54*$F$28)/$G$28,"") ->  | BM18: =IF(F14>0,(BM20*1.54*$F$28)/$G$28,"") ->  | BN18: =IF(G14>0,(BN20*1.54*$F$28)/$G$28,"") ->  | BO18: =IF(H14>0,(BO20*1.54*$F$28)/$G$28,"") ->  | BP18: =IF(I14>0,(BP20*1.54*$F$28)/$G$28,"") ->  | BQ18: =IF(J14>0,(BQ20*1.54*$F$28)/$G$28,"") ->  | BR18: =IF(K14>0,(BR20*1.54*$F$28)/$G$28,"") ->  | BS18: =IF(L14>0,(BS20*1.54*$F$28)/$G$28,"") ->  | BT18: =IF(M14>0,(BT20*1.54*$F$28)/$G$28,"") ->  | BU18: =IF(N14>0,(BU20*1.54*$F$28)/$G$28,"") ->  | BV18: =IF(O14>0,(BV20*1.54*$F$28)/$G$28,"") ->  | BW18: =IF(P14>0,(BW20*1.54*$F$28)/$G$28,"") ->  | BX18: =IF(Q14>0,(BX20*1.54*$F$28)/$G$28,"") ->  | BY18: 0.00 | CD18: Stone/Brick Chips | CE18: =BY18+BY13 -> 0
A19: t (inch) | AD19: Sand Filling | AI19: =BY24 -> 0 CFT | AL19: 0 CFT | AN19: 45.00 TK | AP19: 0 TK | BH19: Brick Nos | BJ19: =IF(C14>0,BJ18*9.5,"") ->  | BK19: =IF(D14>0,BK18*9.5,"") ->  | BL19: =IF(E14>0,BL18*9.5,"") ->  | BM19: =IF(F14>0,BM18*9.5,"") ->  | BN19: =IF(G14>0,BN18*9.5,"") ->  | BO19: =IF(H14>0,BO18*9.5,"") ->  | BP19: =IF(I14>0,BP18*9.5,"") ->  | BQ19: =IF(J14>0,BQ18*9.5,"") ->  | BR19: =IF(K14>0,BR18*9.5,"") ->  | BS19: =IF(L14>0,BS18*9.5,"") ->  | BT19: =IF(M14>0,BT18*9.5,"") ->  | BU19: =IF(N14>0,BU18*9.5,"") ->  | BV19: =IF(O14>0,BV18*9.5,"") ->  | BW19: =IF(P14>0,BW18*9.5,"") ->  | BX19: =IF(Q14>0,BX18*9.5,"") ->  | BY19: 0.00 | CD19: Brick Nos | CE19: =BY19 -> 0
A20: S (inch | AD20: Brick Flat Soling | AI20: =BY23*3 -> 0 Nos | AL20: 0 Nos | AN20: 10.00 TK | AP20: 0 TK | BH20: Casting | BJ20: =IF(C14>0,(C15*C16*C18/12)*C14,"") ->  | BK20: =IF(D14>0,(D15*D16*D18/12)*D14,"") ->  | BL20: =IF(E14>0,(E15*E16*E18/12)*E14,"") ->  | BM20: =IF(F14>0,(F15*F16*F18/12)*F14,"") ->  | BN20: =IF(G14>0,(G15*G16*G18/12)*G14,"") ->  | BO20: =IF(H14>0,(H15*H16*H18/12)*H14,"") ->  | BP20: =IF(I14>0,(I15*I16*I18/12)*I14,"") ->  | BQ20: =IF(J14>0,(J15*J16*J18/12)*J14,"") ->  | BR20: =IF(K14>0,(K15*K16*K18/12)*K14,"") ->  | BS20: =IF(L14>0,(L15*L16*L18/12)*L14,"") ->  | BT20: =IF(M14>0,(M15*M16*M18/12)*M14,"") ->  | BU20: =IF(N14>0,(N15*N16*N18/12)*N14,"") ->  | BV20: =IF(O14>0,(O15*O16*O18/12)*O14,"") ->  | BW20: =IF(P14>0,(P15*P16*P18/12)*P14,"") ->  | BX20: =IF(Q14>0,(Q15*Q16*Q18/12)*Q14,"") ->  | BY20: 0.00
A21: Cement Concrete (C.C) inch | AD21: Formwork | AI21: =BY25 -> 0 SFT | AL21: 0 SFT | AN21: 55.00 TK | AP21: 0 TK | BH21: Excavation | BJ21: =IF(C14>0,SUM(C15*C16*C17*C14),"") ->  | BK21: =IF(D14>0,SUM(D15*D16*D17*D14),"") ->  | BL21: =IF(E14>0,SUM(E15*E16*E17*E14),"") ->  | BM21: =IF(F14>0,SUM(F15*F16*F17*F14),"") ->  | BN21: =IF(G14>0,SUM(G15*G16*G17*G14),"") ->  | BO21: =IF(H14>0,SUM(H15*H16*H17*H14),"") ->  | BP21: =IF(I14>0,SUM(I15*I16*I17*I14),"") ->  | BQ21: =IF(J14>0,SUM(J15*J16*J17*J14),"") ->  | BR21: =IF(K14>0,SUM(K15*K16*K17*K14),"") ->  | BS21: =IF(L14>0,SUM(L15*L16*L17*L14),"") ->  | BT21: =IF(M14>0,SUM(M15*M16*M17*M14),"") ->  | BU21: =IF(N14>0,SUM(N15*N16*N17*N14),"") ->  | BV21: =IF(O14>0,SUM(O15*O16*O17*O14),"") ->  | BW21: =IF(P14>0,SUM(P15*P16*P17*P14),"") ->  | BX21: =IF(Q14>0,SUM(Q15*Q16*Q17*Q14),"") ->  | BY21: 0.00
A22: Brick Flat Soling (inch) | W22: S | AD22: R.C.C Casting | AI22: =BY20 -> 0 CFT | AL22: 0 CFT | AN22: 56.00 TK | AP22: =AL22*AN22 -> 0 TK | BH22: C.C | BJ22: =IF(C14>0,(C15*C16*C21/12)*C14,"") ->  | BK22: =IF(D14>0,(D15*D16*D21/12)*D14,"") ->  | BL22: =IF(E14>0,(E15*E16*E21/12)*E14,"") ->  | BM22: =IF(F14>0,(F15*F16*F21/12)*F14,"") ->  | BN22: =IF(G14>0,(G15*G16*G21/12)*G14,"") ->  | BO22: =IF(H14>0,(H15*H16*H21/12)*H14,"") ->  | BP22: =IF(I14>0,(I15*I16*I21/12)*I14,"") ->  | BQ22: =IF(J14>0,(J15*J16*J21/12)*J14,"") ->  | BR22: =IF(K14>0,(K15*K16*K21/12)*K14,"") ->  | BS22: =IF(L14>0,(L15*L16*L21/12)*L14,"") ->  | BT22: =IF(M14>0,(M15*M16*M21/12)*M14,"") ->  | BU22: =IF(N14>0,(N15*N16*N21/12)*N14,"") ->  | BV22: =IF(O14>0,(O15*O16*O21/12)*O14,"") ->  | BW22: =IF(P14>0,(P15*P16*P21/12)*P14,"") ->  | BX22: =IF(Q14>0,(Q15*Q16*Q21/12)*Q14,"") ->  | BY22: 0.00
A23: Sand Filling (inch) | T23: D | Z23: t | AN23: Total Cost= | AP23: =SUM(AP14:AQ22) -> 0 TK | BH23: Brick Flat | BJ23: =IF(AND(C14>0,C22>0),(C15*C16)*C14,"0") -> 0 | BK23: =IF(AND(D14>0,D22>0),(D15*D16)*D14,"0") -> 0 | BL23: 0 | BM23: 0 | BN23: 0 | BO23: 0 | BP23: 0 | BQ23: 0 | BR23: 0 | BS23: 0 | BT23: 0 | BU23: 0 | BV23: 0 | BW23: 0 | BX23: 0 | BY23: 0.00
A24: Clear Cover (inh) | BH24: Sand Filling | BJ24: =IF(AND(C14>0,C23>0),(C15*C16*C23/12)*C14,"0") -> 0 | BK24: =IF(AND(D14>0,D23>0),(D15*D16*D23/12)*D14,"0") -> 0 | BL24: 0 | BM24: 0 | BN24: 0 | BO24: 0 | BP24: 0 | BQ24: 0 | BR24: 0 | BS24: 0 | BT24: 0 | BU24: 0 | BV24: 0 | BW24: 0 | BX24: 0 | BY24: 0.00
BH25: Formwork | BJ25: =IF(C14>0,((C15+C15+C16+C16)*C18/12)*C14,"") ->  | BK25: =IF(D14>0,((D15+D15+D16+D16)*D18/12)*D14,"") ->  | BL25: =IF(E14>0,((E15+E15+E16+E16)*E18/12)*E14,"") ->  | BM25: =IF(F14>0,((F15+F15+F16+F16)*F18/12)*F14,"") ->  | BN25: =IF(G14>0,((G15+G15+G16+G16)*G18/12)*G14,"") ->  | BO25: =IF(H14>0,((H15+H15+H16+H16)*H18/12)*H14,"") ->  | BP25: =IF(I14>0,((I15+I15+I16+I16)*I18/12)*I14,"") ->  | BQ25: =IF(J14>0,((J15+J15+J16+J16)*J18/12)*J14,"") ->  | BR25: =IF(K14>0,((K15+K15+K16+K16)*K18/12)*K14,"") ->  | BS25: =IF(L14>0,((L15+L15+L16+L16)*L18/12)*L14,"") ->  | BT25: =IF(M14>0,((M15+M15+M16+M16)*M18/12)*M14,"") ->  | BU25: =IF(N14>0,((N15+N15+N16+N16)*N18/12)*N14,"") ->  | BV25: =IF(O14>0,((O15+O15+O16+O16)*O18/12)*O14,"") ->  | BW25: =IF(P14>0,((P15+P15+P16+P16)*P18/12)*P14,"") ->  | BX25: =IF(Q14>0,((Q15+Q15+Q16+Q16)*Q18/12)*Q14,"") ->  | BY25: 0.00
D26: Rcc casting Ratio | H26: C.C casting Ratio | U26: T | AH26: Reinforcement | BH26: Bottom long | BJ26: =IF(AND(C14>0,D32>0),((C16*12-C24-C24)/D33+1)*(D32^2/532)*((C15-(C24/12+C24/12-D36/12-D36/12))*C14),"0") -> 0 | BK26: =IF(AND(D14>0,E32>0),((D16*12-D24-D24)/E33+1)*(E32^2/532)*((D15-(D24/12+D24/12-E36/12-E36/12))*D14),"0") -> 0 | BL26: 0 | BM26: 0 | BN26: 0 | BO26: 0 | BP26: 0 | BQ26: 0 | BR26: 0 | BS26: 0 | BT26: 0 | BU26: 0 | BV26: 0 | BW26: 0 | BX26: 0 | BY26: 0.00
AI27: 12 MM | AJ27: =IF(AI27>0,SUMIF($BK$32:$BY$35,AI27,$CA$32:$CO$35),"") -> 0 KG | BH27: Bottom Short | BJ27: =IF(AND(C14>0,D34>0),((C15*12-C24-C24)/D35+1)*(D34^2/532)*(C16-(C24/12+C24/12-D36/12-D36/12))*C14,"") ->  | BK27: =IF(AND(D14>0,E34>0),((D15*12-D24-D24)/E35+1)*(E34^2/532)*(D16-(D24/12+D24/12-E36/12-E36/12))*D14,"") ->  | BY27: 0.00
D28: 1 | E28: 1.5 | F28: 3 | G28: =SUM(D28:F28) -> 5.5 | H28: 1 | I28: 3 | J28: 6 | K28: =SUM(H28:J28) -> 10 | AI28: 16 MM | AJ28: =IF(AI28>0,SUMIF($BK$32:$BY$35,AI28,$CA$32:$CO$35),"") -> 0 KG | BH28: Top long | BJ28: =IF(AND(C14>0,D37>0),((C16*12-C24-C24)/D38+1)*(D37^2/532)*(C15-(C24/12+C24/12-D36/12-D36/12))*C14,"") ->  | BK28: =IF(AND(D14>0,E37>0),((D16*12-D24-D24)/E38+1)*(E37^2/532)*(D15-(D24/12+D24/12-E36/12-E36/12))*D14,"") ->  | BY28: 0.00
BH29: Top Short | BJ29: =IF(AND(C14>0,D39>0),((C15*12-C24-C24)/D40+1)*(D39^2/532)*(C16-(C24/12+C24/12-D36/12-D36/12))*C14,"") ->  | BK29: =IF(AND(D14>0,E39>0),((D15*12-D24-D24)/E40+1)*(E39^2/532)*(D16-(D24/12+D24/12-E36/12-E36/12))*D14,"") ->  | BY29: 0.00
A31: Rebar calculation | D31: Type-1 | E31: Type-2 | F31: Type-3 | G31: Type-4 | H31: Type-5 | I31: Type-6 | J31: Type-7 | K31: Type-8 | L31: Type-9 | M31: Type-10 | N31: Type-11 | O31: Type-12 | P31: Type-13 | Q31: Type-14 | R31: Type-15 | CA31: 1 | CB31: 2 | CC31: 3 | CD31: 4 | CE31: 5 | CF31: 6 | CG31: 7 | CH31: 8 | CI31: 9 | CJ31: 10 | CK31: 11 | CL31: 12 | CM31: 13 | CN31: 14 | CO31: 15
A32: Bottom layer | B32: long direction Dia (mm) | U32: Footing Section | BI32: Bottom long direction | BK32: =D32 -> 0 MM | BL32: 0 MM | BM32: 0 MM | BN32: 0 MM | BO32: 0 MM | BP32: 0 MM | BQ32: 0 MM | BR32: 0 MM | BS32: 0 MM | BT32: 0 MM | BU32: 0 MM | BV32: 0 MM | BW32: 0 MM | BX32: 0 MM | BY32: 0 MM | CA32: =IF(C14>0,BJ26+$AK$14*BJ26/100,"") ->  | CB32: =IF(D14>0,BK26+$AK$14*BK26/100,"") -> 
B33: Specing(inh) | BI33: Bottom Short direct | BK33: =D34 -> 0 MM | BL33: 0 MM | BM33: 0 MM | BN33: 0 MM | BO33: 0 MM | BP33: 0 MM | BQ33: 0 MM | BR33: 0 MM | BS33: 0 MM | BT33: 0 MM | BU33: 0 MM | BV33: 0 MM | BW33: 0 MM | BX33: 0 MM | BY33: 0 MM | CA33: =IF(C14>0,BJ27+$AK$14*BJ27/100,"") ->  | CB33: =IF(D14>0,BK27+$AK$14*BK27/100,"") -> 
B34: Short direction Dia (mm) | BI34: Top long direction | BK34: =D37 -> 0 MM | BL34: 0 MM | BM34: 0 MM | BN34: 0 MM | BO34: 0 MM | BP34: 0 MM | BQ34: 0 MM | BR34: 0 MM | BS34: 0 MM | BT34: 0 MM | BU34: =N37 -> 0 MM | BV34: 0 MM | BW34: 0 MM | BX34: 0 MM | BY34: 0 MM | CA34: =IF(C14>0,BJ28+$AK$14*BJ28/100,"") ->  | CB34: =IF(D14>0,BK28+$AK$14*BK28/100,"") -> 
B35: Specing (inh) | BI35: Top Short direction | BK35: =D39 -> 0 MM | BL35: 0 MM | BM35: 0 MM | BN35: 0 MM | BO35: 0 MM | BP35: 0 MM | BQ35: 0 MM | BR35: 0 MM | BS35: 0 MM | BT35: 0 MM | BU35: =N39 -> 0 MM | BV35: 0 MM | BW35: 0 MM | BX35: 0 MM | BY35: 0 MM | CA35: =IF(C14>0,BJ29+$AK$14*BJ29/100,"") ->  | CB35: =IF(D14>0,BK29+$AK$14*BK29/100,"") -> 
B36: Development length (inh)
A37: Top layer | B37: long direction Dia (mm)
B38: Specing(inh)
B39: Short direction Dia (mm)
B40: Specing (inh)
B41: Development length (inh)

Sheet Short Tied Column (hidden)
A1: This is The Property of NOR DESIGN SOLUTION
A5: এক্সেল শীট বিষয়ক কিছু জানার থাকলে বা আপডেট নিয়ে কোন পরামর্শ থাকলে আমাদের সাথে যোগাযোগ করুন অথবা ওয়েবসাইটে কমেন্ট করুন
A6: এক্সেল শীট সম্পর্কে যাবতীয় তথ্য বিস্তারিত জানতে ভিজিট করুন আমাদের ইউটিউব চ্যানেলে
A8: Click Here To Watch The Short Circular Column Estimate video
BC10: Cement | BD10: Sand | BE10: Stone | BF10: Rod | BG10: Casting | BH10: Excavation | BI10: Sand Filling | BJ10: Formwork | BK10: Brick Nos | BL10: Bricl Flat Soling | BM10: C.c
A11: Short Tied Column | U11: Short Tied Column Estimated And Price | BC11: =AB14 -> 0 Bag | BD11: =AB15 -> 0 CFT | BE11: =BR16+AA14*BR16/100 -> 0 | BF11: =AB17 -> 0.000 Ton | BG11: =AB19 -> 0 CFT | BJ11: =AB18 -> 0 SFT | BK11: =BR17+AA14*BR17/100 -> 0
A13: Description | C13: Type-1 | D13: Type-2 | E13: Type-3 | F13: Type-4 | G13: Type-5 | H13: Type-6 | I13: Type-7 | J13: Type-8 | K13: Type-9 | L13: Type-10 | M13: Type-11 | N13: Type-12 | O13: Type-13 | P13: Type-14 | Q13: Type-15 | U13: DESCRIPTION | Y13: Quantity | AA13: Wastage Add | AB13: Quantity (Wastage Add) | AD13: Rate | AF13: Amount TK | BR13: SUM
A14: Column Nos | U14: Cement | Y14: =BR14 -> 0 Bag | AA14: 0.0% ADD | AB14: =Y14+$AA$14*Y14/100 -> 0 Bag | AD14: 550.0 TK | AF14: =AB14*AD14 -> 0 TK | BA14: cement | BC14: =IF(C14>0,(BC18*$D$22*1.54)/($G$22*1.25),"") ->  | BM14: =IF(M14>0,(BM18*$D$22*1.54)/($G$22*1.25),"") ->  | BN14: =IF(N14>0,(BN18*$D$22*1.54)/($G$22*1.25),"") ->  | BO14: =IF(O14>0,(BO18*$D$22*1.54)/($G$22*1.25),"") ->  | BP14: =IF(P14>0,(BP18*$D$22*1.54)/($G$22*1.25),"") ->  | BQ14: =IF(Q14>0,(BQ18*$D$22*1.54)/($G$22*1.25),"") ->  | BR14: =SUM(BC14:BQ14) -> 0
A15: Length,L (inh) | U15: Sand | Y15: =BR15 -> 0 CFT | AB15: 0 CFT | AD15: 45.0 TK | AF15: 0 TK | BA15: sand | BC15: =IF(C14>0,(BC18*1.54*$E$22)/$G$22,"") ->  | BM15: =IF(M14>0,(BM18*1.54*$E$22)/$G$22,"") ->  | BN15: =IF(N14>0,(BN18*1.54*$E$22)/$G$22,"") ->  | BO15: =IF(O14>0,(BO18*1.54*$E$22)/$G$22,"") ->  | BP15: =IF(P14>0,(BP18*1.54*$E$22)/$G$22,"") ->  | BQ15: =IF(Q14>0,(BQ18*1.54*$E$22)/$G$22,"") ->  | BR15: =SUM(BC15:BQ15) -> 0
A16: Breadth,B (inh) | U16: Stone/Brik Chips (CFT) | Y16: =VLOOKUP(U16,BT20:BU21,2,0) -> 0 | AB16: 0 | AD16: 15.0 TK | AF16: 0 TK | BA16: Stone/Brik Chips | BC16: =IF(C14>0,(BC18*1.54*$F$22)/$G$22,"") ->  | BM16: =IF(M14>0,(BM18*1.54*$F$22)/$G$22,"") ->  | BN16: =IF(N14>0,(BN18*1.54*$F$22)/$G$22,"") ->  | BO16: =IF(O14>0,(BO18*1.54*$F$22)/$G$22,"") ->  | BP16: =IF(P14>0,(BP18*1.54*$F$22)/$G$22,"") ->  | BQ16: =IF(Q14>0,(BQ18*1.54*$F$22)/$G$22,"") ->  | BR16: 0
A17: Clear Cover (inh) | U17: Rod/Reber | Y17: =SUM(BR21:BR25)/1000 -> 0.000 Ton | AB17: 0.000 Ton | AD17: 95000.0 TK | AF17: 0 TK | BA17: Brick Nos | BC17: =IF(C14>0,BC16*9.5,"") ->  | BM17: =IF(M14>0,BM16*9.5,"") ->  | BN17: =IF(N14>0,BN16*9.5,"") ->  | BO17: =IF(O14>0,BO16*9.5,"") ->  | BP17: =IF(P14>0,BP16*9.5,"") ->  | BQ17: =IF(Q14>0,BQ16*9.5,"") ->  | BR17: 0
A18: Short Column Height, H (ft) | U18: Formwork | Y18: =BR19 -> 0 SFT | AB18: 0 SFT | AD18: 30.0 TK | AF18: 0 TK | BA18: Casting | BC18: =IF(C14>0,((C18)*(C15/12*C16/12*C14)),"") ->  | BM18: =IF(M14>0,((M18)*(M15/12*M16/12*M14)),"") ->  | BN18: =IF(N14>0,((N18)*(N15/12*N16/12*N14)),"") ->  | BO18: =IF(O14>0,((O18)*(O15/12*O16/12*O14)),"") ->  | BP18: =IF(P14>0,((P18)*(P15/12*P16/12*P14)),"") ->  | BQ18: =IF(Q14>0,((Q18)*(Q15/12*Q16/12*Q14)),"") ->  | BR18: 0
U19: Casting | Y19: =BR18 -> 0 CFT | AB19: 0 CFT | AD19: 31.0 TK | AF19: 0 TK | BA19: Framwork | BC19: =IF(C14>0,(C18*((C16+C16)/12)*((C15+C15)/12))*C14,"") ->  | BM19: =IF(M14>0,(M18*((M16+M16)/12)*((M15+M15)/12))*M14,"") ->  | BN19: =IF(N14>0,(N18*((N16+N16)/12)*((N15+N15)/12))*N14,"") ->  | BO19: =IF(O14>0,(O18*((O16+O16)/12)*((O15+O15)/12))*O14,"") ->  | BP19: =IF(P14>0,(P18*((P16+P16)/12)*((P15+P15)/12))*P14,"") ->  | BQ19: =IF(Q14>0,(Q18*((Q16+Q16)/12)*((Q15+Q15)/12))*Q14,"") ->  | BR19: 0
D20: Rcc casting Ratio | AD20: Total Cost= | AF20: =SUM(AF14:AG19) -> 0 TK | BA20: Column (L) | BC20: =IF(C14>0,(C18+(D29/12)),"") ->  | BM20: =IF(M14>0,(M18+(N29/12)),"") ->  | BN20: =IF(N14>0,(N18+(O29/12)),"") ->  | BO20: =IF(O14>0,(O18+(P29/12)),"") ->  | BP20: =IF(P14>0,(P18+(Q29/12)),"") ->  | BQ20: =IF(Q14>0,(Q18+(R29/12)),"") ->  | BR20: 0 | BT20: Stone/Brik Chips (CFT) | BU20: =BR16 -> 0
BA21: Large dia | BC21: =IF(AND(C14>0,D25>0),(D25^2/532)*D26*BC20*C14,"0") -> 0 | BD21: =IF(D14>0,(E25^2/532)*E26*BD20*D14,"") ->  | BM21: =IF(M14>0,(N25^2/532)*N26*BM20*M14,"") ->  | BN21: =IF(N14>0,(O25^2/532)*O26*BN20*N14,"") ->  | BO21: =IF(O14>0,(P25^2/532)*P26*BO20*O14,"") ->  | BP21: =IF(P14>0,(Q25^2/532)*Q26*BP20*P14,"") ->  | BQ21: =IF(Q14>0,(R25^2/532)*R26*BQ20*Q14,"") ->  | BR21: 0 | BT21: Brick Nos For Brik Chips | BU21: =BR17 -> 0
D22: 1 | E22: 2.0 | F22: 3 | G22: =SUM(D22:F22) -> 6.0 | Y22: Reinforcement | BA22: Small Dia | BC22: =IF(AND(C14>0,D27>0),(D27^2/532)*D28*BC20*C14,"0") -> 0 | BD22: =IF(D14>0,(E27^2/532)*E28*BD20*D14,"") ->  | BM22: =IF(M14>0,(N27^2/532)*N28*BM20*M14,"") ->  | BN22: =IF(N14>0,(O27^2/532)*O28*BN20*N14,"") ->  | BO22: =IF(O14>0,(P27^2/532)*P28*BO20*O14,"") ->  | BP22: =IF(P14>0,(Q27^2/532)*Q28*BP20*P14,"") ->  | BQ22: =IF(Q14>0,(R27^2/532)*R28*BQ20*Q14,"") ->  | BR22: 0
Z23: 10 MM | AA23: =IF(Z23>0,SUMIF($BC$30:$BQ$34,Z23,$BS$30:$CG$34)+$AA$14*SUMIF($BC$30:$BQ$34,Z23,$BS$30:$CG$34)/100,"") -> 0 KG | BA23: Tie Rod-1 | BC23: =IF(AND(C14>0,D30>0),(D30^2/532)*BC26*BC27*C14,"0") -> 0 | BD23: =IF(D14>0,(E30^2/532)*BD26*BD27*D14,"") ->  | BM23: =IF(M14>0,(N30^2/532)*BM26*BM27*M14,"") ->  | BN23: =IF(N14>0,(O30^2/532)*BN26*BN27*N14,"") ->  | BO23: =IF(O14>0,(P30^2/532)*BO26*BO27*O14,"") ->  | BP23: =IF(P14>0,(Q30^2/532)*BP26*BP27*P14,"") ->  | BQ23: =IF(Q14>0,(R30^2/532)*BQ26*BQ27*Q14,"") ->  | BR23: 0
A24: Short Column Rebar Calculation | D24: Type-1 | E24: Type-2 | F24: Type-3 | G24: Type-4 | H24: Type-5 | I24: Type-6 | J24: Type-7 | K24: Type-8 | L24: Type-9 | M24: Type-10 | N24: Type-11 | O24: Type-12 | P24: Type-13 | Q24: Type-14 | R24: Type-15 | Z24: 12 MM | AA24: =IF(Z24>0,SUMIF($BC$30:$BQ$34,Z24,$BS$30:$CG$34)+$AA$14*SUMIF($BC$30:$BQ$34,Z24,$BS$30:$CG$34)/100,"") -> 0 KG | BA24: Tie Rod-2 | BC24: =IF(AND(C14>0,D33>0),(D30^2/532)*BC26*D33*C14,"0") -> 0 | BD24: =IF(D14>0,(E30^2/532)*BD26*E33*D14,"") ->  | BM24: =IF(M14>0,(N30^2/532)*BM26*N33*M14,"") ->  | BN24: =IF(N14>0,(O30^2/532)*BN26*O33*N14,"") ->  | BO24: =IF(O14>0,(P30^2/532)*BO26*P33*O14,"") ->  | BP24: =IF(P14>0,(Q30^2/532)*BP26*Q33*P14,"") ->  | BQ24: =IF(Q14>0,(R30^2/532)*BQ26*R33*Q14,"") ->  | BR24: 0
A25: Large Dia | B25: Rebar Size (mm) | Z25: 16 MM | AA25: 0 KG | BA25: Tie Rod-3 | BC25: =IF(AND(C14>0,D34>0),(D30^2/532)*BC26*D34*C14,"0") -> 0 | BD25: =IF(D14>0,(E30^2/532)*BD26*E34*D14,"") ->  | BM25: =IF(M14>0,(N30^2/532)*BM26*N34*M14,"") ->  | BN25: =IF(N14>0,(O30^2/532)*BN26*O34*N14,"") ->  | BO25: =IF(O14>0,(P30^2/532)*BO26*P34*O14,"") ->  | BP25: =IF(P14>0,(Q30^2/532)*BP26*Q34*P14,"") ->  | BQ25: =IF(Q14>0,(R30^2/532)*BQ26*R34*Q14,"") ->  | BR25: 0 | CA25: =SUM(BS32:CG34) -> 0 KG
B26: Rebar Nos | BA26: Tie Rod nos | BC26: =IF(AND(C14>0,D31>0),(C18/(D31/12))+1,"0") -> 0 | BD26: =IF(D14>0,(D18/(E31/12))+1,"") ->  | BM26: =IF(M14>0,(M18/(N31/12))+1,"") ->  | BN26: =IF(N14>0,(N18/(O31/12))+1,"") ->  | BO26: =IF(O14>0,(O18/(P31/12))+1,"") ->  | BP26: =IF(P14>0,(P18/(Q31/12))+1,"") ->  | BQ26: =IF(Q14>0,(Q18/(R31/12))+1,"") ->  | BR26: 0
A27: Small Dia | B27: Rebar Size (mm) | BA27: Tie Length | BC27: =IF(C14>0,(((C15*2)-(C17*2))+((C16*2)-(C17*2)))/12,"") ->  | BD27: =IF(D14>0,(((D15*2)-(D17*2))+((D16*2)-(D17*2)))/12,"") ->  | BM27: =IF(M14>0,(((M15*2)-(M17*2))+((M16*2)-(M17*2)))/12,"") ->  | BN27: =IF(N14>0,(((N15*2)-(N17*2))+((N16*2)-(N17*2)))/12,"") ->  | BO27: =IF(O14>0,(((O15*2)-(O17*2))+((O16*2)-(O17*2)))/12,"") ->  | BP27: =IF(P14>0,(((P15*2)-(P17*2))+((P16*2)-(P17*2)))/12,"") ->  | BQ27: =IF(Q14>0,(((Q15*2)-(Q17*2))+((Q16*2)-(Q17*2)))/12,"") ->  | BR27: 0
B28: Rebar Nos
A29: Development length (inh)
A30: Tie Rod | B30: Rebar Size (mm) | BA30: Large dia | BC30: =D25 -> 0 MM | BD30: =E25 -> 0 MM | BE30: 0 MM | BF30: 0 MM | BG30: 0 MM | BH30: 0 MM | BI30: 0 MM | BJ30: 0 MM | BK30: 0 MM | BL30: 0 MM | BM30: 0 MM | BN30: 0 MM | BO30: 0 MM | BP30: 0 MM | BQ30: 0 MM | BS30: =IF(C14>0,BC21+$AA$14*BC21/100,"") ->  | BT30: =IF(D14>0,BD21+$AA$14*BD21/100,"") -> 
B31: Specing (inch) | BA31: Small Dia | BC31: =D27 -> 0 MM | BD31: =E27 -> 0 MM | BE31: 0 MM | BF31: 0 MM | BG31: 0 MM | BH31: 0 MM | BI31: 0 MM | BJ31: 0 MM | BK31: 0 MM | BL31: 0 MM | BM31: 0 MM | BN31: 0 MM | BO31: 0 MM | BP31: 0 MM | BQ31: 0 MM | BS31: =IF(C14>0,BC22+$AA$14*BC22/100,"") ->  | BT31: =IF(D14>0,BD22+$AA$14*BD22/100,"") -> 
B32: Houck lenght (inch) | BA32: Tie Rod-1 | BC32: =D30 -> 0 MM | BD32: =E30 -> 0 MM | BE32: 0 MM | BF32: 0 MM | BG32: 0 MM | BH32: 0 MM | BI32: 0 MM | BJ32: 0 MM | BK32: 0 MM | BL32: 0 MM | BM32: 0 MM | BN32: 0 MM | BO32: 0 MM | BP32: 0 MM | BQ32: 0 MM | BS32: =IF(C14>0,BC23+$AA$14*BC23/100,"") ->  | BT32: =IF(D14>0,BD23+$AA$14*BD23/100,"") -> 
A33: Extra Tie -1 | B33: lenght (ft) | BA33: Tie Rod-2 | BC33: =BC32 -> 0 MM | BD33: =BD32 -> 0 MM | BE33: 0 MM | BF33: 0 MM | BG33: 0 MM | BH33: 0 MM | BI33: 0 MM | BJ33: 0 MM | BK33: 0 MM | BL33: 0 MM | BM33: 0 MM | BN33: 0 MM | BO33: 0 MM | BP33: 0 MM | BQ33: 0 MM | BS33: =IF(C14>0,BC24+$AA$14*BC24/100,"") ->  | BT33: =IF(D14>0,BD24+$AA$14*BD24/100,"") -> 
A34: Extra Tie -2 | B34: lenght (ft) | BA34: Tie Rod-3 | BC34: =BC32 -> 0 MM | BD34: =BD32 -> 0 MM | BE34: 0 MM | BF34: 0 MM | BG34: 0 MM | BH34: 0 MM | BI34: 0 MM | BJ34: 0 MM | BK34: 0 MM | BL34: 0 MM | BM34: 0 MM | BN34: 0 MM | BO34: 0 MM | BP34: 0 MM | BQ34: 0 MM | BS34: =IF(C14>0,BC25+$AA$14*BC25/100,"") ->  | BT34: =IF(D14>0,BD25+$AA$14*BD25/100,"") -> 
BE75: Stone/Brick Chips (CFT) | BF75: =#REF! -> 
BE76: Brick Nos | BF76: =#REF! -> 
BH77: =#REF! -> 
BE78: Stone/Brick Chips (CFT) | BF78: =IF(#REF!>0,BF75+(BF75*#REF!)/100,"") -> 
BE79: Brick Nos | BF79: =IF(#REF!>0,BF76+(BF76*#REF!)/100,"") -> 
BG82: =D25 -> 0 MM | BH82: =IF(D25>0,BC21,"") -> 
BG83: =D27 -> 0 MM | BH83: =IF(D27>0,BC22,"") -> 
BG84: =D30 -> 0 MM | BH84: =IF(D30>0,(BC23+BC24+BC25+#REF!),"") -> 

Sheet Short Circular Column (hidden)
A1: This is The Property of NOR DESIGN SOLUTION
AX4: =SUM(#REF!) -> 
A5: এক্সেল শীট বিষয়ক কিছু জানার থাকলে বা আপডেট নিয়ে কোন পরামর্শ থাকলে আমাদের সাথে যোগাযোগ করুন অথবা ওয়েবসাইটে কমেন্ট করুন
A6: এক্সেল শীট সম্পর্কে যাবতীয় তথ্য বিস্তারিত জানতে ভিজিট করুন আমাদের ইউটিউব চ্যানেলে
A8: Click Here To Watch The Short Circular Column Estimate video
A12: Short Circular Column | U12: Short Circular Column Estimated And Price
AT13: Cement | AU13: Sand | AV13: Stone | AW13: Rod | AX13: Casting | AY13: Excavation | AZ13: Sand Filling | BA13: Formwork | BB13: Brick Nos | BC13: Bricl Flat Soling | BD13: C.c
A14: Description | C14: Type-1 | D14: Type-2 | E14: Type-3 | F14: Type-4 | G14: Type-5 | H14: Type-6 | I14: Type-7 | J14: Type-8 | K14: Type-9 | L14: Type-10 | M14: Type-11 | N14: Type-12 | O14: Type-13 | P14: Type-14 | Q14: Type-15 | U14: DESCRIPTION | Y14: Quantity | AA14: Wastage Add | AB14: Quantity (Wastage Add) | AD14: Rate | AF14: Amount TK | AT14: =AB15 -> 0 Bag | AU14: =AB16 -> 0 CFT | AV14: =BG18+AA15*BG18/100 -> 0 | AW14: =AB18 -> 0.000 Ton | AX14: =AB20 -> 0 CFT | BA14: =AB19 -> 0 SFT | BB14: =BG19+AA15*BG19/100 -> 0
A15: Column Nos | U15: Cement | Y15: =BG16 -> 0 Bag | AA15: 0 % ADD | AB15: =Y15+$AA$15*Y15/100 -> 0 Bag | AD15: 550.00 TK | AF15: =AB15*AD15 -> 0 TK | BG15: sum
A16: Column Dia (inh) | U16: Sand | Y16: =BG17 -> 0 CFT | AB16: 0 CFT | AD16: 5.00 TK | AF16: 0 TK | AP16: cement | AR16: =IF(C15>0,(AR20*$D$22*1.54)/($G$22*1.25),"") ->  | AS16: =IF(D15>0,(AS20*$D$22*1.54)/($G$22*1.25),"") ->  | AT16: =IF(E15>0,(AT20*$D$22*1.54)/($G$22*1.25),"") ->  | AU16: =IF(F15>0,(AU20*$D$22*1.54)/($G$22*1.25),"") ->  | AV16: =IF(G15>0,(AV20*$D$22*1.54)/($G$22*1.25),"") ->  | AW16: =IF(H15>0,(AW20*$D$22*1.54)/($G$22*1.25),"") ->  | AX16: =IF(I15>0,(AX20*$D$22*1.54)/($G$22*1.25),"") ->  | AY16: =IF(J15>0,(AY20*$D$22*1.54)/($G$22*1.25),"") ->  | AZ16: =IF(K15>0,(AZ20*$D$22*1.54)/($G$22*1.25),"") ->  | BA16: =IF(L15>0,(BA20*$D$22*1.54)/($G$22*1.25),"") ->  | BB16: =IF(M15>0,(BB20*$D$22*1.54)/($G$22*1.25),"") ->  | BC16: =IF(N15>0,(BC20*$D$22*1.54)/($G$22*1.25),"") ->  | BD16: =IF(O15>0,(BD20*$D$22*1.54)/($G$22*1.25),"") ->  | BE16: =IF(P15>0,(BE20*$D$22*1.54)/($G$22*1.25),"") ->  | BF16: =IF(Q15>0,(BF20*$D$22*1.54)/($G$22*1.25),"") ->  | BG16: =SUM(AR16:BF16) -> 0 Bag
A17: Clear Cover (inh) | U17: Stone/Brik Chips (CFT) | Y17: =VLOOKUP(U17,BI22:BJ23,2,0) -> 0 | AB17: 0 | AD17: 140.00 TK | AF17: 0 TK | AP17: sand | AR17: =IF(C15>0,(AR20*1.54*$E$22)/$G$22,"") ->  | AS17: =IF(D15>0,(AS20*1.54*$E$22)/$G$22,"") ->  | AT17: =IF(E15>0,(AT20*1.54*$E$22)/$G$22,"") ->  | AU17: =IF(F15>0,(AU20*1.54*$E$22)/$G$22,"") ->  | AV17: =IF(G15>0,(AV20*1.54*$E$22)/$G$22,"") ->  | AW17: =IF(H15>0,(AW20*1.54*$E$22)/$G$22,"") ->  | AX17: =IF(I15>0,(AX20*1.54*$E$22)/$G$22,"") ->  | AY17: =IF(J15>0,(AY20*1.54*$E$22)/$G$22,"") ->  | AZ17: =IF(K15>0,(AZ20*1.54*$E$22)/$G$22,"") ->  | BA17: =IF(L15>0,(BA20*1.54*$E$22)/$G$22,"") ->  | BB17: =IF(M15>0,(BB20*1.54*$E$22)/$G$22,"") ->  | BC17: =IF(N15>0,(BC20*1.54*$E$22)/$G$22,"") ->  | BD17: =IF(O15>0,(BD20*1.54*$E$22)/$G$22,"") ->  | BE17: =IF(P15>0,(BE20*1.54*$E$22)/$G$22,"") ->  | BF17: =IF(Q15>0,(BF20*1.54*$E$22)/$G$22,"") ->  | BG17: =SUM(AR17:BF17) -> 0
A18: Short Column Height H (ft) | U18: Rod/Reber | Y18: =SUM(BG23:BG27)/1000 -> 0.000 Ton | AB18: 0.000 Ton | AD18: 780000.00 TK | AF18: 0 TK | AP18: Stone/Brik Chips | AR18: =IF(C15>0,(AR20*1.54*$F$22)/$G$22,"") ->  | AS18: =IF(D15>0,(AS20*1.54*$F$22)/$G$22,"") ->  | AT18: =IF(E15>0,(AT20*1.54*$F$22)/$G$22,"") ->  | AU18: =IF(F15>0,(AU20*1.54*$F$22)/$G$22,"") ->  | AV18: =IF(G15>0,(AV20*1.54*$F$22)/$G$22,"") ->  | AW18: =IF(H15>0,(AW20*1.54*$F$22)/$G$22,"") ->  | AX18: =IF(I15>0,(AX20*1.54*$F$22)/$G$22,"") ->  | AY18: =IF(J15>0,(AY20*1.54*$F$22)/$G$22,"") ->  | AZ18: =IF(K15>0,(AZ20*1.54*$F$22)/$G$22,"") ->  | BA18: =IF(L15>0,(BA20*1.54*$F$22)/$G$22,"") ->  | BB18: =IF(M15>0,(BB20*1.54*$F$22)/$G$22,"") ->  | BC18: =IF(N15>0,(BC20*1.54*$F$22)/$G$22,"") ->  | BD18: =IF(O15>0,(BD20*1.54*$F$22)/$G$22,"") ->  | BE18: =IF(P15>0,(BE20*1.54*$F$22)/$G$22,"") ->  | BF18: =IF(Q15>0,(BF20*1.54*$F$22)/$G$22,"") ->  | BG18: 0
U19: Formwork | Y19: =BG21 -> 0 SFT | AB19: 0 SFT | AD19: 15.00 TK | AF19: 0 TK | AP19: Brick Nos | AR19: =IF(C15>0,AR18*9.5,"") ->  | AS19: =IF(D15>0,AS18*9.5,"") ->  | AT19: =IF(E15>0,AT18*9.5,"") ->  | AU19: =IF(F15>0,AU18*9.5,"") ->  | AV19: =IF(G15>0,AV18*9.5,"") ->  | AW19: =IF(H15>0,AW18*9.5,"") ->  | AX19: =IF(I15>0,AX18*9.5,"") ->  | AY19: =IF(J15>0,AY18*9.5,"") ->  | AZ19: =IF(K15>0,AZ18*9.5,"") ->  | BA19: =IF(L15>0,BA18*9.5,"") ->  | BB19: =IF(M15>0,BB18*9.5,"") ->  | BC19: =IF(N15>0,BC18*9.5,"") ->  | BD19: =IF(O15>0,BD18*9.5,"") ->  | BE19: =IF(P15>0,BE18*9.5,"") ->  | BF19: =IF(Q15>0,BF18*9.5,"") ->  | BG19: 0
D20: Rcc casting Ratio | U20: Casting | Y20: =BG20 -> 0 CFT | AB20: 0 CFT | AD20: 16.00 TK | AF20: 0 TK | AP20: Casting | AR20: =IF(C15>0,C18*(3.1416*((C16/12)^2)/4)*C15,"") ->  | AS20: =IF(D15>0,D18*(3.1416*((D16/12)^2)/4)*D15,"") ->  | AT20: =IF(E15>0,E18*(3.1416*((E16/12)^2)/4)*E15,"") ->  | AU20: =IF(F15>0,F18*(3.1416*((F16/12)^2)/4)*F15,"") ->  | AV20: =IF(G15>0,G18*(3.1416*((G16/12)^2)/4)*G15,"") ->  | AW20: =IF(H15>0,H18*(3.1416*((H16/12)^2)/4)*H15,"") ->  | AX20: =IF(I15>0,I18*(3.1416*((I16/12)^2)/4)*I15,"") ->  | AY20: =IF(J15>0,J18*(3.1416*((J16/12)^2)/4)*J15,"") ->  | AZ20: =IF(K15>0,K18*(3.1416*((K16/12)^2)/4)*K15,"") ->  | BA20: =IF(L15>0,L18*(3.1416*((L16/12)^2)/4)*L15,"") ->  | BB20: =IF(M15>0,M18*(3.1416*((M16/12)^2)/4)*M15,"") ->  | BC20: =IF(N15>0,N18*(3.1416*((N16/12)^2)/4)*N15,"") ->  | BD20: =IF(O15>0,O18*(3.1416*((O16/12)^2)/4)*O15,"") ->  | BE20: =IF(P15>0,P18*(3.1416*((P16/12)^2)/4)*P15,"") ->  | BF20: =IF(Q15>0,Q18*(3.1416*((Q16/12)^2)/4)*Q15,"") ->  | BG20: 0
AD21: Total Cost= | AF21: =SUM(AF15:AG20) -> 0 TK | AP21: Framwork | AR21: =IF(C15>0,C18*3.1416*(C16/12),"") ->  | AS21: =IF(D15>0,D18*3.1416*(D16/12),"") ->  | AT21: =IF(E15>0,E18*3.1416*(E16/12),"") ->  | AU21: =IF(F15>0,F18*3.1416*(F16/12),"") ->  | AV21: =IF(G15>0,G18*3.1416*(G16/12),"") ->  | AW21: =IF(H15>0,H18*3.1416*(H16/12),"") ->  | AX21: =IF(I15>0,I18*3.1416*(I16/12),"") ->  | AY21: =IF(J15>0,J18*3.1416*(J16/12),"") ->  | AZ21: =IF(K15>0,K18*3.1416*(K16/12),"") ->  | BA21: =IF(L15>0,L18*3.1416*(L16/12),"") ->  | BB21: =IF(M15>0,M18*3.1416*(M16/12),"") ->  | BC21: =IF(N15>0,N18*3.1416*(N16/12),"") ->  | BD21: =IF(O15>0,O18*3.1416*(O16/12),"") ->  | BE21: =IF(P15>0,P18*3.1416*(P16/12),"") ->  | BF21: =IF(Q15>0,Q18*3.1416*(Q16/12),"") ->  | BG21: 0
D22: 1 | E22: 1.5 | F22: 3 | G22: =SUM(D22:F22) -> 5.5 | AP22: Large small (L) | AR22: =IF(C15>0,(C18+D29),"") ->  | AS22: =IF(D15>0,(D18+E29),"") ->  | AT22: =IF(E15>0,(E18+F29),"") ->  | AU22: =IF(F15>0,(F18+G29),"") ->  | AV22: =IF(G15>0,(G18+H29),"") ->  | AW22: =IF(H15>0,(H18+I29),"") ->  | AX22: =IF(I15>0,(I18+J29),"") ->  | AY22: =IF(J15>0,(J18+K29),"") ->  | AZ22: =IF(K15>0,(K18+L29),"") ->  | BA22: =IF(L15>0,(L18+M29),"") ->  | BB22: =IF(M15>0,(M18+N29),"") ->  | BC22: =IF(N15>0,(N18+O29),"") ->  | BD22: =IF(O15>0,(O18+P29),"") ->  | BE22: =IF(P15>0,(P18+Q29),"") ->  | BF22: =IF(Q15>0,(Q18+R29),"") ->  | BG22: 0 | BI22: Stone/Brik Chips (CFT) | BJ22: =BG18 -> 0
AP23: Large dia | AR23: =IF(AND(C15>0,D25>0),(D25^2/532)*D26*AR22*C15,"0") -> 0 | AS23: =IF(AND(D15>0,E25>0),(E25^2/532)*E26*AS22*D15,"0") -> 0 | AT23: 0 | AU23: 0 | AV23: 0 | AW23: 0 | AX23: 0 | AY23: 0 | AZ23: 0 | BA23: 0 | BB23: 0 | BC23: 0 | BD23: 0 | BE23: 0 | BF23: 0 | BG23: 0 | BI23: Brick Nos For Brik Chips | BJ23: =BG19 -> 0
A24: Short Column Rebar Calculation | D24: Type-1 | E24: Type-2 | F24: Type-3 | G24: Type-4 | H24: Type-5 | I24: Type-6 | J24: Type-7 | K24: Type-8 | L24: Type-9 | M24: Type-10 | N24: Type-11 | O24: Type-12 | P24: Type-13 | Q24: Type-14 | R24: Type-15 | Y24: Reinforcement | AP24: Small Dia | AR24: =IF(AND(C15>0,D27>0),(D27^2/532)*D28*AR22*C15,"0") -> 0 | AS24: =IF(AND(D15>0,E27>0),(E27^2/532)*E28*AS22*D15,"0") -> 0 | AT24: 0 | AU24: 0 | AV24: 0 | AW24: 0 | AX24: 0 | AY24: 0 | AZ24: 0 | BA24: 0 | BB24: 0 | BC24: 0 | BD24: 0 | BE24: 0 | BF24: 0 | BG24: 0
A25: Large Dia | B25: Rebar Size (mm) | Z25: 8 MM | AA25: =IF(Z25>0,SUMIF($AR$33:$BF$37,Z25,$BH$33:$BV$37)+$AA$15*SUMIF($AR$33:$BF$37,Z25,$BH$33:$BV$37)/100,"") -> 0 KG | AP25: Tie Rod-1 | AR25: =IF(AND(C15>0,D30>0),(D30^2/532)*AR28*AR29*C15,"0") -> 0 | AS25: =IF(AND(D15>0,E30>0),(E30^2/532)*AS28*AS29*D15,"0") -> 0 | AT25: 0 | AU25: 0 | AV25: 0 | AW25: 0 | AX25: 0 | AY25: 0 | AZ25: 0 | BA25: 0 | BB25: 0 | BC25: 0 | BD25: 0 | BE25: 0 | BF25: 0 | BG25: 0
B26: Rebar Nos | Z26: 10 MM | AA26: =IF(Z26>0,SUMIF($AR$33:$BF$37,Z26,$BH$33:$BV$37)+$AA$15*SUMIF($AR$33:$BF$37,Z26,$BH$33:$BV$37)/100,"") -> 0 KG | AP26: Tie Rod-2 | AR26: =IF(AND(C15>0,D33>0),(D30^2/532)*AR28*D33*C15,"0") -> 0 | AS26: =IF(AND(D15>0,E33>0),(E30^2/532)*AS28*E33*D15,"0") -> 0 | AT26: 0 | AU26: 0 | AV26: 0 | AW26: 0 | AX26: 0 | AY26: 0 | AZ26: 0 | BA26: 0 | BB26: 0 | BC26: 0 | BD26: 0 | BE26: 0 | BF26: 0 | BG26: 0
A27: Small Dia | B27: Rebar Size (mm) | Z27: 12 MM | AA27: 0 KG | AP27: Tie Rod-3 | AR27: =IF(AND(C15>0,D34>0),(D30^2/532)*AR28*D34*C15,"0") -> 0 | AS27: =IF(AND(D15>0,E34>0),(E30^2/532)*AS28*E34*D15,"0") -> 0 | AT27: 0 | AU27: 0 | AV27: 0 | AW27: 0 | AX27: 0 | AY27: 0 | AZ27: 0 | BA27: 0 | BB27: 0 | BC27: 0 | BD27: 0 | BE27: 0 | BF27: 0 | BG27: 0
B28: Rebar Nos | Z28: 16 MM | AA28: 0 KG | AP28: Tie Rod nos | AR28: =IF(AND(C15>0,D31>0),(C18/(D31/12))+1,"0") -> 0 | AS28: =IF(AND(D15>0,E31>0),(D18/(E31/12))+1,"0") -> 0 | AT28: 0 | AU28: 0 | AV28: 0 | AW28: 0 | AX28: 0 | AY28: 0 | AZ28: 0 | BA28: 0 | BB28: 0 | BC28: 0 | BD28: 0 | BE28: 0 | BF28: 0 | BG28: 0
A29: Development length (inh) | Z29: 20 MM | AA29: 0 KG | AP29: Tie Length | AR29: =IF(C15>0,(3.1416*C16-C17-C17+D32+D32)/12,"") ->  | AS29: =IF(D15>0,(3.1416*D16-D17-D17+E32+E32)/12,"") ->  | AT29: =IF(E15>0,(3.1416*E16-E17-E17+F32+F32)/12,"") ->  | AU29: =IF(F15>0,(3.1416*F16-F17-F17+G32+G32)/12,"") ->  | AV29: =IF(G15>0,(3.1416*G16-G17-G17+H32+H32)/12,"") ->  | AW29: =IF(H15>0,(3.1416*H16-H17-H17+I32+I32)/12,"") ->  | AX29: =IF(I15>0,(3.1416*I16-I17-I17+J32+J32)/12,"") ->  | AY29: =IF(J15>0,(3.1416*J16-J17-J17+K32+K32)/12,"") ->  | AZ29: =IF(K15>0,(3.1416*K16-K17-K17+L32+L32)/12,"") ->  | BA29: =IF(L15>0,(3.1416*L16-L17-L17+M32+M32)/12,"") ->  | BB29: =IF(M15>0,(3.1416*M16-M17-M17+N32+N32)/12,"") ->  | BC29: =IF(N15>0,(3.1416*N16-N17-N17+O32+O32)/12,"") ->  | BD29: =IF(O15>0,(3.1416*O16-O17-O17+P32+P32)/12,"") ->  | BE29: =IF(P15>0,(3.1416*P16-P17-P17+Q32+Q32)/12,"") ->  | BF29: =IF(Q15>0,(3.1416*Q16-Q17-Q17+R32+R32)/12,"") ->  | BG29: 0
A30: Spiral Ring | B30: Rebar Dia (mm) | Z30: 22 MM | AA30: 0 KG
B31: Specing (inch) | Z31: 25 MM | AA31: 0 KG
B32: Houck lenght (inch) | Z32: 28 MM | AA32: 0 KG
A33: Extra Ring-1 | B33: lenght (ft) | Z33: 32 MM | AA33: 0 KG | AP33: Large dia | AR33: =D25 -> 0 MM | AS33: 0 MM | AT33: 0 MM | AU33: 0 MM | AV33: 0 MM | AW33: 0 MM | AX33: 0 MM | AY33: 0 MM | AZ33: 0 MM | BA33: 0 MM | BB33: 0 MM | BC33: 0 MM | BD33: 0 MM | BE33: 0 MM | BF33: 0 MM | BH33: =IF(C15>0,AR23+$AA$15*AR23/100,"") ->  | BI33: =IF(D15>0,AS23+$AA$15*AS23/100,"") -> 
A34: Extra Ring-2 | B34: lenght (ft) | AP34: Small Dia | AR34: =D27 -> 0 MM | AS34: 0 MM | AT34: 0 MM | AU34: 0 MM | AV34: 0 MM | AW34: 0 MM | AX34: 0 MM | AY34: 0 MM | AZ34: 0 MM | BA34: 0 MM | BB34: 0 MM | BC34: 0 MM | BD34: 0 MM | BE34: 0 MM | BF34: 0 MM | BH34: =IF(C15>0,AR24+$AA$15*AR24/100,"") ->  | BI34: =IF(D15>0,AS24+$AA$15*AS24/100,"") -> 
AP35: Tie Rod-1 | AR35: =D30 -> 0 MM | AS35: 0 MM | AT35: 0 MM | AU35: 0 MM | AV35: 0 MM | AW35: 0 MM | AX35: 0 MM | AY35: 0 MM | AZ35: 0 MM | BA35: 0 MM | BB35: 0 MM | BC35: 0 MM | BD35: 0 MM | BE35: 0 MM | BF35: 0 MM | BH35: =IF(C15>0,AR25+$AA$15*AR25/100,"") ->  | BI35: =IF(D15>0,AS25+$AA$15*AS25/100,"") -> 
AP36: Tie Rod-2 | AR36: =AR35 -> 0 MM | AS36: =AS35 -> 0 MM | AT36: 0 MM | AU36: 0 MM | AV36: 0 MM | AW36: 0 MM | AX36: 0 MM | AY36: 0 MM | AZ36: 0 MM | BA36: 0 MM | BB36: =BB35 -> 0 MM | BC36: 0 MM | BD36: 0 MM | BE36: 0 MM | BF36: 0 MM | BH36: =IF(C15>0,AR26+$AA$15*AR26/100,"") ->  | BI36: =IF(D15>0,AS26+$AA$15*AS26/100,"") -> 
AP37: Tie Rod-3 | AR37: =AR35 -> 0 MM | AS37: =AS35 -> 0 MM | AT37: 0 MM | AU37: 0 MM | AV37: 0 MM | AW37: 0 MM | AX37: 0 MM | AY37: 0 MM | AZ37: 0 MM | BA37: 0 MM | BB37: =BB35 -> 0 MM | BC37: 0 MM | BD37: 0 MM | BE37: 0 MM | BF37: 0 MM | BH37: =IF(C15>0,AR27+$AA$15*AR27/100,"") ->  | BI37: =IF(D15>0,AS27+$AA$15*AS27/100,"") -> 

Sheet Long Tied Column (hidden)
A1: This is The Property of NOR DESIGN SOLUTION
A6: এক্সেল শীট বিষয়ক কিছু জানার থাকলে বা আপডেট নিয়ে কোন পরামর্শ থাকলে আমাদের সাথে যোগাযোগ করুন অথবা ওয়েবসাইটে কমেন্ট করুন
A7: এক্সেল শীট সম্পর্কে যাবতীয় তথ্য বিস্তারিত জানতে ভিজিট করুন আমাদের ইউটিউব চ্যানেলে
A9: Click Here To Watch The Long Tied Estimate video
A11: Long Tied Column | V11: Long Tied Column Estimated And Price
AX12: Cement | AY12: Sand | AZ12: Stone | BA12: Rod | BB12: Casting | BC12: Excavation | BD12: Sand Filling | BE12: Formwork | BF12: Brick Nos | BG12: Bricl Flat Soling | BH12: C.c
A13: Description | C13: Type-1 | D13: Type-2 | E13: Type-3 | F13: Type-4 | G13: Type-5 | H13: Type-6 | I13: Type-7 | J13: Type-8 | K13: Type-9 | L13: Type-10 | M13: Type-11 | N13: Type-12 | O13: Type-13 | P13: Type-14 | Q13: Type-15 | V13: DESCRIPTION | Z13: Quantity | AB13: Wastage Add | AC13: Quantity (Wastage Add) | AE13: Rate | AG13: Amount TK | AX13: =AC14 -> 0 Bag | AY13: =AC15 -> 0 Bag | AZ13: =BK18+AB14*BK18/100 -> 0 | BA13: =AC17 -> 0.000 Ton | BB13: =AC19 -> 0 CFT | BE13: =AC18 -> 0 SFT | BF13: =BK19+AB14*BK19/100 -> 0
A14: Column Nos | V14: Cement | Z14: =BK16 -> 0 Bag | AB14: 0 % ADD | AC14: =Z14+$AB$14*Z14/100 -> 0 Bag | AE14: 550.0 TK | AG14: =AC14*AE14 -> 0 TK
A15: Length,L (inh) | V15: Sand | Z15: =BK17 -> 0 CFT | AC15: 0 CFT | AE15: 45.0 TK | AG15: 0 TK | BK15: Sum
A16: Breadth,B ((inh) | V16: Stone/Brik Chips (CFT) | Z16: =VLOOKUP(V16,BN17:BO18,2,0) -> 0 | AC16: 0 | AE16: 15.0 TK | AG16: 0 TK | AT16: cement | AV16: =IF(C14>0,(AV20*$D$22*1.54)/($G$22*1.25),"") ->  | AW16: =IF(D14>0,(AW20*$D$22*1.54)/($G$22*1.25),"") ->  | BK16: =SUM(AV16:BJ16) -> 0
A17: Clear Cover (inh) | V17: Rod/Reber | Z17: =SUM(BK22:BK26)/1000 -> 0.000 Ton | AC17: 0.000 Ton | AE17: 95000.0 TK | AG17: 0 TK | AT17: sand | AV17: =IF(C14>0,(AV20*1.54*$E$22)/$G$22,"") ->  | AW17: =IF(D14>0,(AW20*1.54*$E$22)/$G$22,"") ->  | BK17: =SUM(AV17:BJ17) -> 0 | BN17: Stone/Brik Chips (CFT) | BO17: =BK18 -> 0
A18: Short Column Height, H (ft) | V18: Formwork | Z18: =BK21 -> 0 SFT | AC18: 0 SFT | AE18: 30.0 TK | AG18: 0 TK | AT18: Stone/Brik Chips | AV18: =IF(C14>0,(AV20*1.54*$F$22)/$G$22,"") ->  | AW18: =IF(D14>0,(AW20*1.54*$F$22)/$G$22,"") ->  | BK18: 0 | BN18: Brick Nos For Brik Chips | BO18: =BK19 -> 0
V19: Casting | Z19: =BK20 -> 0 CFT | AC19: 0 CFT | AE19: 31.0 TK | AG19: 0 TK | AT19: Brick Nos | AV19: =IF(C14>0,AV18*9.5,"") ->  | AW19: =IF(D14>0,AW18*9.5,"") ->  | BK19: 0
D20: Rcc casting Ratio | AE20: Total Cost= | AG20: =SUM(AG14:AH19) -> 0 TK | AT20: Casting | AV20: =IF(C14>0,(C15/12)*(C16/12)*C18*C14,"") ->  | AW20: =IF(D14>0,(D15/12)*(D16/12)*D18*D14,"") ->  | BK20: 0
AT21: Framwork | AV21: =IF(C14>0,(((C18*12/12)*(C15+C15)/12))*C14+(((C18*12/12)*(C16+C16)/12))*C14,"") ->  | AW21: =IF(D14>0,(((D18*12/12)*(D15+D15)/12))*D14+(((D18*12/12)*(D16+D16)/12))*D14,"") ->  | BK21: 0
D22: 1 | E22: 1.5 | F22: 3 | G22: =SUM(D22:F22) -> 5.5 | AT22: Large dia | AV22: =IF(AND(C14>0,D25>0),(D25^2/532)*D26*(C18+D27)*C14,"0") -> 0 | AW22: =IF(D14>0,(E25^2/532)*E26*(D18+E27)*D14,"0") -> 0 | AX22: 0 | AY22: 0 | AZ22: 0 | BA22: 0 | BB22: 0 | BC22: 0 | BD22: 0 | BE22: 0 | BF22: 0 | BG22: 0 | BH22: 0 | BI22: 0 | BJ22: 0 | BK22: 0
Z23: Reinforcement | AT23: Small Dia | AV23: =IF(C14>0,IF(D28>0,(D28^2/532)*D29*(C18+D30)*C14,"0"),"0") -> 0 | AW23: =IF(D14>0,IF(E28>0,(E28^2/532)*E29*(D18+E30)*D14,"0"),"") ->  | BK23: 0
A24: Long Column Rebar calculation | D24: Type-1 | E24: Type-2 | F24: Type-3 | G24: Type-4 | H24: Type-5 | I24: Type-6 | J24: Type-7 | K24: Type-8 | L24: Type-9 | M24: Type-10 | N24: Type-11 | O24: Type-12 | P24: Type-13 | Q24: Type-14 | R24: Type-15 | AA24: 10 MM | AB24: =IF(AA24>0,SUMIF($AV$34:$BJ$38,AA24,$BL$34:$BZ$38),"") -> 0 KG | AT24: Tie Rod-1 | AV24: =IF(AND(C14>0,D31>0),(D31^2/532)*AV27*AV30*C14,"0") -> 0 | AW24: =IF(D14>0,(E31^2/532)*AW27*AW30*D14,"0") -> 0 | AX24: 0 | AY24: 0 | AZ24: 0 | BA24: 0 | BB24: 0 | BC24: 0 | BD24: 0 | BE24: 0 | BF24: 0 | BG24: 0 | BH24: 0 | BI24: 0 | BJ24: 0 | BK24: 0
A25: Large Dia | B25: Rebar Size (mm) | AA25: 12 MM | AB25: =IF(AA25>0,SUMIF($AV$34:$BJ$38,AA25,$BL$34:$BZ$38),"") -> 0 KG | AT25: Tie Rod-2 | AV25: =IF(C14>0,IF(D35>0,(D31^2/532)*AV28*D35*C14,"0"),"") ->  | AW25: =IF(D14>0,IF(E35>0,(E31^2/532)*AW28*E35*D14,"0"),"") ->  | BK25: 0
B26: Rebar Nos | AA26: 16 MM | AB26: 0 KG | AT26: Tie Rod-3 | AV26: =IF(C14>0,IF(D37>0,(D31^2/532)*AV29*D37*C14,"0"),"") ->  | AW26: =IF(D14>0,IF(E37>0,(E31^2/532)*AW29*E37*D14,"0"),"") ->  | BK26: 0
B27: Lapping (ft) | AA27: 20 MM | AB27: 0 KG | AT27: Tie-1 Rod nos | AV27: =IF(AND(AV31>0,C18>0),(C18/(AV31/12))+1,"0") -> 0 | AW27: =IF(D14>0,(D18/(AW31/12))+1,0) -> 0 Nos | AX27: 0 Nos | AY27: 0 Nos | AZ27: 0 Nos | BA27: 0 Nos | BB27: 0 Nos | BC27: 0 Nos | BD27: 0 Nos | BE27: 0 Nos | BF27: 0 Nos | BG27: 0 Nos | BH27: 0 Nos | BI27: 0 Nos | BJ27: 0 Nos | BK27: 0
A28: Small Dia | B28: Rebar Size (mm) | AT28: Tie-2 nos | AV28: =IF(C14>0,IF(D36>0,(C18/(D36/12))+1,0),"") ->  | AW28: =IF(D14>0,(D18/(E36/12))+1,0) -> 0 Nos | AX28: 0 Nos | AY28: 0 Nos | AZ28: 0 Nos | BA28: 0 Nos | BB28: 0 Nos | BC28: 0 Nos | BD28: 0 Nos | BE28: 0 Nos | BF28: 0 Nos | BG28: 0 Nos | BH28: 0 Nos | BI28: =IF(P14>0,(P18/(Q36/12))+1,0) -> 0 Nos | BJ28: =IF(Q14>0,(Q18/(R36/12))+1,0) -> 0 Nos | BK28: 0
B29: Rebar Nos | AT29: Tie-3 nos | AV29: =IF(C14>0,IF(D38>0,(C18/(D38/12))+1,0),"") ->  | AW29: =IF(D14>0,(D18/(E38/12))+1,0) -> 0 | AX29: 0 | AY29: 0 | AZ29: 0 | BA29: 0 | BB29: 0 | BC29: 0 | BD29: 0 | BE29: 0 | BF29: 0 | BG29: 0 | BH29: 0 | BI29: =IF(P14>0,(P18/(Q38/12))+1,0) -> 0 | BJ29: =IF(Q14>0,(Q18/(R38/12))+1,0) -> 0 | BK29: 0
B30: Lapping (ft) | AT30: Tie Length | AV30: =IF(C14>0,(((C15*2)-(C17*2))+((C16*2)-(C17*2))+(D34*2))/12,"") ->  | AW30: =IF(D14>0,(((D15*2)-(D17*2))+((D16*2)-(D17*2))+(E34*2))/12,"") ->  | BI30: =IF(P14>0,(((P15*2)-(P17*2))+((P16*2)-(P17*2))+(Q34*2))/12,"") ->  | BJ30: =IF(Q14>0,(((Q15*2)-(Q17*2))+((Q16*2)-(Q17*2))+(R34*2))/12,"") ->  | BK30: 0
A31: Tie Rod | B31: Rebar Size (mm) | AT31: Specing | AV31: =IF(C14>0,(D32+D33)/2,"") ->  | AW31: =IF(D14>0,(E32+E33)/2,"") ->  | BI31: =IF(P14>0,(Q32+Q33)/2,"") ->  | BJ31: =IF(Q14>0,(R32+R33)/2,"") ->  | BK31: 0
B32: Specing-1 (inch)
B33: Specing-2 (inch)
B34: Houck lenght (inch) | AT34: Large dia | AV34: =D25 -> 0 MM | AW34: 0 MM | AX34: 0 MM | AY34: 0 MM | AZ34: 0 MM | BA34: 0 MM | BB34: 0 MM | BC34: 0 MM | BD34: 0 MM | BE34: 0 MM | BF34: =N25 -> 0 MM | BG34: 0 MM | BH34: 0 MM | BI34: =Q25 -> 0 MM | BJ34: =R25 -> 0 MM | BL34: =IF(C14>0,AV22+$AB$14*AV22/100,"") ->  | BM34: =IF(D14>0,AW22+$AB$14*AW22/100,"") -> 
A35: Extra Tie -1 | B35: lenght (ft) | AT35: Small Dia | AV35: =D28 -> 0 MM | AW35: 0 MM | AX35: 0 MM | AY35: 0 MM | AZ35: 0 MM | BA35: 0 MM | BB35: 0 MM | BC35: 0 MM | BD35: 0 MM | BE35: 0 MM | BF35: =N28 -> 0 MM | BG35: 0 MM | BH35: 0 MM | BI35: =Q28 -> 0 MM | BJ35: =R28 -> 0 MM | BL35: =IF(C14>0,AV23+$AB$14*AV23/100,"") ->  | BM35: =IF(D14>0,AW23+$AB$14*AW23/100,"") -> 
B36: Specing (inch) | AT36: Tie Rod-1 | AV36: =D31 -> 0 MM | AW36: 0 MM | AX36: 0 MM | AY36: 0 MM | AZ36: 0 MM | BA36: 0 MM | BB36: 0 MM | BC36: 0 MM | BD36: 0 MM | BE36: 0 MM | BF36: =N31 -> 0 MM | BG36: 0 MM | BH36: 0 MM | BI36: =Q31 -> 0 MM | BJ36: =R31 -> 0 MM | BL36: =IF(C14>0,AV24+$AB$14*AV24/100,"") ->  | BM36: =IF(D14>0,AW24+$AB$14*AW24/100,"") -> 
A37: Extra Tie -2 | B37: lenght (ft) | AT37: Tie Rod-2 | AV37: =AV36 -> 0 MM | AW37: =AW36 -> 0 MM | AX37: 0 MM | AY37: 0 MM | AZ37: 0 MM | BA37: 0 MM | BB37: 0 MM | BC37: 0 MM | BD37: 0 MM | BE37: 0 MM | BF37: =BF36 -> 0 MM | BG37: 0 MM | BH37: 0 MM | BI37: 0 MM | BJ37: 0 MM | BL37: =IF(C14>0,AV25+$AB$14*AV25/100,"") ->  | BM37: =IF(D14>0,AW25+$AB$14*AW25/100,"") -> 
B38: Specing (inch) | AT38: Tie Rod-3 | AV38: =AV36 -> 0 MM | AW38: =AW36 -> 0 MM | AX38: 0 MM | AY38: 0 MM | AZ38: 0 MM | BA38: 0 MM | BB38: 0 MM | BC38: 0 MM | BD38: 0 MM | BE38: 0 MM | BF38: =BF36 -> 0 MM | BG38: 0 MM | BH38: 0 MM | BI38: 0 MM | BJ38: 0 MM | BL38: =IF(C14>0,AV26+$AB$14*AV26/100,"") ->  | BM38: =IF(D14>0,AW26+$AB$14*AW26/100,"") -> 

Sheet Long Circular Column (hidden)
A1: This is The Property of NOR DESIGN SOLUTION
A5: এক্সেল শীট বিষয়ক কিছু জানার থাকলে বা আপডেট নিয়ে কোন পরামর্শ থাকলে আমাদের সাথে যোগাযোগ করুন অথবা ওয়েবসাইটে কমেন্ট করুন
A6: এক্সেল শীট সম্পর্কে যাবতীয় তথ্য বিস্তারিত জানতে ভিজিট করুন আমাদের ইউটিউব চ্যানেলে
A8: Click Here To Watch The Long Circular Column Estimate video
A11: Long Circular Column Estimate | V11: Long Circular Column Estimate And Price
BI12: Cement | BJ12: Sand | BK12: Stone | BL12: Rod | BM12: Casting | BN12: Excavation | BO12: Sand Filling | BP12: Formwork | BQ12: Brick Nos | BR12: Bricl Flat Soling | BS12: C.c
A13: Description | C13: Type-1 | D13: Type-2 | E13: Type-3 | F13: Type-4 | G13: Type-5 | H13: Type-6 | I13: Type-7 | J13: Type-8 | K13: Type-9 | L13: Type-10 | M13: Type-11 | N13: Type-12 | O13: Type-13 | P13: Type-14 | Q13: Type-15 | V13: DESCRIPTION | Z13: Quantity | AB13: Wastage Add | AC13: Quantity (Wastage Add) | AE13: Rate | AG13: Amount TK | BI13: =AC14 -> 0 Bag | BJ13: =AC15 -> 0 CFT | BK13: =BV20+AB14*BV20/100 -> 0 | BL13: =AC17 -> 0.000 Ton | BM13: =AC19 -> 0 CFT | BP13: =AC18 -> 0 SFT | BQ13: =BV21+AB14*BV21/100 -> 0
A14: Column Nos | V14: Cement | Z14: =BV18 -> 0 Bag | AB14: 0 % ADD | AC14: =Z14+$AB$14*Z14/100 -> 0 Bag | AE14: 900.00 TK | AG14: =AC14*AE14 -> 0 TK
A15: Column Dia (inh) | V15: Sand | Z15: =BV19 -> 0 CFT | AC15: 0 CFT | AE15: 37.00 TK | AG15: =AC15*AE15 -> 0 TK
A16: Clear Cover (inh) | V16: Brick Nos | Z16: =VLOOKUP(V16,BX20:BY21,2,0) -> 0 | AC16: 0 | AE16: 140.00 TK | AG16: 0 TK
A17: Short Column Height, H (ft) | V17: Rod/Reber | Z17: =SUM(BV25:BV29)/1000 -> 0.000 Ton | AC17: 0.000 Ton | AE17: 780000.00 TK | AG17: 0 TK | BV17: Sum
V18: Formwork | Z18: =BV23 -> 0 SFT | AC18: 0 SFT | AE18: 15.00 TK | AG18: 0 TK | BE18: cement | BG18: =IF(C14>0,(BG22*$C$21*1.54)/($F$21*1.25),"") ->  | BV18: =SUM(BG18:BU18) -> 0 Bag
C19: Rcc casting Ratio | V19: Casting | Z19: =BV22 -> 0 CFT | AC19: 0 CFT | AE19: 16.00 TK | AG19: =AC19*AE19 -> 0 TK | BE19: sand | BG19: =IF(C14>0,(BG22*1.54*$D$21)/$F$21,"") ->  | BV19: =SUM(BG19:BU19) -> 0
AE20: Total Cost= | AG20: =SUM(AG14:AH19) -> 0 TK | BE20: Stone/Brik Chips | BG20: =IF(C14>0,(BG22*1.54*$E$21)/$F$21,"") ->  | BV20: 0 | BX20: Stone/Brik Chips | BY20: =BV20 -> 0
C21: 1 | D21: 1.5 | E21: 3 | F21: =SUM(C21:E21) -> 5.5 | BE21: Brick Nos | BG21: =IF(C14>0,BG20*9.5,"") ->  | BV21: 0 | BX21: Brick Nos | BY21: =BV21 -> 0
BE22: Casting | BG22: =IF(C14>0,C17*(3.1416*((C15/12)^2)/4)*C14,"") ->  | BV22: 0
A23: Column Rebar calculation | D23: Type-1 | E23: Type-2 | F23: Type-3 | G23: Type-4 | H23: Type-5 | I23: Type-6 | J23: Type-7 | K23: Type-8 | L23: Type-9 | M23: Type-10 | N23: Type-11 | O23: Type-12 | P23: Type-13 | Q23: Type-14 | R23: Type-15 | Z23: Reinforcement | BE23: Framwork | BG23: =IF(C14>0,(C17*(3.1416*(C15/12))*C14),"") ->  | BV23: 0
A24: Large Dia | B24: Rebar Size (mm) | AA24: 8 MM | AB24: =IF(AA24>0,SUMIF($BG$36:$BU$40,AA24,$BW$36:$CK$40)+$AB$14*SUMIF($BG$36:$BU$40,AA24,$BW$36:$CK$40)/100,"") -> 0 KG | BE24: Large and small dia (L) | BG24: =IF(C14>0,(C17+D26),"") ->  | BV24: 0
B25: Rebar Nos | AA25: 10 MM | AB25: =IF(AA25>0,SUMIF($BG$36:$BU$40,AA25,$BW$36:$CK$40)+$AB$14*SUMIF($BG$36:$BU$40,AA25,$BW$36:$CK$40)/100,"") -> 0 KG | BE25: Large dia | BG25: =IF(C14>0,(D24^2/532)*D25*BG24*C14,"") ->  | BV25: 0
B26: Lapping (ft) | AA26: 12 MM | AB26: =IF(AA26>0,SUMIF($BG$36:$BU$40,AA26,$BW$36:$CK$40)+$AB$14*SUMIF($BG$36:$BU$40,AA26,$BW$36:$CK$40)/100,"") -> 0 KG | BE26: Small Dia | BG26: =IF(C14>0,(D27^2/532)*D28*BG24*C14,"") ->  | BV26: 0
A27: Small Dia | B27: Rebar Size (mm) | AA27: 16 MM | AB27: 0 KG | BE27: Tie Rod | BG27: =IF(C14>0,(D30^2/532)*BG30*BG33*C14,"0") -> 0 | BH27: =IF(D14>0,(E30^2/532)*BH30*BH33*D14,"0") -> 0 | BI27: 0 | BJ27: 0 | BK27: 0 | BL27: 0 | BM27: 0 | BN27: 0 | BO27: 0 | BP27: 0 | BQ27: 0 | BR27: 0 | BS27: 0 | BT27: 0 | BU27: 0 | BV27: 0
B28: Rebar Nos | AA28: 20 MM | AB28: 0 KG | BE28: Extra Tie -1 | BG28: =IF(C14>0,IF(D35>0,(D30^2/532)*BG31*D34*C14,"0"),"") ->  | BH28: =IF(D14>0,IF(E35>0,(E30^2/532)*BH31*E34*D14,"0"),"") ->  | BV28: 0
B29: Lapping (ft) | AA29: 22 MM | AB29: 0 KG | BE29: Extra Tie -2 | BG29: =IF(C14>0,IF(D37>0,(D30^2/532)*BG32*D36*C14,"0"),"") ->  | BH29: =IF(D14>0,IF(E37>0,(E30^2/532)*BH32*E36*D14,"0"),"") ->  | BV29: 0
A30: Tie Rod | B30: Rebar Size (mm) | AA30: 25 MM | AB30: 0 KG | BE30: Tie- Rod nos | BG30: =IF(C14>0,IF(D31>0,((C17*12)/BG34),0),"") ->  | BV30: 0
B31: Specing-1 (inch) | AA31: 28 MM | AB31: 0 KG | BE31: Tie-1 Rod nos | BG31: =IF(C14>0,IF(D35>0,((C17*12)/D35),0),"") ->  | BV31: 0
B32: Specing-2 (inch) | AA32: 32 MM | AB32: 0 KG | BE32: Tie-2 Rod nos | BG32: =IF(C14>0,IF(D37>0,((C17*12)/D37),0),"") ->  | BV32: 0
B33: Houck lenght (inch) | BE33: Tie Length | BG33: =IF(C14>0,3.1416*(C15-C16-C16+D33+D33)/12,"") ->  | BV33: 0
A34: Extra Tie -1 | B34: lenght (ft) | BE34: Tie Specing | BG34: =IF(C14>0,(D31+D32)/2,"") ->  | BV34: 0
B35: Specing (inch)
A36: Extra Tie -2 | B36: lenght (ft) | BE36: Large dia | BG36: =D24 -> 0 MM | BH36: 0 MM | BI36: 0 MM | BJ36: 0 MM | BK36: 0 MM | BL36: 0 MM | BM36: 0 MM | BN36: 0 MM | BO36: 0 MM | BP36: 0 MM | BQ36: 0 MM | BR36: 0 MM | BS36: 0 MM | BT36: 0 MM | BU36: 0 MM | BW36: =IF(C14>0,BG25+$AB$14*BG25/100,"") ->  | BX36: =IF(D14>0,BH25+$AB$14*BH25/100,"") -> 
B37: Specing (inch) | BE37: Small Dia | BG37: =D27 -> 0 MM | BH37: 0 MM | BI37: 0 MM | BJ37: 0 MM | BK37: 0 MM | BL37: 0 MM | BM37: 0 MM | BN37: 0 MM | BO37: 0 MM | BP37: 0 MM | BQ37: 0 MM | BR37: 0 MM | BS37: 0 MM | BT37: 0 MM | BU37: 0 MM | BW37: =IF(C14>0,BG26+$AB$14*BG26/100,"") ->  | BX37: =IF(D14>0,BH26+$AB$14*BH26/100,"") -> 
BE38: Tie Rod-1 | BG38: =D30 -> 0 MM | BH38: 0 MM | BI38: 0 MM | BJ38: 0 MM | BK38: 0 MM | BL38: 0 MM | BM38: 0 MM | BN38: 0 MM | BO38: 0 MM | BP38: 0 MM | BQ38: 0 MM | BR38: 0 MM | BS38: 0 MM | BT38: 0 MM | BU38: 0 MM | BW38: =IF(C14>0,BG27+$AB$14*BG27/100,"") ->  | BX38: =IF(D14>0,BH27+$AB$14*BH27/100,"") -> 
BE39: Tie Rod-2 | BG39: =BG38 -> 0 MM | BH39: =BH38 -> 0 MM | BI39: 0 MM | BJ39: 0 MM | BK39: 0 MM | BL39: 0 MM | BM39: 0 MM | BN39: 0 MM | BO39: 0 MM | BP39: 0 MM | BQ39: 0 MM | BR39: 0 MM | BS39: 0 MM | BT39: 0 MM | BU39: 0 MM | BW39: =IF(C14>0,BG28+$AB$14*BG28/100,"") ->  | BX39: =IF(D14>0,BH28+$AB$14*BH28/100,"") -> 
BE40: Tie Rod-3 | BG40: =BG38 -> 0 MM | BH40: =BH38 -> 0 MM | BI40: 0 MM | BJ40: 0 MM | BK40: 0 MM | BL40: 0 MM | BM40: 0 MM | BN40: 0 MM | BO40: 0 MM | BP40: 0 MM | BQ40: 0 MM | BR40: 0 MM | BS40: 0 MM | BT40: 0 MM | BU40: 0 MM | BW40: =IF(C14>0,BG29+$AB$14*BG29/100,"") ->  | BX40: =IF(D14>0,BH29+$AB$14*BH29/100,"") -> 

Sheet Grade Beam (hidden)
A1: This is The Property of NOR DESIGN SOLUTION
A6: এক্সেল শীট বিষয়ক কিছু জানার থাকলে বা আপডেট নিয়ে কোন পরামর্শ থাকলে আমাদের সাথে যোগাযোগ করুন অথবা ওয়েবসাইটে কমেন্ট করুন
A7: এক্সেল শীট সম্পর্কে যাবতীয় তথ্য বিস্তারিত জানতে ভিজিট করুন আমাদের ইউটিউব চ্যানেলে
A9: Click Here To Watch The Grade Beam Estimate video
A12: Gread Beam Estimate | V12: Gread Beam Estimate and Price | AW12: Cement | AX12: Sand | AY12: Stone | AZ12: Rod | BA12: Casting | BB12: Excavation | BC12: Sand Filling | BD12: Formwork | BE12: Brick Nos | BF12: Bricl Flat Soling | BG12: C.c
AW13: =AC15 -> 0 Bag | AX13: =AC16 -> 0 CFT | AY13: =BJ18+AB15*BJ18/100 -> 0 | AZ13: =AC18 -> 0.000 Ton | BA13: =AC22 -> 0 CFT | BC13: =AC19 -> 0 CFT | BD13: =Z21 -> 0 SFT | BE13: =BJ19+AB15*BJ19/100 -> 0 | BF13: =AC20 -> 0 Nos
A14: Description | C14: Type-1 | D14: Type-2 | E14: Type-3 | F14: Type-4 | G14: Type-5 | H14: Type-6 | I14: Type-7 | J14: Type-8 | K14: Type-9 | L14: Type-10 | M14: Type-11 | N14: Type-12 | O14: Type-13 | P14: Type-14 | Q14: Type-15 | V14: DESCRIPTION | Z14: Quantity | AB14: Wastage Add | AC14: Quantity (Wastage Add) | AE14: Rate | AG14: Amount TK
A15: Beam Nos | V15: Cement | Z15: =BJ16 -> 0 Bag | AB15: 0 % ADD | AC15: =Z15+$AB$15*Z15/100 -> 0 Bag | AE15: 600.00 TK | AG15: =AC15*AE15 -> 0 TK | BJ15: Sum
A16: Beam Height,H (inch) | V16: Sand | Z16: =BJ17 -> 0 CFT | AC16: 0 CFT | AE16: 45.00 TK | AG16: 0 TK | AS16: Cement | AU16: =IF(C15>0,(AU20*$D$25*1.54)/($G$25*1.25),"") ->  | AV16: =IF(D15>0,(AV20*$D$25*1.54)/($G$25*1.25),"") ->  | AW16: =IF(E15>0,(AW20*$D$25*1.54)/($G$25*1.25),"") ->  | AX16: =IF(F15>0,(AX20*$D$25*1.54)/($G$25*1.25),"") ->  | AY16: =IF(G15>0,(AY20*$D$25*1.54)/($G$25*1.25),"") ->  | AZ16: =IF(H15>0,(AZ20*$D$25*1.54)/($G$25*1.25),"") ->  | BA16: =IF(I15>0,(BA20*$D$25*1.54)/($G$25*1.25),"") ->  | BB16: =IF(J15>0,(BB20*$D$25*1.54)/($G$25*1.25),"") ->  | BC16: =IF(K15>0,(BC20*$D$25*1.54)/($G$25*1.25),"") ->  | BD16: =IF(L15>0,(BD20*$D$25*1.54)/($G$25*1.25),"") ->  | BE16: =IF(M15>0,(BE20*$D$25*1.54)/($G$25*1.25),"") ->  | BF16: =IF(N15>0,(BF20*$D$25*1.54)/($G$25*1.25),"") ->  | BG16: =IF(O15>0,(BG20*$D$25*1.54)/($G$25*1.25),"") ->  | BH16: =IF(P15>0,(BH20*$D$25*1.54)/($G$25*1.25),"") ->  | BI16: =IF(Q15>0,(BI20*$D$25*1.54)/($G$25*1.25),"") ->  | BJ16: =SUM(AU16:BI16) -> 0 Bag
A17: Beam Breadth,B (inch) | V17: Stone/Brick Chips | Z17: =VLOOKUP(V17,BM22:BN23,2,0) -> 0 | AC17: 0 | AE17: 12.00 TK | AG17: 0 TK | AS17: Sand | AU17: =IF(C15>0,(AU20*1.54*$E$25)/$G$25,"") ->  | AV17: =IF(D15>0,(AV20*1.54*$E$25)/$G$25,"") ->  | AW17: =IF(E15>0,(AW20*1.54*$E$25)/$G$25,"") ->  | AX17: =IF(F15>0,(AX20*1.54*$E$25)/$G$25,"") ->  | AY17: =IF(G15>0,(AY20*1.54*$E$25)/$G$25,"") ->  | AZ17: =IF(H15>0,(AZ20*1.54*$E$25)/$G$25,"") ->  | BA17: =IF(I15>0,(BA20*1.54*$E$25)/$G$25,"") ->  | BB17: =IF(J15>0,(BB20*1.54*$E$25)/$G$25,"") ->  | BC17: =IF(K15>0,(BC20*1.54*$E$25)/$G$25,"") ->  | BD17: =IF(L15>0,(BD20*1.54*$E$25)/$G$25,"") ->  | BE17: =IF(M15>0,(BE20*1.54*$E$25)/$G$25,"") ->  | BF17: =IF(N15>0,(BF20*1.54*$E$25)/$G$25,"") ->  | BG17: =IF(O15>0,(BG20*1.54*$E$25)/$G$25,"") ->  | BH17: =IF(P15>0,(BH20*1.54*$E$25)/$G$25,"") ->  | BI17: =IF(Q15>0,(BI20*1.54*$E$25)/$G$25,"") ->  | BJ17: =SUM(AU17:BI17) -> 0
A18: Total Beam Length,L (ft) | V18: Rod/Reber | Z18: =SUM(BJ24:BK30)/1000 -> 0.000 Ton | AC18: 0.000 Ton | AE18: 100000.00 TK | AG18: 0 TK | AS18: Stone/Brick Chips | AU18: =IF(C15>0,(AU20*1.54*$F$25)/$G$25,"") ->  | AV18: =IF(D15>0,(AV20*1.54*$F$25)/$G$25,"") ->  | AW18: =IF(E15>0,(AW20*1.54*$F$25)/$G$25,"") ->  | AX18: =IF(F15>0,(AX20*1.54*$F$25)/$G$25,"") ->  | AY18: =IF(G15>0,(AY20*1.54*$F$25)/$G$25,"") ->  | AZ18: =IF(H15>0,(AZ20*1.54*$F$25)/$G$25,"") ->  | BA18: =IF(I15>0,(BA20*1.54*$F$25)/$G$25,"") ->  | BB18: =IF(J15>0,(BB20*1.54*$F$25)/$G$25,"") ->  | BC18: =IF(K15>0,(BC20*1.54*$F$25)/$G$25,"") ->  | BD18: =IF(L15>0,(BD20*1.54*$F$25)/$G$25,"") ->  | BE18: =IF(M15>0,(BE20*1.54*$F$25)/$G$25,"") ->  | BF18: =IF(N15>0,(BF20*1.54*$F$25)/$G$25,"") ->  | BG18: =IF(O15>0,(BG20*1.54*$F$25)/$G$25,"") ->  | BH18: =IF(P15>0,(BH20*1.54*$F$25)/$G$25,"") ->  | BI18: =IF(Q15>0,(BI20*1.54*$F$25)/$G$25,"") ->  | BJ18: 0
A19: (-) All Column Size (ft) | V19: Sand Fill | Z19: =BJ22 -> 0 CFT | AC19: 0 CFT | AE19: 45.00 TK | AG19: 0 TK | AS19: Brick Nos | AU19: =IF(C15>0,AU18*9.5,"") ->  | AV19: =IF(D15>0,AV18*9.5,"") ->  | AW19: =IF(E15>0,AW18*9.5,"") ->  | AX19: =IF(F15>0,AX18*9.5,"") ->  | AY19: =IF(G15>0,AY18*9.5,"") ->  | AZ19: =IF(H15>0,AZ18*9.5,"") ->  | BA19: =IF(I15>0,BA18*9.5,"") ->  | BB19: =IF(J15>0,BB18*9.5,"") ->  | BC19: =IF(K15>0,BC18*9.5,"") ->  | BD19: =IF(L15>0,BD18*9.5,"") ->  | BE19: =IF(M15>0,BE18*9.5,"") ->  | BF19: =IF(N15>0,BF18*9.5,"") ->  | BG19: =IF(O15>0,BG18*9.5,"") ->  | BH19: =IF(P15>0,BH18*9.5,"") ->  | BI19: =IF(Q15>0,BI18*9.5,"") ->  | BJ19: 0 | CH19: 3.00' | CK19: 14.83 ' | CN19: 8.25 ' | CR19: 14.83 ' | CU19: 3.00'
A20: Brick Flat Soling (inch) | V20: Brick Flat soling | Z20: =BJ21*3 -> 0 Nos | AC20: 0 Nos | AE20: 10.00 TK | AG20: 0 TK | AS20: Casting | AU20: =IF(C15>0,((C16/12)*(C17/12)*(C18-C19)*C15),"") ->  | AV20: =IF(D15>0,((D16/12)*(D17/12)*(D18-D19)*D15),"") ->  | AW20: =IF(E15>0,((E16/12)*(E17/12)*(E18-E19)*E15),"") ->  | AX20: =IF(F15>0,((F16/12)*(F17/12)*(F18-F19)*F15),"") ->  | AY20: =IF(G15>0,((G16/12)*(G17/12)*(G18-G19)*G15),"") ->  | AZ20: =IF(H15>0,((H16/12)*(H17/12)*(H18-H19)*H15),"") ->  | BA20: =IF(I15>0,((I16/12)*(I17/12)*(I18-I19)*I15),"") ->  | BB20: =IF(J15>0,((J16/12)*(J17/12)*(J18-J19)*J15),"") ->  | BC20: =IF(K15>0,((K16/12)*(K17/12)*(K18-K19)*K15),"") ->  | BD20: =IF(L15>0,((L16/12)*(L17/12)*(L18-L19)*L15),"") ->  | BE20: =IF(M15>0,((M16/12)*(M17/12)*(M18-M19)*M15),"") ->  | BF20: =IF(N15>0,((N16/12)*(N17/12)*(N18-N19)*N15),"") ->  | BG20: =IF(O15>0,((O16/12)*(O17/12)*(O18-O19)*O15),"") ->  | BH20: =IF(P15>0,((P16/12)*(P17/12)*(P18-P19)*P15),"") ->  | BI20: =IF(Q15>0,((Q16/12)*(Q17/12)*(Q18-Q19)*Q15),"") ->  | BJ20: 0
A21: Sand Filling (inch) | V21: Formwork | Z21: =BJ23 -> 0 SFT | AC21: 0 SFT | AE21: 36.00 TK | AG21: 0 TK | AS21: Brick Flat | AU21: =IF(C15>0,IF(C20>0,(((C16/12)*(C18-C19)*C15)),"0"),"0") -> 0 | AV21: =IF(D15>0,IF(D20>0,(((D16/12)*(D18-D19)*D15)),"0"),"0") -> 0 | AW21: 0 | AX21: 0 | AY21: 0 | AZ21: 0 | BA21: 0 | BB21: 0 | BC21: 0 | BD21: 0 | BE21: 0 | BF21: 0 | BG21: 0 | BH21: 0 | BI21: 0 | BJ21: 0 | CI21: =(CK19/3)+CH19 -> 7.94 ' | CM21: =(CK19/3)+(CN19/3) -> 7.69 ' | CP21: =(CN19/3)+(CR19/3) -> 7.69 ' | CT21: =(CR19/3)+CU19 -> 7.94 '
V22: Casting | Z22: =BJ20 -> 0 CFT | AC22: 0 CFT | AE22: 37.00 TK | AG22: =AC22*AE22 -> 0 TK | AS22: Sand Filling | AU22: =IF('Grade Beam'!C15>0,IF('Grade Beam'!C21>0,((('Grade Beam'!C16/12)*('Grade Beam'!C21/12))*('Grade Beam'!C18-'Grade Beam'!C19)*'Grade Beam'!C15),""),"") ->  | AV22: =IF('Grade Beam'!D15>0,IF('Grade Beam'!D21>0,((('Grade Beam'!D16/12)*('Grade Beam'!D21/12))*('Grade Beam'!D18-'Grade Beam'!D19)*'Grade Beam'!D15),""),"") ->  | AW22: =IF('Grade Beam'!E15>0,IF('Grade Beam'!E21>0,((('Grade Beam'!E16/12)*('Grade Beam'!E21/12))*('Grade Beam'!E18-'Grade Beam'!E19)*'Grade Beam'!E15),""),"") ->  | AX22: =IF('Grade Beam'!F15>0,IF('Grade Beam'!F21>0,((('Grade Beam'!F16/12)*('Grade Beam'!F21/12))*('Grade Beam'!F18-'Grade Beam'!F19)*'Grade Beam'!F15),""),"") ->  | AY22: =IF('Grade Beam'!G15>0,IF('Grade Beam'!G21>0,((('Grade Beam'!G16/12)*('Grade Beam'!G21/12))*('Grade Beam'!G18-'Grade Beam'!G19)*'Grade Beam'!G15),""),"") ->  | AZ22: =IF('Grade Beam'!H15>0,IF('Grade Beam'!H21>0,((('Grade Beam'!H16/12)*('Grade Beam'!H21/12))*('Grade Beam'!H18-'Grade Beam'!H19)*'Grade Beam'!H15),""),"") ->  | BA22: =IF('Grade Beam'!I15>0,IF('Grade Beam'!I21>0,((('Grade Beam'!I16/12)*('Grade Beam'!I21/12))*('Grade Beam'!I18-'Grade Beam'!I19)*'Grade Beam'!I15),""),"") ->  | BB22: =IF('Grade Beam'!J15>0,IF('Grade Beam'!J21>0,((('Grade Beam'!J16/12)*('Grade Beam'!J21/12))*('Grade Beam'!J18-'Grade Beam'!J19)*'Grade Beam'!J15),""),"") ->  | BC22: =IF('Grade Beam'!K15>0,IF('Grade Beam'!K21>0,((('Grade Beam'!K16/12)*('Grade Beam'!K21/12))*('Grade Beam'!K18-'Grade Beam'!K19)*'Grade Beam'!K15),""),"") ->  | BD22: =IF('Grade Beam'!L15>0,IF('Grade Beam'!L21>0,((('Grade Beam'!L16/12)*('Grade Beam'!L21/12))*('Grade Beam'!L18-'Grade Beam'!L19)*'Grade Beam'!L15),""),"") ->  | BE22: =IF('Grade Beam'!M15>0,IF('Grade Beam'!M21>0,((('Grade Beam'!M16/12)*('Grade Beam'!M21/12))*('Grade Beam'!M18-'Grade Beam'!M19)*'Grade Beam'!M15),""),"") ->  | BF22: =IF('Grade Beam'!N15>0,IF('Grade Beam'!N21>0,((('Grade Beam'!N16/12)*('Grade Beam'!N21/12))*('Grade Beam'!N18-'Grade Beam'!N19)*'Grade Beam'!N15),""),"") ->  | BG22: =IF('Grade Beam'!O15>0,IF('Grade Beam'!O21>0,((('Grade Beam'!O16/12)*('Grade Beam'!O21/12))*('Grade Beam'!O18-'Grade Beam'!O19)*'Grade Beam'!O15),""),"") ->  | BH22: =IF('Grade Beam'!P15>0,IF('Grade Beam'!P21>0,((('Grade Beam'!P16/12)*('Grade Beam'!P21/12))*('Grade Beam'!P18-'Grade Beam'!P19)*'Grade Beam'!P15),""),"") ->  | BI22: =IF('Grade Beam'!Q15>0,IF('Grade Beam'!Q21>0,((('Grade Beam'!Q16/12)*('Grade Beam'!Q21/12))*('Grade Beam'!Q18-'Grade Beam'!Q19)*'Grade Beam'!Q15),""),"") ->  | BJ22: =SUM('Grade Beam'!AU22:BI22) -> 0 | BM22: Stone/Brick Chips | BN22: =BJ18 -> 0 | CI22: A | CM22: B | CP22: C | CT22: D
D23: Rcc casting Ratio | AE23: Total Cost= | AG23: =SUM(AG15:AH22) -> 0 TK | AS23: Formwork | AU23: =IF(C15>0,((C18-C19)*(C16+C16)/12)*C15+((C18-C19)*C17/12*C15),"") ->  | AV23: =IF(D15>0,((D18-D19)*(D16+D16)/12)*D15+((D18-D19)*D17/12*D15),"") ->  | AW23: =IF(E15>0,((E18-E19)*(E16+E16)/12)*E15+((E18-E19)*E17/12*E15),"") ->  | AX23: =IF(F15>0,((F18-F19)*(F16+F16)/12)*F15+((F18-F19)*F17/12*F15),"") ->  | AY23: =IF(G15>0,((G18-G19)*(G16+G16)/12)*G15+((G18-G19)*G17/12*G15),"") ->  | AZ23: =IF(H15>0,((H18-H19)*(H16+H16)/12)*H15+((H18-H19)*H17/12*H15),"") ->  | BA23: =IF(I15>0,((I18-I19)*(I16+I16)/12)*I15+((I18-I19)*I17/12*I15),"") ->  | BB23: =IF(J15>0,((J18-J19)*(J16+J16)/12)*J15+((J18-J19)*J17/12*J15),"") ->  | BC23: =IF(K15>0,((K18-K19)*(K16+K16)/12)*K15+((K18-K19)*K17/12*K15),"") ->  | BD23: =IF(L15>0,((L18-L19)*(L16+L16)/12)*L15+((L18-L19)*L17/12*L15),"") ->  | BE23: =IF(M15>0,((M18-M19)*(M16+M16)/12)*M15+((M18-M19)*M17/12*M15),"") ->  | BF23: =IF(N15>0,((N18-N19)*(N16+N16)/12)*N15+((N18-N19)*N17/12*N15),"") ->  | BG23: =IF(O15>0,((O18-O19)*(O16+O16)/12)*O15+((O18-O19)*O17/12*O15),"") ->  | BH23: =IF(P15>0,((P18-P19)*(P16+P16)/12)*P15+((P18-P19)*P17/12*P15),"") ->  | BI23: =IF(Q15>0,((Q18-Q19)*(Q16+Q16)/12)*Q15+((Q18-Q19)*Q17/12*Q15),"") ->  | BJ23: 0 | BM23: Brick Nos | BN23: =BJ19 -> 0 | CI23: SG+BN16:BY22
AS24: Large Dia | AU24: =IF(C15>0,(D28^2/532)*D29*(C18-(4*D38/12)+(2*D37/12))*C15,"") ->  | AV24: =IF(D15>0,(E28^2/532)*E29*(D18-(4*E38/12)+(2*E37/12))*D15,"") ->  | BJ24: 0
D25: 1 | E25: 1.5 | F25: 3 | G25: =SUM(D25:F25) -> 5.5 | AS25: Small Dia | AU25: =IF(OR(C15>0,D31>0),(D31^2/532)*D32*(C18-(4*D38/12)+(2*D37/12))*C15,"0") -> 0 | AV25: =IF(OR(D15>0,E31>0),(E31^2/532)*E32*(D18-(4*E38/12)+(2*E37/12))*D15,"0") -> 0 | AW25: 0 | AX25: 0 | AY25: 0 | AZ25: 0 | BA25: 0 | BB25: 0 | BC25: 0 | BD25: 0 | BE25: 0 | BF25: 0 | BG25: 0 | BH25: 0 | BI25: 0 | BJ25: 0 | CN25: A+B+C+D
Z26: Reinforcement | AS26: Medial Dia | AU26: =IF(AND(C15>0,D34>0),(D34^2/532)*D35*(C18-(4*D38/12)+(2*D37/12))*C15,"0") -> 0 | AV26: =IF(AND(D15>0,E34>0),(E34^2/532)*E35*(D18-(4*E38/12)+(2*E37/12))*D15,"0") -> 0 | AW26: 0 | AX26: 0 | AY26: 0 | AZ26: 0 | BA26: 0 | BB26: 0 | BC26: 0 | BD26: 0 | BE26: 0 | BF26: 0 | BG26: 0 | BH26: 0 | BI26: 0 | BJ26: 0 | CN26: =CI21+CM21+CP21+CT21 -> 31.27 '
A27: Beam Rebar Calculation | D27: Type-1 | E27: Type-2 | F27: Type-3 | G27: Type-4 | H27: Type-5 | I27: Type-6 | J27: Type-7 | K27: Type-8 | L27: Type-9 | M27: Type-10 | N27: Type-11 | O27: Type-12 | P27: Type-13 | Q27: Type-14 | R27: Type-15 | AA27: 10 MM | AB27: =IF(AA27>0,SUMIF($AU$39:$BI$45,AA27,$BK$39:$BY$45),"") -> 0 KG | AS27: Extra Top | AU27: =IF(C15>0,IF(D41>0,(D39^2/532)*D40*D41*C15+(2*D37/12),""),"") ->  | AV27: =IF(D15>0,IF(E41>0,(E39^2/532)*E40*E41*D15+(2*E37/12),""),"") ->  | BJ27: 0
A28: Large Dia | B28: Rebar Size (mm) | AA28: 12 MM | AB28: =IF(AA28>0,SUMIF($AU$39:$BI$45,AA28,$BK$39:$BY$45),"") -> 0 KG | AS28: Extra Bottom | AU28: =IF(C15>0,IF(D42>0,(D42^2/532)*D43*D44*C15+(2*D37/12),"0"),"0") -> 0 | AV28: =IF(D15>0,IF(E42>0,(E42^2/532)*E43*E44*D15+(2*E37/12),"0"),"0") -> 0 | AW28: 0 | AX28: 0 | AY28: 0 | AZ28: 0 | BA28: 0 | BB28: 0 | BC28: 0 | BD28: 0 | BE28: 0 | BF28: 0 | BG28: 0 | BH28: 0 | BI28: 0 | BJ28: 0
B29: Rebar Nos | AA29: 16 MM | AB29: 0 KG | AS29: Sttriup-1 | AU29: =IF(C15>0,IF(D45>0,(D45^2/532)*AU31*AU32*C15,"0"),"") ->  | AV29: =IF(D15>0,IF(E45>0,(E45^2/532)*AV31*AV32*D15,"0"),"") ->  | BJ29: 0
B30: Lapping (ft) | AA30: 20 MM | AB30: 0 KG | AS30: Sttriup-2 | AU30: =IF(D49>0,(D49^2/532)*AU34*AU35*C15,"0") -> 0 | AV30: =IF(E49>0,(E49^2/532)*AV34*AV35*D15,"0") -> 0 | AW30: 0 | AX30: 0 | AY30: 0 | AZ30: 0 | BA30: 0 | BB30: 0 | BC30: 0 | BD30: 0 | BE30: 0 | BF30: 0 | BG30: 0 | BH30: 0 | BI30: 0 | BJ30: 0
A31: Small Dia | B31: Rebar Size (mm) | AS31: Sttriup-1 Nos | AU31: =IF(AND(C15>0,D45>0),(C18-C19)/(AU33/12)+1,"0") -> 0 | AV31: =IF(AND(D15>0,E45>0),(D18-D19)/(AV33/12)+1,"0") -> 0 | AW31: 0 | AX31: 0 | AY31: 0 | AZ31: 0 | BA31: 0 | BB31: 0 | BC31: 0 | BD31: 0 | BE31: 0 | BF31: 0 | BG31: 0 | BH31: 0 | BI31: 0 | BJ31: 0
B32: Rebar Nos | AS32: Sttriup-1 (L) | AU32: =IF(C15>0,(((2*C16)+(2*C17))-(D38*8)+(D48*2))/12,"") ->  | AV32: =IF(D15>0,(((2*D16)+(2*D17))-(E38*8)+(E48*2))/12,"") ->  | BJ32: 0 | CM32: Name | CN32: NOS | CO32: A+B+C+D
B33: Lapping (ft) | AS33: Sttriup-1 (c/c) | AU33: =IF(C15>0,(D46+D47)/2,"") ->  | AV33: =IF(D15>0,(E46+E47)/2,"") ->  | BJ33: 0 | CM33: GB-1 | CN33: 1 | CO33: =IF(CN33>0,(CI21+CM21+CP21+CT21)*CN33,"") -> 31.27 '
A34: Medial Bar | B34: Rebar Size (mm) | AS34: Sttriup-2 Nos | AU34: =IF(D50>0,(C18-C19)/(D50/12)+1,"0") -> 0 | AV34: =IF(E50>0,(D18-D19)/(E50/12)+1,"0") -> 0 | AW34: 0 | AX34: 0 | AY34: 0 | AZ34: 0 | BA34: 0 | BB34: 0 | BC34: 0 | BD34: 0 | BE34: 0 | BF34: 0 | BG34: 0 | BH34: 0 | BI34: 0 | BJ34: 0 | CM34: GB-2 | CO34: =IF(CN34>0,(CI22+CM22+CP22+CT22)*CN34,"") -> 
B35: Rebar Nos | AS35: Sttriup-2 (L) | AU35: =IF(C15>0,(((2*C16)+(2*C17))-(D38*8)+(D51*2))/12,"") ->  | AV35: =IF(D15>0,(((2*D16)+(2*D17))-(E38*8)+(E51*2))/12,"") ->  | BJ35: 0 | CM35: GB-3 | CO35: =IF(CN35>0,(CI23+CM23+CP23+CT23)*CN35,"") -> 
B36: Lapping (ft) | AS36: Sttriup-2 (c/c) | BJ36: 0 | BQ36: =SUM(BK42:BY45) -> 0 KG | CM36: GB-4 | CO36: =IF(CN36>0,(CI24+CM24+CP24+CT24)*CN36,"") -> 
A37: Development length (inh) | CM37: GB-5 | CO37: =IF(CN37>0,(CI25+CM25+CP25+CT25)*CN37,"") -> 
A38: Clear Cover (inh) | CM38: GB-6 | CO38: =IF(CN38>0,(CM32+CM26+CP26+CT26)*CN38,"") -> 
A39: Extra Top | B39: Rebar Size (mm) | AS39: Large Dia | AU39: =D28 -> 0 MM | AV39: =E28 -> 0 MM | AW39: 0 MM | AX39: 0 MM | AY39: 0 MM | AZ39: 0 MM | BA39: 0 MM | BB39: 0 MM | BC39: 0 MM | BD39: 0 MM | BE39: 0 MM | BF39: 0 MM | BG39: 0 MM | BH39: 0 MM | BI39: 0 MM | BK39: =IF(C15>0,AU24+$AB$15*AU24/100,"") ->  | BL39: =IF(D15>0,AV24+$AB$15*AV24/100,"") ->  | CM39: GB-7 | CO39: =IF(CN39>0,(CM33+CM27+CP27+CT27)*CN39,"") -> 
B40: Rebar Nos | AS40: Small Dia | AU40: =D31 -> 0 MM | AV40: =E31 -> 0 MM | AW40: 0 MM | AX40: 0 MM | AY40: 0 MM | AZ40: 0 MM | BA40: 0 MM | BB40: 0 MM | BC40: 0 MM | BD40: 0 MM | BE40: 0 MM | BF40: 0 MM | BG40: 0 MM | BH40: 0 MM | BI40: 0 MM | BK40: =IF(C15>0,AU25+$AB$15*AU25/100,"") ->  | BL40: =IF(D15>0,AV25+$AB$15*AV25/100,"") ->  | CM40: GB-8 | CO40: =IF(CN40>0,(CM34+CM28+CP28+CT28)*CN40,"") -> 
B41: Length (ft) | AS41: Medial Dia | AU41: =D34 -> 0 MM | AV41: =E34 -> 0 MM | AW41: 0 MM | AX41: 0 MM | AY41: 0 MM | AZ41: 0 MM | BA41: 0 MM | BB41: 0 MM | BC41: 0 MM | BD41: 0 MM | BE41: 0 MM | BF41: 0 MM | BG41: 0 MM | BH41: 0 MM | BI41: 0 MM | BK41: =IF(C15>0,AU26+$AB$15*AU26/100,"") ->  | BL41: =IF(D15>0,AV26+$AB$15*AV26/100,"") ->  | CM41: GB-9 | CO41: =IF(CN41>0,(CM35+CM29+CP29+CT29)*CN41,"") -> 
A42: Extra Bottom | B42: Rebar Size (mm) | AS42: Extra Top | AU42: =D39 -> 0 MM | AV42: =E39 -> 0 MM | AW42: 0 MM | AX42: 0 MM | AY42: 0 MM | AZ42: 0 MM | BA42: 0 MM | BB42: 0 MM | BC42: 0 MM | BD42: 0 MM | BE42: 0 MM | BF42: 0 MM | BG42: 0 MM | BH42: 0 MM | BI42: 0 MM | BK42: =IF(C15>0,AU27+$AB$15*AU27/100,"") ->  | BL42: =IF(D15>0,AV27+$AB$15*AV27/100,"") ->  | CM42: GB-10 | CO42: =IF(CN42>0,(CM36+CM30+CP30+CT30)*CN42,"") -> 
B43: Rebar Nos | AS43: Extra Bottom | AU43: =D42 -> 0 MM | AV43: =E42 -> 0 MM | AW43: 0 MM | AX43: 0 MM | AY43: 0 MM | AZ43: 0 MM | BA43: 0 MM | BB43: 0 MM | BC43: 0 MM | BD43: 0 MM | BE43: 0 MM | BF43: 0 MM | BG43: 0 MM | BH43: 0 MM | BI43: 0 MM | BK43: =IF(C15>0,AU28+$AB$15*AU28/100,"") ->  | BL43: =IF(D15>0,AV28+$AB$15*AV28/100,"") ->  | CN43: TOTAL= | CO43: =SUM(CO33:CP42) -> 31.27 '
B44: Length (ft) | AS44: Sttriup-1 | AU44: =D45 -> 0 MM | AV44: =E45 -> 0 MM | AW44: 0 MM | AX44: 0 MM | AY44: 0 MM | AZ44: 0 MM | BA44: 0 MM | BB44: 0 MM | BC44: 0 MM | BD44: 0 MM | BE44: 0 MM | BF44: 0 MM | BG44: 0 MM | BH44: 0 MM | BI44: 0 MM | BK44: =IF(C15>0,AU29+$AB$15*AU29/100,"") ->  | BL44: =IF(D15>0,AV29+$AB$15*AV29/100,"") -> 
A45: Sttriup-1 | B45: Rebar Size (mm) | AS45: Sttriup-2 | AU45: =AU44 -> 0 MM | AV45: =AV44 -> 0 MM | AW45: 0 MM | AX45: 0 MM | AY45: 0 MM | AZ45: 0 MM | BA45: 0 MM | BB45: 0 MM | BC45: 0 MM | BD45: 0 MM | BE45: 0 MM | BF45: 0 MM | BG45: 0 MM | BH45: 0 MM | BI45: 0 MM | BK45: =IF(C15>0,AU30+$AB$15*AU30/100,"") ->  | BL45: =IF(D15>0,AV30+$AB$15*AV30/100,"") -> 
B46: Specing (inch)
B48: Houck lenght (inch)
A49: Sttriup-2 | B49: Rebar Size (mm)
B50: Specing (inch)
B51: Houck lenght (inch)

Sheet Floor Beam (hidden)
A1: This is The Property of NOR DESIGN SOLUTION
A6: এক্সেল শীট বিষয়ক কিছু জানার থাকলে বা আপডেট নিয়ে কোন পরামর্শ থাকলে আমাদের সাথে যোগাযোগ করুন অথবা ওয়েবসাইটে কমেন্ট করুন
A7: এক্সেল শীট সম্পর্কে যাবতীয় তথ্য বিস্তারিত জানতে ভিজিট করুন আমাদের ইউটিউব চ্যানেলে
A9: Click Here To Watch The Floor Beam Estimate video
AV11: Cement | AW11: Sand | AX11: Stone | AY11: Rod | AZ11: Casting | BA11: Excavation | BB11: Sand Filling | BC11: Formwork | BD11: Brick Nos | BE11: Bricl Flat Soling | BF11: C.c
A12: Floor Beam Estimate | V12: Floor Beam Estimate and Price | AV12: =AC15 -> 0 Bag | AW12: =AC16 -> 0 CFT | AX12: =BJ18+AB15*BJ18/100 -> 0 | AY12: =AC18 -> 0.000 Ton | AZ12: =AC22 -> 0 CFT | BB12: =AC19 -> 0 CFT | BC12: =AC21 -> 0 SFT | BD12: =BJ19+AB15*BJ19/100 -> 0 | BE12: =AC20 -> 0 Nos
A14: Description | C14: Type-1 | D14: Type-2 | E14: Type-3 | F14: Type-4 | G14: Type-5 | H14: Type-6 | I14: Type-7 | J14: Type-8 | K14: Type-9 | L14: Type-10 | M14: Type-11 | N14: Type-12 | O14: Type-13 | P14: Type-14 | Q14: Type-15 | V14: DESCRIPTION | Z14: Quantity | AB14: Wastage Add | AC14: Quantity (Wastage Add) | AE14: Rate | AG14: Amount TK
A15: Beam Nos | V15: Cement | Z15: =BJ16 -> 0 Bag | AB15: 0 % ADD | AC15: =Z15+$AB$15*Z15/100 -> 0 Bag | AE15: 600.00 TK | AG15: =AC15*AE15 -> 0 TK | BJ15: Sum
A16: Beam Height,H (inh) | V16: Sand | Z16: =BJ17 -> 0 CFT | AC16: 0 CFT | AE16: 45.00 TK | AG16: 0 TK | AS16: Cement | AU16: =IF(C15>0,(AU20*$D$25*1.54)/($G$25*1.25),"0") -> 0 | AV16: =IF(D15>0,(AV20*$D$25*1.54)/($G$25*1.25),"0") -> 0 | AW16: 0 | AX16: 0 | AY16: 0 | AZ16: 0 | BA16: 0 | BB16: 0 | BC16: 0 | BD16: 0 | BE16: 0 | BF16: 0 | BG16: 0 | BH16: 0 | BI16: 0 | BJ16: =SUM(AU16:BI16) -> 0 Bag
A17: Beam Breadth,B (inh) | V17: Stone/Brick Chips | Z17: =VLOOKUP(V17,BM22:BN23,2,0) -> 0 | AC17: 0 | AE17: 12.00 TK | AG17: 0 TK | AS17: Sand | AU17: =IF(C15>0,(AU20*1.54*$E$25)/$G$25,"0") -> 0 | AV17: =IF(D15>0,(AV20*1.54*$E$25)/$G$25,"0") -> 0 | AW17: 0 | AX17: 0 | AY17: 0 | AZ17: 0 | BA17: 0 | BB17: 0 | BC17: 0 | BD17: 0 | BE17: 0 | BF17: 0 | BG17: 0 | BH17: 0 | BI17: 0 | BJ17: =SUM(AU17:BI17) -> 0
A18: Total Beam Length,L (ft) | V18: Rod/Reber | Z18: =SUM(BJ24:BK30)/1000 -> 0.000 Ton | AC18: 0.000 Ton | AE18: 100000.00 TK | AG18: 0 TK | AS18: Stone/Brick Chips | AU18: =IF(C15>0,(AU20*1.54*$F$25)/$G$25,"0") -> 0 | AV18: =IF(D15>0,(AV20*1.54*$F$25)/$G$25,"0") -> 0 | AW18: 0 | AX18: 0 | AY18: 0 | AZ18: 0 | BA18: 0 | BB18: 0 | BC18: 0 | BD18: 0 | BE18: 0 | BF18: 0 | BG18: 0 | BH18: 0 | BI18: 0 | BJ18: 0
A19: (-) All Column Size (ft) | V19: Sand Fill | Z19: =BJ22 -> 0 CFT | AC19: 0 CFT | AE19: 45.00 TK | AG19: 0 TK | AS19: Brick Nos | AU19: =IF(C15>0,AU18*9.5,"0") -> 0 | AV19: =IF(D15>0,AV18*9.5,"0") -> 0 | AW19: 0 | AX19: 0 | AY19: 0 | AZ19: 0 | BA19: 0 | BB19: 0 | BC19: 0 | BD19: 0 | BE19: 0 | BF19: 0 | BG19: 0 | BH19: 0 | BI19: 0 | BJ19: 0 | CI19: 3.00' | CL19: 14.83 ' | CO19: 8.25 ' | CS19: 14.83 ' | CV19: 3.00'
V20: Brick Flat soling | Z20: =BJ21*3 -> 0 Nos | AC20: 0 Nos | AE20: 10.00 TK | AG20: 0 TK | AS20: Casting | AU20: =IF(C15>0,((C16/12)*(C17/12)*(C18-C19)*C15),"0") -> 0 | AV20: =IF(D15>0,((D16/12)*(D17/12)*(D18-D19)*D15),"0") -> 0 | AW20: 0 | AX20: 0 | AY20: 0 | AZ20: 0 | BA20: 0 | BB20: 0 | BC20: 0 | BD20: 0 | BE20: 0 | BF20: 0 | BG20: 0 | BH20: 0 | BI20: 0 | BJ20: 0
V21: Formwork | Z21: =BJ23 -> 0 SFT | AC21: 0 SFT | AE21: 36.00 TK | AG21: 0 TK | AS21: Brick Flat | AU21: =IF(C15>0,IF(C20>0,((C16/12)*(C18-C19)*C15),"0"),"0") -> 0 | AV21: =IF(D15>0,IF(D20>0,((D16/12)*(D18-D19)*D15),"0"),"0") -> 0 | AW21: 0 | AX21: 0 | AY21: 0 | AZ21: 0 | BA21: 0 | BB21: 0 | BC21: 0 | BD21: 0 | BE21: 0 | BF21: 0 | BG21: 0 | BH21: 0 | BI21: 0 | BJ21: 0 | CJ21: =(CL19/3)+CI19 -> 7.94 ' | CN21: =(CL19/3)+(CO19/3) -> 7.69 ' | CQ21: =(CO19/3)+(CS19/3) -> 7.69 ' | CU21: =(CS19/3)+CV19 -> 7.94 '
V22: Casting | Z22: =BJ20 -> 0 CFT | AC22: 0 CFT | AE22: 37.00 TK | AG22: =AC22*AE22 -> 0 TK | BM22: Stone/Brick Chips | BN22: =BJ18 -> 0 | CJ22: A | CN22: B | CQ22: C | CU22: D
D23: Rcc casting Ratio | AE23: Total Cost= | AG23: =SUM(AG15:AH22) -> 0 TK | AS23: Formwork | AU23: =IF(C15>0,((C18-C19)*(C16+C16)/12)*C15+((C18-C19)*C17/12*C15),"0") -> 0 | AV23: =IF(D15>0,((D18-D19)*(D16+D16)/12)*D15+((D18-D19)*D17/12*D15),"0") -> 0 | AW23: 0 | AX23: 0 | AY23: 0 | AZ23: 0 | BA23: 0 | BB23: 0 | BC23: 0 | BD23: 0 | BE23: 0 | BF23: 0 | BG23: 0 | BH23: 0 | BI23: 0 | BJ23: 0 | BM23: Brick Nos | BN23: =BJ19 -> 0 | CJ23: SG+BN16:BY22
AS24: Large Dia | AU24: =IF(C15>0,(D28^2/532)*D29*((C18-C19)-(4*D38/12)+(2*D37/12))*C15,"0") -> 0 | AV24: =IF(D15>0,(E28^2/532)*E29*((D18-D19)-(4*E38/12)+(2*E37/12))*D15,"0") -> 0 | AW24: 0 | AX24: 0 | AY24: 0 | AZ24: 0 | BA24: 0 | BB24: 0 | BC24: 0 | BD24: 0 | BE24: 0 | BF24: 0 | BG24: 0 | BH24: 0 | BI24: 0 | BJ24: 0
D25: 1 | E25: 1.5 | F25: 3 | G25: =SUM(D25:F25) -> 5.5 | AS25: Small Dia | AU25: =IF(C15>0,(D31^2/532)*D32*((C18-C19)-(4*D38/12)+(2*D37/12))*C15,"0") -> 0 | AV25: =IF(D15>0,(E31^2/532)*E32*((D18-D19)-(4*E38/12)+(2*E37/12))*D15,"0") -> 0 | AW25: 0 | AX25: 0 | AY25: 0 | AZ25: 0 | BA25: 0 | BB25: 0 | BC25: 0 | BD25: 0 | BE25: 0 | BF25: 0 | BG25: 0 | BH25: 0 | BI25: 0 | BJ25: 0 | CO25: A+B+C+D
Z26: Reinforcement | AS26: Medial Dia | AU26: =IF(C15>0,(D34^2/532)*D35*((C18-C19)-(4*D38/12)+(2*D37/12))*C15,"0") -> 0 | AV26: =IF(D15>0,(E34^2/532)*E35*((D18-D19)-(4*E38/12)+(2*E37/12))*D15,"0") -> 0 | AW26: 0 | AX26: 0 | AY26: 0 | AZ26: 0 | BA26: 0 | BB26: 0 | BC26: 0 | BD26: 0 | BE26: 0 | BF26: 0 | BG26: 0 | BH26: 0 | BI26: 0 | BJ26: 0 | CO26: =CJ21+CN21+CQ21+CU21 -> 31.27 '
A27: Beam Rebar Calculation | D27: Type-1 | E27: Type-2 | F27: Type-3 | G27: Type-4 | H27: Type-5 | I27: Type-6 | J27: Type-7 | K27: Type-8 | L27: Type-9 | M27: Type-10 | N27: Type-11 | O27: Type-12 | P27: Type-13 | Q27: Type-14 | R27: Type-15 | AA27: 10 | AB27: =IF(AA27>0,SUMIF($AU$39:$BI$45,AA27,$BK$39:$BY$45),"") -> 0 KG | AS27: Extra Top | AU27: =IF(C15>0,IF(D41>0,(D39^2/532)*D40*D41*C15+(2*D37/12),"0"),"0") -> 0 | AV27: =IF(D15>0,IF(E41>0,(E39^2/532)*E40*E41*D15+(2*E37/12),"0"),"0") -> 0 | AW27: 0 | AX27: 0 | AY27: 0 | AZ27: 0 | BA27: 0 | BB27: 0 | BC27: 0 | BD27: 0 | BE27: 0 | BF27: 0 | BG27: 0 | BH27: 0 | BI27: 0 | BJ27: 0
A28: Large Dia | B28: Rebar Size (mm) | AA28: 12 | AB28: =IF(AA28>0,SUMIF($AU$39:$BI$45,AA28,$BK$39:$BY$45),"") -> 0 KG | AS28: Extra Bottom | AU28: =IF(C15>0,IF(D44>0,(D42^2/532)*D43*D44*C15+(2*D37/12),"0"),"0") -> 0 | AV28: =IF(D15>0,IF(E44>0,(E42^2/532)*E43*E44*D15+(2*E37/12),"0"),"0") -> 0 | AW28: 0 | AX28: 0 | AY28: 0 | AZ28: 0 | BA28: 0 | BB28: 0 | BC28: 0 | BD28: 0 | BE28: 0 | BF28: 0 | BG28: 0 | BH28: 0 | BI28: 0 | BJ28: 0
B29: Rebar Nos | AA29: 16 | AB29: 0 KG | AS29: Sttriup-1 | AU29: =IF(D45>0,IF(C15>0,(D45^2/532)*AU31*AU32*C15,"0"),"0") -> 0 | AV29: =IF(E45>0,IF(D15>0,(E45^2/532)*AV31*AV32*D15,"0"),"0") -> 0 | AW29: 0 | AX29: 0 | AY29: 0 | AZ29: 0 | BA29: 0 | BB29: 0 | BC29: 0 | BD29: 0 | BE29: 0 | BF29: 0 | BG29: 0 | BH29: 0 | BI29: 0 | BJ29: 0
B30: Lapping (ft) | AA30: 20 | AB30: 0 KG | AS30: Sttriup-2 | AU30: =IF(C15>0,IF(D49>0,(D49^2/532)*AU34*AU35*C15,"0"),"0") -> 0 | AV30: =IF(D15>0,IF(E49>0,(E49^2/532)*AV34*AV35*D15,"0"),"0") -> 0 | AW30: 0 | AX30: 0 | AY30: 0 | AZ30: 0 | BA30: 0 | BB30: 0 | BC30: 0 | BD30: 0 | BE30: 0 | BF30: 0 | BG30: 0 | BH30: 0 | BI30: 0 | BJ30: 0
A31: Small Dia | B31: Rebar Size (mm) | AA31: 25 | AB31: 0 KG | AS31: Sttriup-1 Nos | AU31: =IF(D45>0,IF(C15>0,(C18-C19)/(AU33/12)+1,"0"),"0") -> 0 | AV31: =IF(E45>0,IF(D15>0,(D18-D19)/(AV33/12)+1,"0"),"0") -> 0 | AW31: 0 | AX31: 0 | AY31: 0 | AZ31: 0 | BA31: 0 | BB31: 0 | BC31: 0 | BD31: 0 | BE31: 0 | BF31: 0 | BG31: 0 | BH31: 0 | BI31: 0 | BJ31: 0
B32: Rebar Nos | AS32: Sttriup-1 (L) | AU32: =IF(C15>0,(((2*C16)+(2*C17))-(D38*8)+(D48*2))/12,"0") -> 0 | AV32: =IF(D15>0,(((2*D16)+(2*D17))-(E38*8)+(E48*2))/12,"0") -> 0 | AW32: 0 | AX32: 0 | AY32: 0 | AZ32: 0 | BA32: 0 | BB32: 0 | BC32: 0 | BD32: 0 | BE32: 0 | BF32: 0 | BG32: 0 | BH32: 0 | BI32: 0 | BJ32: 0 | CN32: Name | CO32: NOS | CP32: A+B+C+D
B33: Lapping (ft) | AS33: Sttriup-1 (c/c) | AU33: =IF(C15>0,(D46+D47)/2,"0") -> 0 | AV33: =IF(D15>0,(E46+E47)/2,"0") -> 0 | AW33: 0 | AX33: 0 | AY33: 0 | AZ33: 0 | BA33: 0 | BB33: 0 | BC33: 0 | BD33: 0 | BE33: 0 | BF33: 0 | BG33: 0 | BH33: 0 | BI33: 0 | BJ33: 0 | CN33: GB-1 | CO33: 1 | CP33: =IF(CO33>0,(CJ21+CN21+CQ21+CU21)*CO33,"") -> 31.27 '
A34: Medial Bar | B34: Rebar Size (mm) | AS34: Sttriup-2 Nos | AU34: =IF(D45>0,IF(D49>0,(C18-C19)/(D50/12)+1,"0"),"0") -> 0 | AV34: =IF(E45>0,IF(E49>0,(D18-D19)/(E50/12)+1,"0"),"0") -> 0 | AW34: 0 | AX34: 0 | AY34: 0 | AZ34: 0 | BA34: 0 | BB34: 0 | BC34: 0 | BD34: 0 | BE34: 0 | BF34: 0 | BG34: 0 | BH34: 0 | BI34: 0 | BJ34: 0 | CN34: GB-2 | CP34: =IF(CO34>0,(CJ22+CN22+CQ22+CU22)*CO34,"") -> 
B35: Rebar Nos | AS35: Sttriup-2 (L) | AU35: =IF(D49>0,IF(C15>0,(((2*C16)+(2*C17))-(D38*8)+(D51*2))/12,"0"),"0") -> 0 | AV35: =IF(E49>0,IF(D15>0,(((2*D16)+(2*D17))-(E38*8)+(E51*2))/12,"0"),"0") -> 0 | AW35: 0 | AX35: 0 | AY35: 0 | AZ35: 0 | BA35: 0 | BB35: 0 | BC35: 0 | BD35: 0 | BE35: 0 | BF35: 0 | BG35: 0 | BH35: 0 | BI35: 0 | BJ35: 0 | CN35: GB-3 | CP35: =IF(CO35>0,(CJ23+CN23+CQ23+CU23)*CO35,"") -> 
B36: Lapping (ft) | AS36: Sttriup-2 (c/c) | BJ36: 0 | CN36: GB-4 | CP36: =IF(CO36>0,(CJ24+CN24+CQ24+CU24)*CO36,"") -> 
A37: Development length (inh) | CN37: GB-5 | CP37: =IF(CO37>0,(CJ25+CN25+CQ25+CU25)*CO37,"") -> 
A38: Clear Cover (inh) | CN38: GB-6 | CP38: =IF(CO38>0,(CN32+CN26+CQ26+CU26)*CO38,"") -> 
A39: Extra Top | B39: Rebar Size (mm) | AS39: Large Dia | AU39: =D28 -> 0 MM | AV39: 0 MM | AW39: 0 MM | AX39: 0 MM | AY39: 0 MM | AZ39: 0 MM | BA39: 0 MM | BB39: 0 MM | BC39: 0 MM | BD39: 0 MM | BE39: 0 MM | BF39: 0 MM | BG39: 0 MM | BH39: 0 MM | BI39: 0 MM | BK39: =IF(C15>0,AU24+$AB$15*AU24/100,"") ->  | BL39: =IF(D15>0,AV24+$AB$15*AV24/100,"") ->  | CN39: GB-7 | CP39: =IF(CO39>0,(CN33+CN27+CQ27+CU27)*CO39,"") -> 
B40: Rebar Nos | AS40: Small Dia | AU40: =D31 -> 0 MM | AV40: 0 MM | AW40: 0 MM | AX40: 0 MM | AY40: 0 MM | AZ40: 0 MM | BA40: 0 MM | BB40: 0 MM | BC40: 0 MM | BD40: 0 MM | BE40: 0 MM | BF40: 0 MM | BG40: 0 MM | BH40: 0 MM | BI40: 0 MM | BK40: =IF(C15>0,AU25+$AB$15*AU25/100,"") ->  | BL40: =IF(D15>0,AV25+$AB$15*AV25/100,"") ->  | CN40: GB-8 | CP40: =IF(CO40>0,(CN34+CN28+CQ28+CU28)*CO40,"") -> 
B41: Length (ft) | AS41: Medial Dia | AU41: =D34 -> 0 MM | AV41: 0 MM | AW41: 0 MM | AX41: 0 MM | AY41: 0 MM | AZ41: 0 MM | BA41: 0 MM | BB41: 0 MM | BC41: 0 MM | BD41: 0 MM | BE41: 0 MM | BF41: 0 MM | BG41: 0 MM | BH41: 0 MM | BI41: 0 MM | BK41: =IF(C15>0,AU26+$AB$15*AU26/100,"") ->  | BL41: =IF(D15>0,AV26+$AB$15*AV26/100,"") ->  | CN41: GB-9 | CP41: =IF(CO41>0,(CN35+CN29+CQ29+CU29)*CO41,"") -> 
A42: Extra Bottom | B42: Rebar Size (mm) | AS42: Extra Top | AU42: =D39 -> 0 MM | AV42: 0 MM | AW42: 0 MM | AX42: 0 MM | AY42: 0 MM | AZ42: 0 MM | BA42: 0 MM | BB42: 0 MM | BC42: 0 MM | BD42: 0 MM | BE42: 0 MM | BF42: 0 MM | BG42: 0 MM | BH42: 0 MM | BI42: 0 MM | BK42: =IF(C15>0,AU27+$AB$15*AU27/100,"") ->  | BL42: =IF(D15>0,AV27+$AB$15*AV27/100,"") ->  | CN42: GB-10 | CP42: =IF(CO42>0,(CN36+CN30+CQ30+CU30)*CO42,"") -> 
B43: Rebar Nos | AS43: Extra Bottom | AU43: =D42 -> 0 MM | AV43: 0 MM | AW43: 0 MM | AX43: 0 MM | AY43: 0 MM | AZ43: 0 MM | BA43: 0 MM | BB43: 0 MM | BC43: 0 MM | BD43: 0 MM | BE43: 0 MM | BF43: 0 MM | BG43: 0 MM | BH43: 0 MM | BI43: 0 MM | BK43: =IF(C15>0,AU28+$AB$15*AU28/100,"") ->  | BL43: =IF(D15>0,AV28+$AB$15*AV28/100,"") ->  | CO43: TOTAL= | CP43: =SUM(CP33:CQ42) -> 31.27 '
B44: Length (ft) | AS44: Sttriup-1 | AU44: =D45 -> 0 MM | AV44: 0 MM | AW44: 0 MM | AX44: 0 MM | AY44: 0 MM | AZ44: 0 MM | BA44: 0 MM | BB44: 0 MM | BC44: 0 MM | BD44: 0 MM | BE44: 0 MM | BF44: 0 MM | BG44: 0 MM | BH44: 0 MM | BI44: 0 MM | BK44: =IF(C15>0,AU29+$AB$15*AU29/100,"") ->  | BL44: =IF(D15>0,AV29+$AB$15*AV29/100,"") -> 
A45: Sttriup-1 | B45: Rebar Size (mm) | AS45: Sttriup-2 | AU45: =AU44 -> 0 MM | AV45: =AV44 -> 0 MM | AW45: 0 MM | AX45: 0 MM | AY45: 0 MM | AZ45: 0 MM | BA45: 0 MM | BB45: 0 MM | BC45: 0 MM | BD45: 0 MM | BE45: 0 MM | BF45: 0 MM | BG45: 0 MM | BH45: 0 MM | BI45: 0 MM | BK45: =IF(C15>0,AU30+$AB$15*AU30/100,"") ->  | BL45: =IF(D15>0,AV30+$AB$15*AV30/100,"") -> 
B46: Specing (inch)
B48: Houck lenght (inch)
A49: Sttriup-2 | B49: Rebar Size (mm)
B50: Specing (inch)
B51: Houck lenght (inch)

Sheet Stair (hidden)
A1: This is The Property of NOR DESIGN SOLUTION
A6: এক্সেল শীট বিষয়ক কিছু জানার থাকলে বা আপডেট নিয়ে কোন পরামর্শ থাকলে আমাদের সাথে যোগাযোগ করুন অথবা ওয়েবসাইটে কমেন্ট করুন
A7: এক্সেল শীট সম্পর্কে যাবতীয় তথ্য বিস্তারিত জানতে ভিজিট করুন আমাদের ইউটিউব চ্যানেলে
A9: Click Here To Watch The stair Estimate video
A12: Stair Estimated
T13: Stair Estimated and Price
A15: Stair Nos | C15: RCC (Casting Ratio) | G15: Stair Reinforcement | J15: Dia | K15: C/C | T15: DESCRIPTION | W15: Quantity | Y15: Wastage Add | Z15: Quantity (Wastage Add) | AB15: Rate | AD15: Amount TK
A16: Stair Length, L (ft) | C16: 1 | D16: 1.5 | E16: 3 | F16: =SUM(C16:E16) -> 5.5 | G16: Main Rod | T16: Cement | W16: =CV23 -> 0 Bag | Y16: 0 % ADD | Z16: =W16+$Y$16*W16/100 -> 0 Bag | AB16: 600.00 TK | AD16: =Z16*AB16 -> 0 TK
A17: Stair Breadth,B (ft) | G17: Main Rod Binder | T17: Sand | W17: =CV24 -> 0 CFT | Z17: =W17+$Y$16*W17/100 -> 0 CFT | AB17: 45.00 TK | AD17: =Z17*AB17 -> 0 TK
A18: Lobby Breadth,B (ft) | G18: Extra top rod | I18: L/3 | T18: Brick Nos | W18: =VLOOKUP(T18,CX27:CY28,2,0) -> 0 | Z18: 0 | AB18: 15.00 TK | AD18: 0 TK | BS18: Cement | BT18: Sand | BU18: Stone | BV18: Rod | BW18: Casting | BX18: Excavation | BY18: Sand Filling | BZ18: Formwork | CA18: Brick Nos | CB18: Bricl Flat Soling | CC18: C.c
A19: Landing Breadth,B (ft) | G19: Extra top Rod Binder | I19: =I18 -> L/3 | T19: Rod/Reber | W19: =SUM(CV31:CV37)/1000 -> 0.000 Ton | Z19: 0.000 Ton | AB19: 100000.00 TK | AD19: 0 TK | BS19: =Z16 -> 0 Bag | BT19: =Z17 -> 0 CFT | BU19: =CV25+Y16*CV25/100 -> 0 | BV19: =Z19 -> 0.000 Ton | BW19: =Z21 -> 0 CFT | BZ19: =Z20 -> 0 SFT | CA19: =CV26+Y16*CV26/100 -> 0
A20: Clear Cover | T20: Formwork | W20: =CV28 -> 0 SFT | Z20: 0 SFT | AB20: 45.00 TK | AD20: 0 TK
A21: Trade | T21: Casting | W21: =CV27 -> 0 CFT | Z21: 0 CFT | AB21: 46.00 TK | AD21: =Z21*AB21 -> 0 TK | CR21: Total
A22: Riser | D22: Flight = | E22: =D23/2 -> 0.00 ' | F22: Flight = | G22: =D23/2 -> 0.00 ' | AB22: Total Cost= | AD22: =SUM(AD16:AE21) -> 0 TK | CR22: Beam | CU22: Stair | CV22: sum
A23: Landing Height (ft) | D23: =B17 -> 0.00 ' | BR23: Casting Calculation | BU23: Formwork Claculation | CC23: Rebar Claculation | CR23: Cement | CT23: =BU41 ->  | CU23: =BZ25 ->  | CV23: =SUM(CT23:CU23) -> 0 Bag
A24: West Slab (inch) | H24: Landing | I24: =B19 -> 0.00 ' | CR24: Sand | CU24: =BZ26 ->  | CV24: =SUM(CT24:CU24) -> 0
X25: Reinforcement | BR25: Landing | BT25: =IF(B15>0,B19*D23*(B24/12),"") ->  | BU25: Landing | BW25: =IF(B15>0,((B19*B17)+(B17+B17+B19+B19)*((B24+2)/12)),"") ->  | BX25: Cement | BZ25: =IF(B15>0,(BT29*$C$16*1.5)/($F$16*1.25),"") ->  | CR25: Stone/Brick Chips | CU25: =BZ27 ->  | CV25: 0
A26: Trade | B26: =IF(B15>0,B27-1,"") ->  | Y26: 10 | Z26: =IF(Y26>0,SUMIF($CT$40:$CT$46,Y26,$CV$40:$CV$46)+$Y$16*SUMIF($CT$40:$CT$46,Y26,$CV$40:$CV$46)/100,"") -> 0 KG | BR26: Lobby Casting | BT26: =IF(B15>0,(B18*D23*(B24/12)),"") ->  | BU26: Lobby | BW26: =IF(B15>0,((B18*B17)+(B17+B18+B18)+(B18+B18)*((B24+2)/12)),"") ->  | BX26: Sand | BZ26: =IF(B15>0,(BT29*$D$16*1.5)/$F$16,"") ->  | CC26: Maind Rod | CF26: Maind Rod bBnder | CI26: Extra Top Rod | CL26: Extra Top Binder | CR26: Brick Nos | CU26: =BZ28 ->  | CV26: 0
A27: Riser | B27: =IF(B15>0,((B16-(B18+B19))/(B21/12))+1,"") ->  | N27: =IF(C33>0,(M31/BU32)+O31,"") ->  | Y27: 12 | Z27: =IF(Y27>0,SUMIF($CT$40:$CT$46,Y27,$CV$40:$CV$46)+$Y$16*SUMIF($CT$40:$CT$46,Y27,$CV$40:$CV$46)/100,"") -> 0 KG | BR27: waist slab | BT27: =IF(B15>0,M31*D23*(B24/12),"") ->  | BU27: waist slab | BW27: =IF(B15>0,(M31*E22)+(E22+E22)*((B24+2)/12),"") ->  | BX27: Stone/Brick Chips | BZ27: =IF(B15>0,(BT29*E16*1.5)/$F$16,"") ->  | CC27: nos | CD27: length | CE27: kg | CF27: nos | CG27: length | CH27: kg | CI27: nos | CJ27: length | CK27: kg | CL27: nos | CM27: length | CN27: kg | CR27: Casting | CU27: =BT29 -> 0.00 CFT | CV27: 0 | CX27: Stone/Brick Chips | CY27: =CV25 -> 0
Y28: 16 | Z28: 0 KG | BR28: trad/riser | BT28: =IF(B15>0,0.5*(B21/12)*(B22/12)*D23*B26,"") ->  | BU28: riser | BW28: =IF(B15>0,(B27*E22*(B22/12))*2,"") ->  | BX28: Brick Nos | BZ28: =IF(B15>0,BZ27*9.5,"") ->  | CC28: =IF(B15>0,(((E22*12)-(B20*2))/K16)+1,"") ->  | CD28: =B18+B19+M31 -> 0.0 ' | CE28: =IF(B15>0,(((CC28*(J16^2/532))*CD28)*2)*B15,"") ->  | CF28: =IF(B15>0,((((B18+B19+M31)*12)-(B20*2))/K17)+1,"") ->  | CG28: =IF(B15>0,(E22-(B20/12)*2),"") ->  | CH28: =IF(B15>0,(((CF28*(J17^2/532))*CG28)*2)*B15,"") ->  | CI28: =IF(B15>0,(((E22*12)-(B20*2))/K18)+1,"") ->  | CJ28: =IF(B15>0,(K34+N27),"") ->  | CK28: =IF(B15>0,((CI28*(J18^2/532))*CJ28)*2,"") ->  | CL28: =IF(B15>0,((((K34+N27)*12)-(B20*2))/K19)+1,"") ->  | CM28: =IF(B15>0,(E22-(B20/12)),"") ->  | CN28: =IF(B15>0,((CL28*(J19^2/532))*CM28)*2,"") ->  | CR28: Formwork | CU28: =BW29 -> 0.0 SFT | CV28: 0 | CX28: Brick Nos | CY28: =CV26 -> 0
BR29: Total Csting | BT29: =SUM(BT25:BT28)*B15 -> 0.00 CFT | BV29: Total | BW29: =SUM(BW25:BW28)*B15 -> 0.0 SFT | CR29: Sttriup Nos | CT29: =BU50 ->  | CV29: 0
CR30: Sttriup (L) | CT30: =BU51 ->  | CV30: 0
M31: =IF(B15>0,((((B16)-(B18+B19))^2)+B23^2))^"0.5" -> 0.00 ' | O31: =B19 -> 0.00 ' | CR31: Large Dia | CT31: =BU47 ->  | CV31: 0 KG
BS32: L/3 | BT32: 3 | BU32: =VLOOKUP(I18,BS32:BT33,2,0) -> 3 | CR32: Small Dia | CT32: =BU48 ->  | CV32: 0 KG
C33: =B16 -> 0.00 ' | Q33: =B23 -> 0.00 ' | BS33: L/4 | BT33: 4 | CR33: Sttriup | CT33: =BU49 ->  | CV33: 0 KG
K34: =IF(B15>0,(M31/BU32)+K39,"") ->  | CR34: main dia | CT34: =CE28 ->  | CV34: 0 KG
CR35: main dia binder | CT35: =CH28 ->  | CV35: 0 KG
CR36: Ex top | CT36: =CK28 ->  | CV36: 0 KG
CR37: ex top binder | CT37: =CN28 ->  | CV37: 0 KG
K39: =B18 -> 0.00 ' | BS39: Stair Beam
D40: =B17 -> 0.00 ' | CR40: Large Dia | CT40: =K53 -> 0 MM | CV40: =IF(C53>0,BU47+$Y$16*BU47/100,"") -> 
BS41: Cement | BU41: =IF(C53>0,(BU45*$D$54*1.54)/($G$54*1.25),"") ->  | CR41: Small Dia | CT41: =K55 -> 0 MM | CV41: =IF(C53>0,BU48+$Y$16*BU48/100,"") -> 
H42: Lobby | I42: =B18 -> 0.00 ' | BS42: Sand | BU42: =IF(C53>0,(BU45*1.54*$E$54)/$G$54,"") ->  | CR42: Sttriup | CT42: =K58 -> 0 MM | CV42: =IF(C53>0,BU49+$Y$16*BU49/100,"") -> 
BS43: Stone/Brick Chips | BU43: =IF(C53>0,(BU45*1.54*$F$54)/$G$54,"") ->  | CR43: main dia | CT43: =J16 -> 0 MM | CV43: =IF(B15>0,CT34+$Y$16*CT34/100,"") -> 
BS44: Brick Nos | BU44: =IF(C53>0,BU43*9.5,"") ->  | CR44: main dia binder | CT44: =J17 -> 0 MM | CV44: =IF(B15>0,CT35+$Y$16*CT35/100,"") -> 
F45: =B17 -> 0.00 ' | BS45: Casting | BU45: =IF(C53>0,((C54/12)*(C55/12)*(C56)*C53),"") ->  | CR45: Ex top | CT45: =J18 -> 0 MM | CV45: =IF(B15>0,CT36+$Y$16*CT36/100,"") -> 
BS46: Formwork | BU46: =IF(C53>0,(((C54/12)*2)*C56)+((C55/12)*C56)+((C55/12)*2*(C54/12)),"") ->  | CR46: ex top binder | CT46: =J19 -> 0 MM | CV46: =IF(B15>0,CT37+$Y$16*CT37/100,"") -> 
BS47: Large Dia | BU47: =IF(C53>0,(K53^2/532)*K54*(C56-(2*B20/12)+(2*K57/12))*C53,"") -> 
BS48: Small Dia | BU48: =IF(C53>0,(K55^2/532)*K56*(C56-(2*B20/12)+(2*K57/12))*C53,"") -> 
A49: Stair Beam | BS49: Sttriup | BU49: =IF(C53>0,(K58^2/532)*BU50*BU51*C53,"") -> 
BS50: Sttriup Nos | BU50: =IF(C53>0,(C56)/(K59/12)+1,"") -> 
BS51: Sttriup (L) | BU51: =IF(C53>0,(((C54+C55)*2)-(B20*8)+(K60*2))/12,"") -> 
A52: Description | C52: Type-1 | D52: Rcc casting Ratio | H52: Beam Rebar Calculation | K52: Type-1
A53: Beam Nos | H53: Large Dia | I53: Rebar Size (mm)
A54: Beam Height,H ((inch)) | D54: 1 | E54: 2.0 | F54: 4 | G54: =SUM(D54:F54) -> 7 | I54: Rebar Nos
A55: Beam Breadth,B ((inch)) | H55: Small Dia | I55: Rebar Size (mm)
A56: Total Beam Length,L (ft) | I56: Rebar Nos
H57: Development length (inh)
H58: Sttriup | I58: Rebar Size (mm)
I59: Specing (inch)
I60: Houck lenght (inch)
AR166: Cement | AV166: =DA165+#REF! -> 
AR167: Sand | AV167: =DB165+#REF! -> 
AR168: Stone/Brick Chip | AV168: =DC165+#REF! ->  | BL168: Stone (CFT) | BM168: =IF(SUM(M27:M32)>0,BJ192/100*U14+BJ192,"") -> 
AR169: Brick | AV169: =DE165+#REF! -> 
AR170: Rod/Reber | AV170: =CO165+CR165+CU165+CX165+#REF!+#REF!+#REF! -> 
AR171: Formwork | AV171: =CY165 -> 0 Bag
AR172: Casting | AV172: =CZ165+#REF! -> 
BL173: Brick Chips (Nos) | BM173: =IF(SUM(M27:M32)>0,BK192/100*U14+BK192,"") -> 
AR177: Casting Calculation | AU177: Formwork Claculation
AR179: Landing | AT179: =(B19*F21*(B24/12)) -> 0.0 CFT | AU179: Landing | AW179: =(F21*I24)+((F21+I24+I24)*((B24+2)/12)) -> 0.0 SFT
AR180: Lobby Casting | AT180: =2*(B18*F21*(B24/12)) -> 0.0 CFT | AU180: Lobby | AW180: =((#REF!*I41)+((#REF!+I41+I41)*((B24+2)/12)))*2 -> 
AR181: waist slab | AT181: =(M31*#REF!*(B24/12))*2 ->  | AU181: waist slab | AW181: =(((M31*#REF!)+((M31+M31)+((B24+2)/12)))+((F21*B22)*M23))*2 -> 
AR182: trad/riser | AT182: =((0.5*(B21/12)*(B22/12))*#REF!)*(L23*2) -> 
AR185: Stone/Brick Chip (CFT) | AS185: =DC165+#REF! -> 
AR186: Brick Nos | AS186: =DE165+#REF! -> 
AU189: =K58 -> 0 MM | AV189: =BU49 -> 
AU190: =#REF! ->  | AV190: =#REF! -> 
AU191: =K53 -> 0 MM | AV191: =BU47 -> 
AU192: =#REF! ->  | AV192: =#REF! -> 
AU193: =K55 -> 0 MM | AV193: =BU48 -> 
AU194: =#REF! ->  | AV194: =#REF! -> 
AU195: =J16 -> 0 MM | AV195: =CO165 -> 0 KG
AU196: =J17 -> 0 MM | AV196: =CR165 -> 0 KG
AU197: =J18 -> 0 MM | AV197: =CU165 -> 0 KG
AU198: =J19 -> 0 MM | AV198: =CX165 -> 0 KG
AT203: Reinforcement
AU204: 8 | AV204: =SUMIF(AU189:AU198,8,AV189:AV198)+Y16*(SUMIF(AU189:AU198,8,AV189:AV198))/100 -> 0 KG | AX204: 8
AU205: 10 | AV205: =SUMIF(AU189:AU198,10,AV189:AV198)+Y16*(SUMIF(AU189:AU198,10,AV189:AV198))/100 -> 0 KG | AX205: 10
AU206: 12 | AV206: =SUMIF(AU189:AU198,12,AV189:AV198)+Y16*(SUMIF(AU189:AU198,12,AV189:AV198))/100 -> 0 KG | AX206: 12
AU207: 16 | AV207: =SUMIF(AU189:AU198,16,AV189:AV198)+Y16*(SUMIF(AU189:AU198,16,AV189:AV198))/100 -> 0 KG | AX207: 16
AU208: 20 | AV208: =SUMIF(AU189:AU198,20,AV189:AV198)+Y16*(SUMIF(AU189:AU198,20,AV189:AV198))/100 -> 0 KG | AX208: 20
AU209: 22 | AV209: =SUMIF(AU189:AU198,22,AV189:AV198)+Y16*(SUMIF(AU189:AU198,22,AV189:AV198))/100 -> 0 KG | AX209: 22
AU210: 25 | AV210: =SUMIF(AU189:AU198,25,AV189:AV198)+Y16*(SUMIF(AU189:AU198,25,AV189:AV198))/100 -> 0 KG | AX210: 25
AU211: 28 | AV211: =SUMIF(AU189:AU198,28,AV189:AV198)+Y16*(SUMIF(AU189:AU198,28,AV189:AV198))/100 -> 0 KG | AX211: 28
AU212: 32 | AV212: =SUMIF(AU189:AU198,32,AV189:AV198)+Y16*(SUMIF(AU189:AU198,32,AV189:AV198))/100 -> 0 KG | AX212: 32

Sheet Slab (hidden)
A1: This is The Property of NOR DESIGN SOLUTION
A6: এক্সেল শীট বিষয়ক কিছু জানার থাকলে বা আপডেট নিয়ে কোন পরামর্শ থাকলে আমাদের সাথে যোগাযোগ করুন অথবা ওয়েবসাইটে কমেন্ট করুন
A7: এক্সেল শীট সম্পর্কে যাবতীয় তথ্য বিস্তারিত জানতে ভিজিট করুন আমাদের ইউটিউব চ্যানেলে
AK8: Cement | AL8: Sand | AM8: Stone | AN8: Rod | AO8: Casting | AP8: Excavation | AQ8: Sand Filling | AR8: Formwork | AS8: Brick Nos | AT8: Bricl Flat Soling | AU8: C.c
A9: Click Here To Watch The Slab Estimate video | AK9: =V15 -> 0 Bag | AL9: =V16 -> 0 CFT | AM9: =AV16+U15*AV16/100 -> 0 | AN9: =V18 -> 0.000 Ton | AO9: =V20 -> 0 CFT | AR9: =V19 -> 0 SFT | AS9: =AV17+U15*AV17/100 -> 0
A12: Slab Estimate And Costing | P12: Slab Estimated And Price
AV13: Sum
A14: Description | C14: Type-1 | D14: Type-2 | E14: Type-3 | F14: Type-4 | G14: Type-5 | H14: Type-6 | I14: Type-7 | J14: Type-8 | K14: Type-9 | L14: Type-10 | P14: DESCRIPTION | S14: Quantity | U14: Wastage Add | V14: Quantity (Wastage Add) | X14: Rate | Z14: Amount TK | AJ14: Cement | AL14: =IF(C15>0,(AL18*$D$23*1.54)/($G$23*1.25)+1,"") ->  | AM14: =IF(D15>0,(AM18*$D$23*1.54)/($G$23*1.25)+1,"") ->  | AN14: =IF(E15>0,(AN18*$D$23*1.54)/($G$23*1.25)+1,"") ->  | AO14: =IF(F15>0,(AO18*$D$23*1.54)/($G$23*1.25)+1,"") ->  | AP14: =IF(G15>0,(AP18*$D$23*1.54)/($G$23*1.25)+1,"") ->  | AQ14: =IF(H15>0,(AQ18*$D$23*1.54)/($G$23*1.25)+1,"") ->  | AR14: =IF(I15>0,(AR18*$D$23*1.54)/($G$23*1.25)+1,"") ->  | AS14: =IF(J15>0,(AS18*$D$23*1.54)/($G$23*1.25)+1,"") ->  | AT14: =IF(K15>0,(AT18*$D$23*1.54)/($G$23*1.25)+1,"") ->  | AU14: =IF(L15>0,(AU18*$D$23*1.54)/($G$23*1.25)+1,"") ->  | AV14: =SUM(AL14:AU14) -> 0 Bag
A15: Nos | P15: Cement | S15: =AV14 -> 0 Bag | U15: 0 % ADD | V15: =S15+$U$15*S15/100 -> 0 Bag | X15: 550.00 TK | Z15: =V15*X15 -> 0 TK | AJ15: Sand | AL15: =IF(C15>0,(AL18*1.54*$E$23)/$G$23,"") ->  | AM15: =IF(D15>0,(AM18*1.54*$E$23)/$G$23,"") ->  | AN15: =IF(E15>0,(AN18*1.54*$E$23)/$G$23,"") ->  | AO15: =IF(F15>0,(AO18*1.54*$E$23)/$G$23,"") ->  | AP15: =IF(G15>0,(AP18*1.54*$E$23)/$G$23,"") ->  | AQ15: =IF(H15>0,(AQ18*1.54*$E$23)/$G$23,"") ->  | AR15: =IF(I15>0,(AR18*1.54*$E$23)/$G$23,"") ->  | AS15: =IF(J15>0,(AS18*1.54*$E$23)/$G$23,"") ->  | AT15: =IF(K15>0,(AT18*1.54*$E$23)/$G$23,"") ->  | AU15: =IF(L15>0,(AU18*1.54*$E$23)/$G$23,"") ->  | AV15: =SUM(AL15:AU15) -> 0
A16: Long Direction Length (ft) | P16: Sand | S16: =AV15 -> 0 CFT | V16: 0 CFT | X16: 45.00 TK | Z16: =V16*X16 -> 0 TK | AJ16: Stone/Brick Chips | AL16: =IF(C15>0,(AL18*1.54*$F$23)/$G$23,"") ->  | AM16: =IF(D15>0,(AM18*1.54*$F$23)/$G$23,"") ->  | AN16: =IF(E15>0,(AN18*1.54*$F$23)/$G$23,"") ->  | AO16: =IF(F15>0,(AO18*1.54*$F$23)/$G$23,"") ->  | AP16: =IF(G15>0,(AP18*1.54*$F$23)/$G$23,"") ->  | AQ16: =IF(H15>0,(AQ18*1.54*$F$23)/$G$23,"") ->  | AR16: =IF(I15>0,(AR18*1.54*$F$23)/$G$23,"") ->  | AS16: =IF(J15>0,(AS18*1.54*$F$23)/$G$23,"") ->  | AT16: =IF(K15>0,(AT18*1.54*$F$23)/$G$23,"") ->  | AU16: =IF(L15>0,(AU18*1.54*$F$23)/$G$23,"") ->  | AV16: 0
A17: Short Direction Length (ft) | P17: Stone/Brick Chips | S17: =VLOOKUP(P17,AX19:AY20,2,FALSE) -> 0 | V17: 0 | X17: 100.00 TK | Z17: 0 TK | AJ17: Brick Nos | AL17: =IF(C15>0,AL16*9.5,"") ->  | AM17: =IF(D15>0,AM16*9.5,"") ->  | AN17: =IF(E15>0,AN16*9.5,"") ->  | AO17: =IF(F15>0,AO16*9.5,"") ->  | AP17: =IF(G15>0,AP16*9.5,"") ->  | AQ17: =IF(H15>0,AQ16*9.5,"") ->  | AR17: =IF(I15>0,AR16*9.5,"") ->  | AS17: =IF(J15>0,AS16*9.5,"") ->  | AT17: =IF(K15>0,AT16*9.5,"") ->  | AU17: =IF(L15>0,AU16*9.5,"") ->  | AV17: 0
A18: Slab Thikniss, (inch) | P18: Reber | S18: =SUM(AV24:AV27)/1000 -> 0.000 Ton | V18: 0.000 Ton | X18: 98000.00 TK | Z18: 0 TK | AJ18: Casting | AL18: =IF(C15>0,C16*C17*(C18/12)*C15,"") ->  | AM18: =IF(D15>0,D16*D17*(D18/12)*D15,"") ->  | AN18: =IF(E15>0,E16*E17*(E18/12)*E15,"") ->  | AO18: =IF(F15>0,F16*F17*(F18/12)*F15,"") ->  | AP18: =IF(G15>0,G16*G17*(G18/12)*G15,"") ->  | AQ18: =IF(H15>0,H16*H17*(H18/12)*H15,"") ->  | AR18: =IF(I15>0,I16*I17*(I18/12)*I15,"") ->  | AS18: =IF(J15>0,J16*J17*(J18/12)*J15,"") ->  | AT18: =IF(K15>0,K16*K17*(K18/12)*K15,"") ->  | AU18: =IF(L15>0,L16*L17*(L18/12)*L15,"") ->  | AV18: 0
A19: Clear Cover (inh) | P19: Formwork | S19: =AV19 -> 0 SFT | V19: 0 SFT | X19: 35.00 TK | Z19: 0 TK | AJ19: Formwork | AL19: =IF(C15>0,(C16*C17*(C18/12))*C15,"") ->  | AM19: =IF(D15>0,(D16*D17*(D18/12))*D15,"") ->  | AN19: =IF(E15>0,(E16*E17*(E18/12))*E15,"") ->  | AO19: =IF(F15>0,(F16*F17*(F18/12))*F15,"") ->  | AP19: =IF(G15>0,(G16*G17*(G18/12))*G15,"") ->  | AQ19: =IF(H15>0,(H16*H17*(H18/12))*H15,"") ->  | AR19: =IF(I15>0,(I16*I17*(I18/12))*I15,"") ->  | AS19: =IF(J15>0,(J16*J17*(J18/12))*J15,"") ->  | AT19: =IF(K15>0,(K16*K17*(K18/12))*K15,"") ->  | AU19: =IF(L15>0,(L16*L17*(L18/12))*L15,"") ->  | AV19: 0 | AX19: Stone/Brick Chips | AY19: =AV16 -> 0
P20: Casting | S20: =AV18 -> 0 CFT | V20: 0 CFT | X20: 36.00 TK | Z20: =V20*X20 -> 0 TK | AJ20: Long Direction nos | AL20: =IF(AND(C15>0,D26>0),(C16/(D27/12))+1,"0") -> 0 | AM20: =IF(AND(D15>0,E26>0),(D16/(E27/12))+1,"0") -> 0 | AN20: 0 | AO20: 0 | AP20: 0 | AQ20: 0 | AR20: 0 | AS20: 0 | AT20: 0 | AU20: 0 | AV20: 0 | AX20: Brick Nos | AY20: =AV17 -> 0
D21: Rcc casting Ratio | X21: Total Cost= | Z21: =SUM(Z15:AB20) -> 0 TK | AJ21: Long Direction Length | AL21: =IF(AND(C15>0,D26>0),((C17*AL20)-(C19/12*2))*C15,"0") -> 0 | AM21: =IF(AND(D15>0,E26>0),((D17*AM20)-(D19/12*2))*D15,"0") -> 0 | AN21: 0 | AO21: 0 | AP21: 0 | AQ21: 0 | AR21: 0 | AS21: 0 | AT21: 0 | AU21: 0 | AV21: 0
AJ22: Short Direction nos | AL22: =IF(AND(C15>0,D29>0),(C17/(D30/12))+1,"0") -> 0 | AM22: =IF(AND(D15>0,E29>0),(D17/(E30/12))+1,"0") -> 0 | AN22: 0 | AO22: 0 | AP22: 0 | AQ22: 0 | AR22: 0 | AS22: 0 | AT22: 0 | AU22: 0 | AV22: 0
D23: 1 | E23: 1.5 | F23: 3 | G23: =SUM(D23:F23) -> 5.5 | AJ23: Short Direction Length | AL23: =IF(AND(C15>0,D29>0),((C16*AL22)-(C19/12*2))*C15,"0") -> 0 | AM23: =IF(AND(D15>0,E29>0),((D16*AM22)-(D19/12*2))*D15,"0") -> 0 | AN23: 0 | AO23: 0 | AP23: 0 | AQ23: 0 | AR23: 0 | AS23: 0 | AT23: 0 | AU23: 0 | AV23: 0
T24: Reinforcement | AJ24: Long Direction | AL24: =IF(C15>0,((D26^2/532)*AL21+D28)*C15,"") ->  | AM24: =IF(D15>0,((E26^2/532)*AM21+E28)*D15,"") ->  | AN24: =IF(E15>0,((F26^2/532)*AN21+F28)*E15,"") ->  | AO24: =IF(F15>0,((G26^2/532)*AO21+G28)*F15,"") ->  | AP24: =IF(G15>0,((H26^2/532)*AP21+H28)*G15,"") ->  | AQ24: =IF(H15>0,((I26^2/532)*AQ21+I28)*H15,"") ->  | AR24: =IF(I15>0,((J26^2/532)*AR21+J28)*I15,"") ->  | AS24: =IF(J15>0,((K26^2/532)*AS21+K28)*J15,"") ->  | AT24: =IF(K15>0,((L26^2/532)*AT21+L28)*K15,"") ->  | AU24: =IF(L15>0,((M26^2/532)*AU21+M28)*L15,"") ->  | AV24: 0
A25: Slab Rebar Calculation | D25: Type-1 | E25: Type-2 | F25: Type-3 | G25: Type-4 | H25: Type-5 | I25: Type-6 | J25: Type-7 | K25: Type-8 | L25: Type-9 | M25: Type-10 | U25: 10 | V25: =IF(U25>0,SUMIF($AL$30:$AU$33,U25,$AW$30:$BG$33)+$U$15*SUMIF($AL$30:$AU$33,U25,$AW$30:$BG$33)/100,"") -> 0 KG | AJ25: short Direction | AL25: =IF(C15>0,((D29^2/532)*AL23+D31)*C15,"") ->  | AM25: =IF(D15>0,((E29^2/532)*AM23+E31)*D15,"") ->  | AN25: =IF(E15>0,((F29^2/532)*AN23+F31)*E15,"") ->  | AO25: =IF(F15>0,((G29^2/532)*AO23+G31)*F15,"") ->  | AP25: =IF(G15>0,((H29^2/532)*AP23+H31)*G15,"") ->  | AQ25: =IF(H15>0,((I29^2/532)*AQ23+I31)*H15,"") ->  | AR25: =IF(I15>0,((J29^2/532)*AR23+J31)*I15,"") ->  | AS25: =IF(J15>0,((K29^2/532)*AS23+K31)*J15,"") ->  | AT25: =IF(K15>0,((L29^2/532)*AT23+L31)*K15,"") ->  | AU25: =IF(L15>0,((M29^2/532)*AU23+M31)*L15,"") ->  | AV25: 0
A26: Long Direction | B26: Rebar Dia (mm) | U26: 12 | V26: =IF(U26>0,SUMIF($AL$30:$AU$33,U26,$AW$30:$BG$33)+$U$15*SUMIF($AL$30:$AU$33,U26,$AW$30:$BG$33)/100,"") -> 0 KG | AJ26: Long Direction EX | AL26: =IF(C15>0,((D32^2/532)*D33*D34)*C15,"") ->  | AM26: =IF(D15>0,((E32^2/532)*E33*E34)*D15,"") ->  | AN26: =IF(E15>0,((F32^2/532)*F33*F34)*E15,"") ->  | AO26: =IF(F15>0,((G32^2/532)*G33*G34)*F15,"") ->  | AP26: =IF(G15>0,((H32^2/532)*H33*H34)*G15,"") ->  | AQ26: =IF(H15>0,((I32^2/532)*I33*I34)*H15,"") ->  | AR26: =IF(I15>0,((J32^2/532)*J33*J34)*I15,"") ->  | AS26: =IF(J15>0,((K32^2/532)*K33*K34)*J15,"") ->  | AT26: =IF(K15>0,((L32^2/532)*L33*L34)*K15,"") ->  | AU26: =IF(L15>0,((M32^2/532)*M33*M34)*L15,"") ->  | AV26: 0
B27: Specing(inh) | U27: 16 | V27: 0 KG | AJ27: short Direction EX | AL27: =IF(C15>0,((D35^2/532)*D36*D37)*C15,"") ->  | AM27: =IF(D15>0,((E35^2/532)*E36*E37)*D15,"") ->  | AN27: =IF(E15>0,((F35^2/532)*F36*F37)*E15,"") ->  | AO27: =IF(F15>0,((G35^2/532)*G36*G37)*F15,"") ->  | AP27: =IF(G15>0,((H35^2/532)*H36*H37)*G15,"") ->  | AQ27: =IF(H15>0,((I35^2/532)*I36*I37)*H15,"") ->  | AR27: =IF(I15>0,((J35^2/532)*J36*J37)*I15,"") ->  | AS27: =IF(J15>0,((K35^2/532)*K36*K37)*J15,"") ->  | AT27: =IF(K15>0,((L35^2/532)*L36*L37)*K15,"") ->  | AU27: =IF(L15>0,((M35^2/532)*M36*M37)*L15,"") ->  | AV27: 0
B28: Lapping (ft) | U28: 8 | V28: 0 KG
A29: Short Direction | B29: Rebar Dia (mm)
B30: Specing(inh) | AL30: =D26 -> 0 MM | AM30: 0 MM | AN30: 0 MM | AO30: 0 MM | AP30: 0 MM | AQ30: 0 MM | AR30: 0 MM | AS30: 0 MM | AT30: 0 MM | AU30: 0 MM | AW30: =IF(C15>0,AL24+$U$15*AL24/100,"") ->  | AX30: =IF(D15>0,AM24+$U$15*AM24/100,"") -> 
B31: Lapping (ft) | AL31: =D29 -> 0 MM | AM31: 0 MM | AN31: 0 MM | AO31: 0 MM | AP31: 0 MM | AQ31: 0 MM | AR31: 0 MM | AS31: 0 MM | AT31: 0 MM | AU31: 0 MM | AW31: =IF(C15>0,AL25+$U$15*AL25/100,"") ->  | AX31: =IF(D15>0,AM25+$U$15*AM25/100,"") -> 
A32: Long Direction Extra Top | B32: Rebar Dia (mm) | AL32: =D32 -> 0 MM | AM32: 0 MM | AN32: 0 MM | AO32: 0 MM | AP32: 0 MM | AQ32: 0 MM | AR32: 0 MM | AS32: 0 MM | AT32: 0 MM | AU32: 0 MM | AW32: =IF(C15>0,AL26+$U$15*AL26/100,"") ->  | AX32: =IF(D15>0,AM26+$U$15*AM26/100,"") -> 
B33: Extra Top Nos | AL33: =D35 -> 0 MM | AM33: 0 MM | AN33: 0 MM | AO33: 0 MM | AP33: 0 MM | AQ33: 0 MM | AR33: 0 MM | AS33: 0 MM | AT33: 0 MM | AU33: 0 MM | AW33: =IF(C15>0,AL27+$U$15*AL27/100,"") ->  | AX33: =IF(D15>0,AM27+$U$15*AM27/100,"") -> 
B34: Extra Top Length (ft)
A35: Short Direction Extra Top | B35: Rebar Dia (mm)
B36: Extra Top Nos
B37: Extra Top Length (ft)
BU49: Typ - 2
BQ52: 2.00' | BT52: 13.00 ' | BW52: 13.00 ' | CA52: 15.00 ' | CD52: 12.00' | CG52: Long Span Extra Top Rod
BR54: =(BT52/3)+BQ52 -> 6.33 ' | BV54: =(BT52/3)+(BW52/3) -> 8.67 ' | BY54: =(BW52/3)+(CA52/3) -> 9.33 ' | CC54: =(CA52/3)+CD52 -> 17.00 ' | CG54: Name | CH54: NOS | CI54: C/C | CJ54: L/3 OR L/4 | CK54: NOS | CL54: LENGTH
BT55: C | BW55: B | CA55: A | CC55: =(CE57/3)+CC48 -> 2.67 ' | CG55: A | CH55: 1 | CI55: 5 '' C/C | CJ55: L/3 | CK55: =IF(CH55>0,(((CA52)/(CI55/12))+1)*CH55,"") -> 37 Nos | CL55: =IF(CH55>0,CK55*CC55,"") -> 98.67 '
CG56: B | CH56: 1 | CI56: 5 '' C/C | CK56: =IF(CH56>0,((BW52/(CI56/12))+1)*CH56,"") -> 32 Nos | CL56: =IF(CH56>0,CK56*CC55,"") -> 85.87 '
BS57: 4 | BW57: 3 | BZ57: 2 | CB57: 1 | CE57: 8.00' | CG57: C | CH57: 1 | CI57: 5 '' C/C | CK57: =IF(CH57>0,((BT52/(CI57/12))+1)*CH57,"") -> 32 Nos | CL57: =IF(CH57>0,CK57*CC55,"") -> 85.87 ' | CN57: L/3 | CO57: 3
CG58: D | CH58: 1 | CI58: 5 '' C/C | CK58: =IF(CH58>0,(((BT52)/(CI58/12))+1)*CH58,"") -> 32 Nos | CL58: =IF(CH58>0,CK58*CC60,"") -> 214.67 ' | CN58: L/4 | CO58: 4
BA59: 3 | BD59: 14.83 ' | BG59: 8.25 ' | BK59: 14.83 ' | BN59: 3 | CG59: E | CH59: 1 | CI59: 5 '' C/C | CK59: =IF(CH59>0,((BW52/(CI59/12))+1)*CH59,"") -> 32 Nos | CL59: =IF(CH59>0,CK59*CC60,"") -> 214.67 '
CC60: =(CE57/3)+(CE64/3) -> 6.67 ' | CG60: F | CH60: 1 | CI60: 5 '' C/C | CK60: =IF(CH60>0,(((CA52)/(CI60/12))+1)*CH60,"") -> 37 Nos | CL60: =IF(CH60>0,CK60*CC60,"") -> 246.67 '
BB61: =(BD59/3)+BA59 -> 7.94 ' | BF61: =(BD59/3)+(BG59/3) -> 7.69 ' | BI61: =(BG59/3)+(BK59/3) -> 7.69 ' | BM61: =(BK59/3)+BN59 -> 7.94 ' | BT61: D | BW61: E | CA61: F | CG61: G | CH61: 1 | CI61: 5 '' C/C | CK61: =IF(CH61>0,(((BT52)/(CI61/12))+1)*CH61,"") -> 32 Nos | CL61: =IF(CH61>0,CK61*CC67,"") -> 246.87 '
CG62: H | CH62: 1 | CI62: 5 '' C/C | CK62: =IF(CH62>0,((BW52/(CI62/12))+1)*CH62,"") -> 32 Nos | CL62: =IF(CH62>0,CK62*CC67,"") -> 246.87 '
CG63: I | CH63: 1 | CI63: 5 '' C/C | CK63: =IF(CH63>0,(((CA52)/(CI63/12))+1)*CH63,"") -> 37 Nos | CL63: =IF(CH63>0,CK63*CC67,"") -> 283.67 '
BS64: 8 | BW64: 7 | BZ64: 6 | CB64: 5 | CE64: 12.00' | CG64: J | CH64: 1 | CI64: 5 '' C/C | CK64: =IF(CH64>0,(((BT52)/(CI64/12))+1)*CH64,"") -> 32 Nos | CL64: =IF(CH64>0,CK64*CC74,"") -> 118.07 '
CG65: K | CH65: 1 | CI65: 5 '' C/C | CK65: =IF(CH65>0,((BW52/(CI65/12))+1)*CH65,"") -> 32 Nos | CL65: =IF(CH65>0,CK65*CC74,"") -> 118.07 '
CG66: L | CH66: 1 | CI66: 5 '' C/C | CK66: =IF(CH66>0,(((CA52)/(CI66/12))+1)*CH66,"") -> 37 Nos | CL66: =IF(CH66>0,CK66*CC74,"") -> 135.67 '
CC67: =(CE64/3)+(CE70/3) -> 7.67 ' | CK67: TOTAL= | CL67: =SUM(CL55:CL66) -> 2095.60 '
BT68: G | BW68: H | CA68: I
CE70: 11.00' | CG70: Short Span Extra Top Rod
BS71: 12 | BW71: 11 | BZ71: 10 | CB71: 9
CG72: Name | CH72: NOS | CI72: C/C | CJ72: L/3 OR L/4 | CK72: NOS | CL72: LENGTH
CG73: 1 | CH73: 1 | CI73: 5 '' C/C | CJ73: L/3 | CK73: =IF(CH73>0,(((CE57)/(CI73/12))+1)*CH73,"") -> 20 Nos | CL73: =IF(CH73>0,CK73*CC54,"") -> 343.40 '
CC74: =(CE70/3)+CE76 -> 3.67 ' | CG74: 2 | CH74: 1 | CI74: 5 '' C/C | CJ74: L/3 | CK74: =IF(CH74>0,(((CE57)/(CI74/12))+1)*CH74,"") -> 20 Nos | CL74: =IF(CH74>0,CK74*CC54,"") -> 343.40 '
BT75: J | BW75: K | CA75: L | CG75: 3 | CH75: 1 | CI75: 5 '' C/C | CJ75: L/3 | CK75: =IF(CH75>0,(((CE57)/(CI75/12))+1)*CH75,"") -> 20 Nos | CL75: =IF(CH75>0,CK75*CC54,"") -> 343.40 '
CG76: 4 | CH76: 1 | CI76: 5 '' C/C | CJ76: L/4 | CK76: =IF(CH76>0,(((CE57)/(CI76/12))+1)*CH76,"") -> 20 Nos | CL76: =IF(CH76>0,CK76*CC54,"") -> 343.40 '
CG77: 5 | CH77: 1 | CI77: 5 '' C/C | CJ77: L/5 | CK77: =IF(CH77>0,(((CE64)/(CI77/12))+1)*CH77,"") -> 30 Nos | CL77: =IF(CH77>0,CK77*CC54,"") -> 506.60 '
BR78: Extra Area For Extra Top | CG78: 6 | CH78: 1 | CI78: 5 '' C/C | CJ78: L/6 | CK78: =IF(CH78>0,(((CE64)/(CI78/12))+1)*CH78,"") -> 30 Nos | CL78: =IF(CH78>0,CK78*BY54,"") -> 278.13 '
CG79: 7 | CH79: 1 | CI79: 5 '' C/C | CJ79: L/7 | CK79: =IF(CH79>0,(((CE64)/(CI79/12))+1)*CH79,"") -> 30 Nos | CL79: =IF(CH79>0,CK79*BV54,"") -> 258.27 '
CG80: 8 | CH80: 1 | CI80: 5 '' C/C | CJ80: L/8 | CK80: =IF(CH80>0,(((CE64)/(CI80/12))+1)*CH80,"") -> 30 Nos | CL80: =IF(CH80>0,CK80*BR54,"") -> 188.73 '
CG81: 9 | CH81: 1 | CI81: 5 '' C/C | CJ81: L/9 | CK81: =IF(CH81>0,(((CE70)/(CI81/12))+1)*CH81,"") -> 27 Nos | CL81: =IF(CH81>0,CK81*CC54,"") -> 465.80 '
CG82: 10 | CH82: 1 | CI82: 5 '' C/C | CJ82: L/10 | CK82: =IF(CH82>0,(((CE70)/(CI82/12))+1)*CH82,"") -> 27 Nos | CL82: =IF(CH82>0,CK82*BY54,"") -> 255.73 '
BY83: Extra Area For Extra Top | CG83: 11 | CH83: 1 | CI83: 5 '' C/C | CJ83: L/11 | CK83: =IF(CH83>0,(((CE70)/(CI83/12))+1)*CH83,"") -> 27 Nos | CL83: =IF(CH83>0,CK83*BV54,"") -> 237.47 '
CG84: 12 | CH84: 1 | CI84: 5 '' C/C | CJ84: L/12 | CK84: =IF(CH84>0,(((CE70)/(CI84/12))+1)*CH84,"") -> 27 Nos | CL84: =IF(CH84>0,CK84*BR54,"") -> 173.53 '
BY85: Nos | BZ85: C/C | CA85: L/3 OR L/4 | CB85: NOS | CC85: LENGTH | CK85: TOTAL= | CL85: =SUM(CL73:CL84) -> 3737.87 '
BQ86: 4.00 ' | BY86: 1 | BZ86: 5 '' C/C | CB86: =IF(BY86>0,(((BT92)/(BZ86/12))+1)*BY86,"") -> 18 Nos | CC86: =IF(BY86>0,CB86*BQ86,"") -> 71.20 '
CB87: =IF(BY87>0,(((BT93)/(BZ87/12))+1)*BY87,"") -> 
CB88: =IF(BY88>0,(((BT94)/(BZ88/12))+1)*BY88,"") -> 
CB89: =IF(BY89>0,(((BT158)/(BZ89/12))+1)*BY89,"") ->  | CC89: =IF(BY89>0,CB89*BQ89,"") -> 
BT92: 7.00 '

Sheet Rcc Wall (hidden)
A1: This is The Property of NOR DESIGN SOLUTION
A6: এক্সেল শীট বিষয়ক কিছু জানার থাকলে বা আপডেট নিয়ে কোন পরামর্শ থাকলে আমাদের সাথে যোগাযোগ করুন অথবা ওয়েবসাইটে কমেন্ট করুন
A7: এক্সেল শীট সম্পর্কে যাবতীয় তথ্য বিস্তারিত জানতে ভিজিট করুন আমাদের ইউটিউব চ্যানেলে
AK8: Stone (CFT)
A9: Click Here To Watch The Rcc Wall Estimate video
A12: Rcc Wall Estimated | V12: R.C.C Wall Estimated And Costing
A14: Description | C14: Type-1 | D14: Type-2 | E14: Type-3 | F14: Type-4 | G14: Type-5 | H14: Type-6 | I14: Type-7 | J14: Type-8 | K14: Type-9 | L14: Type-10 | M14: Type-11 | N14: Type-12 | O14: Type-13 | P14: Type-14 | Q14: Type-15 | V14: DESCRIPTION | Y14: Quantity | AA14: Wastage Add | AB14: Quantity (Wastage Add) | AD14: Rate | AF14: Amount TK
A15: Rcc Wall Nos | V15: Cement | Y15: =BW23 -> 0 Bag | AA15: 0 % ADD | AB15: =Y15+$AA$15*Y15/100 -> 0 Bag | AD15: 2.00 TK | AF15: =AB15*AD15 -> 0 TK
A16: Length,L (ft) | V16: Sand | Y16: =BW24 -> 0 CFT | AB16: =Y16+$AA$15*Y16/100 -> 0 CFT | AD16: 3.00 TK | AF16: =AB16*AD16 -> 0 TK
A17: Height,H (ft) | V17: Stone/Brick Chips | Y17: =VLOOKUP(V17,BY29:BZ30,2,0) -> 0 | AB17: 0 | AD17: 4.00 TK | AF17: 0 TK
A18: Wall Thickness, T (inch) | V18: Reber | Y18: =SUM(BW37:BW40)/1000 -> 0.000 Ton | AB18: 0.000 Ton | AD18: 5.00 TK | AF18: 0 TK
A19: Clear Cover (inh) | V19: Formwork | Y19: =BW28 -> 0 SFT | AB19: 0 SFT | AD19: 6.00 TK | AF19: 0 TK | BH19: Cement | BI19: Sand | BJ19: Stone | BK19: Rod | BL19: Casting | BM19: Excavation | BN19: Sand Filling | BO19: Formwork | BP19: Brick Nos | BQ19: Bricl Flat Soling | BR19: C.c
V20: Casting | Y20: =BW27 -> 0 CFT | AB20: 0 CFT | AD20: 7.00 TK | AF20: =AB20*AD20 -> 0 TK | BH20: =AB15 -> 0 Bag | BI20: =AB16 -> 0 CFT | BJ20: =BW25+AA15*BW25/100 -> 0 | BK20: =AB18 -> 0.000 Ton | BL20: =AB20 -> 0 CFT | BO20: =AB19 -> 0 SFT | BP20: =BW26+AA15*BW26/100 -> 0
D21: Rcc casting Ratio | AD21: Total Cost= | AF21: =SUM(AF15:AH20) -> 0 TK
BW22: sum
D23: 1 | E23: 2.0 | F23: 4 | G23: =SUM(D23:F23) -> 7.0 | BF23: Cement | BH23: =IF(C15>0,(BH27*$D$23*1.54)/($G$23*1.25)+1,"") ->  | BI23: =IF(D15>0,(BI27*$D$23*1.54)/($G$23*1.25)+1,"") ->  | BJ23: =IF(E15>0,(BJ27*$D$23*1.54)/($G$23*1.25)+1,"") ->  | BK23: =IF(F15>0,(BK27*$D$23*1.54)/($G$23*1.25)+1,"") ->  | BL23: =IF(G15>0,(BL27*$D$23*1.54)/($G$23*1.25)+1,"") ->  | BM23: =IF(H15>0,(BM27*$D$23*1.54)/($G$23*1.25)+1,"") ->  | BN23: =IF(I15>0,(BN27*$D$23*1.54)/($G$23*1.25)+1,"") ->  | BO23: =IF(J15>0,(BO27*$D$23*1.54)/($G$23*1.25)+1,"") ->  | BP23: =IF(K15>0,(BP27*$D$23*1.54)/($G$23*1.25)+1,"") ->  | BQ23: =IF(L15>0,(BQ27*$D$23*1.54)/($G$23*1.25)+1,"") ->  | BR23: =IF(M15>0,(BR27*$D$23*1.54)/($G$23*1.25)+1,"") ->  | BS23: =IF(N15>0,(BS27*$D$23*1.54)/($G$23*1.25)+1,"") ->  | BT23: =IF(O15>0,(BT27*$D$23*1.54)/($G$23*1.25)+1,"") ->  | BU23: =IF(P15>0,(BU27*$D$23*1.54)/($G$23*1.25)+1,"") ->  | BV23: =IF(Q15>0,(BV27*$D$23*1.54)/($G$23*1.25)+1,"") ->  | BW23: =SUM(BH23:BV23) -> 0 Bag
Z24: Reinforcement | BF24: Sand | BH24: =IF(C15>0,(BH27*1.54*$E$23)/$G$23,"") ->  | BI24: =IF(D15>0,(BI27*1.54*$E$23)/$G$23,"") ->  | BJ24: =IF(E15>0,(BJ27*1.54*$E$23)/$G$23,"") ->  | BK24: =IF(F15>0,(BK27*1.54*$E$23)/$G$23,"") ->  | BL24: =IF(G15>0,(BL27*1.54*$E$23)/$G$23,"") ->  | BM24: =IF(H15>0,(BM27*1.54*$E$23)/$G$23,"") ->  | BN24: =IF(I15>0,(BN27*1.54*$E$23)/$G$23,"") ->  | BO24: =IF(J15>0,(BO27*1.54*$E$23)/$G$23,"") ->  | BP24: =IF(K15>0,(BP27*1.54*$E$23)/$G$23,"") ->  | BQ24: =IF(L15>0,(BQ27*1.54*$E$23)/$G$23,"") ->  | BR24: =IF(M15>0,(BR27*1.54*$E$23)/$G$23,"") ->  | BS24: =IF(N15>0,(BS27*1.54*$E$23)/$G$23,"") ->  | BT24: =IF(O15>0,(BT27*1.54*$E$23)/$G$23,"") ->  | BU24: =IF(P15>0,(BU27*1.54*$E$23)/$G$23,"") ->  | BV24: =IF(Q15>0,(BV27*1.54*$E$23)/$G$23,"") ->  | BW24: =SUM(BH24:BV24) -> 0
A25: Rebar calculation | D25: Type-1 | E25: Type-2 | F25: Type-3 | G25: Type-4 | H25: Type-5 | I25: Type-6 | J25: Type-7 | K25: Type-8 | L25: Type-9 | M25: Type-10 | N25: Type-11 | O25: Type-12 | P25: Type-13 | Q25: Type-14 | R25: Type-15 | AA25: 12 | AB25: =IF(AA25>0,SUMIF($BH$43:$BV$46,AA25,$BX$43:$CL$46),"") -> 0 KG | BF25: Stone/Brick Chips | BH25: =IF(C15>0,(BH27*1.54*$F$23)/$G$23,"") ->  | BI25: =IF(D15>0,(BI27*1.54*$F$23)/$G$23,"") ->  | BJ25: =IF(E15>0,(BJ27*1.54*$F$23)/$G$23,"") ->  | BK25: =IF(F15>0,(BK27*1.54*$F$23)/$G$23,"") ->  | BL25: =IF(G15>0,(BL27*1.54*$F$23)/$G$23,"") ->  | BM25: =IF(H15>0,(BM27*1.54*$F$23)/$G$23,"") ->  | BN25: =IF(I15>0,(BN27*1.54*$F$23)/$G$23,"") ->  | BO25: =IF(J15>0,(BO27*1.54*$F$23)/$G$23,"") ->  | BP25: =IF(K15>0,(BP27*1.54*$F$23)/$G$23,"") ->  | BQ25: =IF(L15>0,(BQ27*1.54*$F$23)/$G$23,"") ->  | BR25: =IF(M15>0,(BR27*1.54*$F$23)/$G$23,"") ->  | BS25: =IF(N15>0,(BS27*1.54*$F$23)/$G$23,"") ->  | BT25: =IF(O15>0,(BT27*1.54*$F$23)/$G$23,"") ->  | BU25: =IF(P15>0,(BU27*1.54*$F$23)/$G$23,"") ->  | BV25: =IF(Q15>0,(BV27*1.54*$F$23)/$G$23,"") ->  | BW25: 0
A26: Inside Side | B26: Vertcial Rebar Dia | AA26: 16 | AB26: =IF(AA26>0,SUMIF($BH$43:$BV$46,AA26,$BX$43:$CL$46),"") -> 0 KG | BF26: Brick Nos | BH26: =IF(C15>0,BH25*9.5,"") ->  | BI26: =IF(D15>0,BI25*9.5,"") ->  | BW26: 0
B27: Vertcial Rebar Specing (inch) | AA27: 20 | AB27: 0 KG | BF27: Casting | BH27: =IF(C15>0,C16*C17*(C18/12),"") ->  | BI27: =IF(D15>0,D16*D17*(D18/12),"") ->  | BJ27: =IF(E15>0,E16*E17*(E18/12),"") ->  | BK27: =IF(F15>0,F16*F17*(F18/12),"") ->  | BL27: =IF(G15>0,G16*G17*(G18/12),"") ->  | BM27: =IF(H15>0,H16*H17*(H18/12),"") ->  | BN27: =IF(I15>0,I16*I17*(I18/12),"") ->  | BO27: =IF(J15>0,J16*J17*(J18/12),"") ->  | BP27: =IF(K15>0,K16*K17*(K18/12),"") ->  | BQ27: =IF(L15>0,L16*L17*(L18/12),"") ->  | BR27: =IF(M15>0,M16*M17*(M18/12),"") ->  | BS27: =IF(N15>0,N16*N17*(N18/12),"") ->  | BT27: =IF(O15>0,O16*O17*(O18/12),"") ->  | BU27: =IF(P15>0,P16*P17*(P18/12),"") ->  | BV27: =IF(Q15>0,Q16*Q17*(Q18/12),"") ->  | BW27: 0
B28: Binder Rebar Dia | AA28: 25 | AB28: 0 KG | BF28: Formwork | BH28: =IF(C15>0,((C16*C17)*2)+(((C18/12)*C17)*2),"") ->  | BI28: =IF(D15>0,((D16*D17)*2)+(((D18/12)*D17)*2),"") ->  | BJ28: =IF(E15>0,((E16*E17)*2)+(((E18/12)*E17)*2),"") ->  | BK28: =IF(F15>0,((F16*F17)*2)+(((F18/12)*F17)*2),"") ->  | BL28: =IF(G15>0,((G16*G17)*2)+(((G18/12)*G17)*2),"") ->  | BM28: =IF(H15>0,((H16*H17)*2)+(((H18/12)*H17)*2),"") ->  | BN28: =IF(I15>0,((I16*I17)*2)+(((I18/12)*I17)*2),"") ->  | BO28: =IF(J15>0,((J16*J17)*2)+(((J18/12)*J17)*2),"") ->  | BP28: =IF(K15>0,((K16*K17)*2)+(((K18/12)*K17)*2),"") ->  | BQ28: =IF(L15>0,((L16*L17)*2)+(((L18/12)*L17)*2),"") ->  | BR28: =IF(M15>0,((M16*M17)*2)+(((M18/12)*M17)*2),"") ->  | BS28: =IF(N15>0,((N16*N17)*2)+(((N18/12)*N17)*2),"") ->  | BT28: =IF(O15>0,((O16*O17)*2)+(((O18/12)*O17)*2),"") ->  | BU28: =IF(P15>0,((P16*P17)*2)+(((P18/12)*P17)*2),"") ->  | BV28: =IF(Q15>0,((Q16*Q17)*2)+(((Q18/12)*Q17)*2),"") ->  | BW28: 0
B29: Binder Rebar Specing (inch) | BE29: Out Side Rod | BG29: nos | BH29: =IF(AND(C15>0,D30>0),(C16*12-C19-C19)/D31+1,"0") -> 0 | BI29: =IF(AND(D15>0,E30>0),(D16*12-D19-D19)/E31+1,"0") -> 0 | BJ29: 0 | BK29: 0 | BL29: 0 | BM29: 0 | BN29: 0 | BO29: 0 | BP29: 0 | BQ29: 0 | BR29: 0 | BS29: 0 | BT29: 0 | BU29: 0 | BV29: 0 | BW29: 0 | BY29: Stone/Brick Chips | BZ29: =BW25 -> 0
A30: Out Side | B30: Vertcial Rebar Dia | BG30: length | BH30: =IF(AND(C15>0,D30>0),(C17+(D34/12))-C19/12,"0") -> 0 | BI30: =IF(AND(D15>0,E30>0),(D17+(E34/12))-D19/12,"0") -> 0 | BJ30: 0 | BK30: 0 | BL30: 0 | BM30: 0 | BN30: 0 | BO30: 0 | BP30: 0 | BQ30: 0 | BR30: 0 | BS30: 0 | BT30: 0 | BU30: 0 | BV30: 0 | BW30: 0 | BY30: Brick Nos | BZ30: =BW26 -> 0
B31: Vertcial Rebar Specing (inch) | BE31: Out Side Binder Rod | BG31: nos | BH31: =IF(AND(C15>0,D32>0),((C17*12)/D33)+1,"0") -> 0 | BI31: =IF(AND(D15>0,E32>0),((D17*12)/E33)+1,"0") -> 0 | BJ31: 0 | BK31: 0 | BL31: 0 | BM31: 0 | BN31: 0 | BO31: 0 | BP31: 0 | BQ31: 0 | BR31: 0 | BS31: 0 | BT31: 0 | BU31: 0 | BV31: 0 | BW31: 0
B32: Binder Rebar Dia | BG32: length | BH32: =IF(C15>0,(C16+(D34/12))-C19/12,"") ->  | BI32: =IF(D15>0,(D16+(E34/12))-D19/12,"") ->  | BJ32: =IF(E15>0,(E16+(F34/12))-E19/12,"") ->  | BK32: =IF(F15>0,(F16+(G34/12))-F19/12,"") ->  | BL32: =IF(G15>0,(G16+(H34/12))-G19/12,"") ->  | BM32: =IF(H15>0,(H16+(I34/12))-H19/12,"") ->  | BN32: =IF(I15>0,(I16+(J34/12))-I19/12,"") ->  | BO32: =IF(J15>0,(J16+(K34/12))-J19/12,"") ->  | BP32: =IF(K15>0,(K16+(L34/12))-K19/12,"") ->  | BQ32: =IF(L15>0,(L16+(M34/12))-L19/12,"") ->  | BR32: =IF(M15>0,(M16+(N34/12))-M19/12,"") ->  | BS32: =IF(N15>0,(N16+(O34/12))-N19/12,"") ->  | BT32: =IF(O15>0,(O16+(P34/12))-O19/12,"") ->  | BU32: =IF(P15>0,(P16+(Q34/12))-P19/12,"") ->  | BV32: =IF(Q15>0,(Q16+(R34/12))-Q19/12,"") ->  | BW32: 0
B33: Binder Rebar Specing (inch) | BE33: inside Side Rod | BG33: nos | BH33: =IF(AND(C15>0,D26>0),(C16*12-C19-C19)/D27+1,"0") -> 0 | BI33: =IF(AND(D15>0,E26>0),(D16*12-D19-D19)/E27+1,"0") -> 0 | BJ33: 0 | BK33: 0 | BL33: 0 | BM33: 0 | BN33: 0 | BO33: 0 | BP33: 0 | BQ33: 0 | BR33: 0 | BS33: 0 | BT33: 0 | BU33: 0 | BV33: 0 | BW33: 0
A34: Development length (inh) | BG34: length | BH34: =IF(AND(C15>0,D26>0),(C17+(D34/12))-C19/12,"0") -> 0 | BI34: =IF(AND(D15>0,E26>0),(D17+(E34/12))-D19/12,"0") -> 0 | BJ34: 0 | BK34: 0 | BL34: 0 | BM34: 0 | BN34: 0 | BO34: 0 | BP34: 0 | BQ34: 0 | BR34: 0 | BS34: 0 | BT34: 0 | BU34: 0 | BV34: 0 | BW34: 0
BE35: inside Side Binder | BG35: nos | BH35: =IF(AND(C15>0,D28>0),((C17*12)/D27)+1,"0") -> 0 | BI35: =IF(AND(D15>0,E28>0),((D17*12)/E27)+1,"0") -> 0 | BJ35: 0 | BK35: 0 | BL35: 0 | BM35: 0 | BN35: 0 | BO35: 0 | BP35: 0 | BQ35: 0 | BR35: 0 | BS35: 0 | BT35: 0 | BU35: 0 | BV35: 0 | BW35: 0
BG36: length | BH36: =IF(AND(C15>0,D28>0),(C16+(D34/12))-C19/12,"0") -> 0 | BI36: =IF(AND(D15>0,E28>0),(D16+(E34/12))-D19/12,"0") -> 0 | BJ36: 0 | BK36: 0 | BL36: 0 | BM36: 0 | BN36: 0 | BO36: 0 | BP36: 0 | BQ36: 0 | BR36: 0 | BS36: 0 | BT36: 0 | BU36: 0 | BV36: 0 | BW36: 0
BF37: Out Side Rod | BH37: =IF(C15>0,(BH29*BH30*(D30^2/532))*C15,"") ->  | BI37: =IF(D15>0,(BI29*BI30*(E30^2/532))*D15,"") ->  | BW37: 0
BF38: Out Side Binder | BH38: =IF(C15>0,(BH31*BH32*(D32^2/532))*C15,"") ->  | BI38: =IF(D15>0,(BI31*BI32*(E32^2/532))*D15,"") ->  | BW38: 0
BF39: inSide Rod | BH39: =IF(C15>0,(BH33*BH34*(D26^2/532))*C15,"") ->  | BI39: =IF(D15>0,(BI33*BI34*(E26^2/532))*D15,"") ->  | BW39: 0
BF40: inSide Binder | BH40: =IF(C15>0,(BH35*BH36*(D28^2/532))*C15,"") ->  | BI40: =IF(D15>0,(BI35*BI36*(E28^2/532))*D15,"") ->  | BW40: 0
BH43: =D26 -> 0 MM | BI43: =E26 -> 0 MM | BJ43: 0 MM | BK43: 0 MM | BL43: 0 MM | BM43: 0 MM | BN43: 0 MM | BO43: 0 MM | BP43: 0 MM | BQ43: 0 MM | BR43: 0 MM | BS43: 0 MM | BT43: 0 MM | BU43: 0 MM | BV43: 0 MM | BX43: =IF(C15>0,BH37+$AA$15*BH37/100,"") ->  | BY43: =IF(D15>0,BI37+$AA$15*BI37/100,"") -> 
BH44: =D28 -> 0 MM | BI44: =E28 -> 0 MM | BJ44: 0 MM | BK44: 0 MM | BL44: 0 MM | BM44: 0 MM | BN44: 0 MM | BO44: 0 MM | BP44: 0 MM | BQ44: 0 MM | BR44: 0 MM | BS44: 0 MM | BT44: 0 MM | BU44: 0 MM | BV44: 0 MM | BX44: =IF(C15>0,BH38+$AA$15*BH38/100,"") ->  | BY44: =IF(D15>0,BI38+$AA$15*BI38/100,"") -> 
BH45: =D30 -> 0 MM | BI45: =E30 -> 0 MM | BJ45: 0 MM | BK45: 0 MM | BL45: 0 MM | BM45: 0 MM | BN45: 0 MM | BO45: 0 MM | BP45: 0 MM | BQ45: 0 MM | BR45: 0 MM | BS45: 0 MM | BT45: 0 MM | BU45: 0 MM | BV45: 0 MM | BX45: =IF(C15>0,BH39+$AA$15*BH39/100,"") ->  | BY45: =IF(D15>0,BI39+$AA$15*BI39/100,"") -> 
BH46: =D32 -> 0 MM | BI46: =E32 -> 0 MM | BJ46: 0 MM | BK46: 0 MM | BL46: 0 MM | BM46: 0 MM | BN46: 0 MM | BO46: 0 MM | BP46: 0 MM | BQ46: 0 MM | BR46: 0 MM | BS46: 0 MM | BT46: 0 MM | BU46: 0 MM | BV46: 0 MM | BX46: =IF(C15>0,BH40+$AA$15*BH40/100,"") ->  | BY46: =IF(D15>0,BI40+$AA$15*BI40/100,"") -> 

Sheet WATER RESERVOIR (hidden)
A1: This is The Property of NOR DESIGN SOLUTION
A5: এক্সেল শীট বিষয়ক কিছু জানার থাকলে বা আপডেট নিয়ে কোন পরামর্শ থাকলে আমাদের সাথে যোগাযোগ করুন অথবা ওয়েবসাইটে কমেন্ট করুন
A6: এক্সেল শীট সম্পর্কে যাবতীয় তথ্য বিস্তারিত জানতে ভিজিট করুন আমাদের ইউটিউব চ্যানেলে
A8: Click Here To Watch The WATER RESERVOIR Estimate video
BA9: Cement | BB9: Sand | BC9: Stone | BD9: Rod | BE9: Casting | BF9: Excavation | BG9: Sand Filling | BH9: Formwork | BI9: Brick Nos | BJ9: Bricl Flat Soling | BK9: C.c | BL9: Masonry Brick
BA10: =AC14 -> 0 Bag | BB10: =AC15 -> 0 CFT | BC10: =BO49+AB14*BO49/100 -> 0 | BD10: =AC17 -> 0.000 Ton | BE10: =Z23 -> 0 CFT | BG10: =AC19 -> 0 CFT | BH10: =AC18 -> 0 SFT | BI10: =BO50+AB14*BO50/100 -> 0 | BJ10: =AC20 -> 0 Nos | BK10: =AC21 -> 0 CFT | BL10: =AC22 -> 0 SFT | BP10: Rcc Wall
A11: WATER RESERVOIR SLAB | W11: WATER RESERVOIR Estimated And Costing
BQ12: Cement | BS12: =IF(C29>0,(BS16*D30*1.54)/(G30*1.25),"") -> 
A13: Description | C13: Top Slab | D13: Bottom Slab | E13: Rcc casting Ratio | I13: C.C casting Ratio | L13: Rebar calculation | O13: Top Slab | P13: Bottom Slab | W13: DESCRIPTION | Z13: Quantity | AB13: Wastage Add | AC13: Quantity (Wastage Add) | AE13: Rate | AG13: Amount TK | BG13: All Rebar | BQ13: Sand | BS13: =IF(C29>0,(BS16*1.54*E30)/G30,"") -> 
A14: Length,L (ft) | L14: Bottom layer | M14: long direction Dia (mm) | W14: Cement | Z14: =BO45+BO47 -> 0 Bag | AB14: 10 % ADD | AC14: =Z14+$AB$14*Z14/100 -> 0 Bag | AE14: 2.00 TK | AG14: =AC14*AE14 -> 0 TK | AY14: WATER RESERVOIR SLAB | BD14: SUM | BQ14: Stone/Brick Chips | BS14: =IF(C29>0,(BS16*1.54*F30)/G30,"") -> 
A15: Breadth,B (ft) | E15: 1 | F15: 2.0 | G15: 4 | H15: =SUM(E15:G15) -> 7.0 | I15: 1 | J15: 3 | K15: =SUM(I15:J15) -> 4.0 | M15: Specing(inh) | W15: Sand | Z15: =BO46+BO48 -> 0 CFT | AC15: 0 CFT | AE15: 3.00 TK | AG15: 0 TK | AZ15: Cement (cc) | BB15: =(BB23*$I$15*1.54)/($K$15*1.25) -> 0 Bag | BC15: =(BC23*$I$15*1.54)/($K$15*1.25) -> 0 Bag | BD15: =SUM(BB15:BC15) -> 0 | BG15: Bottom long direction | BI15: =O14 -> 0 MM | BJ15: =P14 -> 0 MM | BL15: =IF(O14>0,BB26+$AB$14*BB26/100,"") ->  | BM15: =IF(P14>0,BC26+$AB$14*BC26/100,"") ->  | BQ15: Brick Nos | BS15: =IF(C29>0,BS14*9.5,"") -> 
A16: Thickness, T (inch) | M16: Short direction Dia (mm) | W16: Stone/Brick Chips | Z16: =VLOOKUP(W16,BF45:BG46,2,0) -> 0 | AC16: 0 | AE16: 4.00 TK | AG16: 0 TK | AZ16: Sand (cc) | BB16: =($BB$23*1.54*J15)/$K$15 -> 0 CFT | BC16: =($BB$23*1.54*K15)/$K$15 -> 0 CFT | BD16: 0 | BG16: Bottom Short direct | BI16: =O16 -> 0 MM | BJ16: =P16 -> 0 MM | BL16: =IF(O14>0,BB27+$AB$14*BB27/100,"") ->  | BM16: =IF(P14>0,BC27+$AB$14*BC27/100,"") ->  | BQ16: Casting | BS16: =IF(C29>0,(C30*C31*(C32/12))*C29,"") -> 
A17: Clear Cover (inh) | M17: Specing (inh) | W17: Reber | Z17: =SUM(BO64:BP71)/1000 -> 0.000 Ton | AC17: 0.000 Ton | AE17: 5.00 TK | AG17: 0 TK | AZ17: Cement | BB17: =(BB21*$E$15*1.54)/($H$15*1.25) -> 0 Bag | BC17: =(BC21*$E$15*1.54)/($H$15*1.25) -> 0 Bag | BD17: 0 | BG17: Top long direction | BI17: =O18 -> 0 MM | BJ17: =P18 -> 0 MM | BL17: =IF(O14>0,BB28+$AB$14*BB28/100,"") ->  | BM17: =IF(P14>0,BC28+$AB$14*BC28/100,"") ->  | BQ17: Formwork | BS17: =IF(C29>0,(C30*C31)*C29,"") -> 
A18: C.C (inch) | L18: Top layer | M18: long direction Dia (mm) | W18: Formwork | Z18: =BO55 -> 0 SFT | AC18: 0 SFT | AE18: 6.00 TK | AG18: 0 TK | AZ18: Sand | BB18: =(BB21*1.54*$F$15)/($H$15*1.25) -> 0 CFT | BC18: =(BC21*1.54*$F$15)/($H$15*1.25) -> 0 CFT | BD18: 0 | BG18: Top Short direction | BI18: =O20 -> 0 MM | BJ18: =P20 -> 0 MM | BL18: =IF(O14>0,BB29+$AB$14*BB29/100,"") ->  | BM18: =IF(P14>0,BC29+$AB$14*BC29/100,"") ->  | BP18: inside Side Rod | BR18: nos | BS18: =IF(AND(C29>0,K29>0),(C30/(K30/12))+1,"0") -> 0
A19: Sand Filling (inch) | M19: Specing(inh) | W19: Sand Filling | Z19: =BO52 -> 0 CFT | AC19: 0 CFT | AE19: 7.00 TK | AG19: 0 TK | AZ19: Stone/Brick Chips | BB19: =($G$15*1.54*BB21)/$H$15 -> 0 CFT | BC19: =($G$15*1.54*BC21)/$H$15 -> 0 CFT | BD19: 0 | BG19: inside Vertcial Rebar | BI19: =K29 -> 0 MM | BL19: =IF(C29>0,BS26+$AB$14*BS26/100,"") ->  | BR19: length | BS19: =IF(AND(C29>0,K29>0),(C31+(K37/12)),"0") -> 0
A20: Brick Flat SOLING (inch) | M20: Short direction Dia (mm) | W20: Brick Flat | Z20: =BO54*3 -> 0 Nos | AC20: 0 Nos | AE20: 8.00 TK | AG20: 0 TK | AZ20: Brick Nos | BB20: =BB19*9.5 -> 0 Nos | BC20: =BC19*9.5 -> 0 Nos | BD20: 0 | BG20: inside Vertcial Binder | BI20: =K31 -> 0 MM | BL20: =IF(C29>0,BS27+$AB$14*BS27/100,"") ->  | BP20: inside Side Binder | BR20: nos | BS20: =IF(AND(C29>0,K31>0),(C31/(K32/12))+1,"0") -> 0
M21: Specing (inh) | W21: C.C | Z21: =BO53 -> 0 CFT | AC21: 0 CFT | AE21: 9.00 TK | AG21: 0 TK | AZ21: Casting | BB21: =((C14*C15*(C16/12))) -> 0 CFT | BC21: =((D14*D15*(D16/12))) -> 0 CFT | BD21: 0 | BG21: Outside Vertcial Rebar | BI21: =K33 -> 0 MM | BL21: =IF(C29>0,BS28+$AB$14*BS28/100,"") ->  | BR21: length | BS21: =IF(AND(C29>0,K31>0),(C30)-((C33/12)*2),"0") -> 0
L22: Development length (inh) | W22: Masonry Brick | Z22: =BO43 -> 0 Nos | AC22: 0 SFT | AE22: 10.00 TK | AG22: 0 TK | AZ22: Sand Filling | BB22: =C14*C15*(C19/12) -> 0 CFT | BC22: =D14*D15*(D19/12) -> 0 CFT | BD22: 0 | BG22: outsideVertcial Binder | BI22: =K35 -> 0 MM | BL22: =IF(C29>0,BS29+$AB$14*BS29/100,"") ->  | BP22: Out Side Rod | BR22: nos | BS22: =IF(AND(C29>0,K33>0),(C30/(K34/12))+1,"0") -> 0
W23: Casting | Z23: =BO51 -> 0 CFT | AC23: 0 CFT | AE23: 11.00 TK | AG23: =AC23*AE23 -> 0 TK | AZ23: C.C | BB23: =C14*C15*(C18/12) -> 0 CFT | BC23: =D14*D15*(D18/12) -> 0 CFT | BD23: 0 | BR23: length | BS23: =IF(AND(C29>0,K33>0),C31+(K37/12),"0") -> 0
AE24: Total Cost= | AG24: =SUM(AG14:AI23) -> 0 TK | AZ24: Brick Falt Soling | BB24: =C14*C15 -> 0 SFT | BC24: =D14*D15 -> 0 SFT | BD24: 0 | BG24: Brick Masonry | BP24: Out Side Binder Rod | BR24: nos | BS24: =IF(AND(C29>0,K35>0),(C31/(K36/12))+1,"0") -> 0
AZ25: Formwork | BB25: =(C14+C15)*(C16/12) -> 0 SFT | BC25: =(D14+D15)*(D16/12) -> 0 SFT | BD25: 0 | BR25: length | BS25: =IF(AND(C29>0,K35>0),C30-((C33/12)*2),"0") -> 0
A26: Rcc Wall Estimated | M26: Brick Masonry | AY26: Slab | AZ26: Bottom long | BB26: =IF(O14>0,((C15*12-C17-C17)/O15+1)*O14^2/532*(C14*12-C17-C17+O22+O22)/12,"") ->  | BC26: =IF(P14>0,((D15*12-D17-D17)/P15+1)*P14^2/532*(D14*12-D17-D17+P22+P22)/12,"") ->  | BD26: 0 | BG26: Total Mortar | BI26: =IF(#REF!>0,(#REF!*#REF!*(#REF!/12)),"") ->  | BJ26: =IF(O29>0,(O30*O31*(O32/12)),"") ->  | BQ26: Out Side Rod | BS26: =IF(C29>0,((K29^2/532)*BS18*BS19)*C29,"") -> 
Z27: Reinforcement | AZ27: Bottom Short | BB27: =IF(O16>0,((C14*12-C17-C17)/O17+1)*O16^2/532*(C15*12-C17-C17+O22+O22)/12,"") ->  | BC27: =IF(P16>0,((D14*12-D17-D17)/P17+1)*P16^2/532*(D15*12-D17-D17+P22+P22)/12,"") ->  | BD27: 0 | BG27: Cement | BI27: =IF(#REF!>0,((BI26*$M$35)/$O$35)/1.25,"") ->  | BJ27: =IF(O29>0,((BJ26*$M$35)/$O$35)/1.25,"") ->  | BQ27: Out Side Binder | BS27: =IF(C29>0,((K31^2/532)*BS20*BS21)*C29,"") -> 
A28: Description | C28: Type-1 | D28: Rcc casting Ratio | H28: Long Column Rebar calculation | K28: Type-1 | M28: Description | O28: Type-2 | AA28: 10 | AB28: =IF(AA28>0,SUMIF($BI$15:$BJ$22,AA28,$BL$15:$BM$22),"") -> 0 KG | AZ28: Top long | BB28: =IF(O18>0,((C15*12-C17-C17)/O19+1)*O18^2/532*(C14*12-C17-C17+O22+O22)/12,"") ->  | BC28: =IF(P18>0,((D15*12-D17-D17)/P19+1)*P18^2/532*(D14*12-D17-D17+P22+P22)/12,"") ->  | BD28: 0 | BG28: sand | BI28: =IF(#REF!>0,((BI26*$N$35)/$O$35),"") ->  | BJ28: =IF(O29>0,((BJ26*$N$35)/$O$35),"") ->  | BQ28: inSide Rod | BS28: =IF(C29>0,((K33^2/532)*BS22*BS23)*C29,"") -> 
A29: Rcc Wall Nos | H29: Inside Side | I29: Vertcial Rebar Dia | M29: Nos | AA29: 12 | AB29: =IF(AA29>0,SUMIF($BI$15:$BJ$22,AA29,$BL$15:$BM$22),"") -> 0 KG | AZ29: Top Short | BB29: =IF(O20>0,((C14*12-C17-C17)/O21+1)*O20^2/532*(C15*12-C17-C17+O22+O22)/12,"") ->  | BC29: =IF(P20>0,((D14*12-D17-D17)/P21+1)*P20^2/532*(D15*12-D17-D17+P22+P22)/12,"") ->  | BD29: 0 | BG29: Total Brick | BI29: =IF(#REF!>0,IF(#REF!=10,(#REF!*#REF!*(#REF!/12)*9.5),IF(#REF!=5,(#REF!*#REF!)*(#REF!/12)*9.5,)),"") ->  | BJ29: =IF(O29>0,IF(O32=10,(O30*O31*(O32/12)*9.5),IF(O32=5,(O30*O31)*(O32/12)*9.5,)),"") ->  | BQ29: inSide Binder | BS29: =IF(C29>0,((K35^2/532)*BS24*BS25)*C29,"") -> 
A30: Length,L (ft) | D30: 1 | E30: 2.0 | F30: 4 | G30: =SUM(D30:F30) -> 7.0 | I30: Vertcial Rebar Specing (inch) | M30: Wall Length,L (ft) | AA30: 16 | AB30: 0 KG
A31: Height,H (ft) | I31: Binder Rebar Dia | M31: Wall Height,H (ft) | AA31: 20 | AB31: 0 KG
A32: Wall Thickness, T (inch) | I32: Binder Rebar Specing (inch) | M32: Thickness,T (inch)
A33: Clear Cover (inh) | H33: Out Side | I33: Vertcial Rebar Dia
I34: Vertcial Rebar Specing (inch) | M34: Brick Mortar Ratio
I35: Binder Rebar Dia | M35: 1 | N35: 4 | O35: =IF(O29>0,M35+N35,"") -> 
I36: Binder Rebar Specing (inch)
H37: Development length (inh)
BI41: All result
BO42: Sum
BI43: Masonry Brick | BN43: =BJ29 ->  | BO43: =SUM(BK43:BN43) -> 0
BI44: Total Mortar | BN44: =BJ26 ->  | BO44: 0
BF45: Stone/Brick Chips | BG45: =BO49 -> 0 | BI45: Cement (cc) | BK45: =BB15 -> 0.00 | BL45: =BC15 -> 0.00 | BN45: =BJ27 ->  | BO45: 0
BF46: Brick Nos | BG46: =BO50 -> 0 | BI46: Sand (cc) | BK46: 0.00 | BL46: 0.00 | BN46: =BJ28 ->  | BO46: 0
BI47: Cement | BK47: 0.00 | BL47: 0.00 | BM47: =BS12 ->  | BO47: 0
BI48: Sand | BK48: 0.00 | BL48: 0.00 | BM48: =BS13 ->  | BO48: 0
BI49: Stone/Brick Chips | BK49: 0.00 | BL49: 0.00 | BM49: =BS14 ->  | BO49: 0
BI50: Brick Nos | BK50: 0.00 | BL50: 0.00 | BM50: =BS15 ->  | BO50: 0
BI51: Casting | BK51: 0.00 | BL51: 0.00 | BM51: =BS16 ->  | BO51: 0
BI52: Sand Filling | BK52: 0.00 | BL52: 0.00 | BO52: 0
BI53: C.C | BK53: 0.00 | BL53: 0.00 | BO53: 0
BI54: Brick Falt Soling | BK54: 0.00 | BL54: 0.00 | BO54: 0
BI55: Formwork | BK55: 0.00 | BL55: 0.00 | BM55: =BS17 ->  | BO55: 0
BH56: Out Side Rod | BJ56: nos | BM56: =BS18 -> 0 | BO56: =SUM(BK56:BN56) -> 0
BJ57: length | BM57: 0 | BO57: 0
BH58: Out Side Binder Rod | BJ58: nos | BM58: 0 | BO58: 0
BJ59: length | BM59: 0 | BO59: 0
BH60: inside Side Rod | BJ60: nos | BM60: 0 | BO60: 0
BJ61: length | BM61: 0 | BO61: 0
BH62: inside Side Binder | BJ62: nos | BM62: 0 | BO62: 0
BJ63: length | BM63: 0 | BO63: 0
BH64: rcc Wall | BI64: Out Side Rod | BO64: 0 KG
BI65: Out Side Binder | BO65: 0 KG
BI66: inSide Rod | BO66: 0 KG
BI67: inSide Binder | BO67: 0 KG
BH68: Slab | BI68: Bottom long | BK68: =BB26 ->  | BO68: =SUM(BK68:BN68) -> 0 KG
BI69: Bottom Short | BO69: =SUM(BK69:BN69) -> 0 KG
BI70: Top long | BO70: =SUM(BK70:BN70) -> 0 KG
BI71: Top Short | BO71: =SUM(BK71:BN71) -> 0 KG

Sheet Brick Masonry (hidden)
A1: This is The Property of NOR DESIGN SOLUTION
A6: এক্সেল শীট বিষয়ক কিছু জানার থাকলে বা আপডেট নিয়ে কোন পরামর্শ থাকলে আমাদের সাথে যোগাযোগ করুন অথবা ওয়েবসাইটে কমেন্ট করুন
A7: এক্সেল শীট সম্পর্কে যাবতীয় তথ্য বিস্তারিত জানতে ভিজিট করুন আমাদের ইউটিউব চ্যানেলে
A9: Click Here To Watch The Brick Masonry Estimate video
A11: Brick Masonry Estimate And Costing | Q11: Result
A13: Description | C13: Type-1 | D13: Type-2 | E13: Type-3 | F13: Type-4 | G13: Type-5 | H13: Type-6 | I13: Type-7 | J13: Type-8 | K13: Type-9 | L13: Type-10 | Q13: 5" and 10" Brick Masonry Estimate And Price
A14: Nos | Q14: Description | S14: Quanity | W14: Totall Quanity | Y14: Rate | Z14: Wastage | AA14: Total Amount
A15: Wall-1 Length,L (ft) | S15: 5" Wall | U15: 10" Wall
A16: Wall-2 Length,L (ft) | Q16: Cement | S16: =IF(AA29>0,((((AB29*0.35)*C23)/E23)/1.25),"0") -> 0 | U16: =IF(AA33>0,((((AB33*0.35)*G23)/I23)/1.25),"0") -> 0 | W16: =SUM(S16:V16) -> 0 Bag | Y16: 600 TK | Z16: 10.0% ADD | AA16: =IF(W16>0,(W16*Y16)+Z16*(S16*Y16)/100,"") -> 
A17: Wall-3 Length,L (ft) | Q17: sand | S17: =IF(AA29>0,(((AB29*0.35)/E23)*D23),"0") -> 0 | U17: =IF(AA33>0,(((AB33*0.35*H23)/I23)),"0") -> 0 | W17: =SUM(S17:V17) -> 0 Bag | Y17: 45 TK | AA17: =IF(W17>0,(W17*Y17)+Z17*(S17*Y17)/100,"") -> 
A18: Wall-4 Length,L (ft) | Q18: Brick | S18: =AA29*5 -> 0 nos | U18: =AA33*10 -> 0 nos | W18: =SUM(S18:V18) -> 0 Nos | Y18: 15 TK | AA18: =(W18*Y18)+Z16*(S18*Y18)/100 -> 0 TK
A19: Wall Height,H (ft) | Y19: Total Cost = | AA19: =SUM(AA16:AB18) -> 0 TK
A20: Wall Thickness,T (inch)
C22: 5" Wall Ratio | G22: 10" Wall Ratio
C23: 1 | D23: 4 | E23: =C23+D23 -> 5 | G23: 1 | H23: 4 | I23: =G23+H23 -> 5
A25: Deduction Brick Masonry | D25: Type-1 | E25: Type-2 | F25: Type-3 | G25: Type-4 | H25: Type-5 | I25: Type-6 | J25: Type-7 | K25: Type-8 | L25: Type-9 | M25: Type-10
A26: Door Deduction | B26: Nos
B27: Length,L (ft) | O27: Type-1 | P27: Type-2 | Q27: Type-3 | R27: Type-4 | S27: Type-5 | T27: Type-6 | U27: Type-7 | V27: Type-8 | W27: Type-9 | X27: Type-10 | Y27: Total Area | Z27: Total volumn | AA27: Add% | AB27: Add%
B28: Height,H (ft) | O28: 5" SFT | P28: 5" SFT | Q28: 5" SFT | R28: 5" SFT | S28: 5" SFT | T28: 5" SFT | U28: 5" SFT | V28: 5" SFT | W28: 5" SFT | X28: 5" SFT
A29: Window Deduction | B29: Nos | O29: =IF(C14>0,IF(C20=5,(C14*(C15+C16+C17+C18)*C19)-(D26*D27*D28)-(D29*D30*D31)-(D32*D33*D34)-(D35*D36*D37),""),"") ->  | Q29: =IF(E14>0,IF(E20=5,(E14*(E15+E16+E17+E18)*E19)-(F26*F27*F28)-(F29*F30*F31)-(F32*F33*F34)-(F35*F36*F37),""),"") ->  | Y29: =SUM(O29:X29) -> 0 SFT | Z29: =IF(Y29>0,Y29*(5/12),"") ->  | AA29: =SUM(O29:X29)+Z16*(SUM(O29:X29))/100 -> 0 SFT | AB29: =IF(AA29>0,Z29+Z16*Z29/100,"") ->  | AD29: =S16 -> 0
B30: Length,L (ft) | AD30: =S17 -> 0
B31: Height,H (ft) | Q31: Type-3 | R31: Type-4 | S31: Type-5 | T31: Type-6 | U31: Type-7 | V31: Type-8 | W31: Type-9 | X31: Type-10 | Y31: Total Area | Z31: Total volumn | AA31: Add% | AB31: Add% | AD31: =S18 -> 0 nos
A32: Beam Deduction | B32: Nos | Q32: 10" SFT | R32: 10" SFT | S32: 10" SFT | T32: 10" SFT | U32: 10" SFT | V32: 10" SFT | W32: 10" SFT | X32: 10" SFT
B33: Length,L (ft) | O33: =IF(C14>0,IF(C20=10,(C14*(C15+C16+C17+C18)*C19)-(D26*D27*D28)-(D29*D30*D31)-(D32*D33*D34)-(D35*D36*D37),""),"") ->  | P33: =IF(D14>0,IF(D20=10,(D14*(D15+D16+D17+D18)*D19)-(E26*E27*E28)-(E29*E30*E31)-(E32*E33*E34)-(E35*E36*E37),""),"") ->  | Y33: =SUM(O33:X33) -> 0 SFT | Z33: =IF(Y33>0,Y33*(10/12),"") ->  | AA33: =SUM(O33:X33)+Z16*(SUM(O33:X33))/100 -> 0 SFT | AB33: =IF(AA33>0,Z33+Z16*Z33/100,"") -> 
B34: Height,H (ft)
A35: Column Deduction | B35: Nos
B36: Length,L (ft)
B37: Height,H (ft)

Sheet Plaster and Paint Work (hidden)
A1: This is The Property of NOR DESIGN SOLUTION
A6: এক্সেল শীট বিষয়ক কিছু জানার থাকলে বা আপডেট নিয়ে কোন পরামর্শ থাকলে আমাদের সাথে যোগাযোগ করুন অথবা ওয়েবসাইটে কমেন্ট করুন
A7: এক্সেল শীট সম্পর্কে যাবতীয় তথ্য বিস্তারিত জানতে ভিজিট করুন আমাদের ইউটিউব চ্যানেলে
A8: Click Here To Watch The Plaster and Paint Work Estimate video
I10: Plaster and Paint Estimate
A13: Plaster or Paint Work Inside and Outsid Wall | P13: Beam Plaster and Paint Work | AH13: Plaster or Paint Work Inside and Outsid
A15: Description | C15: Type-1 | D15: Type-2 | E15: Type-3 | F15: Type-4 | G15: Type-5 | H15: Type-6 | I15: Type-7 | J15: Type-8 | K15: Type-9 | L15: Type-10 | P15: Description | R15: Type-1 | S15: Type-2 | T15: Type-3 | U15: Type-4 | V15: Type-5 | W15: Type-6 | X15: Type-7 | Y15: Type-8 | Z15: Type-9 | AA15: Type-10 | AH15: sft | AI15: sft | AJ15: sft | AK15: sft | AL15: sft | AM15: sft | AN15: sft | AO15: sft | AP15: sft | AQ15: sft | AR15: Total sft
A16: Nos | P16: Nos | AH16: =IF(C16>0,((C17+C18+C19+C20)*C21*C16)-(D26*D27*D28)-(D29*D30*D31)-(D32*D33*D34)-(D35*D36*D37),"") ->  | AR16: =SUM(AH16:AQ16) -> 0 SFT
A17: Wall-1 Length,L (ft) | P17: Length,L (ft) | AH17: cft | AI17: cft | AJ17: cft | AK17: cft | AL17: cft | AM17: cft | AN17: cft | AO17: cft | AP17: cft | AQ17: cft | AR17: Total cft
A18: Wall-2 Length,L (ft) | P18: Breadth, B (inch) | AH18: =IF(C16>0,AH16*(C22/12),"") ->  | AI18: =IF(D16>0,AI16*(D22/12),"") ->  | AR18: =SUM(AH18:AQ18) -> 0 CFT
A19: Wall-3 Length,L (ft) | P19: Height,H1 (inch)
A20: Wall-4 Length,L (ft) | P20: Height,H2 (inch)
A21: Wall Height,H (ft) | P21: Plaster Thickness (inch)
A22: Plaster Thickness,T (inch) | AH22: Ceiling Plaster and Paint Work
P24: Column Plaster and Paint Work | AH24: sft | AI24: sft | AJ24: sft | AK24: sft | AL24: sft | AM24: sft | AN24: sft | AO24: sft | AP24: sft | AQ24: sft | AR24: total sft
A25: Deduction For Brick Masonry | D25: Type-1 | E25: Type-2 | F25: Type-3 | G25: Type-4 | H25: Type-5 | I25: Type-6 | J25: Type-7 | K25: Type-8 | L25: Type-9 | M25: Type-10 | AH25: =IF(R40>0,R40*R41*R42,"") ->  | AR25: =SUM(AH25:AQ25) -> 0 SFT
A26: Door Deduction | B26: Nos | P26: Description | R26: Type-1 | S26: Type-2 | T26: Type-3 | U26: Type-4 | V26: Type-5 | W26: Type-6 | X26: Type-7 | Y26: Type-8 | Z26: Type-9 | AA26: Type-10 | AH26: cft | AI26: cft | AJ26: cft | AK26: cft | AL26: cft | AM26: cft | AN26: cft | AO26: cft | AP26: cft | AQ26: cft | AR26: Total cft
B27: Length,L (ft) | P27: Nos | AH27: =IF(R40>0,R40*R41*R42*(R43/12),"") ->  | AR27: =SUM(AH27:AQ27) -> 0 CFT
B28: Height,H (ft) | P28: Column Site-1 (inch)
A29: Window Deduction | B29: Nos | P29: Column Site-2 (inch)
B30: Length,L (ft) | P30: Column Site-3 (inch)
B31: Height,H (ft) | P31: Column Site-4 (inch) | AH31: Beam Plaster and Paint Work
A32: Beam Deduction | B32: Nos | P32: Column Height,H (ft)
B33: Length,L (ft) | P33: (-) Deduct All Wall Thickness (inch) | AH33: sft | AI33: sft | AJ33: sft | AK33: sft | AL33: sft | AM33: sft | AN33: sft | AO33: sft | AP33: sft | AQ33: sft | AR33: Total sft
B34: Height,H (ft) | P34: Plaster Thickness,T (inch) | AH34: =IF(R16>0,R16*R17*((R18/12)+(R19/12)+(R20/12)),"") ->  | AR34: =SUM(AH34:AQ34) -> 0 SFT
A35: Column Deduction | B35: Nos | AH35: cft | AI35: cft | AJ35: cft | AK35: cft | AL35: cft | AM35: cft | AN35: cft | AO35: cft | AP35: cft | AQ35: cft | AR35: Total cft
B36: Length,L (ft) | AH36: =IF(R16>0,R16*R17*((R18/12)+(R19/12)+(R20/12))*(R21/12),"") ->  | AR36: =SUM(AH36:AQ36) -> 0 CFT
B37: Height,H (ft) | P37: Ceiling Plaster and Paint Work
P39: Description | R39: Type-1 | S39: Type-2 | T39: Type-3 | U39: Type-4 | V39: Type-5 | W39: Type-6 | X39: Type-7 | Y39: Type-8 | Z39: Type-9 | AA39: Type-10
P40: Nos
P41: Length,L (ft) | AH41: Column Plaster and Paint Work
P42: Breadth, B(ft)
P43: Plaster Thickness (inch) | AH43: sft | AI43: sft | AJ43: sft | AK43: sft | AL43: sft | AM43: sft | AN43: sft | AO43: sft | AP43: sft | AQ43: sft | AR43: Total sft
AH44: =IF(R27>0,R27*(((R28+R29+R30+R31)/12)-(R33/12))*R32,"") ->  | AR44: =SUM(AH44:AQ44) -> 0 SFT | AV44: Primers/Sealer | AW44: =V78 -> 0
AH45: cft | AI45: cft | AJ45: cft | AK45: cft | AL45: cft | AM45: cft | AN45: cft | AO45: cft | AP45: cft | AQ45: cft | AR45: Totalcft | AV45: Ready-mix putty | AW45: =V79 -> 0
AH46: =IF(R27>0,(R27*(((R28+R29+R30+R31)/12)-(R33/12))*R32)*(R34/12),"") ->  | AR46: =SUM(AH46:AQ46) -> 0 CFT | AV46: Paint | AW46: =V80 -> 0
AV48: Cement | AW48: =F74 -> 0
AV49: Sand | AW49: =F75 -> 0
AH50: Total | AI50: Inside Plaster Work | AK50: Out Side Plaster Work | AM50: Ceiling Plaster Work | AO50: Beams Plaster Work | AQ50: Column Plaster Work
AH51: SFT | AI51: =AR16 -> 0 SFT | AK51: =AI51 -> 0 SFT | AM51: =AR25 -> 0 SFT | AO51: =AR34 -> 0 SFT | AQ51: =AR44 -> 0 SFT | AS51: Total CFT
G52: Plaster Ratio | AH52: CFT | AI52: =AR18 -> 0 CFT | AK52: =AI52 -> 0 SFT | AM52: =AR27 -> 0 CFT | AO52: =AR36 -> 0 CFT | AQ52: =AR46 -> 0 CFT | AS52: =SUM(AI52:AR52) -> 0 CFT
G53: 1 | H53: 4 | I53: =G53+H53 -> 5
C55: Total | E55: Inside Plaster Work | G55: Out Side Plaster Work | I55: Beams + Column Plaster Work | K55: Ceiling Plaster Work | S55: Total | U55: Inside Plaster Work | W55: Out Side Plaster Work | Y55: Ceiling Plaster Work | AA55: Beams + Column Plaster Work
C56: CFT | E56: =(AI52)+J61*(AI52)/100 -> 0 CFT | G56: =(AK52)+J63*(AK52)/100 -> 0 CFT | I56: =(AO52+AQ52)+J65*(AO52+AQ52)/100 -> 0 CFT | K56: =AM52+J67*AM52/100 -> 0 CFT | S56: SFT | U56: =AI51+Z61*AI51/100 -> 0 SFT | W56: =AK51+Z64*AK51/100 -> 0 SFT | Y56: =AM51+Z67*AM51/100 -> 0 SFT | AA56: =(AO51+AQ51)+Z70*(AO51+AQ51)/100 -> 0 CFT
C58: Inside+Outside+Ceiling Plaster Estimate And Costin | S58: Inside+Outside+Ceiling Paint Estimate And Costin
C60: Item | E60: Description (Paint) | G60: Total Quantity | I60: Rate | J60: Wastage | K60: Toatal Amount | S60: Item | U60: Description (Paint) | W60: Total Quantity | Y60: Rate | Z60: Wastage | AA60: Toatal Amount
C61: Inside Wall Plaster Work | E61: Cement | G61: =IF(E56>0,(E56*G53*1.5)/I53/1.25,"0") -> 0 | I61: 550 TK | J61: 5.0% ADD | K61: =IF(G61>0,G61*I61,"") -> 0 TK | S61: Inside Wall Paint Work | U61: Primers/Sealer | W61: =IF(U56>0,U56*0.0089,"0") -> 0 | Y61: 45 TK | Z61: 0.0% ADD | AA61: =IF(W61>0,W61*Y61,"0") -> 0 TK
E62: Sand | G62: =IF(E56>0,(E56*H53*1.5)/I53,"0") -> 0 | I62: 45 TK | K62: =IF(G62>0,G62*I62,"") -> 0 TK | U62: Ready-mix putty | W62: =IF(U56>0,U56*0.035,"0") -> 0 | Y62: 68 TK | AA62: =IF(W62>0,W62*Y62,"0") -> 0 TK
C63: Outside Wall Plaster Work | E63: Cement | G63: =IF(G56>0,(G56*G53*1.5)/I53/1.25,"0") -> 0 | I63: 550 TK | J63: 5.0% ADD | K63: 0 TK | U63: Paint | W63: =IF(U56>0,U56*0.0189,"0") -> 0 | Y63: 76 TK | AA63: 0 TK
E64: Sand | G64: =IF(G56>0,(G56*H53*1.5)/I53,"0") -> 0 | I64: 45 TK | K64: 0 TK | S64: Outside Wall Paint Work | U64: Primers/Sealer | W64: =IF(W56>0,W56*0.0089,"0") -> 0 | Y64: 45 TK | Z64: 0.0% ADD | AA64: 0 TK
C65: Beams + Column Plaster Work | E65: Cement | G65: =IF(I56>0,(I56*G53*1.5)/I53/1.25,"0") -> 0 | I65: 550 TK | J65: 10.0% ADD | K65: 0 TK | U65: Ready-mix putty | W65: =IF(W56>0,W56*0.035,"0") -> 0 | Y65: 68 TK | AA65: 0 TK
E66: Sand | G66: =IF(I56>0,(I56*H53*1.5)/I53,"0") -> 0 | I66: 45 TK | K66: 0 TK | U66: Paint | W66: =IF(W56>0,W56*0.0189,"0") -> 0 | Y66: 76 TK | AA66: 0 TK
C67: Ceiling Plaster Work | E67: Cement | G67: =IF(K56>0,(K56*G53*1.5)/I53/1.25,"0") -> 0 | I67: 550 TK | J67: 10.0% ADD | K67: 0 TK | S67: Ceiling Paint Work | U67: Primers/Sealer | W67: =IF(Y56>0,Y56*0.0089,"0") -> 0 | Y67: 45 TK | Z67: 0.0% ADD | AA67: 0 TK
E68: Sand | G68: =IF(K56>0,(K56*H53*1.5)/I53,"0") -> 0 | I68: 45 TK | K68: 0 TK | U68: Ready-mix putty | W68: =IF(Y56>0,Y56*0.035,"0") -> 0 | Y68: 68 TK | AA68: 0 TK
J69: Total | K69: =SUM(K61:L68) -> 0 TK | U69: Paint | W69: =IF(Y56>0,Y56*0.0189,"0") -> 0 | Y69: 76 TK | AA69: 0 TK
S70: Beams + Column Plaster Work | U70: Primers/Sealer | W70: =IF(AA56>0,AA56*0.0089,"0") -> 0 | Y70: 45 TK | Z70: 0.0% ADD | AA70: 0 TK
D71: Total Quantity And Price | U71: Ready-mix putty | W71: =IF(AA56>0,AA56*0.035,"0") -> 0 | Y71: 68 TK | AA71: 0 TK
U72: Paint | W72: =IF(AA56>0,AA56*0.0189,"0") -> 0 | Y72: 76 TK | AA72: 0 TK
D73: DESCRIPTION | F73: Quantity | H73: Amount TK | Z73: Total | AA73: =SUM(AA61:AB72) -> 0 TK
D74: Cement | F74: =IF(OR(E56>0,G56>0,I56>0,K56>0),G61+G63+G65+G67,"0") -> 0 | H74: =IF(I67>0,IF(I61>0,IF(I63>0,IF(I65>0,K61+K63+K65+K67,""),""),""),"") -> 0 TK
D75: Sand | F75: =IF(OR(E56>0,G56>0,I56>0,K56>0),G62+G64+G66+G68,"0") -> 0 | H75: =IF(I62>0,IF(I64>0,IF(I66>0,IF(I68>0,K62+K64+K66+K68,""),""),""),"") -> 0 TK | T75: Total Quantity And Price
H76: =SUM(H74:I75) -> 0 TK
T77: DESCRIPTION | V77: Quantity | X77: Amount TK
T78: Primers/Sealer | V78: =IF(OR(U56>0,W56>0,Y56>0,AA56>0),W61+W64+W67+W70,"0") -> 0 | X78: =IF(V78>0,AA61+AA64+AA67+AA70,"") -> 0 TK
T79: Ready-mix putty | V79: =IF(OR(U56>0,W56>0,Y56>0,AA56>0),W62+W65+W68+W71,"0") -> 0 | X79: =IF(C16>0,AA62+AA65+AA68+AA71,"") -> 
T80: Paint | V80: =IF(OR(U56>0,W56>0,Y56>0,AA56>0),W63+W66+W69+W72,"0") -> 0 | X80: =IF(C16>0,AA63+AA66+AA69+AA72,"") -> 
W81: Total | X81: =SUM(X78:Y80) -> 0 TK

Sheet Tiles Work (hidden)
A1: This is The Property of NOR DESIGN SOLUTION
A5: এক্সেল শীট বিষয়ক কিছু জানার থাকলে বা আপডেট নিয়ে কোন পরামর্শ থাকলে আমাদের সাথে যোগাযোগ করুন অথবা ওয়েবসাইটে কমেন্ট করুন
A6: এক্সেল শীট সম্পর্কে যাবতীয় তথ্য বিস্তারিত জানতে ভিজিট করুন আমাদের ইউটিউব চ্যানেলে
A7: Click Here To Watch The Tiles Work Estimate video
A10: Estimate and Price For Tiles Work
A12: Description | C12: Room-1 | E12: Room-2 | G12: Room-3 | I12: Room-4 | K12: Room-5 | M12: Room-6 | O12: Room-7 | Q12: Room-8 | S12: Room-9 | U12: Room-10 | W12: Room-11 | Y12: Room-12 | AA12: Room-13 | AC12: Room-14 | AE12: Room-15
A13: Wall Tile or Floor Tile | C13: Floor | D13: Wall | E13: Floor | F13: Wall | G13: Wall | H13: Floor | I13: Wall | J13: Wall | K13: Wall | L13: Wall | M13: Wall | N13: Wall | O13: Wall | P13: Wall | Q13: Wall | R13: Wall | S13: Floor | T13: Floor | U13: Floor | V13: Floor | W13: Floor | X13: Floor | Y13: Floor | Z13: Floor | AA13: Floor | AB13: Floor | AC13: Floor | AD13: Wall | AE13: Floor | AF13: Wall
A14: Room Nos
A15: Room Length,L (ft)
A16: Room Breadth,B (ft)
A17: Skirting Height,H (ft)
A18: Tiles Size | B18: Length,L (inch)
B19: Breadth,B (inch)
A20: Skirting | C20: =IF(C14>0,IF(C17>0,(C15+C15+C16+C16),""),"0") -> 0 | D20: =IF(D14>0,IF(D17>0,(D15+D15+D16+D16),""),"0") -> 0 | E20: =IF(E14>0,IF(E17>0,(E15+E15+E16+E16),""),"0") -> 0 | F20: 0 | G20: 0 | H20: 0 | I20: 0 | J20: 0 | K20: 0 | L20: 0 | M20: 0 | N20: 0 | O20: 0 | P20: 0 | Q20: 0 | R20: 0 | S20: 0 | T20: 0 | U20: 0 | V20: 0 | W20: 0 | X20: 0 | Y20: 0 | Z20: 0 | AA20: 0 | AB20: 0 | AC20: 0 | AD20: 0 | AE20: 0 | AF20: 0
A21: Area | C21: =IF(C15>0,C14*C15*C16,"") ->  | D21: =IF(D15>0,C14*D15*D16,"") ->  | E21: =IF(E15>0,E14*E15*E16,"") ->  | F21: =IF(F15>0,E14*F15*F16,"") ->  | G21: =IF(G15>0,G14*G15*G16,"") ->  | H21: =IF(H15>0,G14*H15*H16,"") ->  | I21: =IF(I15>0,I14*I15*I16,"") ->  | J21: =IF(J15>0,I14*J15*J16,"") ->  | K21: =IF(K15>0,K14*K15*K16,"") ->  | L21: =IF(L15>0,K14*L15*L16,"") ->  | M21: =IF(M15>0,M14*M15*M16,"") ->  | N21: =IF(N15>0,M14*N15*N16,"") ->  | O21: =IF(O15>0,O14*O15*O16,"") ->  | P21: =IF(P15>0,O14*P15*P16,"") ->  | Q21: =IF(Q15>0,Q14*Q15*Q16,"") ->  | R21: =IF(R15>0,Q14*R15*R16,"") ->  | S21: =IF(S15>0,S14*S15*S16,"") ->  | T21: =IF(T15>0,S14*T15*T16,"") ->  | U21: =IF(U15>0,U14*U15*U16,"") ->  | V21: =IF(V15>0,U14*V15*V16,"") ->  | W21: =IF(W15>0,W14*W15*W16,"") ->  | X21: =IF(X15>0,W14*X15*X16,"") ->  | Y21: =IF(Y15>0,Y14*Y15*Y16,"") ->  | Z21: =IF(Z15>0,Y14*Z15*Z16,"") ->  | AA21: =IF(AA15>0,AA14*AA15*AA16,"") ->  | AB21: =IF(AB15>0,AA14*AB15*AB16,"") ->  | AC21: =IF(AC15>0,AC14*AC15*AC16,"") ->  | AD21: =IF(AD15>0,AC14*AD15*AD16,"") ->  | AE21: =IF(AE15>0,AE14*AE15*AE16,"") ->  | AF21: =IF(AF15>0,AE14*AF15*AF16,"") -> 
A22: Room Tiles Nos | C22: =IF(C15>0,IF(C19>0,(C21/((C18*C19)/144)),""),"") ->  | D22: =IF(D15>0,IF(D19>0,(D21/((D18*D19)/144)),""),"") ->  | E22: =IF(E15>0,IF(E19>0,(E21/((E18*E19)/144)),""),"") -> 
A23: Skirting tils nos | C23: =IF(C17>0,IF(C19>0,((C20*C17)/((C18/12)*(C19/12))),""),"") ->  | D23: =IF(D17>0,IF(D19>0,((D20*D17)/((D18/12)*(D19/12))),""),"") ->  | E23: =IF(E17>0,IF(E19>0,((E20*E17)/((E18/12)*(E19/12))),""),"") -> 
A24: Total tile nos | C24: =SUM(C22:C23) -> 0 Nos | D24: =SUM(D22:D23) -> 0 Nos | E24: 0 Nos | F24: 0 Nos | G24: 0 Nos | H24: 0 Nos | I24: 0 Nos | J24: 0 Nos | K24: 0 Nos | L24: 0 Nos | M24: 0 Nos | N24: 0 Nos | O24: 0 Nos | P24: 0 Nos | Q24: 0 Nos | R24: 0 Nos | S24: 0 Nos | T24: 0 Nos | U24: 0 Nos | V24: 0 Nos | W24: 0 Nos | X24: 0 Nos | Y24: 0 Nos | Z24: 0 Nos | AA24: 0 Nos | AB24: 0 Nos | AC24: 0 Nos | AD24: 0 Nos | AE24: 0 Nos | AF24: 0 Nos
D26: Floor Tiles Mortar Thickness (inch)
D27: Floor Tiles Mortar Ratio | L27: =J27+K27 -> 0
D28: Cement | G28: Grouting Materials | J28: Sand
D29: =IF(J27>0,(Y45*J27*1.54)/(L27*1.25),"0") -> 0 | G29: =IF(J27>0,Y45*0.036,"0") -> 0 | J29: =IF(J27>0,(Y45*K27*1.54)/L27,"0") -> 0
D31: Wall Tiles Mortar Thickness (inch) | J31: 3 ''
D32: Wall Tiles Mortar Ratio | L32: =J32+K32 -> 0
D33: Cement | G33: Grouting Materials | J33: Sand
D34: =IF(J32>0,(AA45*J32*1.54)/(L32*1.25),"0") -> 0 | G34: =IF(J32>0,AA45*0.036,"0") -> 0 | J34: =IF(J32>0,(AC45*K32*1.54)/L32,"0") -> 0
A37: Tiles Estimate And Price Result
A39: Description | D39: Quanity | G39: Wastage Add % | I39: Total Quantity | K39: Rate | M39: Total Amount
A40: Cement | D40: =IF(OR(D29>0,D34>0),D29+D34,"0") -> 0 Bag | G40: 10 % ADD | I40: =D40+D40*$G$40/100 -> 0 Bag | K40: 550 TK | M40: =IF(D40>0,I40*K40,"") ->  | S40: Tile size-1 | U40: =(B44*C44)/144 -> 4
A41: Grouting Materials | D41: =G29+G34 -> 0 Bag | I41: =D41+D41*$G$40/100 -> 0 Bag | K41: 7 TK | M41: =IF(D41>0,I41*K41,"") ->  | S41: Tile size-2 | U41: =(B45*C45)/144 -> 0.5 | Y41: Floor | AA41: Wall | AC41: total
A42: Sand | D42: =J29+J34 -> 0 CFT | I42: 0 CFT | K42: 8 TK | S42: Tile size-3 | U42: 0.3333333333 | Y42: =SUMIF(C13:AF13,Y41,C21:AF21) -> 0 SFT | AA42: =SUMIF(C13:AF13,AA41,C21:AF21) -> 0 SFT | AC42: =SUM(Y42:AA42) -> 0 SFT | AF42: Floor | AG42: =SUMIF(C13:AF13,AF42,C21:AF21) -> 0
A43: Total Room Area (sft) | D43: =AC42 -> 0 SFT | I43: 0 SFT | K43: 5 TK | S43: Tile size-4 | U43: 0.3333333333 | AF43: Wall | AG43: =SUMIF(C13:AF13,AF43,C21:AF21) -> 0
A44: Tile size-1 | B44: 24 '' | C44: 24 '' | D44: =SUMIFS($C$24:$AF$24,$C$18:$AF$18,B44,$C$19:$AF$19,C44) -> 0 Nos | I44: 0 Nos | K44: 9 TK | S44: Tile size-5 | U44: 0.5625 | Y44: Floor | AA44: Wall | AC44: total
A45: Tile size-2 | B45: 12 '' | C45: 6 '' | D45: =SUMIFS($C$24:$AF$24,$C$18:$AF$18,B45,$C$19:$AF$19,C45) -> 0 Nos | I45: 0 Nos | K45: 10 TK | Y45: =IF(J26>0,Y42*J26/12,"") ->  | AA45: =IF(J31>0,AA42*J31/12,"") -> 0 CFT | AC45: =SUM(Y45:AA45) -> 0 CFT
A46: Tile size-3 | B46: 8 '' | C46: 6 '' | D46: 0 Nos | I46: 0 Nos | K46: 5 TK
A47: Tile size-4 | B47: 8 '' | C47: 6 '' | D47: 0 Nos | I47: 0 Nos | K47: 5 TK
A48: Tile size-5 | B48: 9 '' | C48: 9 '' | D48: 0 Nos | I48: 0 Nos | K48: 5 TK
A49: Tile size-6 | B49: 3 '' | C49: 3 '' | D49: 0 Nos | I49: 0 Nos | K49: 6 TK | AA49: Cement | AB49: =D40 -> 0 Bag
K50: Total Cost= | M50: =SUM(M40:O49) -> 0 TK | AA50: Grouting Materials | AB50: =D41 -> 0 Bag
AA51: Sand | AB51: =D42 -> 0 CFT
AF193: =F76 -> 0 '' | AG193: 0 '' | AI193: =H76 -> 0 Nos
AF194: 0 '' | AG194: 0 '' | AI194: =H77 -> 0 Nos
AF195: 0 '' | AG195: 0 '' | AI195: =H78 -> 0 Nos
AF196: 0 '' | AG196: 0 '' | AI196: =H79 -> 0 Nos
AF197: 0 '' | AG197: 0 '' | AI197: =H80 -> 0 Nos

Sheet Admin Panel (hidden)
T3: Estimated For Building Structure
T4: Cement | U4: Sand | V4: Stone/Brick Chips | W4: Rod | X4: Casting | Y4: Excavation | Z4: Sand Filling | AA4: Formwork | AB4: Brick Nos | AC4: Bricl Flat Soling | AD4: C.c | AE4: Masonry Brick | AF4: Primers/Sealer | AG4: Ready-mix putty | AH4: Paint | AI4: Grouting Materials
R5: 1 | S5: PILE | T5: ='Pile Estimate'!AI11 -> 0 Bag | U5: ='Pile Estimate'!AJ11 -> 0 Cft | V5: ='Pile Estimate'!AK11 -> 0 Cft | W5: ='Pile Estimate'!AL11 -> 0.00 Ton | X5: ='Pile Estimate'!AM11 -> 0 Cft
R6: 2 | S6: RECTANGULAR | T6: ='Rectangular Pile Cap'!AS10 -> 0 Bag | U6: ='Rectangular Pile Cap'!AT10 -> 0 Cft | V6: ='Rectangular Pile Cap'!AU10 -> 0 Cft | W6: ='Rectangular Pile Cap'!AV10 -> 0.00 Ton | X6: ='Rectangular Pile Cap'!AW10 -> 0 Cft | Y6: ='Rectangular Pile Cap'!AX10 -> 0 CFT | Z6: ='Rectangular Pile Cap'!AY10 -> 0 Cft | AA6: ='Rectangular Pile Cap'!AZ10 -> 0 SFT | AB6: ='Rectangular Pile Cap'!BA10 -> 0 Nos | AC6: ='Rectangular Pile Cap'!BB10 -> 0 Nos | AD6: ='Rectangular Pile Cap'!BC10 -> 0 Cft
R7: 3 | S7: TRAPEZOIDAL | T7: ='Trapezoidal Pile Cap '!BF14 -> 0 Bag | U7: ='Trapezoidal Pile Cap '!BG14 -> 0 Cft | V7: ='Trapezoidal Pile Cap '!BH14 -> 0 Cft | W7: ='Trapezoidal Pile Cap '!BI14 -> 0.00 Ton | X7: ='Trapezoidal Pile Cap '!BJ14 -> 0 Cft | Y7: ='Trapezoidal Pile Cap '!BK14 -> 0 CFT | Z7: ='Trapezoidal Pile Cap '!BL14 -> 0 Cft | AA7: ='Trapezoidal Pile Cap '!BM14 -> 0 SFT | AB7: ='Trapezoidal Pile Cap '!BN14 -> 0 Nos | AC7: ='Trapezoidal Pile Cap '!BO14 -> 0 Nos | AD7: ='Trapezoidal Pile Cap '!BP14 -> 0 Cft
R8: 4 | S8: MAT | T8: ='Mat Foundation '!AK13 -> 0 Bag | U8: ='Mat Foundation '!AL13 -> 0 Cft | V8: ='Mat Foundation '!AM13 -> 0 Cft | W8: ='Mat Foundation '!AN13 -> 0.00 Ton | X8: ='Mat Foundation '!AO13 -> 0 Cft | Y8: ='Mat Foundation '!AP13 -> 0 CFT | Z8: ='Mat Foundation '!AQ13 -> 0 Cft | AA8: ='Mat Foundation '!AR13 -> 0 SFT | AB8: ='Mat Foundation '!AS13 -> 0 Nos | AC8: ='Mat Foundation '!AT13 -> 0 Nos | AD8: ='Mat Foundation '!AU13 -> 0 Cft
R9: 5 | S9: FOUNDATION | T9: ='Footing Estimate'!BH10 -> 0 Bag | U9: ='Footing Estimate'!BI10 -> 0 Cft | V9: ='Footing Estimate'!BJ10 -> 0 Cft | W9: ='Footing Estimate'!BK10 -> 0.00 Ton | X9: ='Footing Estimate'!BL10 -> 0 Cft | Y9: ='Footing Estimate'!BM10 -> 0 CFT | Z9: ='Footing Estimate'!BN10 -> 0 Cft | AA9: ='Footing Estimate'!BO10 -> 0 SFT | AB9: ='Footing Estimate'!BP10 -> 0 Nos | AC9: ='Footing Estimate'!BQ10 -> 0 Nos | AD9: ='Footing Estimate'!BR10 -> 0 Cft
R10: 6 | S10: SHORT COLUMN | T10: ='Short Tied Column'!BC11 -> 0 Bag | U10: ='Short Tied Column'!BD11 -> 0 Cft | V10: ='Short Tied Column'!BE11 -> 0 Cft | W10: ='Short Tied Column'!BF11 -> 0.00 Ton | X10: ='Short Tied Column'!BG11 -> 0 Cft | Y10: ='Short Tied Column'!BH11 -> 0 CFT | Z10: ='Short Tied Column'!BI11 -> 0 Cft | AA10: ='Short Tied Column'!BJ11 -> 0 SFT | AB10: ='Short Tied Column'!BK11 -> 0 Nos | AC10: ='Short Tied Column'!BL11 -> 0 Nos | AD10: ='Short Tied Column'!BM11 -> 0 Cft
R11: 7 | S11: SHORT CIRCULAR | T11: =' Short Circular Column'!AT14 -> 0 Bag | U11: =' Short Circular Column'!AU14 -> 0 Cft | V11: =' Short Circular Column'!AV14 -> 0 Cft | W11: =' Short Circular Column'!AW14 -> 0.00 Ton | X11: =' Short Circular Column'!AX14 -> 0 Cft | Y11: =' Short Circular Column'!AY14 -> 0 CFT | Z11: =' Short Circular Column'!AZ14 -> 0 Cft | AA11: =' Short Circular Column'!BA14 -> 0 SFT | AB11: =' Short Circular Column'!BB14 -> 0 Nos | AC11: =' Short Circular Column'!BC14 -> 0 Nos | AD11: =' Short Circular Column'!BD14 -> 0 Cft
R12: 8 | S12: LONG TIED | T12: ='Long Tied Column'!AX13 -> 0 Bag | U12: ='Long Tied Column'!AY13 -> 0 Cft | V12: ='Long Tied Column'!AZ13 -> 0 Cft | W12: ='Long Tied Column'!BA13 -> 0.00 Ton | X12: ='Long Tied Column'!BB13 -> 0 Cft | Y12: ='Long Tied Column'!BC13 -> 0 CFT | Z12: ='Long Tied Column'!BD13 -> 0 Cft | AA12: ='Long Tied Column'!BE13 -> 0 SFT | AB12: ='Long Tied Column'!BF13 -> 0 Nos | AC12: ='Long Tied Column'!BG13 -> 0 Nos | AD12: ='Long Tied Column'!BH13 -> 0 Cft | AK12: Stone/Brick Chips (CFT) | AL12: =V23 -> 0 Cft
R13: 9 | S13: LONG CIRCULAR | T13: ='Long Circular Column'!BI13 -> 0 Bag | U13: ='Long Circular Column'!BJ13 -> 0 Cft | V13: ='Long Circular Column'!BK13 -> 0 Cft | W13: ='Long Circular Column'!BL13 -> 0.00 Ton | X13: ='Long Circular Column'!BM13 -> 0 Cft | Y13: ='Long Circular Column'!BN13 -> 0 CFT | Z13: ='Long Circular Column'!BO13 -> 0 Cft | AA13: ='Long Circular Column'!BP13 -> 0 SFT | AB13: ='Long Circular Column'!BQ13 -> 0 Nos | AC13: ='Long Circular Column'!BR13 -> 0 Nos | AD13: ='Long Circular Column'!BS13 -> 0 Cft | AK13: Brick Nos | AL13: =AB23 -> 0 Nos
R14: 10 | S14: GRADE BEAM | T14: ='Grade Beam'!AW13 -> 0 Bag | U14: ='Grade Beam'!AX13 -> 0 Cft | V14: ='Grade Beam'!AY13 -> 0 Cft | W14: ='Grade Beam'!AZ13 -> 0.00 Ton | X14: ='Grade Beam'!BA13 -> 0 Cft | Y14: ='Grade Beam'!BB13 -> 0 CFT | Z14: ='Grade Beam'!BC13 -> 0 Cft | AA14: ='Grade Beam'!BD13 -> 0 SFT | AB14: ='Grade Beam'!BE13 -> 0 Nos | AC14: ='Grade Beam'!BF13 -> 0 Nos | AD14: ='Grade Beam'!BG13 -> 0 Cft
R15: 11 | S15: FLOOR BEAM | T15: ='Floor Beam'!AV12 -> 0 Bag | U15: ='Floor Beam'!AW12 -> 0 Cft | V15: ='Floor Beam'!AX12 -> 0 Cft | W15: ='Floor Beam'!AY12 -> 0.00 Ton | X15: ='Floor Beam'!AZ12 -> 0 Cft | Y15: ='Floor Beam'!BA12 -> 0 CFT | Z15: ='Floor Beam'!BB12 -> 0 Cft | AA15: ='Floor Beam'!BC12 -> 0 SFT | AB15: ='Floor Beam'!BD12 -> 0 Nos | AC15: ='Floor Beam'!BE12 -> 0 Nos | AD15: ='Floor Beam'!BF12 -> 0 Cft
R16: 12 | S16: STAIR | T16: =Stair!BS19 -> 0 Bag | U16: =Stair!BT19 -> 0 Cft | V16: =Stair!BU19 -> 0 Cft | W16: =Stair!BV19 -> 0.00 Ton | X16: =Stair!BW19 -> 0 Cft | Y16: =Stair!BX19 -> 0 CFT | Z16: =Stair!BY19 -> 0 Cft | AA16: =Stair!BZ19 -> 0 SFT | AB16: =Stair!CA19 -> 0 Nos | AC16: =Stair!CB19 -> 0 Nos | AD16: =Stair!CC19 -> 0 Cft
R17: 13 | S17: SLAB | T17: =Slab!AK9 -> 0 Bag | U17: =Slab!AL9 -> 0 Cft | V17: =Slab!AM9 -> 0 Cft | W17: =Slab!AN9 -> 0.00 Ton | X17: =Slab!AO9 -> 0 Cft | Y17: =Slab!AP9 -> 0 CFT | Z17: =Slab!AQ9 -> 0 Cft | AA17: =Slab!AR9 -> 0 SFT | AB17: =Slab!AS9 -> 0 Nos | AC17: =Slab!AT9 -> 0 Nos | AD17: =Slab!AU9 -> 0 Cft
R18: 14 | S18: RCC WALL | T18: ='Rcc Wall'!BH20 -> 0 Bag | U18: ='Rcc Wall'!BI20 -> 0 Cft | V18: ='Rcc Wall'!BJ20 -> 0 Cft | W18: ='Rcc Wall'!BK20 -> 0.00 Ton | X18: ='Rcc Wall'!BL20 -> 0 Cft | Y18: ='Rcc Wall'!BM20 -> 0 CFT | Z18: ='Rcc Wall'!BN20 -> 0 Cft | AA18: ='Rcc Wall'!BO20 -> 0 SFT | AB18: ='Rcc Wall'!BP20 -> 0 Nos | AC18: ='Rcc Wall'!BQ20 -> 0 Nos | AD18: ='Rcc Wall'!BR20 -> 0 Cft
R19: 15 | S19: WATER RESERVOIR | T19: ='WATER RESERVOIR'!BA10 -> 0 Bag | U19: ='WATER RESERVOIR'!BB10 -> 0 Cft | V19: ='WATER RESERVOIR'!BC10 -> 0 Cft | W19: ='WATER RESERVOIR'!BD10 -> 0.00 Ton | X19: ='WATER RESERVOIR'!BE10 -> 0 Cft | Y19: ='WATER RESERVOIR'!BF10 -> 0 CFT | Z19: ='WATER RESERVOIR'!BG10 -> 0 Cft | AA19: ='WATER RESERVOIR'!BH10 -> 0 SFT | AB19: ='WATER RESERVOIR'!BI10 -> 0 Nos | AC19: ='WATER RESERVOIR'!BJ10 -> 0 Nos | AD19: ='WATER RESERVOIR'!BK10 -> 0 Cft | AE19: ='WATER RESERVOIR'!BL10 -> 0 Nos
R20: 16 | S20: Brick Masonry | T20: ='Brick Masonry '!AD29 -> 0 | U20: ='Brick Masonry '!AD30 -> 0 | AE20: ='Brick Masonry '!AD31 -> 0 Nos
R21: 17 | S21: Plaster and Paint Work | T21: ='Plaster and Paint Work '!AW48 -> 0 | U21: ='Plaster and Paint Work '!AW49 -> 0 | AF21: ='Plaster and Paint Work '!AW44 -> 0 | AG21: ='Plaster and Paint Work '!AW45 -> 0 | AH21: ='Plaster and Paint Work '!AW46 -> 0
R22: 18 | S22: Tiles Work | T22: ='Tiles Work'!AB49 -> 0 Bag | U22: ='Tiles Work'!AB51 -> 0 Cft | AI22: ='Tiles Work'!AB50 -> 0
R23: Total | T23: =SUM(T5:T22) -> 0 Bag | U23: =SUM(U5:U22) -> 0 Cft | V23: 0 Cft | W23: =SUM(W5:W22) -> 0.00 Ton | X23: 0 Cft | Y23: 0 CFT | Z23: 0 Cft | AA23: 0 SFT | AB23: 0 Nos | AC23: 0 Nos | AD23: 0 Cft | AE23: 0 Nos | AF23: 0 liter | AG23: 0 KG | AH23: 0 liter | AI23: 0 Bag
D47: 1 | E47: 2 | F47: 3 | G47: 4 | H47: 5 | I47: 6 | J47: 7 | K47: 8 | L47: 9 | M47: 10 | N47: 11 | O47: 12 | P47: 13 | Q47: 14 | R47: 15 | T47: 1 | U47: 2 | V47: 3 | W47: 4 | X47: 5 | Y47: 6 | Z47: 7 | AA47: 8 | AB47: 9 | AC47: 10 | AD47: 11 | AE47: 12 | AF47: 13 | AG47: 14 | AH47: 15
B49: Pile | D49: ='Pile Estimate'!AT18 -> 0 | E49: ='Pile Estimate'!AU18 -> 0 | F49: ='Pile Estimate'!AV18 -> 0 | G49: ='Pile Estimate'!AW18 -> 0 | H49: ='Pile Estimate'!AX18 -> 0 | T49: ='Pile Estimate'!AZ18 ->  | U49: ='Pile Estimate'!BA18 ->  | V49: ='Pile Estimate'!BB18 ->  | W49: ='Pile Estimate'!BC18 ->  | X49: ='Pile Estimate'!BD18 ->  | AJ49: =SUM(T49:AI51)/1000 -> 0
D50: ='Pile Estimate'!AT19 -> 0 | E50: ='Pile Estimate'!AU19 -> 0 | F50: ='Pile Estimate'!AV19 -> 0 | G50: ='Pile Estimate'!AW19 -> 0 | H50: ='Pile Estimate'!AX19 -> 0 | T50: ='Pile Estimate'!AZ19 ->  | U50: ='Pile Estimate'!BA19 ->  | V50: ='Pile Estimate'!BB19 ->  | W50: ='Pile Estimate'!BC19 ->  | X50: ='Pile Estimate'!BD19 -> 
D51: ='Pile Estimate'!AT20 -> 0 | E51: ='Pile Estimate'!AU20 -> 0 | F51: ='Pile Estimate'!AV20 -> 0 | G51: ='Pile Estimate'!AW20 -> 0 | H51: ='Pile Estimate'!AX20 -> 0 | T51: ='Pile Estimate'!AZ20 ->  | U51: ='Pile Estimate'!BA20 ->  | V51: ='Pile Estimate'!BB20 ->  | W51: ='Pile Estimate'!BC20 ->  | X51: ='Pile Estimate'!BD20 -> 
B52: Rectangular Pile Cap | D52: ='Rectangular Pile Cap'!AS35 -> 0 | E52: ='Rectangular Pile Cap'!AT35 -> 0 | F52: ='Rectangular Pile Cap'!AU35 -> 0 | G52: ='Rectangular Pile Cap'!AV35 -> 0 | H52: ='Rectangular Pile Cap'!AW35 -> 0 | I52: ='Rectangular Pile Cap'!AX35 -> 0 | J52: ='Rectangular Pile Cap'!AY35 -> 0 | K52: ='Rectangular Pile Cap'!AZ35 -> 0 | L52: ='Rectangular Pile Cap'!BA35 -> 0 | M52: ='Rectangular Pile Cap'!BB35 -> 0 | N52: ='Rectangular Pile Cap'!BC35 -> 0 | O52: ='Rectangular Pile Cap'!BD35 -> 0 | P52: ='Rectangular Pile Cap'!BE35 -> 0 | Q52: ='Rectangular Pile Cap'!BF35 -> 0 | R52: ='Rectangular Pile Cap'!BG35 -> 0 | T52: ='Rectangular Pile Cap'!BI35 ->  | U52: ='Rectangular Pile Cap'!BJ35 ->  | V52: ='Rectangular Pile Cap'!BK35 ->  | W52: ='Rectangular Pile Cap'!BL35 ->  | X52: ='Rectangular Pile Cap'!BM35 ->  | Y52: ='Rectangular Pile Cap'!BN35 ->  | Z52: ='Rectangular Pile Cap'!BO35 ->  | AA52: ='Rectangular Pile Cap'!BP35 ->  | AB52: ='Rectangular Pile Cap'!BQ35 ->  | AC52: ='Rectangular Pile Cap'!BR35 ->  | AD52: ='Rectangular Pile Cap'!BS35 ->  | AE52: ='Rectangular Pile Cap'!BT35 ->  | AF52: ='Rectangular Pile Cap'!BU35 ->  | AG52: ='Rectangular Pile Cap'!BV35 ->  | AH52: ='Rectangular Pile Cap'!BW35 ->  | AJ52: =SUM(T52:AH55)/1000 -> 0
D53: ='Rectangular Pile Cap'!AS36 -> 0 | E53: ='Rectangular Pile Cap'!AT36 -> 0 | F53: ='Rectangular Pile Cap'!AU36 -> 0 | G53: ='Rectangular Pile Cap'!AV36 -> 0 | H53: ='Rectangular Pile Cap'!AW36 -> 0 | I53: ='Rectangular Pile Cap'!AX36 -> 0 | J53: ='Rectangular Pile Cap'!AY36 -> 0 | K53: ='Rectangular Pile Cap'!AZ36 -> 0 | L53: ='Rectangular Pile Cap'!BA36 -> 0 | M53: ='Rectangular Pile Cap'!BB36 -> 0 | N53: ='Rectangular Pile Cap'!BC36 -> 0 | O53: ='Rectangular Pile Cap'!BD36 -> 0 | P53: ='Rectangular Pile Cap'!BE36 -> 0 | Q53: ='Rectangular Pile Cap'!BF36 -> 0 | R53: ='Rectangular Pile Cap'!BG36 -> 0 | T53: ='Rectangular Pile Cap'!BI36 ->  | U53: ='Rectangular Pile Cap'!BJ36 ->  | V53: ='Rectangular Pile Cap'!BK36 ->  | W53: ='Rectangular Pile Cap'!BL36 ->  | X53: ='Rectangular Pile Cap'!BM36 ->  | Y53: ='Rectangular Pile Cap'!BN36 ->  | Z53: ='Rectangular Pile Cap'!BO36 ->  | AA53: ='Rectangular Pile Cap'!BP36 ->  | AB53: ='Rectangular Pile Cap'!BQ36 ->  | AC53: ='Rectangular Pile Cap'!BR36 ->  | AD53: ='Rectangular Pile Cap'!BS36 ->  | AE53: ='Rectangular Pile Cap'!BT36 ->  | AF53: ='Rectangular Pile Cap'!BU36 ->  | AG53: ='Rectangular Pile Cap'!BV36 ->  | AH53: ='Rectangular Pile Cap'!BW36 -> 
D54: ='Rectangular Pile Cap'!AS37 -> 0 | E54: ='Rectangular Pile Cap'!AT37 -> 0 | F54: ='Rectangular Pile Cap'!AU37 -> 0 | G54: ='Rectangular Pile Cap'!AV37 -> 0 | H54: ='Rectangular Pile Cap'!AW37 -> 0 | I54: ='Rectangular Pile Cap'!AX37 -> 0 | J54: ='Rectangular Pile Cap'!AY37 -> 0 | K54: ='Rectangular Pile Cap'!AZ37 -> 0 | L54: ='Rectangular Pile Cap'!BA37 -> 0 | M54: ='Rectangular Pile Cap'!BB37 -> 0 | N54: ='Rectangular Pile Cap'!BC37 -> 0 | O54: ='Rectangular Pile Cap'!BD37 -> 0 | P54: ='Rectangular Pile Cap'!BE37 -> 0 | Q54: ='Rectangular Pile Cap'!BF37 -> 0 | R54: ='Rectangular Pile Cap'!BG37 -> 0 | T54: ='Rectangular Pile Cap'!BI37 ->  | U54: ='Rectangular Pile Cap'!BJ37 ->  | V54: ='Rectangular Pile Cap'!BK37 ->  | W54: ='Rectangular Pile Cap'!BL37 ->  | X54: ='Rectangular Pile Cap'!BM37 ->  | Y54: ='Rectangular Pile Cap'!BN37 ->  | Z54: ='Rectangular Pile Cap'!BO37 ->  | AA54: ='Rectangular Pile Cap'!BP37 ->  | AB54: ='Rectangular Pile Cap'!BQ37 ->  | AC54: ='Rectangular Pile Cap'!BR37 ->  | AD54: ='Rectangular Pile Cap'!BS37 ->  | AE54: ='Rectangular Pile Cap'!BT37 ->  | AF54: ='Rectangular Pile Cap'!BU37 ->  | AG54: ='Rectangular Pile Cap'!BV37 ->  | AH54: ='Rectangular Pile Cap'!BW37 -> 
D55: ='Rectangular Pile Cap'!AS38 -> 0 | E55: ='Rectangular Pile Cap'!AT38 -> 0 | F55: ='Rectangular Pile Cap'!AU38 -> 0 | G55: ='Rectangular Pile Cap'!AV38 -> 0 | H55: ='Rectangular Pile Cap'!AW38 -> 0 | I55: ='Rectangular Pile Cap'!AX38 -> 0 | J55: ='Rectangular Pile Cap'!AY38 -> 0 | K55: ='Rectangular Pile Cap'!AZ38 -> 0 | L55: ='Rectangular Pile Cap'!BA38 -> 0 | M55: ='Rectangular Pile Cap'!BB38 -> 0 | N55: ='Rectangular Pile Cap'!BC38 -> 0 | O55: ='Rectangular Pile Cap'!BD38 -> 0 | P55: ='Rectangular Pile Cap'!BE38 -> 0 | Q55: ='Rectangular Pile Cap'!BF38 -> 0 | R55: ='Rectangular Pile Cap'!BG38 -> 0 | T55: ='Rectangular Pile Cap'!BI38 ->  | U55: ='Rectangular Pile Cap'!BJ38 ->  | V55: ='Rectangular Pile Cap'!BK38 ->  | W55: ='Rectangular Pile Cap'!BL38 ->  | X55: ='Rectangular Pile Cap'!BM38 ->  | Y55: ='Rectangular Pile Cap'!BN38 ->  | Z55: ='Rectangular Pile Cap'!BO38 ->  | AA55: ='Rectangular Pile Cap'!BP38 ->  | AB55: ='Rectangular Pile Cap'!BQ38 ->  | AC55: ='Rectangular Pile Cap'!BR38 ->  | AD55: ='Rectangular Pile Cap'!BS38 ->  | AE55: ='Rectangular Pile Cap'!BT38 ->  | AF55: ='Rectangular Pile Cap'!BU38 ->  | AG55: ='Rectangular Pile Cap'!BV38 ->  | AH55: ='Rectangular Pile Cap'!BW38 -> 
B56: Trapezoidal Pile Cap | D56: ='Trapezoidal Pile Cap '!BF34 -> 0 | E56: ='Trapezoidal Pile Cap '!BG34 -> 0 | F56: ='Trapezoidal Pile Cap '!BH34 -> 0 | G56: ='Trapezoidal Pile Cap '!BI34 -> 0 | H56: ='Trapezoidal Pile Cap '!BJ34 -> 0 | I56: ='Trapezoidal Pile Cap '!BK34 -> 0 | J56: ='Trapezoidal Pile Cap '!BL34 -> 0 | K56: ='Trapezoidal Pile Cap '!BM34 -> 0 | L56: ='Trapezoidal Pile Cap '!BN34 -> 0 | M56: ='Trapezoidal Pile Cap '!BO34 -> 0 | N56: ='Trapezoidal Pile Cap '!BP34 -> 0 | O56: ='Trapezoidal Pile Cap '!BQ34 -> 0 | P56: ='Trapezoidal Pile Cap '!BR34 -> 0 | Q56: ='Trapezoidal Pile Cap '!BS34 -> 0 | R56: ='Trapezoidal Pile Cap '!BT34 -> 0 | T56: ='Trapezoidal Pile Cap '!BV34 ->  | U56: ='Trapezoidal Pile Cap '!BW34 ->  | V56: ='Trapezoidal Pile Cap '!BX34 ->  | W56: ='Trapezoidal Pile Cap '!BY34 ->  | X56: ='Trapezoidal Pile Cap '!BZ34 ->  | Y56: ='Trapezoidal Pile Cap '!CA34 ->  | Z56: ='Trapezoidal Pile Cap '!CB34 ->  | AA56: ='Trapezoidal Pile Cap '!CC34 ->  | AB56: ='Trapezoidal Pile Cap '!CD34 ->  | AC56: ='Trapezoidal Pile Cap '!CE34 ->  | AD56: ='Trapezoidal Pile Cap '!CF34 ->  | AE56: ='Trapezoidal Pile Cap '!CG34 ->  | AF56: ='Trapezoidal Pile Cap '!CH34 ->  | AG56: ='Trapezoidal Pile Cap '!CI34 ->  | AH56: ='Trapezoidal Pile Cap '!CJ34 ->  | AJ56: =SUM(T56:AH59)/1000 -> 0
D57: ='Trapezoidal Pile Cap '!BF35 -> 0 | E57: ='Trapezoidal Pile Cap '!BG35 -> 0 | F57: ='Trapezoidal Pile Cap '!BH35 -> 0 | G57: ='Trapezoidal Pile Cap '!BI35 -> 0 | H57: ='Trapezoidal Pile Cap '!BJ35 -> 0 | I57: ='Trapezoidal Pile Cap '!BK35 -> 0 | J57: ='Trapezoidal Pile Cap '!BL35 -> 0 | K57: ='Trapezoidal Pile Cap '!BM35 -> 0 | L57: ='Trapezoidal Pile Cap '!BN35 -> 0 | M57: ='Trapezoidal Pile Cap '!BO35 -> 0 | N57: ='Trapezoidal Pile Cap '!BP35 -> 0 | O57: ='Trapezoidal Pile Cap '!BQ35 -> 0 | P57: ='Trapezoidal Pile Cap '!BR35 -> 0 | Q57: ='Trapezoidal Pile Cap '!BS35 -> 0 | R57: ='Trapezoidal Pile Cap '!BT35 -> 0 | T57: ='Trapezoidal Pile Cap '!BV35 ->  | U57: ='Trapezoidal Pile Cap '!BW35 ->  | V57: ='Trapezoidal Pile Cap '!BX35 ->  | W57: ='Trapezoidal Pile Cap '!BY35 ->  | X57: ='Trapezoidal Pile Cap '!BZ35 ->  | Y57: ='Trapezoidal Pile Cap '!CA35 ->  | Z57: ='Trapezoidal Pile Cap '!CB35 ->  | AA57: ='Trapezoidal Pile Cap '!CC35 ->  | AB57: ='Trapezoidal Pile Cap '!CD35 ->  | AC57: ='Trapezoidal Pile Cap '!CE35 ->  | AD57: ='Trapezoidal Pile Cap '!CF35 ->  | AE57: ='Trapezoidal Pile Cap '!CG35 ->  | AF57: ='Trapezoidal Pile Cap '!CH35 ->  | AG57: ='Trapezoidal Pile Cap '!CI35 ->  | AH57: ='Trapezoidal Pile Cap '!CJ35 -> 
D58: ='Trapezoidal Pile Cap '!BF36 -> 0 | E58: ='Trapezoidal Pile Cap '!BG36 -> 0 | F58: ='Trapezoidal Pile Cap '!BH36 -> 0 | G58: ='Trapezoidal Pile Cap '!BI36 -> 0 | H58: ='Trapezoidal Pile Cap '!BJ36 -> 0 | I58: ='Trapezoidal Pile Cap '!BK36 -> 0 | J58: ='Trapezoidal Pile Cap '!BL36 -> 0 | K58: ='Trapezoidal Pile Cap '!BM36 -> 0 | L58: ='Trapezoidal Pile Cap '!BN36 -> 0 | M58: ='Trapezoidal Pile Cap '!BO36 -> 0 | N58: ='Trapezoidal Pile Cap '!BP36 -> 0 | O58: ='Trapezoidal Pile Cap '!BQ36 -> 0 | P58: ='Trapezoidal Pile Cap '!BR36 -> 0 | Q58: ='Trapezoidal Pile Cap '!BS36 -> 0 | R58: ='Trapezoidal Pile Cap '!BT36 -> 0 | T58: ='Trapezoidal Pile Cap '!BV36 ->  | U58: ='Trapezoidal Pile Cap '!BW36 ->  | V58: ='Trapezoidal Pile Cap '!BX36 ->  | W58: ='Trapezoidal Pile Cap '!BY36 ->  | X58: ='Trapezoidal Pile Cap '!BZ36 ->  | Y58: ='Trapezoidal Pile Cap '!CA36 ->  | Z58: ='Trapezoidal Pile Cap '!CB36 ->  | AA58: ='Trapezoidal Pile Cap '!CC36 ->  | AB58: ='Trapezoidal Pile Cap '!CD36 ->  | AC58: ='Trapezoidal Pile Cap '!CE36 ->  | AD58: ='Trapezoidal Pile Cap '!CF36 ->  | AE58: ='Trapezoidal Pile Cap '!CG36 ->  | AF58: ='Trapezoidal Pile Cap '!CH36 ->  | AG58: ='Trapezoidal Pile Cap '!CI36 ->  | AH58: ='Trapezoidal Pile Cap '!CJ36 -> 
D59: ='Trapezoidal Pile Cap '!BF37 -> 0 | E59: ='Trapezoidal Pile Cap '!BG37 -> 0 | F59: ='Trapezoidal Pile Cap '!BH37 -> 0 | G59: ='Trapezoidal Pile Cap '!BI37 -> 0 | H59: ='Trapezoidal Pile Cap '!BJ37 -> 0 | I59: ='Trapezoidal Pile Cap '!BK37 -> 0 | J59: ='Trapezoidal Pile Cap '!BL37 -> 0 | K59: ='Trapezoidal Pile Cap '!BM37 -> 0 | L59: ='Trapezoidal Pile Cap '!BN37 -> 0 | M59: ='Trapezoidal Pile Cap '!BO37 -> 0 | N59: ='Trapezoidal Pile Cap '!BP37 -> 0 | O59: ='Trapezoidal Pile Cap '!BQ37 -> 0 | P59: ='Trapezoidal Pile Cap '!BR37 -> 0 | Q59: ='Trapezoidal Pile Cap '!BS37 -> 0 | R59: ='Trapezoidal Pile Cap '!BT37 -> 0 | T59: ='Trapezoidal Pile Cap '!BV37 ->  | U59: ='Trapezoidal Pile Cap '!BW37 ->  | V59: ='Trapezoidal Pile Cap '!BX37 ->  | W59: ='Trapezoidal Pile Cap '!BY37 ->  | X59: ='Trapezoidal Pile Cap '!BZ37 ->  | Y59: ='Trapezoidal Pile Cap '!CA37 ->  | Z59: ='Trapezoidal Pile Cap '!CB37 ->  | AA59: ='Trapezoidal Pile Cap '!CC37 ->  | AB59: ='Trapezoidal Pile Cap '!CD37 ->  | AC59: ='Trapezoidal Pile Cap '!CE37 ->  | AD59: ='Trapezoidal Pile Cap '!CF37 ->  | AE59: ='Trapezoidal Pile Cap '!CG37 ->  | AF59: ='Trapezoidal Pile Cap '!CH37 ->  | AG59: ='Trapezoidal Pile Cap '!CI37 ->  | AH59: ='Trapezoidal Pile Cap '!CJ37 -> 
B60: Mat foundation | D60: ='Mat Foundation '!BD17 -> 0 | E60: ='Mat Foundation '!BE17 -> 0 | F60: ='Mat Foundation '!BF17 -> 0 | G60: ='Mat Foundation '!BG17 -> 0 | H60: ='Mat Foundation '!BH17 -> 0 | I60: ='Mat Foundation '!BI17 -> 0 | J60: ='Mat Foundation '!BJ17 -> 0 | K60: ='Mat Foundation '!BK17 -> 0 | L60: ='Mat Foundation '!BL17 -> 0 | M60: ='Mat Foundation '!BM17 -> 0 | N60: ='Mat Foundation '!BN17 -> 0 | T60: ='Mat Foundation '!BO17 ->  | U60: ='Mat Foundation '!BP17 ->  | V60: ='Mat Foundation '!BQ17 ->  | W60: ='Mat Foundation '!BR17 ->  | X60: ='Mat Foundation '!BS17 ->  | Y60: ='Mat Foundation '!BT17 ->  | Z60: ='Mat Foundation '!BU17 ->  | AA60: ='Mat Foundation '!BV17 ->  | AB60: ='Mat Foundation '!BW17 ->  | AC60: ='Mat Foundation '!BX17 ->  | AJ60: =SUM(T56:AH59)/1000 -> 0
D61: ='Mat Foundation '!BD18 -> 0 | E61: ='Mat Foundation '!BE18 -> 0 | F61: ='Mat Foundation '!BF18 -> 0 | G61: ='Mat Foundation '!BG18 -> 0 | H61: ='Mat Foundation '!BH18 -> 0 | I61: ='Mat Foundation '!BI18 -> 0 | J61: ='Mat Foundation '!BJ18 -> 0 | K61: ='Mat Foundation '!BK18 -> 0 | L61: ='Mat Foundation '!BL18 -> 0 | M61: ='Mat Foundation '!BM18 -> 0 | N61: ='Mat Foundation '!BN18 -> 0 | T61: ='Mat Foundation '!BO18 ->  | U61: ='Mat Foundation '!BP18 ->  | V61: ='Mat Foundation '!BQ18 ->  | W61: ='Mat Foundation '!BR18 ->  | X61: ='Mat Foundation '!BS18 ->  | Y61: ='Mat Foundation '!BT18 ->  | Z61: ='Mat Foundation '!BU18 ->  | AA61: ='Mat Foundation '!BV18 ->  | AB61: ='Mat Foundation '!BW18 ->  | AC61: ='Mat Foundation '!BX18 -> 
D62: ='Mat Foundation '!BD19 -> 0 | E62: ='Mat Foundation '!BE19 -> 0 | F62: ='Mat Foundation '!BF19 -> 0 | G62: ='Mat Foundation '!BG19 -> 0 | H62: ='Mat Foundation '!BH19 -> 0 | I62: ='Mat Foundation '!BI19 -> 0 | J62: ='Mat Foundation '!BJ19 -> 0 | K62: ='Mat Foundation '!BK19 -> 0 | L62: ='Mat Foundation '!BL19 -> 0 | M62: ='Mat Foundation '!BM19 -> 0 | N62: ='Mat Foundation '!BN19 -> 0 | T62: ='Mat Foundation '!BO19 ->  | U62: ='Mat Foundation '!BP19 ->  | V62: ='Mat Foundation '!BQ19 ->  | W62: ='Mat Foundation '!BR19 ->  | X62: ='Mat Foundation '!BS19 ->  | Y62: ='Mat Foundation '!BT19 ->  | Z62: ='Mat Foundation '!BU19 ->  | AA62: ='Mat Foundation '!BV19 ->  | AB62: ='Mat Foundation '!BW19 ->  | AC62: ='Mat Foundation '!BX19 -> 
D63: ='Mat Foundation '!BD20 -> 0 | E63: ='Mat Foundation '!BE20 -> 0 | F63: ='Mat Foundation '!BF20 -> 0 | G63: ='Mat Foundation '!BG20 -> 0 | H63: ='Mat Foundation '!BH20 -> 0 | I63: ='Mat Foundation '!BI20 -> 0 | J63: ='Mat Foundation '!BJ20 -> 0 | K63: ='Mat Foundation '!BK20 -> 0 | L63: ='Mat Foundation '!BL20 -> 0 | M63: ='Mat Foundation '!BM20 -> 0 | N63: ='Mat Foundation '!BN20 -> 0 | T63: ='Mat Foundation '!BO20 ->  | U63: ='Mat Foundation '!BP20 ->  | V63: ='Mat Foundation '!BQ20 ->  | W63: ='Mat Foundation '!BR20 ->  | X63: ='Mat Foundation '!BS20 ->  | Y63: ='Mat Foundation '!BT20 ->  | Z63: ='Mat Foundation '!BU20 ->  | AA63: ='Mat Foundation '!BV20 ->  | AB63: ='Mat Foundation '!BW20 ->  | AC63: ='Mat Foundation '!BX20 -> 
D64: ='Mat Foundation '!BD21 -> 0 | E64: ='Mat Foundation '!BE21 -> 0 | F64: ='Mat Foundation '!BF21 -> 0 | G64: ='Mat Foundation '!BG21 -> 0 | H64: ='Mat Foundation '!BH21 -> 0 | I64: ='Mat Foundation '!BI21 -> 0 | J64: ='Mat Foundation '!BJ21 -> 0 | K64: ='Mat Foundation '!BK21 -> 0 | L64: ='Mat Foundation '!BL21 -> 0 | M64: ='Mat Foundation '!BM21 -> 0 | N64: ='Mat Foundation '!BN21 -> 0 | T64: ='Mat Foundation '!BO21 ->  | U64: ='Mat Foundation '!BP21 ->  | V64: ='Mat Foundation '!BQ21 ->  | W64: ='Mat Foundation '!BR21 ->  | X64: ='Mat Foundation '!BS21 ->  | Y64: ='Mat Foundation '!BT21 ->  | Z64: ='Mat Foundation '!BU21 ->  | AA64: ='Mat Foundation '!BV21 ->  | AB64: ='Mat Foundation '!BW21 ->  | AC64: ='Mat Foundation '!BX21 -> 
B65: Footing | D65: ='Footing Estimate'!BK32 -> 0 | E65: ='Footing Estimate'!BL32 -> 0 | F65: ='Footing Estimate'!BM32 -> 0 | G65: ='Footing Estimate'!BN32 -> 0 | H65: ='Footing Estimate'!BO32 -> 0 | I65: ='Footing Estimate'!BP32 -> 0 | J65: ='Footing Estimate'!BQ32 -> 0 | K65: ='Footing Estimate'!BR32 -> 0 | L65: ='Footing Estimate'!BS32 -> 0 | M65: ='Footing Estimate'!BT32 -> 0 | N65: ='Footing Estimate'!BU32 -> 0 | O65: ='Footing Estimate'!BV32 -> 0 | P65: ='Footing Estimate'!BW32 -> 0 | Q65: ='Footing Estimate'!BX32 -> 0 | R65: ='Footing Estimate'!BY32 -> 0 | T65: ='Footing Estimate'!CA32 ->  | U65: ='Footing Estimate'!CB32 ->  | V65: ='Footing Estimate'!CC32 ->  | W65: ='Footing Estimate'!CD32 ->  | X65: ='Footing Estimate'!CE32 ->  | Y65: ='Footing Estimate'!CF32 ->  | Z65: ='Footing Estimate'!CG32 ->  | AA65: ='Footing Estimate'!CH32 ->  | AB65: ='Footing Estimate'!CI32 ->  | AC65: ='Footing Estimate'!CJ32 ->  | AD65: ='Footing Estimate'!CK32 ->  | AE65: ='Footing Estimate'!CL32 ->  | AF65: ='Footing Estimate'!CM32 ->  | AG65: ='Footing Estimate'!CN32 ->  | AH65: ='Footing Estimate'!CO32 ->  | AJ65: =SUM(T65:AH68)/1000 -> 0
D66: ='Footing Estimate'!BK33 -> 0 | E66: ='Footing Estimate'!BL33 -> 0 | F66: ='Footing Estimate'!BM33 -> 0 | G66: ='Footing Estimate'!BN33 -> 0 | H66: ='Footing Estimate'!BO33 -> 0 | I66: ='Footing Estimate'!BP33 -> 0 | J66: ='Footing Estimate'!BQ33 -> 0 | K66: ='Footing Estimate'!BR33 -> 0 | L66: ='Footing Estimate'!BS33 -> 0 | M66: ='Footing Estimate'!BT33 -> 0 | N66: ='Footing Estimate'!BU33 -> 0 | O66: ='Footing Estimate'!BV33 -> 0 | P66: ='Footing Estimate'!BW33 -> 0 | Q66: ='Footing Estimate'!BX33 -> 0 | R66: ='Footing Estimate'!BY33 -> 0 | T66: ='Footing Estimate'!CA33 ->  | U66: ='Footing Estimate'!CB33 ->  | V66: ='Footing Estimate'!CC33 ->  | W66: ='Footing Estimate'!CD33 ->  | X66: ='Footing Estimate'!CE33 ->  | Y66: ='Footing Estimate'!CF33 ->  | Z66: ='Footing Estimate'!CG33 ->  | AA66: ='Footing Estimate'!CH33 ->  | AB66: ='Footing Estimate'!CI33 ->  | AC66: ='Footing Estimate'!CJ33 ->  | AD66: ='Footing Estimate'!CK33 ->  | AE66: ='Footing Estimate'!CL33 ->  | AF66: ='Footing Estimate'!CM33 ->  | AG66: ='Footing Estimate'!CN33 ->  | AH66: ='Footing Estimate'!CO33 -> 
D67: ='Footing Estimate'!BK34 -> 0 | E67: ='Footing Estimate'!BL34 -> 0 | F67: ='Footing Estimate'!BM34 -> 0 | G67: ='Footing Estimate'!BN34 -> 0 | H67: ='Footing Estimate'!BO34 -> 0 | I67: ='Footing Estimate'!BP34 -> 0 | J67: ='Footing Estimate'!BQ34 -> 0 | K67: ='Footing Estimate'!BR34 -> 0 | L67: ='Footing Estimate'!BS34 -> 0 | M67: ='Footing Estimate'!BT34 -> 0 | N67: ='Footing Estimate'!BU34 -> 0 | O67: ='Footing Estimate'!BV34 -> 0 | P67: ='Footing Estimate'!BW34 -> 0 | Q67: ='Footing Estimate'!BX34 -> 0 | R67: ='Footing Estimate'!BY34 -> 0 | T67: ='Footing Estimate'!CA34 ->  | U67: ='Footing Estimate'!CB34 ->  | V67: ='Footing Estimate'!CC34 ->  | W67: ='Footing Estimate'!CD34 ->  | X67: ='Footing Estimate'!CE34 ->  | Y67: ='Footing Estimate'!CF34 ->  | Z67: ='Footing Estimate'!CG34 ->  | AA67: ='Footing Estimate'!CH34 ->  | AB67: ='Footing Estimate'!CI34 ->  | AC67: ='Footing Estimate'!CJ34 ->  | AD67: ='Footing Estimate'!CK34 ->  | AE67: ='Footing Estimate'!CL34 ->  | AF67: ='Footing Estimate'!CM34 ->  | AG67: ='Footing Estimate'!CN34 ->  | AH67: ='Footing Estimate'!CO34 -> 
D68: ='Footing Estimate'!BK35 -> 0 | E68: ='Footing Estimate'!BL35 -> 0 | F68: ='Footing Estimate'!BM35 -> 0 | G68: ='Footing Estimate'!BN35 -> 0 | H68: ='Footing Estimate'!BO35 -> 0 | I68: ='Footing Estimate'!BP35 -> 0 | J68: ='Footing Estimate'!BQ35 -> 0 | K68: ='Footing Estimate'!BR35 -> 0 | L68: ='Footing Estimate'!BS35 -> 0 | M68: ='Footing Estimate'!BT35 -> 0 | N68: ='Footing Estimate'!BU35 -> 0 | O68: ='Footing Estimate'!BV35 -> 0 | P68: ='Footing Estimate'!BW35 -> 0 | Q68: ='Footing Estimate'!BX35 -> 0 | R68: ='Footing Estimate'!BY35 -> 0 | T68: ='Footing Estimate'!CA35 ->  | U68: ='Footing Estimate'!CB35 ->  | V68: ='Footing Estimate'!CC35 ->  | W68: ='Footing Estimate'!CD35 ->  | X68: ='Footing Estimate'!CE35 ->  | Y68: ='Footing Estimate'!CF35 ->  | Z68: ='Footing Estimate'!CG35 ->  | AA68: ='Footing Estimate'!CH35 ->  | AB68: ='Footing Estimate'!CI35 ->  | AC68: ='Footing Estimate'!CJ35 ->  | AD68: ='Footing Estimate'!CK35 ->  | AE68: ='Footing Estimate'!CL35 ->  | AF68: ='Footing Estimate'!CM35 ->  | AG68: ='Footing Estimate'!CN35 ->  | AH68: ='Footing Estimate'!CO35 -> 
B69: Short Tied Column | D69: ='Short Tied Column'!BC30 -> 0 | E69: ='Short Tied Column'!BD30 -> 0 | F69: ='Short Tied Column'!BE30 -> 0 | G69: ='Short Tied Column'!BF30 -> 0 | H69: ='Short Tied Column'!BG30 -> 0 | I69: ='Short Tied Column'!BH30 -> 0 | J69: ='Short Tied Column'!BI30 -> 0 | K69: ='Short Tied Column'!BJ30 -> 0 | L69: ='Short Tied Column'!BK30 -> 0 | M69: ='Short Tied Column'!BL30 -> 0 | N69: ='Short Tied Column'!BM30 -> 0 | O69: ='Short Tied Column'!BN30 -> 0 | P69: ='Short Tied Column'!BO30 -> 0 | Q69: ='Short Tied Column'!BP30 -> 0 | R69: ='Short Tied Column'!BQ30 -> 0 | T69: ='Short Tied Column'!BS30 ->  | U69: ='Short Tied Column'!BT30 ->  | V69: ='Short Tied Column'!BU30 ->  | W69: ='Short Tied Column'!BV30 ->  | X69: ='Short Tied Column'!BW30 ->  | Y69: ='Short Tied Column'!BX30 ->  | Z69: ='Short Tied Column'!BY30 ->  | AA69: ='Short Tied Column'!BZ30 ->  | AB69: ='Short Tied Column'!CA30 ->  | AC69: ='Short Tied Column'!CB30 ->  | AD69: ='Short Tied Column'!CC30 ->  | AE69: ='Short Tied Column'!CD30 ->  | AF69: ='Short Tied Column'!CE30 ->  | AG69: ='Short Tied Column'!CF30 ->  | AH69: ='Short Tied Column'!CG30 ->  | AJ69: =SUM(T69:AH73)/1000 -> 0
D70: ='Short Tied Column'!BC31 -> 0 | E70: ='Short Tied Column'!BD31 -> 0 | F70: ='Short Tied Column'!BE31 -> 0 | G70: ='Short Tied Column'!BF31 -> 0 | H70: ='Short Tied Column'!BG31 -> 0 | I70: ='Short Tied Column'!BH31 -> 0 | J70: ='Short Tied Column'!BI31 -> 0 | K70: ='Short Tied Column'!BJ31 -> 0 | L70: ='Short Tied Column'!BK31 -> 0 | M70: ='Short Tied Column'!BL31 -> 0 | N70: ='Short Tied Column'!BM31 -> 0 | O70: ='Short Tied Column'!BN31 -> 0 | P70: ='Short Tied Column'!BO31 -> 0 | Q70: ='Short Tied Column'!BP31 -> 0 | R70: ='Short Tied Column'!BQ31 -> 0 | T70: ='Short Tied Column'!BS31 ->  | U70: ='Short Tied Column'!BT31 ->  | V70: ='Short Tied Column'!BU31 ->  | W70: ='Short Tied Column'!BV31 ->  | X70: ='Short Tied Column'!BW31 ->  | Y70: ='Short Tied Column'!BX31 ->  | Z70: ='Short Tied Column'!BY31 ->  | AA70: ='Short Tied Column'!BZ31 ->  | AB70: ='Short Tied Column'!CA31 ->  | AC70: ='Short Tied Column'!CB31 ->  | AD70: ='Short Tied Column'!CC31 ->  | AE70: ='Short Tied Column'!CD31 ->  | AF70: ='Short Tied Column'!CE31 ->  | AG70: ='Short Tied Column'!CF31 ->  | AH70: ='Short Tied Column'!CG31 -> 
D71: ='Short Tied Column'!BC32 -> 0 | E71: ='Short Tied Column'!BD32 -> 0 | F71: ='Short Tied Column'!BE32 -> 0 | G71: ='Short Tied Column'!BF32 -> 0 | H71: ='Short Tied Column'!BG32 -> 0 | I71: ='Short Tied Column'!BH32 -> 0 | J71: ='Short Tied Column'!BI32 -> 0 | K71: ='Short Tied Column'!BJ32 -> 0 | L71: ='Short Tied Column'!BK32 -> 0 | M71: ='Short Tied Column'!BL32 -> 0 | N71: ='Short Tied Column'!BM32 -> 0 | O71: ='Short Tied Column'!BN32 -> 0 | P71: ='Short Tied Column'!BO32 -> 0 | Q71: ='Short Tied Column'!BP32 -> 0 | R71: ='Short Tied Column'!BQ32 -> 0 | T71: ='Short Tied Column'!BS32 ->  | U71: ='Short Tied Column'!BT32 ->  | V71: ='Short Tied Column'!BU32 ->  | W71: ='Short Tied Column'!BV32 ->  | X71: ='Short Tied Column'!BW32 ->  | Y71: ='Short Tied Column'!BX32 ->  | Z71: ='Short Tied Column'!BY32 ->  | AA71: ='Short Tied Column'!BZ32 ->  | AB71: ='Short Tied Column'!CA32 ->  | AC71: ='Short Tied Column'!CB32 ->  | AD71: ='Short Tied Column'!CC32 ->  | AE71: ='Short Tied Column'!CD32 ->  | AF71: ='Short Tied Column'!CE32 ->  | AG71: ='Short Tied Column'!CF32 ->  | AH71: ='Short Tied Column'!CG32 -> 
D72: ='Short Tied Column'!BC33 -> 0 | E72: ='Short Tied Column'!BD33 -> 0 | F72: ='Short Tied Column'!BE33 -> 0 | G72: ='Short Tied Column'!BF33 -> 0 | H72: ='Short Tied Column'!BG33 -> 0 | I72: ='Short Tied Column'!BH33 -> 0 | J72: ='Short Tied Column'!BI33 -> 0 | K72: ='Short Tied Column'!BJ33 -> 0 | L72: ='Short Tied Column'!BK33 -> 0 | M72: ='Short Tied Column'!BL33 -> 0 | N72: ='Short Tied Column'!BM33 -> 0 | O72: ='Short Tied Column'!BN33 -> 0 | P72: ='Short Tied Column'!BO33 -> 0 | Q72: ='Short Tied Column'!BP33 -> 0 | R72: ='Short Tied Column'!BQ33 -> 0 | T72: ='Short Tied Column'!BS33 ->  | U72: ='Short Tied Column'!BT33 ->  | V72: ='Short Tied Column'!BU33 ->  | W72: ='Short Tied Column'!BV33 ->  | X72: ='Short Tied Column'!BW33 ->  | Y72: ='Short Tied Column'!BX33 ->  | Z72: ='Short Tied Column'!BY33 ->  | AA72: ='Short Tied Column'!BZ33 ->  | AB72: ='Short Tied Column'!CA33 ->  | AC72: ='Short Tied Column'!CB33 ->  | AD72: ='Short Tied Column'!CC33 ->  | AE72: ='Short Tied Column'!CD33 ->  | AF72: ='Short Tied Column'!CE33 ->  | AG72: ='Short Tied Column'!CF33 ->  | AH72: ='Short Tied Column'!CG33 -> 
D73: ='Short Tied Column'!BC34 -> 0 | E73: ='Short Tied Column'!BD34 -> 0 | F73: ='Short Tied Column'!BE34 -> 0 | G73: ='Short Tied Column'!BF34 -> 0 | H73: ='Short Tied Column'!BG34 -> 0 | I73: ='Short Tied Column'!BH34 -> 0 | J73: ='Short Tied Column'!BI34 -> 0 | K73: ='Short Tied Column'!BJ34 -> 0 | L73: ='Short Tied Column'!BK34 -> 0 | M73: ='Short Tied Column'!BL34 -> 0 | N73: ='Short Tied Column'!BM34 -> 0 | O73: ='Short Tied Column'!BN34 -> 0 | P73: ='Short Tied Column'!BO34 -> 0 | Q73: ='Short Tied Column'!BP34 -> 0 | R73: ='Short Tied Column'!BQ34 -> 0 | T73: ='Short Tied Column'!BS34 ->  | U73: ='Short Tied Column'!BT34 ->  | V73: ='Short Tied Column'!BU34 ->  | W73: ='Short Tied Column'!BV34 ->  | X73: ='Short Tied Column'!BW34 ->  | Y73: ='Short Tied Column'!BX34 ->  | Z73: ='Short Tied Column'!BY34 ->  | AA73: ='Short Tied Column'!BZ34 ->  | AB73: ='Short Tied Column'!CA34 ->  | AC73: ='Short Tied Column'!CB34 ->  | AD73: ='Short Tied Column'!CC34 ->  | AE73: ='Short Tied Column'!CD34 ->  | AF73: ='Short Tied Column'!CE34 ->  | AG73: ='Short Tied Column'!CF34 ->  | AH73: ='Short Tied Column'!CG34 -> 
B74: Short circule Column | D74: =' Short Circular Column'!AR33 -> 0 | E74: =' Short Circular Column'!AS33 -> 0 | F74: =' Short Circular Column'!AT33 -> 0 | G74: =' Short Circular Column'!AU33 -> 0 | H74: =' Short Circular Column'!AV33 -> 0 | I74: =' Short Circular Column'!AW33 -> 0 | J74: =' Short Circular Column'!AX33 -> 0 | K74: =' Short Circular Column'!AY33 -> 0 | L74: =' Short Circular Column'!AZ33 -> 0 | M74: =' Short Circular Column'!BA33 -> 0 | N74: =' Short Circular Column'!BB33 -> 0 | O74: =' Short Circular Column'!BC33 -> 0 | P74: =' Short Circular Column'!BD33 -> 0 | Q74: =' Short Circular Column'!BE33 -> 0 | R74: =' Short Circular Column'!BF33 -> 0 | T74: =' Short Circular Column'!BH33 ->  | U74: =' Short Circular Column'!BI33 ->  | V74: =' Short Circular Column'!BJ33 ->  | W74: =' Short Circular Column'!BK33 ->  | X74: =' Short Circular Column'!BL33 ->  | Y74: =' Short Circular Column'!BM33 ->  | Z74: =' Short Circular Column'!BN33 ->  | AA74: =' Short Circular Column'!BO33 ->  | AB74: =' Short Circular Column'!BP33 ->  | AC74: =' Short Circular Column'!BQ33 ->  | AD74: =' Short Circular Column'!BR33 ->  | AE74: =' Short Circular Column'!BS33 ->  | AF74: =' Short Circular Column'!BT33 ->  | AG74: =' Short Circular Column'!BU33 ->  | AH74: =' Short Circular Column'!BV33 ->  | AJ74: =SUM(T74:AH78)/1000 -> 0
D75: =' Short Circular Column'!AR34 -> 0 | E75: =' Short Circular Column'!AS34 -> 0 | F75: =' Short Circular Column'!AT34 -> 0 | G75: =' Short Circular Column'!AU34 -> 0 | H75: =' Short Circular Column'!AV34 -> 0 | I75: =' Short Circular Column'!AW34 -> 0 | J75: =' Short Circular Column'!AX34 -> 0 | K75: =' Short Circular Column'!AY34 -> 0 | L75: =' Short Circular Column'!AZ34 -> 0 | M75: =' Short Circular Column'!BA34 -> 0 | N75: =' Short Circular Column'!BB34 -> 0 | O75: =' Short Circular Column'!BC34 -> 0 | P75: =' Short Circular Column'!BD34 -> 0 | Q75: =' Short Circular Column'!BE34 -> 0 | R75: =' Short Circular Column'!BF34 -> 0 | T75: =' Short Circular Column'!BH34 ->  | U75: =' Short Circular Column'!BI34 ->  | V75: =' Short Circular Column'!BJ34 ->  | W75: =' Short Circular Column'!BK34 ->  | X75: =' Short Circular Column'!BL34 ->  | Y75: =' Short Circular Column'!BM34 ->  | Z75: =' Short Circular Column'!BN34 ->  | AA75: =' Short Circular Column'!BO34 ->  | AB75: =' Short Circular Column'!BP34 ->  | AC75: =' Short Circular Column'!BQ34 ->  | AD75: =' Short Circular Column'!BR34 ->  | AE75: =' Short Circular Column'!BS34 ->  | AF75: =' Short Circular Column'!BT34 ->  | AG75: =' Short Circular Column'!BU34 ->  | AH75: =' Short Circular Column'!BV34 -> 
D76: =' Short Circular Column'!AR35 -> 0 | E76: =' Short Circular Column'!AS35 -> 0 | F76: =' Short Circular Column'!AT35 -> 0 | G76: =' Short Circular Column'!AU35 -> 0 | H76: =' Short Circular Column'!AV35 -> 0 | I76: =' Short Circular Column'!AW35 -> 0 | J76: =' Short Circular Column'!AX35 -> 0 | K76: =' Short Circular Column'!AY35 -> 0 | L76: =' Short Circular Column'!AZ35 -> 0 | M76: =' Short Circular Column'!BA35 -> 0 | N76: =' Short Circular Column'!BB35 -> 0 | O76: =' Short Circular Column'!BC35 -> 0 | P76: =' Short Circular Column'!BD35 -> 0 | Q76: =' Short Circular Column'!BE35 -> 0 | R76: =' Short Circular Column'!BF35 -> 0 | T76: =' Short Circular Column'!BH35 ->  | U76: =' Short Circular Column'!BI35 ->  | V76: =' Short Circular Column'!BJ35 ->  | W76: =' Short Circular Column'!BK35 ->  | X76: =' Short Circular Column'!BL35 ->  | Y76: =' Short Circular Column'!BM35 ->  | Z76: =' Short Circular Column'!BN35 ->  | AA76: =' Short Circular Column'!BO35 ->  | AB76: =' Short Circular Column'!BP35 ->  | AC76: =' Short Circular Column'!BQ35 ->  | AD76: =' Short Circular Column'!BR35 ->  | AE76: =' Short Circular Column'!BS35 ->  | AF76: =' Short Circular Column'!BT35 ->  | AG76: =' Short Circular Column'!BU35 ->  | AH76: =' Short Circular Column'!BV35 -> 
D77: =' Short Circular Column'!AR36 -> 0 | E77: =' Short Circular Column'!AS36 -> 0 | F77: =' Short Circular Column'!AT36 -> 0 | G77: =' Short Circular Column'!AU36 -> 0 | H77: =' Short Circular Column'!AV36 -> 0 | I77: =' Short Circular Column'!AW36 -> 0 | J77: =' Short Circular Column'!AX36 -> 0 | K77: =' Short Circular Column'!AY36 -> 0 | L77: =' Short Circular Column'!AZ36 -> 0 | M77: =' Short Circular Column'!BA36 -> 0 | N77: =' Short Circular Column'!BB36 -> 0 | O77: =' Short Circular Column'!BC36 -> 0 | P77: =' Short Circular Column'!BD36 -> 0 | Q77: =' Short Circular Column'!BE36 -> 0 | R77: =' Short Circular Column'!BF36 -> 0 | T77: =' Short Circular Column'!BH36 ->  | U77: =' Short Circular Column'!BI36 ->  | V77: =' Short Circular Column'!BJ36 ->  | W77: =' Short Circular Column'!BK36 ->  | X77: =' Short Circular Column'!BL36 ->  | Y77: =' Short Circular Column'!BM36 ->  | Z77: =' Short Circular Column'!BN36 ->  | AA77: =' Short Circular Column'!BO36 ->  | AB77: =' Short Circular Column'!BP36 ->  | AC77: =' Short Circular Column'!BQ36 ->  | AD77: =' Short Circular Column'!BR36 ->  | AE77: =' Short Circular Column'!BS36 ->  | AF77: =' Short Circular Column'!BT36 ->  | AG77: =' Short Circular Column'!BU36 ->  | AH77: =' Short Circular Column'!BV36 -> 
D78: =' Short Circular Column'!AR37 -> 0 | E78: =' Short Circular Column'!AS37 -> 0 | F78: =' Short Circular Column'!AT37 -> 0 | G78: =' Short Circular Column'!AU37 -> 0 | H78: =' Short Circular Column'!AV37 -> 0 | I78: =' Short Circular Column'!AW37 -> 0 | J78: =' Short Circular Column'!AX37 -> 0 | K78: =' Short Circular Column'!AY37 -> 0 | L78: =' Short Circular Column'!AZ37 -> 0 | M78: =' Short Circular Column'!BA37 -> 0 | N78: =' Short Circular Column'!BB37 -> 0 | O78: =' Short Circular Column'!BC37 -> 0 | P78: =' Short Circular Column'!BD37 -> 0 | Q78: =' Short Circular Column'!BE37 -> 0 | R78: =' Short Circular Column'!BF37 -> 0 | T78: =' Short Circular Column'!BH37 ->  | U78: =' Short Circular Column'!BI37 ->  | V78: =' Short Circular Column'!BJ37 ->  | W78: =' Short Circular Column'!BK37 ->  | X78: =' Short Circular Column'!BL37 ->  | Y78: =' Short Circular Column'!BM37 ->  | Z78: =' Short Circular Column'!BN37 ->  | AA78: =' Short Circular Column'!BO37 ->  | AB78: =' Short Circular Column'!BP37 ->  | AC78: =' Short Circular Column'!BQ37 ->  | AD78: =' Short Circular Column'!BR37 ->  | AE78: =' Short Circular Column'!BS37 ->  | AF78: =' Short Circular Column'!BT37 ->  | AG78: =' Short Circular Column'!BU37 ->  | AH78: =' Short Circular Column'!BV37 -> 
B79: Long Circular Column | D79: ='Long Tied Column'!AV34 -> 0 | E79: ='Long Tied Column'!AW34 -> 0 | F79: ='Long Tied Column'!AX34 -> 0 | G79: ='Long Tied Column'!AY34 -> 0 | H79: ='Long Tied Column'!AZ34 -> 0 | I79: ='Long Tied Column'!BA34 -> 0 | J79: ='Long Tied Column'!BB34 -> 0 | K79: ='Long Tied Column'!BC34 -> 0 | L79: ='Long Tied Column'!BD34 -> 0 | M79: ='Long Tied Column'!BE34 -> 0 | N79: ='Long Tied Column'!BF34 -> 0 | O79: ='Long Tied Column'!BG34 -> 0 | P79: ='Long Tied Column'!BH34 -> 0 | Q79: ='Long Tied Column'!BI34 -> 0 | R79: ='Long Tied Column'!BJ34 -> 0 | T79: ='Long Tied Column'!BL34 ->  | U79: ='Long Tied Column'!BM34 ->  | V79: ='Long Tied Column'!BN34 ->  | W79: ='Long Tied Column'!BO34 ->  | X79: ='Long Tied Column'!BP34 ->  | Y79: ='Long Tied Column'!BQ34 ->  | Z79: ='Long Tied Column'!BR34 ->  | AA79: ='Long Tied Column'!BS34 ->  | AB79: ='Long Tied Column'!BT34 ->  | AC79: ='Long Tied Column'!BU34 ->  | AD79: ='Long Tied Column'!BV34 ->  | AE79: ='Long Tied Column'!BW34 ->  | AF79: ='Long Tied Column'!BX34 ->  | AG79: ='Long Tied Column'!BY34 ->  | AH79: ='Long Tied Column'!BZ34 ->  | AJ79: =SUM(T79:AH83)/1000 -> 0
D80: ='Long Tied Column'!AV35 -> 0 | E80: ='Long Tied Column'!AW35 -> 0 | F80: ='Long Tied Column'!AX35 -> 0 | G80: ='Long Tied Column'!AY35 -> 0 | H80: ='Long Tied Column'!AZ35 -> 0 | I80: ='Long Tied Column'!BA35 -> 0 | J80: ='Long Tied Column'!BB35 -> 0 | K80: ='Long Tied Column'!BC35 -> 0 | L80: ='Long Tied Column'!BD35 -> 0 | M80: ='Long Tied Column'!BE35 -> 0 | N80: ='Long Tied Column'!BF35 -> 0 | O80: ='Long Tied Column'!BG35 -> 0 | P80: ='Long Tied Column'!BH35 -> 0 | Q80: ='Long Tied Column'!BI35 -> 0 | R80: ='Long Tied Column'!BJ35 -> 0 | T80: ='Long Tied Column'!BL35 ->  | U80: ='Long Tied Column'!BM35 ->  | V80: ='Long Tied Column'!BN35 ->  | W80: ='Long Tied Column'!BO35 ->  | X80: ='Long Tied Column'!BP35 ->  | Y80: ='Long Tied Column'!BQ35 ->  | Z80: ='Long Tied Column'!BR35 ->  | AA80: ='Long Tied Column'!BS35 ->  | AB80: ='Long Tied Column'!BT35 ->  | AC80: ='Long Tied Column'!BU35 ->  | AD80: ='Long Tied Column'!BV35 ->  | AE80: ='Long Tied Column'!BW35 ->  | AF80: ='Long Tied Column'!BX35 ->  | AG80: ='Long Tied Column'!BY35 ->  | AH80: ='Long Tied Column'!BZ35 -> 
D81: ='Long Tied Column'!AV36 -> 0 | E81: ='Long Tied Column'!AW36 -> 0 | F81: ='Long Tied Column'!AX36 -> 0 | G81: ='Long Tied Column'!AY36 -> 0 | H81: ='Long Tied Column'!AZ36 -> 0 | I81: ='Long Tied Column'!BA36 -> 0 | J81: ='Long Tied Column'!BB36 -> 0 | K81: ='Long Tied Column'!BC36 -> 0 | L81: ='Long Tied Column'!BD36 -> 0 | M81: ='Long Tied Column'!BE36 -> 0 | N81: ='Long Tied Column'!BF36 -> 0 | O81: ='Long Tied Column'!BG36 -> 0 | P81: ='Long Tied Column'!BH36 -> 0 | Q81: ='Long Tied Column'!BI36 -> 0 | R81: ='Long Tied Column'!BJ36 -> 0 | T81: ='Long Tied Column'!BL36 ->  | U81: ='Long Tied Column'!BM36 ->  | V81: ='Long Tied Column'!BN36 ->  | W81: ='Long Tied Column'!BO36 ->  | X81: ='Long Tied Column'!BP36 ->  | Y81: ='Long Tied Column'!BQ36 ->  | Z81: ='Long Tied Column'!BR36 ->  | AA81: ='Long Tied Column'!BS36 ->  | AB81: ='Long Tied Column'!BT36 ->  | AC81: ='Long Tied Column'!BU36 ->  | AD81: ='Long Tied Column'!BV36 ->  | AE81: ='Long Tied Column'!BW36 ->  | AF81: ='Long Tied Column'!BX36 ->  | AG81: ='Long Tied Column'!BY36 ->  | AH81: ='Long Tied Column'!BZ36 -> 
D82: ='Long Tied Column'!AV37 -> 0 | E82: ='Long Tied Column'!AW37 -> 0 | F82: ='Long Tied Column'!AX37 -> 0 | G82: ='Long Tied Column'!AY37 -> 0 | H82: ='Long Tied Column'!AZ37 -> 0 | I82: ='Long Tied Column'!BA37 -> 0 | J82: ='Long Tied Column'!BB37 -> 0 | K82: ='Long Tied Column'!BC37 -> 0 | L82: ='Long Tied Column'!BD37 -> 0 | M82: ='Long Tied Column'!BE37 -> 0 | N82: ='Long Tied Column'!BF37 -> 0 | O82: ='Long Tied Column'!BG37 -> 0 | P82: ='Long Tied Column'!BH37 -> 0 | Q82: ='Long Tied Column'!BI37 -> 0 | R82: ='Long Tied Column'!BJ37 -> 0 | T82: ='Long Tied Column'!BL37 ->  | U82: ='Long Tied Column'!BM37 ->  | V82: ='Long Tied Column'!BN37 ->  | W82: ='Long Tied Column'!BO37 ->  | X82: ='Long Tied Column'!BP37 ->  | Y82: ='Long Tied Column'!BQ37 ->  | Z82: ='Long Tied Column'!BR37 ->  | AA82: ='Long Tied Column'!BS37 ->  | AB82: ='Long Tied Column'!BT37 ->  | AC82: ='Long Tied Column'!BU37 ->  | AD82: ='Long Tied Column'!BV37 ->  | AE82: ='Long Tied Column'!BW37 ->  | AF82: ='Long Tied Column'!BX37 ->  | AG82: ='Long Tied Column'!BY37 ->  | AH82: ='Long Tied Column'!BZ37 -> 
D83: ='Long Tied Column'!AV38 -> 0 | E83: ='Long Tied Column'!AW38 -> 0 | F83: ='Long Tied Column'!AX38 -> 0 | G83: ='Long Tied Column'!AY38 -> 0 | H83: ='Long Tied Column'!AZ38 -> 0 | I83: ='Long Tied Column'!BA38 -> 0 | J83: ='Long Tied Column'!BB38 -> 0 | K83: ='Long Tied Column'!BC38 -> 0 | L83: ='Long Tied Column'!BD38 -> 0 | M83: ='Long Tied Column'!BE38 -> 0 | N83: ='Long Tied Column'!BF38 -> 0 | O83: ='Long Tied Column'!BG38 -> 0 | P83: ='Long Tied Column'!BH38 -> 0 | Q83: ='Long Tied Column'!BI38 -> 0 | R83: ='Long Tied Column'!BJ38 -> 0 | T83: ='Long Tied Column'!BL38 ->  | U83: ='Long Tied Column'!BM38 ->  | V83: ='Long Tied Column'!BN38 ->  | W83: ='Long Tied Column'!BO38 ->  | X83: ='Long Tied Column'!BP38 ->  | Y83: ='Long Tied Column'!BQ38 ->  | Z83: ='Long Tied Column'!BR38 ->  | AA83: ='Long Tied Column'!BS38 ->  | AB83: ='Long Tied Column'!BT38 ->  | AC83: ='Long Tied Column'!BU38 ->  | AD83: ='Long Tied Column'!BV38 ->  | AE83: ='Long Tied Column'!BW38 ->  | AF83: ='Long Tied Column'!BX38 ->  | AG83: ='Long Tied Column'!BY38 ->  | AH83: ='Long Tied Column'!BZ38 -> 
B84: Long Circular Column | D84: ='Long Circular Column'!BG36 -> 0 | E84: ='Long Circular Column'!BH36 -> 0 | F84: ='Long Circular Column'!BI36 -> 0 | G84: ='Long Circular Column'!BJ36 -> 0 | H84: ='Long Circular Column'!BK36 -> 0 | I84: ='Long Circular Column'!BL36 -> 0 | J84: ='Long Circular Column'!BM36 -> 0 | K84: ='Long Circular Column'!BN36 -> 0 | L84: ='Long Circular Column'!BO36 -> 0 | M84: ='Long Circular Column'!BP36 -> 0 | N84: ='Long Circular Column'!BQ36 -> 0 | O84: ='Long Circular Column'!BR36 -> 0 | P84: ='Long Circular Column'!BS36 -> 0 | Q84: ='Long Circular Column'!BT36 -> 0 | R84: ='Long Circular Column'!BU36 -> 0 | T84: ='Long Circular Column'!BW36 ->  | U84: ='Long Circular Column'!BX36 ->  | V84: ='Long Circular Column'!BY36 ->  | W84: ='Long Circular Column'!BZ36 ->  | X84: ='Long Circular Column'!CA36 ->  | Y84: ='Long Circular Column'!CB36 ->  | Z84: ='Long Circular Column'!CC36 ->  | AA84: ='Long Circular Column'!CD36 ->  | AB84: ='Long Circular Column'!CE36 ->  | AC84: ='Long Circular Column'!CF36 ->  | AD84: ='Long Circular Column'!CG36 ->  | AE84: ='Long Circular Column'!CH36 ->  | AF84: ='Long Circular Column'!CI36 ->  | AG84: ='Long Circular Column'!CJ36 ->  | AH84: ='Long Circular Column'!CK36 ->  | AJ84: =SUM(T84:AH88)/1000 -> 0
D85: ='Long Circular Column'!BG37 -> 0 | E85: ='Long Circular Column'!BH37 -> 0 | F85: ='Long Circular Column'!BI37 -> 0 | G85: ='Long Circular Column'!BJ37 -> 0 | H85: ='Long Circular Column'!BK37 -> 0 | I85: ='Long Circular Column'!BL37 -> 0 | J85: ='Long Circular Column'!BM37 -> 0 | K85: ='Long Circular Column'!BN37 -> 0 | L85: ='Long Circular Column'!BO37 -> 0 | M85: ='Long Circular Column'!BP37 -> 0 | N85: ='Long Circular Column'!BQ37 -> 0 | O85: ='Long Circular Column'!BR37 -> 0 | P85: ='Long Circular Column'!BS37 -> 0 | Q85: ='Long Circular Column'!BT37 -> 0 | R85: ='Long Circular Column'!BU37 -> 0 | T85: ='Long Circular Column'!BW37 ->  | U85: ='Long Circular Column'!BX37 ->  | V85: ='Long Circular Column'!BY37 ->  | W85: ='Long Circular Column'!BZ37 ->  | X85: ='Long Circular Column'!CA37 ->  | Y85: ='Long Circular Column'!CB37 ->  | Z85: ='Long Circular Column'!CC37 ->  | AA85: ='Long Circular Column'!CD37 ->  | AB85: ='Long Circular Column'!CE37 ->  | AC85: ='Long Circular Column'!CF37 ->  | AD85: ='Long Circular Column'!CG37 ->  | AE85: ='Long Circular Column'!CH37 ->  | AF85: ='Long Circular Column'!CI37 ->  | AG85: ='Long Circular Column'!CJ37 ->  | AH85: ='Long Circular Column'!CK37 -> 
D86: ='Long Circular Column'!BG38 -> 0 | E86: ='Long Circular Column'!BH38 -> 0 | F86: ='Long Circular Column'!BI38 -> 0 | G86: ='Long Circular Column'!BJ38 -> 0 | H86: ='Long Circular Column'!BK38 -> 0 | I86: ='Long Circular Column'!BL38 -> 0 | J86: ='Long Circular Column'!BM38 -> 0 | K86: ='Long Circular Column'!BN38 -> 0 | L86: ='Long Circular Column'!BO38 -> 0 | M86: ='Long Circular Column'!BP38 -> 0 | N86: ='Long Circular Column'!BQ38 -> 0 | O86: ='Long Circular Column'!BR38 -> 0 | P86: ='Long Circular Column'!BS38 -> 0 | Q86: ='Long Circular Column'!BT38 -> 0 | R86: ='Long Circular Column'!BU38 -> 0 | T86: ='Long Circular Column'!BW38 ->  | U86: ='Long Circular Column'!BX38 ->  | V86: ='Long Circular Column'!BY38 ->  | W86: ='Long Circular Column'!BZ38 ->  | X86: ='Long Circular Column'!CA38 ->  | Y86: ='Long Circular Column'!CB38 ->  | Z86: ='Long Circular Column'!CC38 ->  | AA86: ='Long Circular Column'!CD38 ->  | AB86: ='Long Circular Column'!CE38 ->  | AC86: ='Long Circular Column'!CF38 ->  | AD86: ='Long Circular Column'!CG38 ->  | AE86: ='Long Circular Column'!CH38 ->  | AF86: ='Long Circular Column'!CI38 ->  | AG86: ='Long Circular Column'!CJ38 ->  | AH86: ='Long Circular Column'!CK38 -> 
D87: ='Long Circular Column'!BG39 -> 0 | E87: ='Long Circular Column'!BH39 -> 0 | F87: ='Long Circular Column'!BI39 -> 0 | G87: ='Long Circular Column'!BJ39 -> 0 | H87: ='Long Circular Column'!BK39 -> 0 | I87: ='Long Circular Column'!BL39 -> 0 | J87: ='Long Circular Column'!BM39 -> 0 | K87: ='Long Circular Column'!BN39 -> 0 | L87: ='Long Circular Column'!BO39 -> 0 | M87: ='Long Circular Column'!BP39 -> 0 | N87: ='Long Circular Column'!BQ39 -> 0 | O87: ='Long Circular Column'!BR39 -> 0 | P87: ='Long Circular Column'!BS39 -> 0 | Q87: ='Long Circular Column'!BT39 -> 0 | R87: ='Long Circular Column'!BU39 -> 0 | T87: ='Long Circular Column'!BW39 ->  | U87: ='Long Circular Column'!BX39 ->  | V87: ='Long Circular Column'!BY39 ->  | W87: ='Long Circular Column'!BZ39 ->  | X87: ='Long Circular Column'!CA39 ->  | Y87: ='Long Circular Column'!CB39 ->  | Z87: ='Long Circular Column'!CC39 ->  | AA87: ='Long Circular Column'!CD39 ->  | AB87: ='Long Circular Column'!CE39 ->  | AC87: ='Long Circular Column'!CF39 ->  | AD87: ='Long Circular Column'!CG39 ->  | AE87: ='Long Circular Column'!CH39 ->  | AF87: ='Long Circular Column'!CI39 ->  | AG87: ='Long Circular Column'!CJ39 ->  | AH87: ='Long Circular Column'!CK39 -> 
D88: ='Long Circular Column'!BG40 -> 0 | E88: ='Long Circular Column'!BH40 -> 0 | F88: ='Long Circular Column'!BI40 -> 0 | G88: ='Long Circular Column'!BJ40 -> 0 | H88: ='Long Circular Column'!BK40 -> 0 | I88: ='Long Circular Column'!BL40 -> 0 | J88: ='Long Circular Column'!BM40 -> 0 | K88: ='Long Circular Column'!BN40 -> 0 | L88: ='Long Circular Column'!BO40 -> 0 | M88: ='Long Circular Column'!BP40 -> 0 | N88: ='Long Circular Column'!BQ40 -> 0 | O88: ='Long Circular Column'!BR40 -> 0 | P88: ='Long Circular Column'!BS40 -> 0 | Q88: ='Long Circular Column'!BT40 -> 0 | R88: ='Long Circular Column'!BU40 -> 0 | T88: ='Long Circular Column'!BW40 ->  | U88: ='Long Circular Column'!BX40 ->  | V88: ='Long Circular Column'!BY40 ->  | W88: ='Long Circular Column'!BZ40 ->  | X88: ='Long Circular Column'!CA40 ->  | Y88: ='Long Circular Column'!CB40 ->  | Z88: ='Long Circular Column'!CC40 ->  | AA88: ='Long Circular Column'!CD40 ->  | AB88: ='Long Circular Column'!CE40 ->  | AC88: ='Long Circular Column'!CF40 ->  | AD88: ='Long Circular Column'!CG40 ->  | AE88: ='Long Circular Column'!CH40 ->  | AF88: ='Long Circular Column'!CI40 ->  | AG88: ='Long Circular Column'!CJ40 ->  | AH88: ='Long Circular Column'!CK40 -> 
B89: Grade Beam | D89: ='Grade Beam'!AU39 -> 0 | E89: ='Grade Beam'!AV39 -> 0 | F89: ='Grade Beam'!AW39 -> 0 | G89: ='Grade Beam'!AX39 -> 0 | H89: ='Grade Beam'!AY39 -> 0 | I89: ='Grade Beam'!AZ39 -> 0 | J89: ='Grade Beam'!BA39 -> 0 | K89: ='Grade Beam'!BB39 -> 0 | L89: ='Grade Beam'!BC39 -> 0 | M89: ='Grade Beam'!BD39 -> 0 | N89: ='Grade Beam'!BE39 -> 0 | O89: ='Grade Beam'!BF39 -> 0 | P89: ='Grade Beam'!BG39 -> 0 | Q89: ='Grade Beam'!BH39 -> 0 | R89: ='Grade Beam'!BI39 -> 0 | T89: ='Grade Beam'!BK39 ->  | U89: ='Grade Beam'!BL39 ->  | V89: ='Grade Beam'!BM39 ->  | W89: ='Grade Beam'!BN39 ->  | X89: ='Grade Beam'!BO39 ->  | Y89: ='Grade Beam'!BP39 ->  | Z89: ='Grade Beam'!BQ39 ->  | AA89: ='Grade Beam'!BR39 ->  | AB89: ='Grade Beam'!BS39 ->  | AC89: ='Grade Beam'!BT39 ->  | AD89: ='Grade Beam'!BU39 ->  | AE89: ='Grade Beam'!BV39 ->  | AF89: ='Grade Beam'!BW39 ->  | AG89: ='Grade Beam'!BX39 ->  | AH89: ='Grade Beam'!BY39 ->  | AJ89: =SUM(T89:AH95)/1000 -> 0
D90: ='Grade Beam'!AU40 -> 0 | E90: ='Grade Beam'!AV40 -> 0 | F90: ='Grade Beam'!AW40 -> 0 | G90: ='Grade Beam'!AX40 -> 0 | H90: ='Grade Beam'!AY40 -> 0 | I90: ='Grade Beam'!AZ40 -> 0 | J90: ='Grade Beam'!BA40 -> 0 | K90: ='Grade Beam'!BB40 -> 0 | L90: ='Grade Beam'!BC40 -> 0 | M90: ='Grade Beam'!BD40 -> 0 | N90: ='Grade Beam'!BE40 -> 0 | O90: ='Grade Beam'!BF40 -> 0 | P90: ='Grade Beam'!BG40 -> 0 | Q90: ='Grade Beam'!BH40 -> 0 | R90: ='Grade Beam'!BI40 -> 0 | T90: ='Grade Beam'!BK40 ->  | U90: ='Grade Beam'!BL40 ->  | V90: ='Grade Beam'!BM40 ->  | W90: ='Grade Beam'!BN40 ->  | X90: ='Grade Beam'!BO40 ->  | Y90: ='Grade Beam'!BP40 ->  | Z90: ='Grade Beam'!BQ40 ->  | AA90: ='Grade Beam'!BR40 ->  | AB90: ='Grade Beam'!BS40 ->  | AC90: ='Grade Beam'!BT40 ->  | AD90: ='Grade Beam'!BU40 ->  | AE90: ='Grade Beam'!BV40 ->  | AF90: ='Grade Beam'!BW40 ->  | AG90: ='Grade Beam'!BX40 ->  | AH90: ='Grade Beam'!BY40 -> 
D91: ='Grade Beam'!AU41 -> 0 | E91: ='Grade Beam'!AV41 -> 0 | F91: ='Grade Beam'!AW41 -> 0 | G91: ='Grade Beam'!AX41 -> 0 | H91: ='Grade Beam'!AY41 -> 0 | I91: ='Grade Beam'!AZ41 -> 0 | J91: ='Grade Beam'!BA41 -> 0 | K91: ='Grade Beam'!BB41 -> 0 | L91: ='Grade Beam'!BC41 -> 0 | M91: ='Grade Beam'!BD41 -> 0 | N91: ='Grade Beam'!BE41 -> 0 | O91: ='Grade Beam'!BF41 -> 0 | P91: ='Grade Beam'!BG41 -> 0 | Q91: ='Grade Beam'!BH41 -> 0 | R91: ='Grade Beam'!BI41 -> 0 | T91: ='Grade Beam'!BK41 ->  | U91: ='Grade Beam'!BL41 ->  | V91: ='Grade Beam'!BM41 ->  | W91: ='Grade Beam'!BN41 ->  | X91: ='Grade Beam'!BO41 ->  | Y91: ='Grade Beam'!BP41 ->  | Z91: ='Grade Beam'!BQ41 ->  | AA91: ='Grade Beam'!BR41 ->  | AB91: ='Grade Beam'!BS41 ->  | AC91: ='Grade Beam'!BT41 ->  | AD91: ='Grade Beam'!BU41 ->  | AE91: ='Grade Beam'!BV41 ->  | AF91: ='Grade Beam'!BW41 ->  | AG91: ='Grade Beam'!BX41 ->  | AH91: ='Grade Beam'!BY41 -> 
D92: ='Grade Beam'!AU42 -> 0 | E92: ='Grade Beam'!AV42 -> 0 | F92: ='Grade Beam'!AW42 -> 0 | G92: ='Grade Beam'!AX42 -> 0 | H92: ='Grade Beam'!AY42 -> 0 | I92: ='Grade Beam'!AZ42 -> 0 | J92: ='Grade Beam'!BA42 -> 0 | K92: ='Grade Beam'!BB42 -> 0 | L92: ='Grade Beam'!BC42 -> 0 | M92: ='Grade Beam'!BD42 -> 0 | N92: ='Grade Beam'!BE42 -> 0 | O92: ='Grade Beam'!BF42 -> 0 | P92: ='Grade Beam'!BG42 -> 0 | Q92: ='Grade Beam'!BH42 -> 0 | R92: ='Grade Beam'!BI42 -> 0 | T92: ='Grade Beam'!BK42 ->  | U92: ='Grade Beam'!BL42 ->  | V92: ='Grade Beam'!BM42 ->  | W92: ='Grade Beam'!BN42 ->  | X92: ='Grade Beam'!BO42 ->  | Y92: ='Grade Beam'!BP42 ->  | Z92: ='Grade Beam'!BQ42 ->  | AA92: ='Grade Beam'!BR42 ->  | AB92: ='Grade Beam'!BS42 ->  | AC92: ='Grade Beam'!BT42 ->  | AD92: ='Grade Beam'!BU42 ->  | AE92: ='Grade Beam'!BV42 ->  | AF92: ='Grade Beam'!BW42 ->  | AG92: ='Grade Beam'!BX42 ->  | AH92: ='Grade Beam'!BY42 -> 
D93: ='Grade Beam'!AU43 -> 0 | E93: ='Grade Beam'!AV43 -> 0 | F93: ='Grade Beam'!AW43 -> 0 | G93: ='Grade Beam'!AX43 -> 0 | H93: ='Grade Beam'!AY43 -> 0 | I93: ='Grade Beam'!AZ43 -> 0 | J93: ='Grade Beam'!BA43 -> 0 | K93: ='Grade Beam'!BB43 -> 0 | L93: ='Grade Beam'!BC43 -> 0 | M93: ='Grade Beam'!BD43 -> 0 | N93: ='Grade Beam'!BE43 -> 0 | O93: ='Grade Beam'!BF43 -> 0 | P93: ='Grade Beam'!BG43 -> 0 | Q93: ='Grade Beam'!BH43 -> 0 | R93: ='Grade Beam'!BI43 -> 0 | T93: ='Grade Beam'!BK43 ->  | U93: ='Grade Beam'!BL43 ->  | V93: ='Grade Beam'!BM43 ->  | W93: ='Grade Beam'!BN43 ->  | X93: ='Grade Beam'!BO43 ->  | Y93: ='Grade Beam'!BP43 ->  | Z93: ='Grade Beam'!BQ43 ->  | AA93: ='Grade Beam'!BR43 ->  | AB93: ='Grade Beam'!BS43 ->  | AC93: ='Grade Beam'!BT43 ->  | AD93: ='Grade Beam'!BU43 ->  | AE93: ='Grade Beam'!BV43 ->  | AF93: ='Grade Beam'!BW43 ->  | AG93: ='Grade Beam'!BX43 ->  | AH93: ='Grade Beam'!BY43 -> 
D94: ='Grade Beam'!AU44 -> 0 | E94: ='Grade Beam'!AV44 -> 0 | F94: ='Grade Beam'!AW44 -> 0 | G94: ='Grade Beam'!AX44 -> 0 | H94: ='Grade Beam'!AY44 -> 0 | I94: ='Grade Beam'!AZ44 -> 0 | J94: ='Grade Beam'!BA44 -> 0 | K94: ='Grade Beam'!BB44 -> 0 | L94: ='Grade Beam'!BC44 -> 0 | M94: ='Grade Beam'!BD44 -> 0 | N94: ='Grade Beam'!BE44 -> 0 | O94: ='Grade Beam'!BF44 -> 0 | P94: ='Grade Beam'!BG44 -> 0 | Q94: ='Grade Beam'!BH44 -> 0 | R94: ='Grade Beam'!BI44 -> 0 | T94: ='Grade Beam'!BK44 ->  | U94: ='Grade Beam'!BL44 ->  | V94: ='Grade Beam'!BM44 ->  | W94: ='Grade Beam'!BN44 ->  | X94: ='Grade Beam'!BO44 ->  | Y94: ='Grade Beam'!BP44 ->  | Z94: ='Grade Beam'!BQ44 ->  | AA94: ='Grade Beam'!BR44 ->  | AB94: ='Grade Beam'!BS44 ->  | AC94: ='Grade Beam'!BT44 ->  | AD94: ='Grade Beam'!BU44 ->  | AE94: ='Grade Beam'!BV44 ->  | AF94: ='Grade Beam'!BW44 ->  | AG94: ='Grade Beam'!BX44 ->  | AH94: ='Grade Beam'!BY44 -> 
D95: ='Grade Beam'!AU45 -> 0 | E95: ='Grade Beam'!AV45 -> 0 | F95: ='Grade Beam'!AW45 -> 0 | G95: ='Grade Beam'!AX45 -> 0 | H95: ='Grade Beam'!AY45 -> 0 | I95: ='Grade Beam'!AZ45 -> 0 | J95: ='Grade Beam'!BA45 -> 0 | K95: ='Grade Beam'!BB45 -> 0 | L95: ='Grade Beam'!BC45 -> 0 | M95: ='Grade Beam'!BD45 -> 0 | N95: ='Grade Beam'!BE45 -> 0 | O95: ='Grade Beam'!BF45 -> 0 | P95: ='Grade Beam'!BG45 -> 0 | Q95: ='Grade Beam'!BH45 -> 0 | R95: ='Grade Beam'!BI45 -> 0 | T95: ='Grade Beam'!BK45 ->  | U95: ='Grade Beam'!BL45 ->  | V95: ='Grade Beam'!BM45 ->  | W95: ='Grade Beam'!BN45 ->  | X95: ='Grade Beam'!BO45 ->  | Y95: ='Grade Beam'!BP45 ->  | Z95: ='Grade Beam'!BQ45 ->  | AA95: ='Grade Beam'!BR45 ->  | AB95: ='Grade Beam'!BS45 ->  | AC95: ='Grade Beam'!BT45 ->  | AD95: ='Grade Beam'!BU45 ->  | AE95: ='Grade Beam'!BV45 ->  | AF95: ='Grade Beam'!BW45 ->  | AG95: ='Grade Beam'!BX45 ->  | AH95: ='Grade Beam'!BY45 -> 
B96: Floor Beam | D96: ='Floor Beam'!AU39 -> 0 | E96: ='Floor Beam'!AV39 -> 0 | F96: ='Floor Beam'!AW39 -> 0 | G96: ='Floor Beam'!AX39 -> 0 | H96: ='Floor Beam'!AY39 -> 0 | I96: ='Floor Beam'!AZ39 -> 0 | J96: ='Floor Beam'!BA39 -> 0 | K96: ='Floor Beam'!BB39 -> 0 | L96: ='Floor Beam'!BC39 -> 0 | M96: ='Floor Beam'!BD39 -> 0 | N96: ='Floor Beam'!BE39 -> 0 | O96: ='Floor Beam'!BF39 -> 0 | P96: ='Floor Beam'!BG39 -> 0 | Q96: ='Floor Beam'!BH39 -> 0 | R96: ='Floor Beam'!BI39 -> 0 | T96: ='Floor Beam'!BK39 ->  | U96: ='Floor Beam'!BL39 ->  | V96: ='Floor Beam'!BM39 ->  | W96: ='Floor Beam'!BN39 ->  | X96: ='Floor Beam'!BO39 ->  | Y96: ='Floor Beam'!BP39 ->  | Z96: ='Floor Beam'!BQ39 ->  | AA96: ='Floor Beam'!BR39 ->  | AB96: ='Floor Beam'!BS39 ->  | AC96: ='Floor Beam'!BT39 ->  | AD96: ='Floor Beam'!BU39 ->  | AE96: ='Floor Beam'!BV39 ->  | AF96: ='Floor Beam'!BW39 ->  | AG96: ='Floor Beam'!BX39 ->  | AH96: ='Floor Beam'!BY39 ->  | AJ96: =SUM(T96:AH102)/1000 -> 0
D97: ='Floor Beam'!AU40 -> 0 | E97: ='Floor Beam'!AV40 -> 0 | F97: ='Floor Beam'!AW40 -> 0 | G97: ='Floor Beam'!AX40 -> 0 | H97: ='Floor Beam'!AY40 -> 0 | I97: ='Floor Beam'!AZ40 -> 0 | J97: ='Floor Beam'!BA40 -> 0 | K97: ='Floor Beam'!BB40 -> 0 | L97: ='Floor Beam'!BC40 -> 0 | M97: ='Floor Beam'!BD40 -> 0 | N97: ='Floor Beam'!BE40 -> 0 | O97: ='Floor Beam'!BF40 -> 0 | P97: ='Floor Beam'!BG40 -> 0 | Q97: ='Floor Beam'!BH40 -> 0 | R97: ='Floor Beam'!BI40 -> 0 | T97: ='Floor Beam'!BK40 ->  | U97: ='Floor Beam'!BL40 ->  | V97: ='Floor Beam'!BM40 ->  | W97: ='Floor Beam'!BN40 ->  | X97: ='Floor Beam'!BO40 ->  | Y97: ='Floor Beam'!BP40 ->  | Z97: ='Floor Beam'!BQ40 ->  | AA97: ='Floor Beam'!BR40 ->  | AB97: ='Floor Beam'!BS40 ->  | AC97: ='Floor Beam'!BT40 ->  | AD97: ='Floor Beam'!BU40 ->  | AE97: ='Floor Beam'!BV40 ->  | AF97: ='Floor Beam'!BW40 ->  | AG97: ='Floor Beam'!BX40 ->  | AH97: ='Floor Beam'!BY40 -> 
D98: ='Floor Beam'!AU41 -> 0 | E98: ='Floor Beam'!AV41 -> 0 | F98: ='Floor Beam'!AW41 -> 0 | G98: ='Floor Beam'!AX41 -> 0 | H98: ='Floor Beam'!AY41 -> 0 | I98: ='Floor Beam'!AZ41 -> 0 | J98: ='Floor Beam'!BA41 -> 0 | K98: ='Floor Beam'!BB41 -> 0 | L98: ='Floor Beam'!BC41 -> 0 | M98: ='Floor Beam'!BD41 -> 0 | N98: ='Floor Beam'!BE41 -> 0 | O98: ='Floor Beam'!BF41 -> 0 | P98: ='Floor Beam'!BG41 -> 0 | Q98: ='Floor Beam'!BH41 -> 0 | R98: ='Floor Beam'!BI41 -> 0 | T98: ='Floor Beam'!BK41 ->  | U98: ='Floor Beam'!BL41 ->  | V98: ='Floor Beam'!BM41 ->  | W98: ='Floor Beam'!BN41 ->  | X98: ='Floor Beam'!BO41 ->  | Y98: ='Floor Beam'!BP41 ->  | Z98: ='Floor Beam'!BQ41 ->  | AA98: ='Floor Beam'!BR41 ->  | AB98: ='Floor Beam'!BS41 ->  | AC98: ='Floor Beam'!BT41 ->  | AD98: ='Floor Beam'!BU41 ->  | AE98: ='Floor Beam'!BV41 ->  | AF98: ='Floor Beam'!BW41 ->  | AG98: ='Floor Beam'!BX41 ->  | AH98: ='Floor Beam'!BY41 -> 
D99: ='Floor Beam'!AU42 -> 0 | E99: ='Floor Beam'!AV42 -> 0 | F99: ='Floor Beam'!AW42 -> 0 | G99: ='Floor Beam'!AX42 -> 0 | H99: ='Floor Beam'!AY42 -> 0 | I99: ='Floor Beam'!AZ42 -> 0 | J99: ='Floor Beam'!BA42 -> 0 | K99: ='Floor Beam'!BB42 -> 0 | L99: ='Floor Beam'!BC42 -> 0 | M99: ='Floor Beam'!BD42 -> 0 | N99: ='Floor Beam'!BE42 -> 0 | O99: ='Floor Beam'!BF42 -> 0 | P99: ='Floor Beam'!BG42 -> 0 | Q99: ='Floor Beam'!BH42 -> 0 | R99: ='Floor Beam'!BI42 -> 0 | T99: ='Floor Beam'!BK42 ->  | U99: ='Floor Beam'!BL42 ->  | V99: ='Floor Beam'!BM42 ->  | W99: ='Floor Beam'!BN42 ->  | X99: ='Floor Beam'!BO42 ->  | Y99: ='Floor Beam'!BP42 ->  | Z99: ='Floor Beam'!BQ42 ->  | AA99: ='Floor Beam'!BR42 ->  | AB99: ='Floor Beam'!BS42 ->  | AC99: ='Floor Beam'!BT42 ->  | AD99: ='Floor Beam'!BU42 ->  | AE99: ='Floor Beam'!BV42 ->  | AF99: ='Floor Beam'!BW42 ->  | AG99: ='Floor Beam'!BX42 ->  | AH99: ='Floor Beam'!BY42 -> 
D100: ='Floor Beam'!AU43 -> 0 | E100: ='Floor Beam'!AV43 -> 0 | F100: ='Floor Beam'!AW43 -> 0 | G100: ='Floor Beam'!AX43 -> 0 | H100: ='Floor Beam'!AY43 -> 0 | I100: ='Floor Beam'!AZ43 -> 0 | J100: ='Floor Beam'!BA43 -> 0 | K100: ='Floor Beam'!BB43 -> 0 | L100: ='Floor Beam'!BC43 -> 0 | M100: ='Floor Beam'!BD43 -> 0 | N100: ='Floor Beam'!BE43 -> 0 | O100: ='Floor Beam'!BF43 -> 0 | P100: ='Floor Beam'!BG43 -> 0 | Q100: ='Floor Beam'!BH43 -> 0 | R100: ='Floor Beam'!BI43 -> 0 | T100: ='Floor Beam'!BK43 ->  | U100: ='Floor Beam'!BL43 ->  | V100: ='Floor Beam'!BM43 ->  | W100: ='Floor Beam'!BN43 ->  | X100: ='Floor Beam'!BO43 ->  | Y100: ='Floor Beam'!BP43 ->  | Z100: ='Floor Beam'!BQ43 ->  | AA100: ='Floor Beam'!BR43 ->  | AB100: ='Floor Beam'!BS43 ->  | AC100: ='Floor Beam'!BT43 ->  | AD100: ='Floor Beam'!BU43 ->  | AE100: ='Floor Beam'!BV43 ->  | AF100: ='Floor Beam'!BW43 ->  | AG100: ='Floor Beam'!BX43 ->  | AH100: ='Floor Beam'!BY43 -> 
D101: ='Floor Beam'!AU44 -> 0 | E101: ='Floor Beam'!AV44 -> 0 | F101: ='Floor Beam'!AW44 -> 0 | G101: ='Floor Beam'!AX44 -> 0 | H101: ='Floor Beam'!AY44 -> 0 | I101: ='Floor Beam'!AZ44 -> 0 | J101: ='Floor Beam'!BA44 -> 0 | K101: ='Floor Beam'!BB44 -> 0 | L101: ='Floor Beam'!BC44 -> 0 | M101: ='Floor Beam'!BD44 -> 0 | N101: ='Floor Beam'!BE44 -> 0 | O101: ='Floor Beam'!BF44 -> 0 | P101: ='Floor Beam'!BG44 -> 0 | Q101: ='Floor Beam'!BH44 -> 0 | R101: ='Floor Beam'!BI44 -> 0 | T101: ='Floor Beam'!BK44 ->  | U101: ='Floor Beam'!BL44 ->  | V101: ='Floor Beam'!BM44 ->  | W101: ='Floor Beam'!BN44 ->  | X101: ='Floor Beam'!BO44 ->  | Y101: ='Floor Beam'!BP44 ->  | Z101: ='Floor Beam'!BQ44 ->  | AA101: ='Floor Beam'!BR44 ->  | AB101: ='Floor Beam'!BS44 ->  | AC101: ='Floor Beam'!BT44 ->  | AD101: ='Floor Beam'!BU44 ->  | AE101: ='Floor Beam'!BV44 ->  | AF101: ='Floor Beam'!BW44 ->  | AG101: ='Floor Beam'!BX44 ->  | AH101: ='Floor Beam'!BY44 -> 
D102: ='Floor Beam'!AU45 -> 0 | E102: ='Floor Beam'!AV45 -> 0 | F102: ='Floor Beam'!AW45 -> 0 | G102: ='Floor Beam'!AX45 -> 0 | H102: ='Floor Beam'!AY45 -> 0 | I102: ='Floor Beam'!AZ45 -> 0 | J102: ='Floor Beam'!BA45 -> 0 | K102: ='Floor Beam'!BB45 -> 0 | L102: ='Floor Beam'!BC45 -> 0 | M102: ='Floor Beam'!BD45 -> 0 | N102: ='Floor Beam'!BE45 -> 0 | O102: ='Floor Beam'!BF45 -> 0 | P102: ='Floor Beam'!BG45 -> 0 | Q102: ='Floor Beam'!BH45 -> 0 | R102: ='Floor Beam'!BI45 -> 0 | T102: ='Floor Beam'!BK45 ->  | U102: ='Floor Beam'!BL45 ->  | V102: ='Floor Beam'!BM45 ->  | W102: ='Floor Beam'!BN45 ->  | X102: ='Floor Beam'!BO45 ->  | Y102: ='Floor Beam'!BP45 ->  | Z102: ='Floor Beam'!BQ45 ->  | AA102: ='Floor Beam'!BR45 ->  | AB102: ='Floor Beam'!BS45 ->  | AC102: ='Floor Beam'!BT45 ->  | AD102: ='Floor Beam'!BU45 ->  | AE102: ='Floor Beam'!BV45 ->  | AF102: ='Floor Beam'!BW45 ->  | AG102: ='Floor Beam'!BX45 ->  | AH102: ='Floor Beam'!BY45 -> 
B103: Stair | D103: =Stair!CT40 -> 0 | T103: =Stair!CV40 ->  | AJ103: =SUM(T103:AH109)/1000 -> 0
D104: =Stair!CT41 -> 0 | T104: =Stair!CV41 -> 
D105: =Stair!CT42 -> 0 | T105: =Stair!CV42 -> 
D106: =Stair!CT43 -> 0 | T106: =Stair!CV43 -> 
D107: =Stair!CT44 -> 0 | T107: =Stair!CV44 -> 
D108: =Stair!CT45 -> 0 | T108: =Stair!CV45 -> 
D109: =Stair!CT46 -> 0 | T109: =Stair!CV46 -> 
B110: Slab | D110: =Slab!AL30 -> 0 | E110: =Slab!AM30 -> 0 | F110: =Slab!AN30 -> 0 | G110: =Slab!AO30 -> 0 | H110: =Slab!AP30 -> 0 | I110: =Slab!AQ30 -> 0 | J110: =Slab!AR30 -> 0 | K110: =Slab!AS30 -> 0 | L110: =Slab!AT30 -> 0 | M110: =Slab!AU30 -> 0 | T110: =Slab!AW30 ->  | U110: =Slab!AX30 ->  | V110: =Slab!AY30 ->  | W110: =Slab!AZ30 ->  | X110: =Slab!BA30 ->  | Y110: =Slab!BB30 ->  | Z110: =Slab!BC30 ->  | AA110: =Slab!BD30 ->  | AB110: =Slab!BE30 ->  | AC110: =Slab!BF30 ->  | AJ110: =SUM(T110:AH113)/1000 -> 0
D111: =Slab!AL31 -> 0 | E111: =Slab!AM31 -> 0 | F111: =Slab!AN31 -> 0 | G111: =Slab!AO31 -> 0 | H111: =Slab!AP31 -> 0 | I111: =Slab!AQ31 -> 0 | J111: =Slab!AR31 -> 0 | K111: =Slab!AS31 -> 0 | L111: =Slab!AT31 -> 0 | M111: =Slab!AU31 -> 0 | T111: =Slab!AW31 ->  | U111: =Slab!AX31 ->  | V111: =Slab!AY31 ->  | W111: =Slab!AZ31 ->  | X111: =Slab!BA31 ->  | Y111: =Slab!BB31 ->  | Z111: =Slab!BC31 ->  | AA111: =Slab!BD31 ->  | AB111: =Slab!BE31 ->  | AC111: =Slab!BF31 -> 
D112: =Slab!AL32 -> 0 | E112: =Slab!AM32 -> 0 | F112: =Slab!AN32 -> 0 | G112: =Slab!AO32 -> 0 | H112: =Slab!AP32 -> 0 | I112: =Slab!AQ32 -> 0 | J112: =Slab!AR32 -> 0 | K112: =Slab!AS32 -> 0 | L112: =Slab!AT32 -> 0 | M112: =Slab!AU32 -> 0 | T112: =Slab!AW32 ->  | U112: =Slab!AX32 ->  | V112: =Slab!AY32 ->  | W112: =Slab!AZ32 ->  | X112: =Slab!BA32 ->  | Y112: =Slab!BB32 ->  | Z112: =Slab!BC32 ->  | AA112: =Slab!BD32 ->  | AB112: =Slab!BE32 ->  | AC112: =Slab!BF32 -> 
D113: =Slab!AL33 -> 0 | E113: =Slab!AM33 -> 0 | F113: =Slab!AN33 -> 0 | G113: =Slab!AO33 -> 0 | H113: =Slab!AP33 -> 0 | I113: =Slab!AQ33 -> 0 | J113: =Slab!AR33 -> 0 | K113: =Slab!AS33 -> 0 | L113: =Slab!AT33 -> 0 | M113: =Slab!AU33 -> 0 | T113: =Slab!AW33 ->  | U113: =Slab!AX33 ->  | V113: =Slab!AY33 ->  | W113: =Slab!AZ33 ->  | X113: =Slab!BA33 ->  | Y113: =Slab!BB33 ->  | Z113: =Slab!BC33 ->  | AA113: =Slab!BD33 ->  | AB113: =Slab!BE33 ->  | AC113: =Slab!BF33 -> 
B114: Rcc Wall | D114: ='Rcc Wall'!BH43 -> 0 | E114: ='Rcc Wall'!BI43 -> 0 | F114: ='Rcc Wall'!BJ43 -> 0 | G114: ='Rcc Wall'!BK43 -> 0 | H114: ='Rcc Wall'!BL43 -> 0 | I114: ='Rcc Wall'!BM43 -> 0 | J114: ='Rcc Wall'!BN43 -> 0 | K114: ='Rcc Wall'!BO43 -> 0 | L114: ='Rcc Wall'!BP43 -> 0 | M114: ='Rcc Wall'!BQ43 -> 0 | N114: ='Rcc Wall'!BR43 -> 0 | O114: ='Rcc Wall'!BS43 -> 0 | P114: ='Rcc Wall'!BT43 -> 0 | Q114: ='Rcc Wall'!BU43 -> 0 | R114: ='Rcc Wall'!BV43 -> 0 | T114: ='Rcc Wall'!BX43 ->  | U114: ='Rcc Wall'!BY43 ->  | V114: ='Rcc Wall'!BZ43 ->  | W114: ='Rcc Wall'!CA43 ->  | X114: ='Rcc Wall'!CB43 ->  | Y114: ='Rcc Wall'!CC43 ->  | Z114: ='Rcc Wall'!CD43 ->  | AA114: ='Rcc Wall'!CE43 ->  | AB114: ='Rcc Wall'!CF43 ->  | AC114: ='Rcc Wall'!CG43 ->  | AD114: ='Rcc Wall'!CH43 ->  | AE114: ='Rcc Wall'!CI43 ->  | AF114: ='Rcc Wall'!CJ43 ->  | AG114: ='Rcc Wall'!CK43 ->  | AH114: ='Rcc Wall'!CL43 ->  | AJ114: =SUM(T114:AH117)/1000 -> 0
D115: ='Rcc Wall'!BH44 -> 0 | E115: ='Rcc Wall'!BI44 -> 0 | F115: ='Rcc Wall'!BJ44 -> 0 | G115: ='Rcc Wall'!BK44 -> 0 | H115: ='Rcc Wall'!BL44 -> 0 | I115: ='Rcc Wall'!BM44 -> 0 | J115: ='Rcc Wall'!BN44 -> 0 | K115: ='Rcc Wall'!BO44 -> 0 | L115: ='Rcc Wall'!BP44 -> 0 | M115: ='Rcc Wall'!BQ44 -> 0 | N115: ='Rcc Wall'!BR44 -> 0 | O115: ='Rcc Wall'!BS44 -> 0 | P115: ='Rcc Wall'!BT44 -> 0 | Q115: ='Rcc Wall'!BU44 -> 0 | R115: ='Rcc Wall'!BV44 -> 0 | T115: ='Rcc Wall'!BX44 ->  | U115: ='Rcc Wall'!BY44 ->  | V115: ='Rcc Wall'!BZ44 ->  | W115: ='Rcc Wall'!CA44 ->  | X115: ='Rcc Wall'!CB44 ->  | Y115: ='Rcc Wall'!CC44 ->  | Z115: ='Rcc Wall'!CD44 ->  | AA115: ='Rcc Wall'!CE44 ->  | AB115: ='Rcc Wall'!CF44 ->  | AC115: ='Rcc Wall'!CG44 ->  | AD115: ='Rcc Wall'!CH44 ->  | AE115: ='Rcc Wall'!CI44 ->  | AF115: ='Rcc Wall'!CJ44 ->  | AG115: ='Rcc Wall'!CK44 ->  | AH115: ='Rcc Wall'!CL44 -> 
D116: ='Rcc Wall'!BH45 -> 0 | E116: ='Rcc Wall'!BI45 -> 0 | F116: ='Rcc Wall'!BJ45 -> 0 | G116: ='Rcc Wall'!BK45 -> 0 | H116: ='Rcc Wall'!BL45 -> 0 | I116: ='Rcc Wall'!BM45 -> 0 | J116: ='Rcc Wall'!BN45 -> 0 | K116: ='Rcc Wall'!BO45 -> 0 | L116: ='Rcc Wall'!BP45 -> 0 | M116: ='Rcc Wall'!BQ45 -> 0 | N116: ='Rcc Wall'!BR45 -> 0 | O116: ='Rcc Wall'!BS45 -> 0 | P116: ='Rcc Wall'!BT45 -> 0 | Q116: ='Rcc Wall'!BU45 -> 0 | R116: ='Rcc Wall'!BV45 -> 0 | T116: ='Rcc Wall'!BX45 ->  | U116: ='Rcc Wall'!BY45 ->  | V116: ='Rcc Wall'!BZ45 ->  | W116: ='Rcc Wall'!CA45 ->  | X116: ='Rcc Wall'!CB45 ->  | Y116: ='Rcc Wall'!CC45 ->  | Z116: ='Rcc Wall'!CD45 ->  | AA116: ='Rcc Wall'!CE45 ->  | AB116: ='Rcc Wall'!CF45 ->  | AC116: ='Rcc Wall'!CG45 ->  | AD116: ='Rcc Wall'!CH45 ->  | AE116: ='Rcc Wall'!CI45 ->  | AF116: ='Rcc Wall'!CJ45 ->  | AG116: ='Rcc Wall'!CK45 ->  | AH116: ='Rcc Wall'!CL45 -> 
D117: ='Rcc Wall'!BH46 -> 0 | E117: ='Rcc Wall'!BI46 -> 0 | F117: ='Rcc Wall'!BJ46 -> 0 | G117: ='Rcc Wall'!BK46 -> 0 | H117: ='Rcc Wall'!BL46 -> 0 | I117: ='Rcc Wall'!BM46 -> 0 | J117: ='Rcc Wall'!BN46 -> 0 | K117: ='Rcc Wall'!BO46 -> 0 | L117: ='Rcc Wall'!BP46 -> 0 | M117: ='Rcc Wall'!BQ46 -> 0 | N117: ='Rcc Wall'!BR46 -> 0 | O117: ='Rcc Wall'!BS46 -> 0 | P117: ='Rcc Wall'!BT46 -> 0 | Q117: ='Rcc Wall'!BU46 -> 0 | R117: ='Rcc Wall'!BV46 -> 0 | T117: ='Rcc Wall'!BX46 ->  | U117: ='Rcc Wall'!BY46 ->  | V117: ='Rcc Wall'!BZ46 ->  | W117: ='Rcc Wall'!CA46 ->  | X117: ='Rcc Wall'!CB46 ->  | Y117: ='Rcc Wall'!CC46 ->  | Z117: ='Rcc Wall'!CD46 ->  | AA117: ='Rcc Wall'!CE46 ->  | AB117: ='Rcc Wall'!CF46 ->  | AC117: ='Rcc Wall'!CG46 ->  | AD117: ='Rcc Wall'!CH46 ->  | AE117: ='Rcc Wall'!CI46 ->  | AF117: ='Rcc Wall'!CJ46 ->  | AG117: ='Rcc Wall'!CK46 ->  | AH117: ='Rcc Wall'!CL46 -> 
B118: WATER RESERVOIR | D118: ='WATER RESERVOIR'!BI15 -> 0 | E118: ='WATER RESERVOIR'!BJ15 -> 0 | T118: ='WATER RESERVOIR'!BL15 ->  | U118: ='WATER RESERVOIR'!BM15 ->  | AJ118: =SUM(T118:AH125)/1000 -> 0
D119: ='WATER RESERVOIR'!BI16 -> 0 | E119: ='WATER RESERVOIR'!BJ16 -> 0 | T119: ='WATER RESERVOIR'!BL16 ->  | U119: ='WATER RESERVOIR'!BM16 -> 
D120: ='WATER RESERVOIR'!BI17 -> 0 | E120: ='WATER RESERVOIR'!BJ17 -> 0 | T120: ='WATER RESERVOIR'!BL17 ->  | U120: ='WATER RESERVOIR'!BM17 -> 
D121: ='WATER RESERVOIR'!BI18 -> 0 | E121: ='WATER RESERVOIR'!BJ18 -> 0 | T121: ='WATER RESERVOIR'!BL18 ->  | U121: ='WATER RESERVOIR'!BM18 -> 
D122: ='WATER RESERVOIR'!BI19 -> 0 | T122: ='WATER RESERVOIR'!BL19 -> 
D123: ='WATER RESERVOIR'!BI20 -> 0 | T123: ='WATER RESERVOIR'!BL20 -> 
D124: ='WATER RESERVOIR'!BI21 -> 0 | T124: ='WATER RESERVOIR'!BL21 -> 
D125: ='WATER RESERVOIR'!BI22 -> 0 | T125: ='WATER RESERVOIR'!BL22 -> 

Sheet Result (hidden)
A1: This is The Property of NOR DESIGN SOLUTION
A6: এক্সেল শীট সম্পর্কে যাবতীয় তথ্য বিস্তারিত জানতে ভিজিট করুন আমাদের ইউটিউব চ্যানেলে
B10: All Result
B12: DESCRIPTION | E12: Quantity | G12: Wastage Add | H12: Quantity (Wastage Add) | J12: Rate | L12: Amount TK
B13: Cement | E13: ='Admin Panel'!T23 -> 0 Bag | G13: 0 % ADD | H13: =E13+$G$13*E13/100 -> 0 Bag | J13: 5.00 TK | L13: =H13*J13 -> 0 TK
B14: Sand | E14: ='Admin Panel'!U23 -> 0 CFT | H14: =E14+$G$13*E14/100 -> 0 CFT | J14: 6.00 TK | L14: =H14*J14 -> 0 TK
B15: Stone/Brick Chips (CFT) | E15: =VLOOKUP(B15,'Admin Panel'!AK12:AL13,2,0) -> 0 | H15: 0 | J15: 7.00 TK | L15: 0 TK
B16: Rebar | E16: ='Admin Panel'!W23 -> 0.000 Ton | H16: 0.000 Ton | J16: 8.00 TK | L16: 0 TK
B17: Excabation | E17: ='Admin Panel'!Y23 -> 0 CFT | H17: 0 CFT | J17: 9.00 TK | L17: 0 TK
B18: Sand Filling | E18: ='Admin Panel'!Z23 -> 0 CFT | H18: 0 CFT | J18: 10.00 TK | L18: 0 TK
B19: Bricl Flat Soling | E19: ='Admin Panel'!AC23 -> 0 Nos | H19: 0 Nos | J19: 11.00 TK | L19: 0 TK
B20: Formwork | E20: ='Admin Panel'!AA23 -> 0 SFT | H20: 0 SFT | J20: 12.00 TK | L20: 0 TK
B21: R.C.C Casting | E21: ='Admin Panel'!X23 -> 0 CFT | H21: 0 CFT | J21: 13.00 TK | L21: 0 TK
B22: Masonry Brick | E22: ='Admin Panel'!AE23 -> 0 Nos | H22: 0 Nos | J22: 14.00 TK | L22: 0 TK
B23: Primers/Sealer | E23: ='Admin Panel'!AF23 -> 0 liter | H23: 0 liter | J23: 15.00 TK | L23: 0 TK
B24: Ready-mix putty | E24: ='Admin Panel'!AG23 -> 0 KG | H24: 0 KG | J24: 16.00 TK | L24: 0 TK
B25: Paint | E25: ='Admin Panel'!AH23 -> 0 liter | H25: 0 liter | J25: 17.00 TK | L25: 0 TK
B26: Grouting Materials | E26: ='Admin Panel'!AI23 -> 0 Bag | H26: 0 Bag | J26: 18.00 TK | L26: 0 TK
B27: Tile size-1 | C27: 11 '' | D27: 11 '' | E27: =SUMIFS('Tiles Work'!$C$24:$AF$24,'Tiles Work'!$C$18:$AF$18,Result!C27,'Tiles Work'!$C$19:$AF$19,Result!D27) -> 0 Nos | H27: 0 Nos | J27: 19.00 TK | L27: 0 TK
B28: Tile size-2 | C28: 5 '' | D28: 5 '' | E28: =SUMIFS('Tiles Work'!$C$24:$AF$24,'Tiles Work'!$C$18:$AF$18,Result!C28,'Tiles Work'!$C$19:$AF$19,Result!D28) -> 0 Nos | H28: 0 Nos | J28: 20.00 TK | L28: 0 TK
B29: Tile size-3 | C29: 8 '' | D29: 6 '' | E29: =SUMIFS('Tiles Work'!$C$24:$AF$24,'Tiles Work'!$C$18:$AF$18,Result!C29,'Tiles Work'!$C$19:$AF$19,Result!D29) -> 0 Nos | H29: 0 Nos | J29: 21.00 TK | L29: 0 TK
B30: Tile size-4 | C30: 8 '' | D30: 6 '' | E30: =SUMIFS('Tiles Work'!$C$24:$AF$24,'Tiles Work'!$C$18:$AF$18,Result!C30,'Tiles Work'!$C$19:$AF$19,Result!D30) -> 0 Nos | H30: 0 Nos | J30: 22.00 TK | L30: 0 TK
B31: Tile size-5 | C31: 9 '' | D31: 9 '' | E31: =SUMIFS('Tiles Work'!$C$24:$AF$24,'Tiles Work'!$C$18:$AF$18,Result!C31,'Tiles Work'!$C$19:$AF$19,Result!D31) -> 0 Nos | H31: 0 Nos | J31: 23.00 TK | L31: 0 TK
B32: Tile size-6 | C32: 3 '' | D32: 3 '' | E32: =SUMIFS('Tiles Work'!$C$24:$AF$24,'Tiles Work'!$C$18:$AF$18,Result!C32,'Tiles Work'!$C$19:$AF$19,Result!D32) -> 0 Nos | H32: 0 Nos | J32: 24.00 TK | L32: 0 TK
J33: Total Cost | L33: =SUM(L13:M32) -> 0 TK
E35: Reinforcement
E37: DESCRIPTION | G37: Quantity | I37: Wastage Add | J37: Quantity (Wastage Add)
E38: 8 MM | G38: =IF(E38>0,SUMIF('Admin Panel'!$D$49:$R$125,Result!E38,'Admin Panel'!$T$49:$AH$125),"") -> 0 KG | I38: 0 %ADD | J38: =IF(E38>0,G38+$I$38*G38/100,"") -> 0 KG
E39: 10 MM | G39: =IF(E39>0,SUMIF('Admin Panel'!$D$49:$R$125,Result!E39,'Admin Panel'!$T$49:$AH$125),"") -> 0 KG | J39: =IF(E39>0,G39+$I$38*G39/100,"") -> 0 KG
E40: 12 MM | G40: =IF(E40>0,SUMIF('Admin Panel'!$D$49:$R$125,Result!E40,'Admin Panel'!$T$49:$AH$125),"") -> 0 KG | J40: 0 KG
E41: 16 MM | G41: =IF(E41>0,SUMIF('Admin Panel'!$D$49:$R$125,Result!E41,'Admin Panel'!$T$49:$AH$125),"") -> 0 KG | J41: 0 KG
E42: 20 MM | G42: =IF(E42>0,SUMIF('Admin Panel'!$D$49:$R$125,Result!E42,'Admin Panel'!$T$49:$AH$125),"") -> 0 KG | J42: 0 KG
E43: 22 MM | G43: =IF(E43>0,SUMIF('Admin Panel'!$D$49:$R$125,Result!E43,'Admin Panel'!$T$49:$AH$125),"") -> 0 KG | J43: 0 KG
E44: 25 MM | G44: =IF(E44>0,SUMIF('Admin Panel'!$D$49:$R$125,Result!E44,'Admin Panel'!$T$49:$AH$125),"") -> 0 KG | J44: 0 KG
G45: =IF(E45>0,SUMIF('Admin Panel'!$D$49:$R$125,Result!E45,'Admin Panel'!$T$49:$AH$125),"") -> 
G46: =IF(E46>0,SUMIF('Admin Panel'!$D$49:$R$125,Result!E46,'Admin Panel'!$T$49:$AH$125),"") -> 

Sheet Home Page
A1: This is The Property of NOR DESIGN SOLUTION
A4: আমাদের এই এক্সেল শীটের সাহায্যে খুব সহজে ঘন্টার কাজ মিনিটে করে নিতে পারবেন।
A5: এক্সেল শীট সম্পর্কে যাবতীয় তথ্য বিস্তারিত জানতে ভিজিট করুন আমাদের ইউটিউব চ্যানেলে
A7: Click Here To Our Youtube Channel

Sheet Sheet1 (hidden)
